Workbook

Sheet SD Prix (hidden)
F1: SOUS DETAIL DE PRIX BUDGET
P4: =SUM(N17:N26) -> 0 | Q4: =IFERROR(SUM(Q17:Q26)/VLOOKUP(A17,MAT_VAL,6,0),"") ->  | R4: =SUM(R17:R26)/RESSOURCES!$D$133 -> 0
B5: DESIGNATION DU PRIX : | E5: Unités : | L5: Unités : | P5: =SUM(P17:P26) -> 0 | Q5: =SUM(Q17:Q26) -> 0 | R5: =SUM(R17:R26) -> 0
B6: QUANTITES PREVUES : | H6: Quantités de rendement : | M6: K | N6: =IFERROR(D6/K6,"") ->  | O6: Mo | P6: Mat_BSI | Q6: Entretien | R6: Carb
E7: Travaux Propres | J7: ST | M7: Coût
A8: Code | B8: Désignation | C8: Unité | D8: Qté ou durée d'utilisation | E8: Main d'œuvre | F8: Amortissement | G8: Entretien | H8: Carb-Energie | I8: Fournitures | J8: Sous-traitant | K8: TOTAL Travaux propres | L8: TOTAL Travaux ST | U8: =B10 ->  | V8: =B11 ->  | W8: =B12 ->  | X8: =B13 ->  | Y8: =B14 ->  | Z8: =K15 ->  | AA8: =B17 ->  | AB8: =B18 ->  | AC8: =B19 ->  | AD8: =B20 ->  | AE8: =B21 ->  | AF8: =B22 ->  | AG8: =B23 ->  | AH8: =B24 ->  | AI8: =B25 ->  | AJ8: =B26 ->  | AK8: =A27 -> Ftures & conso | AL8: =+J8 -> Sous-traitant
A9: Personnel
B10: =IFERROR(VLOOKUP(A10,RESTAF_01,2,0),"") ->  | C10: =IFERROR(VLOOKUP(A10,RESTAF_01,3,0),"") ->  | E10: =IFERROR(VLOOKUP(A10,PERS_VAL,4,0),"-") -> - | K10: =IFERROR((E10*D10),"") ->  | L10: =IFERROR(J10*D10,"-") -> 0 | M10: =IFERROR(IF($D$6>0,K10*$N$6,K10),"") ->  | N10: =IFERROR(IF($D$6>0,L10*$N$6,L10),"") -> 0 | O10: =IFERROR(IF($D$6>0,(E10*D10)*$N$6,(E10*D10)),0) -> 0 | S10: =IFERROR(-SUM(U10:AL10)+M10+N10,"") ->  | U10: =IFERROR(+K10*$N$6,0) -> 0
E11: =IFERROR(VLOOKUP(A11,PERS_VAL,4,0),"-") -> - | K11: =IFERROR((E11*D11),"") ->  | L11: 0 | N11: 0 | O11: =IFERROR(IF($D$6>0,(E11*D11)*$N$6,(E11*D11)),0) -> 0 | V11: =IFERROR(+K11*$N$6,0) -> 0
E12: =IFERROR(VLOOKUP(A12,PERS_VAL,4,0),"-") -> - | L12: 0 | N12: 0 | O12: 0 | W12: =IFERROR(+K12*$N$6,0) -> 0
E13: - | L13: 0 | N13: 0 | O13: 0 | X13: =IFERROR(+K13*$N$6,0) -> 0
E14: - | L14: 0 | N14: 0 | O14: =IFERROR(IF($D$6>0,(E14*D14)*$N$6,(E14*D14)),0) -> 0 | S14: =IFERROR(-SUM(U14:AL14)+M14+N14,"") ->  | Y14: =IFERROR(+K14*$N$6,0) -> 0
E15: =IFERROR(VLOOKUP(A15,PERS_VAL,4,0),"-") -> - | L15: 0 | N15: 0 | O15: 0 | Z15: =IFERROR(+K15*$N$6,0) -> 0
A16: Matériel
F17: =IFERROR(VLOOKUP(A17,MAT_VAL,4,0),"-") -> - | G17: =IFERROR(VLOOKUP(A17,MAT_VAL,6,0),"-") -> - | H17: =IFERROR(IF(A17="","",RESSOURCES!$D$133*VLOOKUP(A17,MAT_VAL,5,0)),"-") ->  | J17: =IFERROR(VLOOKUP(A17,ST_VAL,4,0),"-") -> - | K17: =IFERROR((E17+F17+G17+D17+H17+I17)*D17,"") ->  | L17: - | N17: - | P17: =IFERROR(IF($D$6>0,(F17*D17)*$N$6,(F17)),0) -> - | Q17: =IFERROR(IF($D$6>0,(G17*D17)*$N$6,(G17*D17)),0) -> 0 | R17: =IFERROR(IF($D$6>0,(H17*D17)*$N$6,(H17*D17)),0) -> 0 | AA17: =IFERROR(F17*$N$6,0) -> 0 | AL17: =IFERROR(D17*J17*$N$6,0) -> 0
F18: - | G18: - | H18: =IFERROR(IF(A18="","",RESSOURCES!$D$133*VLOOKUP(A18,MAT_VAL,5,0)),"-") ->  | J18: - | K18: =IFERROR((E18+F18+G18+D18+H18+I18)*D18,"") ->  | L18: - | N18: - | P18: =IFERROR(IF($D$6>0,(F18*D18)*$N$6,(F18)),0) -> - | Q18: =IFERROR(IF($D$6>0,(G18*D18)*$N$6,(G18*D18)),0) -> 0 | R18: =IFERROR(IF($D$6>0,(H18*D18)*$N$6,(H18*D18)),0) -> 0 | AB18: =IFERROR(F18*$N$6,0) -> 0 | AL18: =IFERROR(D18*J18*$N$6,0) -> 0
F19: - | G19: - | H19: =IFERROR(IF(A19="","",RESSOURCES!$D$133*VLOOKUP(A19,MAT_VAL,5,0)),"-") ->  | J19: - | L19: - | N19: - | P19: - | Q19: 0 | R19: 0 | AC19: =IFERROR(F19*$N$6,0) -> 0 | AL19: 0
F20: - | G20: - | H20: =IFERROR(IF(A20="","",RESSOURCES!$D$133*VLOOKUP(A20,MAT_VAL,5,0)),"-") ->  | J20: - | L20: - | N20: - | P20: - | Q20: 0 | R20: 0 | AD20: =IFERROR(F20*$N$6,0) -> 0 | AL20: 0
F21: - | G21: - | H21: =IFERROR(IF(A21="","",RESSOURCES!$D$133*VLOOKUP(A21,MAT_VAL,5,0)),"-") ->  | J21: - | L21: - | N21: - | P21: - | Q21: 0 | R21: 0 | AE21: =IFERROR(F21*$N$6,0) -> 0 | AL21: 0
F22: - | G22: - | H22: =IFERROR(IF(A22="","",RESSOURCES!$D$133*VLOOKUP(A22,MAT_VAL,5,0)),"-") ->  | J22: - | L22: - | N22: - | P22: - | Q22: 0 | R22: 0 | AF22: =IFERROR(F22*$N$6,0) -> 0 | AL22: 0
F23: - | G23: - | H23: =IFERROR(IF(A23="","",RESSOURCES!$D$133*VLOOKUP(A23,MAT_VAL,5,0)),"-") ->  | J23: - | L23: - | N23: - | P23: - | Q23: 0 | R23: 0 | AG23: =IFERROR(F23*$N$6,0) -> 0 | AL23: 0
F24: - | G24: - | H24: =IFERROR(IF(A24="","",RESSOURCES!$D$133*VLOOKUP(A24,MAT_VAL,5,0)),"-") ->  | J24: - | L24: - | N24: - | P24: - | Q24: 0 | R24: 0 | AH24: =IFERROR(F24*$N$6,0) -> 0 | AL24: 0
F25: - | G25: - | H25: =IFERROR(IF(A25="","",RESSOURCES!$D$133*VLOOKUP(A25,MAT_VAL,5,0)),"-") ->  | J25: - | L25: - | N25: - | P25: - | Q25: 0 | R25: 0 | AI25: =IFERROR(F25*$N$6,0) -> 0 | AL25: 0
F26: - | G26: - | H26: =IFERROR(IF(A26="","",RESSOURCES!$D$133*VLOOKUP(A26,MAT_VAL,5,0)),"-") ->  | J26: - | L26: - | N26: - | P26: - | Q26: 0 | R26: 0 | AJ26: =IFERROR(G26*$N$6,0) -> 0 | AL26: 0
A27: Ftures & conso
I28: =IFERROR(VLOOKUP(A28,RESSCH_1,4,0),"-") -> - | K28: =IFERROR((E28*D28+F28+G28*D28+D28*H28+D28*I28),"") ->  | L28: 0 | N28: 0 | AK28: =IFERROR(D28*I28*$N$6,0) -> 0 | AL28: 0
B29: =IFERROR(VLOOKUP(A29,RESTAF_01,2,0),"") ->  | C29: =IFERROR(VLOOKUP(A29,RESTAF_01,3,0),"") ->  | I29: - | K29: =IFERROR((E29*D29+F29+G29*D29+D29*H29+D29*I29),"") ->  | L29: =IFERROR(J29*D29,"-") -> 0 | M29: =IFERROR(IF($D$6>0,K29*$N$6,K29),"") ->  | N29: =IFERROR(IF($D$6>0,L29*$N$6,L29),"") -> 0 | S29: =IFERROR(-SUM(U29:AL29)+M29+N29,"") ->  | AK29: =IFERROR(D29*I29*$N$6,0) -> 0 | AL29: =IFERROR(D29*J29*$N$6,0) -> 0
B30: =IFERROR(VLOOKUP(A30,RESTAF_01,2,0),"") ->  | C30: =IFERROR(VLOOKUP(A30,RESTAF_01,3,0),"") ->  | I30: =IFERROR(VLOOKUP(A30,RESSCH_1,4,0),"-") -> - | K30: =IFERROR((E30*D30+F30+G30*D30+D30*H30+D30*I30),"") ->  | L30: =IFERROR(J30*D30,"-") -> 0 | M30: =IFERROR(IF($D$6>0,K30*$N$6,K30),"") ->  | N30: =IFERROR(IF($D$6>0,L30*$N$6,L30),"") -> 0 | S30: =IFERROR(-SUM(U30:AL30)+M30+N30,"") ->  | AK30: =IFERROR(D30*I30*$N$6,0) -> 0 | AL30: =IFERROR(D30*J30*$N$6,0) -> 0
B31: =IFERROR(VLOOKUP(A31,RESTAF_01,2,0),"") ->  | C31: =IFERROR(VLOOKUP(A31,RESTAF_01,3,0),"") ->  | I31: =IFERROR(VLOOKUP(A31,RESSCH_1,4,0),"-") -> - | K31: =IFERROR((E31*D31+F31+G31*D31+D31*H31+D31*I31),"") ->  | L31: =IFERROR(J31*D31,"-") -> 0 | M31: =IFERROR(IF($D$6>0,K31*$N$6,K31),"") ->  | N31: =IFERROR(IF($D$6>0,L31*$N$6,L31),"") -> 0 | S31: =IFERROR(-SUM(U31:AL31)+M31+N31,"") ->  | AK31: =IFERROR(D31*I31*$N$6,0) -> 0 | AL31: =IFERROR(D31*J31*$N$6,0) -> 0
I32: - | L32: 0 | N32: 0 | AK32: 0 | AL32: 0
I33: - | N33: 0 | AK33: 0 | AL33: 0
I34: - | L34: 0 | N34: 0 | AK34: 0 | AL34: 0
I35: - | L35: 0 | N35: 0 | AK35: 0 | AL35: 0
I36: - | N36: 0 | AK36: 0 | AL36: 0
B37: TOTAL | K37: =SUM(K10:K36) -> 0 | L37: =SUM(L10:L36) -> 0 | U37: =+SUM(U10:U36) -> 0 | V37: 0 | W37: 0 | X37: 0 | Y37: 0 | Z37: 0 | AA37: 0 | AB37: 0 | AC37: 0 | AD37: 0 | AE37: 0 | AF37: 0 | AG37: 0 | AH37: 0 | AI37: 0 | AJ37: =+SUM(AJ10:AJ36) -> 0 | AK37: =+SUM(AK10:AK36) -> 0 | AL37: =+SUM(AL10:AL36) -> 0
K39: =IFERROR((K37+L37)/$K$6,"") ->  | L39: CFA
G41: TOTAL DEBOURSE SEC HT ARRONDI A : | K41: =IFERROR(ROUNDUP(K39,-1),"") ->  | L41: CFA
G42: TOTAL VENTE HT ARRONDI A : | K42: =IFERROR(K41*K43,"") ->  | L42: CFA
I43: Coef. de vente
K45: =IFERROR(K39*$D$6,0) -> 0
K100: =K45 -> 0

Sheet RECAP DQE (hidden)
A1: abdbyhde dml,ed
A2: fsdraz s | B2: gdfgghjkl
A3: sxdfftgbn | B3: =sous001 -> 240
A4: hgfryt sw s: | B4: ='BUDGET ESTXXX'!C5 -> 0
A5: vsdgqzvqs | B5: =IF(('BUDGET ESTXXX'!$XFD$1)>0,INDIRECT("'BUDGET ESTXXX'!XFD1",'BUDGET ESTXXX'!$XFD$1))-B3-B4 -> 76076292.49
A6: fsdvbqah | B6: =B3+B4+B5 -> 76076532.49
A7: gdb bns | B7: 0 | C7: XXXXXX
C8: 0
A9: vcfgtq vq | B9: =B7-B6 -> -76076532.49
C10: XXXXXX | D10: XXXXXX | E10: XXXXX
A11: Opportunites 1 | B11: =-C11-D11-E11 -> 0 | C11: 0 | D11: 0 | E11: =D11*15/100 -> 0
A12: Opportunites 2 | B12: =-C12-D12-E12 -> 0 | C12: 0 | D12: 0 | E12: =D12*15/100 -> 0
A15: vfstrv qa q | B15: =+B9+B11+B12 -> -76076532.49

Sheet BUDGET ESTXXX (hidden)
A1: =B1 -> 0 | XFD1: 76076532.49
A2: SDFGHJKL | B2: DGHJFKGLHMJKL | C2: ERFTGYHJKL
A4: XXX | B4: POSTE | C4: ='RECAP DQE'!B7 -> 0
B5: FRAIS DE CHANTIER | C5: ='FRAIS DE CHANTIER'!AG182 -> 0
A6: XXX | B6: POSTE | C6: =SUM(OFFSET(sous01,-1,0):OFFSET(sous001,1,0)) -> 240
A7: 002 | B7: ETUDE | C7: =INDIRECT(A7&"!k100") -> 12
A8: 003A | B8: INSTALLATION BASE CHANTIER | C8: =INDIRECT(A8&"!k100") -> 228
A9: aaa | B9: Sous-détails prix installation chantier | C9: 0
A11: XXX | B11: POSTE | C11: =SUM(OFFSET(Sous02,-1,0):OFFSET(sous002,1,0)) -> 442131.1494
A12: 101 | B12: DECAPAGE | C12: =INDIRECT(A12&"!k100") -> 442131.1494
A13: aaa | B13: Sous-détails prix Dégagement des emprises | C13: 0
A15: XXX | B15: POSTE | C15: =SUM(OFFSET(Sous03,-1,0):OFFSET(Sous003,1,0)) -> 37843492.29
A16: 201 | B16: DEBLAI | C16: =INDIRECT(A16&"!k100") -> 1246669.768
A17: 202 | B17: REMBLAI EMPRUNT | C17: =INDIRECT(A17&"!k100") -> 5576811.398
A18: 203 | B18: PURGE ET SUBSTITUTION BLOCS LATERITE | C18: =INDIRECT(A18&"!k100") -> 29564709
A19: 204 | B19: GEOTEXTILE RENFORCEMENT | C19: =INDIRECT(A19&"!k100") -> 437071.482
A20: 205 | B20: COMPACTAGE DE L'ARASE DE LA PLATEFORME | C20: =INDIRECT(A20&"!k100") -> 1018230.647
A21: aaa | B21: Sous-détails prix Terrassement généraux | C21: 0
A23: XXX | B23: POSTE | C23: =SUM(OFFSET(Sous04,-1,0):OFFSET(Sous004,1,0)) -> 0
A24: aaa | B24: Sous-détails prix Terrassement généraux | C24: 0
A26: XXX | B26: POSTE | C26: =SUM(OFFSET(Sous05,-1,0):OFFSET(Sous005,1,0)) -> 23753042.76
A27: 301 | B27: MATERIAUX D'APPORT POUR STABILISATION | C27: =INDIRECT(A27&"!k100") -> 3659741.735
A28: 302 | B28: RECYCLAGE ET STABILISATION DES SOLS AVEC CIMENT+NOVOCRETE | C28: 1575397.35
A29: 303 | B29: COUCHE D'IMPREGNATION CUT BACK | C29: 6502768.623
A30: 304 | B30: COUCHE ENDUIT BICOUCHE DOUBLE GRAVILLONNAGE | C30: 11740389.02
A31: 305 | B31: PAVES AUTOBLOQUANT EP.10CM Y/C LIT DE SABLE 4CM | C31: 0
A32: 306 | B32: PERRES MACONNES | C32: 0
A33: 307 | B33: DALLAGE POUR TROTTOIRS 8CM | C33: 0
A34: 308 | B34: ENGAZONNEMENT | C34: =INDIRECT(A34&"!k100") -> 274746.0384
A35: aaa | B35: Sous-détails prix chaussées | C35: 0
A37: XXX | B37: POSTE | C37: =SUM(OFFSET(Sous06,-1,0):OFFSET(Sous006,1,0)) -> 13807402.45
A38: 401 | B38: BORDURE TYPE T2 | C38: =INDIRECT(A38&"!k46") -> 839724.6873
A39: 402 | B39: FOSSE BETON | C39: =INDIRECT(A39&"!k100") -> 0
A40: 403 | B40: BETON 350 NON ARME | C40: =INDIRECT(A40&"!k100") -> 1345.514
A41: 404 | B41: DALOT 100x100 | C41: =INDIRECT(A41&"!k42") -> 3972936.601
A42: 404B | B42: DALOT 150X150 | C42: 1310526.608
A43: 404C | B43: DALOT 2X250X250 | C43: 1222986.819
A44: 404D | B44: DALOT 4X4X250 | C44: =INDIRECT(A44&"!k42") -> 4243413.634
A45: 405A | B45: TETE DE DALOT 100x100 | C45: =INDIRECT(A45&"!k42") -> 542520.3112
A46: 405B | B46: TETE DE DALOT 150X150 | C46: =INDIRECT(A46&"!k42") -> 119904.918
A47: 405C | B47: TETE DE DALOT 2X250X250 | C47: =INDIRECT(A47&"!k42") -> 88975.14
A48: 405D | B48: TETE DE DALOT 4X400X250 | C48: =INDIRECT(A48&"!k42") -> 1440585.44
A49: 406 | B49: ACIER | C49: =INDIRECT(A49&"!k100") -> 24482.7765
A50: aaa | B50: Sous-détails prix Assainissement | C50: 0
A52: XXX | B52: POSTE | C52: =SUM(OFFSET(Sous07,-1,0):OFFSET(Sous007,1,0)) -> 0
A53: aaa | B53: Sous-détails prix protection de l'environnement & HSE | C53: 0
A55: XXX | B55: POSTE | C55: =SUM(OFFSET(Sous08,-1,0):OFFSET(Sous008,1,0)) -> 230223.84
A56: 601 | B56: PEINTURE RETROFLECHISSANTE CONTINUE 2U | C56: =INDIRECT(A56&"!k100") -> 122343.84
A57: 602 | B57: PEINTURE RETROFLECHISSANTE CONTINUE T2 3U | C57: 0
A58: 603 | B58: PEINTURE RETROFLECHISSANTE CONTINUE T3 2U | C58: 0
A59: 604 | B59: PEINTURE RETROFLECHISSANTE CONTINUE STOP | C59: 107880
A60: 605 | B60: PEINTURE RETROFLECHISSANTE PASSAGE POUR PIETON | C60: 0
A61: 606 | B61: PEINTURE RETROFLECHISSANTE CONTINUE CEDEZ LE PASSAGE | C61: 0
A62: 607 | B62: PANNEAUX DE DANGER TYPE A | C62: 0
A63: 608 | B63: PANNEAUX DE DANGER TYPE AB | C63: 0
A64: 609 | B64: PANNEAUX DE DANGER TYPE B | C64: 0
A65: 610 | B65: PANNEAUX DE DANGER TYPE D | C65: 0
A66: 611 | B66: RESERVATION POUR ECLAIRAGE PUBLIQUE | C66: 0
A67: 612 | B67: CANDELABRE SOLAIRE | C67: =INDIRECT(A67&"!k100") -> 0
A68: aaa | B68: Sous-détails prix signalisation | C68: 0
B70: SDFGHJKL | C70: =$XFD$1 -> 76076532.49
C218: 5631340681
C518: 5631340681

Sheet BUDGET PAR RESSOURCES
L3: Mat_BSI | M3: Entretien | N3: Carb
B4: SDFGHJKLM
A5: Type | B5: Code | C5: Libellé | D5: U | E5: Quantité | F5: Valeur
A6: Personnel | B6: =RESSOURCES!A4 -> A.101 | C6: =RESSOURCES!B4 -> prprtttttttttttttttttttttttkuù | D6: =IFERROR((+RESSOURCES!C4),"") -> Ms | K6: Quantité | L6: 18203.2825 | M6: 17276.159 | N6: 1080709.107 | O6: TOTAL
A7: Personnel | B7: =RESSOURCES!A5 -> A.102 | C7: =RESSOURCES!B5 -> prprtttttttttttttttttttttttkuù | D7: =IFERROR((+RESSOURCES!C5),"") -> Ms | K7: Montant | L7: 1515197.992 | M7: 13454161.32 | N7: 35663400.53 | O7: =SUBTOTAL(9,L7:N7) -> 50632759.84
A8: Personnel | B8: =RESSOURCES!A6 -> A.103 | C8: =RESSOURCES!B6 -> prprtttttttttttttttttttttttkuù | D8: =IFERROR((+RESSOURCES!C6),"") -> Ms
A9: Personnel | B9: =RESSOURCES!A7 -> A.104 | C9: =RESSOURCES!B7 -> prprtttttttttttttttttttttttkuù | D9: =IFERROR((+RESSOURCES!C7),"") -> Ms
A10: Personnel | B10: =RESSOURCES!A8 -> A.105 | C10: =RESSOURCES!B8 -> prprtttttttttttttttttttttttkuù | D10: =IFERROR((+RESSOURCES!C8),"") -> Ms
A11: Personnel | B11: =RESSOURCES!A9 -> A.106 | C11: =RESSOURCES!B9 -> prprtttttttttttttttttttttttkuù | D11: =IFERROR((+RESSOURCES!C9),"") -> Ms
A12: Personnel | B12: =RESSOURCES!A10 -> A.107 | C12: =RESSOURCES!B10 -> prprtttttttttttttttttttttttkuù | D12: =IFERROR((+RESSOURCES!C10),"") -> Ms
A13: Personnel | B13: =RESSOURCES!A11 -> A.108 | C13: =RESSOURCES!B11 -> prprtttttttttttttttttttttttkuù | D13: =IFERROR((+RESSOURCES!C11),"") -> Ms
A14: Personnel | B14: =RESSOURCES!A12 -> A.109 | C14: =RESSOURCES!B12 -> prprtttttttttttttttttttttttkuù | D14: =IFERROR((+RESSOURCES!C12),"") -> Ms
A15: Personnel | B15: =RESSOURCES!A13 -> A.100 | C15: =RESSOURCES!B13 -> prprtttttttttttttttttttttttkuù | D15: =IFERROR((+RESSOURCES!C13),"") -> Ms
A16: Personnel | B16: =RESSOURCES!A14 -> A.101 | C16: =RESSOURCES!B14 -> prprtttttttttttttttttttttttkuù | D16: =IFERROR((+RESSOURCES!C14),"") -> Ms
A17: Personnel | B17: =RESSOURCES!A15 -> A.102 | C17: =RESSOURCES!B15 -> prprtttttttttttttttttttttttkuù | D17: =IFERROR((+RESSOURCES!C15),"") -> Ms
A18: Personnel | B18: =RESSOURCES!A16 -> A.103 | C18: =RESSOURCES!B16 -> prprtttttttttttttttttttttttkuù | D18: =IFERROR((+RESSOURCES!C16),"") -> Ms
A19: Personnel | B19: =RESSOURCES!A17 -> A.104 | C19: =RESSOURCES!B17 -> prprtttttttttttttttttttttttkuù | D19: =IFERROR((+RESSOURCES!C17),"") -> Ms
A20: Personnel | B20: =RESSOURCES!A18 -> A.105 | C20: =RESSOURCES!B18 -> prprtttttttttttttttttttttttkuù | D20: =IFERROR((+RESSOURCES!C18),"") -> Ms
A21: Personnel | B21: =RESSOURCES!A19 -> A.106 | C21: =RESSOURCES!B19 -> prprtttttttttttttttttttttttkuù | D21: =IFERROR((+RESSOURCES!C19),"") -> Ms
A22: Personnel | B22: =RESSOURCES!A20 -> A.107 | C22: =RESSOURCES!B20 -> prprtttttttttttttttttttttttkuù | D22: =IFERROR((+RESSOURCES!C20),"") -> Ms
A23: Personnel | B23: =RESSOURCES!A21 -> A.108 | C23: =RESSOURCES!B21 -> prprtttttttttttttttttttttttkuù | D23: =IFERROR((+RESSOURCES!C21),"") -> Ms
A24: Personnel | B24: =RESSOURCES!A22 -> A.109 | C24: =RESSOURCES!B22 -> prprtttttttttttttttttttttttkuù | D24: =IFERROR((+RESSOURCES!C22),"") -> Ms
A25: Personnel | B25: =RESSOURCES!A23 -> A.110 | C25: =RESSOURCES!B23 -> prprtttttttttttttttttttttttkuù | D25: =IFERROR((+RESSOURCES!C23),"") -> Ms
A26: Personnel | B26: =RESSOURCES!A24 -> A.111 | C26: =RESSOURCES!B24 -> prprtttttttttttttttttttttttkuù | D26: =IFERROR((+RESSOURCES!C24),"") -> Ms
A27: Personnel | B27: =RESSOURCES!A25 -> A.112 | C27: =RESSOURCES!B25 -> prprtttttttttttttttttttttttkuù | D27: =IFERROR((+RESSOURCES!C25),"") -> Ms
A28: Personnel | B28: =RESSOURCES!A26 -> A.113 | C28: =RESSOURCES!B26 -> prprtttttttttttttttttttttttkuù | D28: =IFERROR((+RESSOURCES!C26),"") -> Ms
A29: Personnel | B29: =RESSOURCES!A27 -> A.114 | C29: =RESSOURCES!B27 -> prprtttttttttttttttttttttttkuù | D29: =IFERROR((+RESSOURCES!C27),"") -> H | E29: 7279.594965 | F29: 240226.6338
A30: Personnel | B30: =RESSOURCES!A28 -> A.115 | C30: =RESSOURCES!B28 -> prprtttttttttttttttttttttttkuù | D30: =IFERROR((+RESSOURCES!C28),"") -> H
A31: Personnel | B31: =RESSOURCES!A29 -> A.116 | C31: =RESSOURCES!B29 -> prprtttttttttttttttttttttttkuù | D31: =IFERROR((+RESSOURCES!C29),"") -> H | E31: 13620.72367 | F31: 449483.881
A32: Personnel | B32: =RESSOURCES!A30 -> A.117 | C32: =RESSOURCES!B30 -> prprtttttttttttttttttttttttkuù | D32: =IFERROR((+RESSOURCES!C30),"") -> H | E32: 7014.33183 | F32: 231472.9504
A33: Personnel | B33: =RESSOURCES!A31 -> A.118 | C33: =RESSOURCES!B31 -> prprtttttttttttttttttttttttkuù | D33: =IFERROR((+RESSOURCES!C31),"") -> H | E33: 14012.50257 | F33: 462412.5846
A34: Personnel | B34: =RESSOURCES!A32 -> A.119 | C34: =RESSOURCES!B32 -> prprtttttttttttttttttttttttkuù | D34: =IFERROR((+RESSOURCES!C32),"") -> H | E34: 21336.79537 | F34: 677714.2474
A35: Personnel | B35: =RESSOURCES!A33 -> A.120 | C35: =RESSOURCES!B33 -> prprtttttttttttttttttttttttkuù | D35: =IFERROR((+RESSOURCES!C33),"") -> Ms
A36: Personnel | B36: =RESSOURCES!A34 -> A.121 | C36: =RESSOURCES!B34 -> prprtttttttttttttttttttttttkuù | D36: =IFERROR((+RESSOURCES!C34),"") -> H
A37: Personnel | B37: =RESSOURCES!A35 -> A.122 | C37: =RESSOURCES!B35 -> prprtttttttttttttttttttttttkuù | D37: =IFERROR((+RESSOURCES!C35),"") -> Ms
A38: Personnel | B38: =RESSOURCES!A36 -> A.123 | C38: =RESSOURCES!B36 -> prprtttttttttttttttttttttttkuù | D38: =IFERROR((+RESSOURCES!C36),"") -> Ft
A39: A.269 | C39: Personnel | F39: =SUBTOTAL(9,F6:F38) -> 2061310.297
A40: Sous-traitant | B40: =RESSOURCES!A38 -> A.125 | C40: =+RESSOURCES!B38 -> ssssssssssss | D40: =IFERROR(RESSOURCES!C38,"") -> ml
A41: Sous-traitant | B41: =RESSOURCES!A39 -> A.126 | C41: =+RESSOURCES!B39 -> ssssssssssss | D41: =IFERROR(RESSOURCES!C39,"") -> ml
A42: Sous-traitant | B42: =RESSOURCES!A40 -> A.127 | C42: =+RESSOURCES!B40 -> ssssssssssss | D42: =IFERROR(RESSOURCES!C40,"") -> ml
A43: Sous-traitant | B43: =RESSOURCES!A41 -> A.128 | C43: =+RESSOURCES!B41 -> ssssssssssss | D43: =IFERROR(RESSOURCES!C41,"") -> U
A44: Sous-traitant | B44: =RESSOURCES!A42 -> A.129 | C44: =+RESSOURCES!B42 -> ssssssssssss | D44: =IFERROR(RESSOURCES!C42,"") -> U
A45: Sous-traitant | B45: =RESSOURCES!A43 -> A.130 | C45: =+RESSOURCES!B43 -> ssssssssssss | D45: =IFERROR(RESSOURCES!C43,"") -> U
A46: Sous-traitant | B46: =RESSOURCES!A44 -> A.131 | C46: =+RESSOURCES!B44 -> ssssssssssss | D46: =IFERROR(RESSOURCES!C44,"") -> U
A47: Sous-traitant | B47: =RESSOURCES!A45 -> A.132 | C47: =+RESSOURCES!B45 -> ssssssssssss | D47: =IFERROR(RESSOURCES!C45,"") -> U
A48: Sous-traitant | B48: =RESSOURCES!A46 -> A.133 | C48: =+RESSOURCES!B46 -> ssssssssssss | D48: =IFERROR(RESSOURCES!C46,"") -> ml
A49: Sous-traitant | B49: =RESSOURCES!A47 -> A.134 | C49: =+RESSOURCES!B47 -> ssssssssssss | D49: =IFERROR(RESSOURCES!C47,"") -> ml
A50: Sous-traitant | B50: =RESSOURCES!A48 -> A.135 | C50: =+RESSOURCES!B48 -> ssssssssssss | D50: =IFERROR(RESSOURCES!C48,"") -> ml
A51: Sous-traitant | B51: =RESSOURCES!A49 -> A.136 | C51: =+RESSOURCES!B49 -> ssssssssssss | D51: =IFERROR(RESSOURCES!C49,"") -> ml
A52: Sous-traitant | B52: =RESSOURCES!A50 -> A.137 | C52: =+RESSOURCES!B50 -> ssssssssssss | D52: =IFERROR(RESSOURCES!C50,"") -> ml
A53: Sous-traitant | B53: =RESSOURCES!A51 -> A.138 | C53: =+RESSOURCES!B51 -> ssssssssssss | D53: =IFERROR(RESSOURCES!C51,"") -> ml
A54: Sous-traitant | B54: =RESSOURCES!A52 -> A.139 | C54: =+RESSOURCES!B52 -> ssssssssssss | D54: =IFERROR(RESSOURCES!C52,"") -> ml
A55: Sous-traitant | B55: =RESSOURCES!A53 -> A.140 | C55: =+RESSOURCES!B53 -> ssssssssssss | D55: =IFERROR(RESSOURCES!C53,"") -> ml
A56: Sous-traitant | B56: =RESSOURCES!A54 -> A.141 | C56: =+RESSOURCES!B54 -> ssssssssssss | D56: =IFERROR(RESSOURCES!C54,"") -> ml
A57: Sous-traitant | B57: =RESSOURCES!A55 -> A.142 | C57: =+RESSOURCES!B55 -> ssssssssssss | D57: =IFERROR(RESSOURCES!C55,"") -> U
A58: Sous-traitant | B58: =RESSOURCES!A56 -> A.143 | C58: =+RESSOURCES!B56 -> ssssssssssss | D58: =IFERROR(RESSOURCES!C56,"") -> U
A59: Sous-traitant | B59: =RESSOURCES!A57 -> A.144 | C59: =+RESSOURCES!B57 -> ssssssssssss | D59: =IFERROR(RESSOURCES!C57,"") -> ml
A60: Sous-traitant | B60: =RESSOURCES!A58 -> A.145 | C60: =+RESSOURCES!B58 -> ssssssssssss | D60: =IFERROR(RESSOURCES!C58,"") -> ml
A61: Sous-traitant | B61: =RESSOURCES!A59 -> A.146 | C61: =+RESSOURCES!B59 -> ssssssssssss | D61: =IFERROR(RESSOURCES!C59,"") -> ml
A62: Sous-traitant | B62: =RESSOURCES!A60 -> A.147 | C62: =+RESSOURCES!B60 -> ssssssssssss | D62: =IFERROR(RESSOURCES!C60,"") -> ml
A63: Sous-traitant | B63: =RESSOURCES!A61 -> A.148 | C63: =+RESSOURCES!B61 -> ssssssssssss | D63: =IFERROR(RESSOURCES!C61,"") -> ml
A64: Sous-traitant | B64: =RESSOURCES!A62 -> A.149 | C64: =+RESSOURCES!B62 -> ssssssssssss | D64: =IFERROR(RESSOURCES!C62,"") -> ml
A65: Sous-traitant | B65: =RESSOURCES!A63 -> A.150 | C65: =+RESSOURCES!B63 -> ssssssssssss | D65: =IFERROR(RESSOURCES!C63,"") -> ml
A66: Sous-traitant | B66: =RESSOURCES!A64 -> A.151 | C66: =+RESSOURCES!B64 -> ssssssssssss | D66: =IFERROR(RESSOURCES!C64,"") -> ml
A67: Sous-traitant | B67: =RESSOURCES!A65 -> A.152 | C67: =+RESSOURCES!B65 -> ssssssssssss | D67: =IFERROR(RESSOURCES!C65,"") -> ml
A68: Sous-traitant | B68: =RESSOURCES!A66 -> A.153 | C68: =+RESSOURCES!B66 -> ssssssssssss | D68: =IFERROR(RESSOURCES!C66,"") -> Kg | E68: 86934.684 | F68: 9649749.924
A69: Sous-traitant | B69: =RESSOURCES!A67 -> A.154 | C69: =+RESSOURCES!B67 -> ssssssssssss | D69: =IFERROR(RESSOURCES!C67,"") -> T
A70: Sous-traitant | B70: =RESSOURCES!A68 -> A.155 | C70: =+RESSOURCES!B68 -> ssssssssssss | D70: =IFERROR(RESSOURCES!C68,"") -> M²
A71: Sous-traitant | B71: =RESSOURCES!A69 -> A.156 | C71: =+RESSOURCES!B69 -> ssssssssssss | D71: =IFERROR(RESSOURCES!C69,"") -> ml
A72: Sous-traitant | B72: =RESSOURCES!A70 -> A.157 | C72: =+RESSOURCES!B70 -> ssssssssssss | D72: =IFERROR(RESSOURCES!C70,"") -> ml
A73: Sous-traitant | B73: =RESSOURCES!A71 -> A.158 | C73: =+RESSOURCES!B71 -> ssssssssssss | D73: =IFERROR(RESSOURCES!C71,"") -> M²
A74: Sous-traitant | B74: =RESSOURCES!A72 -> A.159 | C74: =+RESSOURCES!B72 -> ssssssssssss | D74: =IFERROR(RESSOURCES!C72,"") -> M3
A75: Sous-traitant | B75: =RESSOURCES!A73 -> A.160 | C75: =+RESSOURCES!B73 -> ssssssssssss | D75: =IFERROR(RESSOURCES!C73,"") -> M3
A76: Sous-traitant | B76: =RESSOURCES!A74 -> A.161 | C76: =+RESSOURCES!B74 -> ssssssssssss | D76: =IFERROR(RESSOURCES!C74,"") -> ml
A77: Sous-traitant | B77: =RESSOURCES!A75 -> A.162 | C77: =+RESSOURCES!B75 -> ssssssssssss | D77: =IFERROR(RESSOURCES!C75,"") -> Ft
A78: Sous-traitant | B78: =RESSOURCES!A76 -> A.163 | C78: =+RESSOURCES!B76 -> ssssssssssss | D78: =IFERROR(RESSOURCES!C76,"") -> Ft
A79: Sous-traitant | B79: =RESSOURCES!A77 -> A.164 | C79: =+RESSOURCES!B77 -> ssssssssssss | D79: =IFERROR(RESSOURCES!C77,"") -> Ft
A80: Sous-traitant | B80: =RESSOURCES!A78 -> A.165 | C80: =+RESSOURCES!B78 -> ssssssssssss | D80: =IFERROR(RESSOURCES!C78,"") -> Ft
A81: Sous-traitant | B81: =RESSOURCES!A79 -> A.166 | C81: =+RESSOURCES!B79 -> ssssssssssss | D81: =IFERROR(RESSOURCES!C79,"") -> Ft
A82: Sous-traitant | B82: =RESSOURCES!A80 -> A.167 | C82: =+RESSOURCES!B80 -> ssssssssssss | D82: =IFERROR(RESSOURCES!C80,"") -> Ft
A83: Sous-traitant | B83: =RESSOURCES!A81 -> A.168 | C83: =+RESSOURCES!B81 -> ssssssssssss | D83: =IFERROR(RESSOURCES!C81,"") -> Ft
A84: Sous-traitant | B84: =RESSOURCES!A82 -> A.169 | C84: =+RESSOURCES!B82 -> ssssssssssss | D84: =IFERROR(RESSOURCES!C82,"") -> U
A85: Sous-traitant | B85: =RESSOURCES!A83 -> A.170 | C85: =+RESSOURCES!B83 -> ssssssssssss | D85: =IFERROR(RESSOURCES!C83,"") -> Ft
A86: Sous-traitant | B86: =RESSOURCES!A84 -> A.171 | C86: =+RESSOURCES!B84 -> ssssssssssss | D86: =IFERROR(RESSOURCES!C84,"") -> Ft
A87: Sous-traitant | B87: =RESSOURCES!A85 -> A.172 | C87: =+RESSOURCES!B85 -> ssssssssssss | D87: =IFERROR(RESSOURCES!C85,"") -> M²
A88: Sous-traitant | B88: =RESSOURCES!A86 -> A.173 | C88: =+RESSOURCES!B86 -> ssssssssssss | D88: =IFERROR(RESSOURCES!C86,"") -> M²
A89: Sous-traitant | B89: =RESSOURCES!A87 -> A.174 | C89: =+RESSOURCES!B87 -> ssssssssssss | D89: =IFERROR(RESSOURCES!C87,"") -> M²
A90: Sous-traitant | B90: =RESSOURCES!A88 -> A.175 | C90: =+RESSOURCES!B88 -> ssssssssssss | D90: =IFERROR(RESSOURCES!C88,"") -> M²
A91: Sous-traitant | B91: =RESSOURCES!A89 -> A.176 | C91: =+RESSOURCES!B89 -> ssssssssssss | D91: =IFERROR(RESSOURCES!C89,"") -> M²
A92: Sous-traitant | B92: =RESSOURCES!A90 -> A.177 | C92: =+RESSOURCES!B90 -> ssssssssssss | D92: =IFERROR(RESSOURCES!C90,"") -> Ft
A93: Sous-traitant | B93: =RESSOURCES!A91 -> A.178 | C93: =+RESSOURCES!B91 -> ssssssssssss | D93: =IFERROR(RESSOURCES!C91,"") -> Ft
A94: Sous-traitant | B94: =RESSOURCES!A92 -> A.179 | C94: =+RESSOURCES!B92 -> ssssssssssss | D94: =IFERROR(RESSOURCES!C92,"") -> X
A95: Sous-traitant | B95: =RESSOURCES!A93 -> A.180 | C95: =+RESSOURCES!B93 -> ssssssssssss | D95: =IFERROR(RESSOURCES!C93,"") -> X
A96: Sous-traitant | B96: =RESSOURCES!A94 -> A.181 | C96: =+RESSOURCES!B94 -> ssssssssssss | D96: =IFERROR(RESSOURCES!C94,"") -> Ft
A97: Sous-traitant | B97: =RESSOURCES!A95 -> A.182 | C97: =+RESSOURCES!B95 -> ssssssssssss | D97: =IFERROR(RESSOURCES!C95,"") -> Ft
A98: Sous-traitant | B98: =RESSOURCES!A96 -> A.183 | C98: =+RESSOURCES!B96 -> ssssssssssss | D98: =IFERROR(RESSOURCES!C96,"") -> Ft
A99: Sous-traitant | B99: =RESSOURCES!A97 -> A.184 | C99: =+RESSOURCES!B97 -> ssssssssssss | D99: =IFERROR(RESSOURCES!C97,"") -> Ft
A100: Sous-traitant | B100: =RESSOURCES!A98 -> A.185 | C100: =+RESSOURCES!B98 -> ssssssssssss | D100: =IFERROR(RESSOURCES!C98,"") -> Ft
A101: Sous-traitant | B101: =RESSOURCES!A99 -> A.186 | C101: =+RESSOURCES!B99 -> ssssssssssss | D101: =IFERROR(RESSOURCES!C99,"") -> X
A102: Sous-traitant | B102: =RESSOURCES!A100 -> A.187 | C102: =+RESSOURCES!B100 -> ssssssssssss | D102: =IFERROR(RESSOURCES!C100,"") -> U
A103: Sous-traitant | B103: =RESSOURCES!A101 -> A.188 | C103: =+RESSOURCES!B101 -> ssssssssssss | D103: =IFERROR(RESSOURCES!C101,"") -> Ms
A104: Sous-traitant | B104: =RESSOURCES!A102 -> A.189 | C104: =+RESSOURCES!B102 -> ssssssssssss | D104: =IFERROR(RESSOURCES!C102,"") -> Ft
A105: Sous-traitant | B105: =RESSOURCES!A103 -> A.190 | C105: =+RESSOURCES!B103 -> ssssssssssss | D105: =IFERROR(RESSOURCES!C103,"") -> Ft
A106: Sous-traitant | B106: =RESSOURCES!A104 -> A.191 | C106: =+RESSOURCES!B104 -> ssssssssssss | D106: =IFERROR(RESSOURCES!C104,"") -> Ft
A107: Sous-traitant | B107: =RESSOURCES!A105 -> A.192 | C107: =+RESSOURCES!B105 -> ssssssssssss | D107: =IFERROR(RESSOURCES!C105,"") -> Ft
A108: Sous-traitant | B108: =RESSOURCES!A106 -> A.193 | C108: =+RESSOURCES!B106 -> ssssssssssss | D108: =IFERROR(RESSOURCES!C106,"") -> Ft | E108: 1 | F108: 33
A109: Sous-traitant | B109: =RESSOURCES!A107 -> A.194 | C109: =+RESSOURCES!B107 -> ssssssssssss | D109: =IFERROR(RESSOURCES!C107,"") -> Ft
A110: Sous-traitant | B110: =RESSOURCES!A108 -> A.195 | C110: =+RESSOURCES!B108 -> ssssssssssss | D110: =IFERROR(RESSOURCES!C108,"") -> Ft
A111: Sous-traitant | B111: =RESSOURCES!A109 -> A.196 | C111: =+RESSOURCES!B109 -> ssssssssssss | D111: =IFERROR(RESSOURCES!C109,"") -> Ft
A112: A.269 | B112: 0 | C112: Sous-traitant | F112: =SUBTOTAL(9,F40:F111) -> 9649782.924
A113: Matériel de location | B113: =+RESSOURCES!A111 -> A.198 | C113: =RESSOURCES!B111 -> aaaaaaaaaaaaaa | D113: =IFERROR(RESSOURCES!C111,"") -> J
A114: Matériel de location | B114: =+RESSOURCES!A112 -> A.199 | C114: =RESSOURCES!B112 -> aaaaaaaaaaaaaa | D114: =IFERROR(RESSOURCES!C112,"") -> J
A115: Matériel de location | B115: =+RESSOURCES!A113 -> A.200 | C115: =RESSOURCES!B113 -> aaaaaaaaaaaaaa | D115: =IFERROR(RESSOURCES!C113,"") -> J
A116: Matériel de location | B116: =+RESSOURCES!A114 -> A.201 | C116: =RESSOURCES!B114 -> aaaaaaaaaaaaaa | D116: =IFERROR(RESSOURCES!C114,"") -> J
A117: Matériel de location | B117: =+RESSOURCES!A115 -> A.202 | C117: =RESSOURCES!B115 -> aaaaaaaaaaaaaa | D117: =IFERROR(RESSOURCES!C115,"") -> J
A118: Matériel de location | B118: =+RESSOURCES!A116 -> A.203 | C118: =RESSOURCES!B116 -> aaaaaaaaaaaaaa | D118: =IFERROR(RESSOURCES!C116,"") -> J
A119: Matériel de location | B119: =+RESSOURCES!A117 -> A.204 | C119: =RESSOURCES!B117 -> aaaaaaaaaaaaaa | D119: =IFERROR(RESSOURCES!C117,"") -> J
A120: Matériel de location | B120: =+RESSOURCES!A118 -> A.205 | C120: =RESSOURCES!B118 -> aaaaaaaaaaaaaa | D120: =IFERROR(RESSOURCES!C118,"") -> J
A121: Matériel de location | B121: =+RESSOURCES!A119 -> A.206 | C121: =RESSOURCES!B119 -> aaaaaaaaaaaaaa | D121: =IFERROR(RESSOURCES!C119,"") -> J
A122: Matériel de location | B122: =+RESSOURCES!A120 -> A.207 | C122: =RESSOURCES!B120 -> aaaaaaaaaaaaaa | D122: =IFERROR(RESSOURCES!C120,"") -> J
A123: Matériel de location | B123: =+RESSOURCES!A121 -> A.208 | C123: =RESSOURCES!B121 -> aaaaaaaaaaaaaa | D123: =IFERROR(RESSOURCES!C121,"") -> J
A124: Matériel de location | B124: =+RESSOURCES!A122 -> A.209 | C124: =RESSOURCES!B122 -> aaaaaaaaaaaaaa | D124: =IFERROR(RESSOURCES!C122,"") -> J
A125: Matériel de location | B125: =+RESSOURCES!A123 -> A.210 | C125: =RESSOURCES!B123 -> aaaaaaaaaaaaaa | D125: =IFERROR(RESSOURCES!C123,"") -> J
A126: Matériel de location | B126: =+RESSOURCES!A124 -> A.211 | C126: =RESSOURCES!B124 -> aaaaaaaaaaaaaa | D126: =IFERROR(RESSOURCES!C124,"") -> J
B127: 0 | C127: Matériel de location | F127: =SUBTOTAL(9,F113:F126) -> 0
A128: Fourntiures & consommables | B128: =RESSOURCES!A125 -> A.212 | C128: =RESSOURCES!B125 -> aaaaaaaaaaaaaa | D128: =IFERROR(RESSOURCES!C125,"") -> 0 | E128: 60 | F128: 133320
A129: Fourntiures & consommables | B129: =RESSOURCES!A126 -> A.213 | C129: =RESSOURCES!B126 -> aaaaaaaaaaaaaa | D129: =IFERROR(RESSOURCES!C126,"") -> X
A130: Fourntiures & consommables | B130: =RESSOURCES!A127 -> A.214 | C130: =RESSOURCES!B127 -> aaaaaaaaaaaaaa | D130: =IFERROR(RESSOURCES!C127,"") -> X
A131: Fourntiures & consommables | B131: =RESSOURCES!A128 -> A.215 | C131: =RESSOURCES!B128 -> aaaaaaaaaaaaaa | D131: =IFERROR(RESSOURCES!C128,"") -> X
A132: Fourntiures & consommables | B132: =RESSOURCES!A129 -> A.216 | C132: =RESSOURCES!B129 -> aaaaaaaaaaaaaa | D132: =IFERROR(RESSOURCES!C129,"") -> X
A133: Fourntiures & consommables | B133: =RESSOURCES!A130 -> A.217 | C133: =RESSOURCES!B130 -> aaaaaaaaaaaaaa | D133: =IFERROR(RESSOURCES!C130,"") -> X
A134: Fourntiures & consommables | B134: =RESSOURCES!A131 -> A.218 | C134: =RESSOURCES!B131 -> aaaaaaaaaaaaaa | D134: =IFERROR(RESSOURCES!C131,"") -> X
A135: Fourntiures & consommables | B135: =RESSOURCES!A132 -> A.219 | C135: =RESSOURCES!B132 -> aaaaaaaaaaaaaa | D135: =IFERROR(RESSOURCES!C132,"") -> Ft
A136: Fourntiures & consommables | B136: =RESSOURCES!A133 -> A.220 | C136: =RESSOURCES!B133 -> aaaaaaaaaaaaaa | D136: =IFERROR(RESSOURCES!C133,"") -> L
A137: Fourntiures & consommables | B137: =RESSOURCES!A134 -> A.221 | C137: =RESSOURCES!B134 -> aaaaaaaaaaaaaa | D137: =IFERROR(RESSOURCES!C134,"") -> M3 | E137: 133740.3729 | F137: 4413432.305
A138: Fourntiures & consommables | B138: =RESSOURCES!A135 -> A.222 | C138: =RESSOURCES!B135 -> aaaaaaaaaaaaaa | D138: =IFERROR(RESSOURCES!C135,"") -> M3 | E138: 79452.11509 | F138: 2621919.798
A139: Fourntiures & consommables | B139: =RESSOURCES!A136 -> A.223 | C139: =RESSOURCES!B136 -> aaaaaaaaaaaaaa | D139: =IFERROR(RESSOURCES!C136,"") -> T | E139: 2696.576 | F139: 88987.008
A140: Fourntiures & consommables | B140: =RESSOURCES!A137 -> A.224 | C140: =RESSOURCES!B137 -> aaaaaaaaaaaaaa | D140: =IFERROR(RESSOURCES!C137,"") -> T
A141: Fourntiures & consommables | B141: =RESSOURCES!A138 -> A.225 | C141: =RESSOURCES!B138 -> aaaaaaaaaaaaaa | D141: =IFERROR(RESSOURCES!C138,"") -> T | E141: 3818.123526 | F141: 125998.0764
A142: Fourntiures & consommables | B142: =RESSOURCES!A139 -> A.226 | C142: =RESSOURCES!B139 -> aaaaaaaaaaaaaa | D142: =IFERROR(RESSOURCES!C139,"") -> T | E142: 95.506644 | F142: 3151.719252
A143: Fourntiures & consommables | B143: =RESSOURCES!A140 -> A.227 | C143: =RESSOURCES!B140 -> aaaaaaaaaaaaaa | D143: =IFERROR(RESSOURCES!C140,"") -> T
A144: Fourntiures & consommables | B144: =RESSOURCES!A141 -> A.228 | C144: =RESSOURCES!B141 -> aaaaaaaaaaaaaa | D144: =RESSOURCES!C141 -> Kg
A145: Fourntiures & consommables | B145: =RESSOURCES!A142 -> A.229 | C145: =RESSOURCES!B142 -> aaaaaaaaaaaaaa | D145: =RESSOURCES!C142 -> Rouleau
A146: Fourntiures & consommables | B146: =RESSOURCES!A143 -> A.230 | C146: =RESSOURCES!B143 -> aaaaaaaaaaaaaa | D146: =RESSOURCES!C143 -> M²
A147: Fourntiures & consommables | B147: =RESSOURCES!A144 -> A.231 | C147: =RESSOURCES!B144 -> aaaaaaaaaaaaaa | D147: =RESSOURCES!C144 -> M² | E147: 2379.57 | F147: 78525.81
A148: Fourntiures & consommables | B148: =RESSOURCES!A145 -> A.232 | C148: =RESSOURCES!B145 -> aaaaaaaaaaaaaa | D148: =RESSOURCES!C145 -> M²
A149: Fourntiures & consommables | B149: =RESSOURCES!A146 -> A.233 | C149: =RESSOURCES!B146 -> aaaaaaaaaaaaaa | D149: =RESSOURCES!C146 -> U
A150: Fourntiures & consommables | B150: =RESSOURCES!A147 -> A.234 | C150: =RESSOURCES!B147 -> aaaaaaaaaaaaaa | D150: =RESSOURCES!C147 -> U
A151: Fourntiures & consommables | B151: =RESSOURCES!A148 -> A.235 | C151: =RESSOURCES!B148 -> aaaaaaaaaaaaaa | D151: =RESSOURCES!C148 -> T | E151: 249.8094057 | F151: 8243.710387
A152: Fourntiures & consommables | B152: =RESSOURCES!A149 -> A.236 | C152: =RESSOURCES!B149 -> aaaaaaaaaaaaaa | D152: =RESSOURCES!C149 -> T | E152: 36.729 | F152: 1212.057
A153: Fourntiures & consommables | B153: =RESSOURCES!A150 -> A.237 | C153: =RESSOURCES!B150 -> aaaaaaaaaaaaaa | D153: =RESSOURCES!C150 -> T | E153: 210.0753323 | F153: 6932.485967
A154: Fourntiures & consommables | B154: =RESSOURCES!A151 -> A.238 | C154: =RESSOURCES!B151 -> aaaaaaaaaaaaaa | D154: =RESSOURCES!C151 -> 0 | E154: 202.7357773 | F154: 6690.280652
A155: Fourntiures & consommables | B155: =RESSOURCES!A152 -> A.239 | C155: =RESSOURCES!B152 -> aaaaaaaaaaaaaa | D155: =RESSOURCES!C152 -> kg
A156: Fourntiures & consommables | B156: =RESSOURCES!A153 -> A.240 | C156: =RESSOURCES!B153 -> aaaaaaaaaaaaaa | D156: =RESSOURCES!C153 -> T | E156: 4197.050782 | F156: 138502.6758
A157: Fourntiures & consommables | B157: =RESSOURCES!A157 -> A.244 | C157: =RESSOURCES!B157 -> aaaaaaaaaaaaaa | D157: =RESSOURCES!C157 -> cfa/T | E157: 10679.01945 | F157: 352407.6418
A158: Fourntiures & consommables | B158: =RESSOURCES!A158 -> A.245 | C158: =RESSOURCES!B158 -> aaaaaaaaaaaaaa | D158: =RESSOURCES!C158 -> Ft
A159: Fourntiures & consommables | B159: =RESSOURCES!A159 -> A.246 | C159: =RESSOURCES!B159 -> aaaaaaaaaaaaaa | D159: =RESSOURCES!C159 -> t | E159: 72.36430497 | F159: 2388.022064
A160: Fourntiures & consommables | B160: =RESSOURCES!A160 -> A.247 | C160: =RESSOURCES!B160 -> TTTGttttttttttttttttts | D160: =RESSOURCES!C160 -> M² | E160: 0 | F160: 0
A161: Fourntiures & consommables | B161: =RESSOURCES!A161 -> A.248 | C161: =RESSOURCES!B161 -> TTTGttttttttttttttttts | D161: =RESSOURCES!C161 -> M²
A162: Fourntiures & consommables | B162: =RESSOURCES!A162 -> A.249 | C162: =RESSOURCES!B162 -> TTTGttttttttttttttttts | D162: =RESSOURCES!C162 -> U
A163: Fourntiures & consommables | B163: =RESSOURCES!A163 -> A.250 | C163: =RESSOURCES!B163 -> TTTGttttttttttttttttts | D163: =RESSOURCES!C163 -> X
A164: Fourntiures & consommables | B164: =RESSOURCES!A164 -> A.251 | C164: =RESSOURCES!B164 -> TTTGttttttttttttttttts | D164: =RESSOURCES!C164 -> Ms
A165: Fourntiures & consommables | B165: =RESSOURCES!A165 -> A.252 | C165: =RESSOURCES!B165 -> TTTGttttttttttttttttts | D165: =RESSOURCES!C165 -> X
A166: Fourntiures & consommables | B166: =RESSOURCES!A166 -> A.253 | C166: =RESSOURCES!B166 -> TTTGttttttttttttttttts | D166: =RESSOURCES!C166 -> U
A167: Fourntiures & consommables | B167: =RESSOURCES!A167 -> A.254 | C167: =RESSOURCES!B167 -> TTTGttttttttttttttttts | D167: =RESSOURCES!C167 -> U
A168: Fourntiures & consommables | B168: =RESSOURCES!A168 -> A.255 | C168: =RESSOURCES!B168 -> TTTGttttttttttttttttts | D168: =RESSOURCES!C168 -> U
A169: Fourntiures & consommables | B169: =RESSOURCES!A169 -> A.256 | C169: =RESSOURCES!B169 -> TTTGttttttttttttttttts | D169: =RESSOURCES!C169 -> X
A170: Fourntiures & consommables | B170: =RESSOURCES!A170 -> A.257 | C170: =RESSOURCES!B170 -> TTTGttttttttttttttttts | D170: =RESSOURCES!C170 -> X
A171: Fourntiures & consommables | B171: =RESSOURCES!A171 -> A.258 | C171: =RESSOURCES!B171 -> TTTGttttttttttttttttts | D171: =RESSOURCES!C171 -> X
A172: Fourntiures & consommables | B172: =RESSOURCES!A172 -> A.259 | C172: =RESSOURCES!B172 -> TTTGttttttttttttttttts | D172: =RESSOURCES!C172 -> U
A173: Fourntiures & consommables | B173: =RESSOURCES!A173 -> A.260 | C173: =RESSOURCES!B173 -> TTTGttttttttttttttttts | D173: =RESSOURCES!C173 -> X
A174: Fourntiures & consommables | B174: =RESSOURCES!A174 -> A.261 | C174: =RESSOURCES!B174 -> TTTGttttttttttttttttts | D174: =RESSOURCES!C174 -> X
A175: Fourntiures & consommables | B175: =RESSOURCES!A175 -> A.262 | C175: =RESSOURCES!B175 -> TTTGttttttttttttttttts | D175: =RESSOURCES!C175 -> M3 | E175: 848.90792 | F175: 74703.89696
A176: Fourntiures & consommables | B176: =RESSOURCES!A176 -> A.263 | C176: =RESSOURCES!B176 -> TTTGttttttttttttttttts | D176: =RESSOURCES!C176 -> M3 | E176: 153.2503135 | F176: 13486.02759
A177: Fourntiures & consommables | B177: =RESSOURCES!A177 -> A.264 | C177: =RESSOURCES!B177 -> TTTGttttttttttttttttts | D177: =RESSOURCES!C177 -> M3
A178: Fourntiures & consommables | B178: =RESSOURCES!A178 -> A.265 | C178: =RESSOURCES!B178 -> TTTGttttttttttttttttts | D178: =RESSOURCES!C178 -> U
A179: Fourntiures & consommables | B179: =RESSOURCES!A179 -> A.266 | C179: =RESSOURCES!B179 -> TTTGttttttttttttttttts | D179: =RESSOURCES!C179 -> U
A180: Fourntiures & consommables | B180: =RESSOURCES!A180 -> A.267 | C180: =RESSOURCES!B180 -> TTTGttttttttttttttttts | D180: =RESSOURCES!C180 -> U
A181: Fourntiures & consommables | B181: =RESSOURCES!A181 -> A.268 | C181: =RESSOURCES!B181 -> TTTGttttttttttttttttts | D181: =RESSOURCES!C181 -> U
A182: Fourntiures & consommables | B182: =RESSOURCES!A161 -> A.248 | C182: =RESSOURCES!B161 -> TTTGttttttttttttttttts | D182: =IFERROR(RESSOURCES!C161,"") -> M²
A183: Fourntiures & consommables | B183: =RESSOURCES!A162 -> A.249 | C183: =RESSOURCES!B162 -> TTTGttttttttttttttttts | D183: =IFERROR(RESSOURCES!C162,"") -> U
A184: Fourntiures & consommables | B184: =RESSOURCES!A163 -> A.250 | C184: =RESSOURCES!B163 -> TTTGttttttttttttttttts | D184: =IFERROR(RESSOURCES!C163,"") -> X
A185: Fourntiures & consommables | B185: =RESSOURCES!A164 -> A.251 | C185: =RESSOURCES!B164 -> TTTGttttttttttttttttts | D185: =IFERROR(RESSOURCES!C164,"") -> Ms
A186: Fourntiures & consommables | B186: =RESSOURCES!A165 -> A.252 | C186: =RESSOURCES!B165 -> TTTGttttttttttttttttts | D186: =IFERROR(RESSOURCES!C165,"") -> X
A187: Fourntiures & consommables | B187: =RESSOURCES!A166 -> A.253 | C187: =RESSOURCES!B166 -> TTTGttttttttttttttttts | D187: =IFERROR(RESSOURCES!C166,"") -> U
A188: Fourntiures & consommables | B188: =RESSOURCES!A167 -> A.254 | C188: =RESSOURCES!B167 -> TTTGttttttttttttttttts | D188: =IFERROR(RESSOURCES!C167,"") -> U
A189: Fourntiures & consommables | B189: =RESSOURCES!A168 -> A.255 | C189: =RESSOURCES!B168 -> TTTGttttttttttttttttts | D189: =IFERROR(RESSOURCES!C168,"") -> U
A190: Fourntiures & consommables | B190: =RESSOURCES!A169 -> A.256 | C190: =RESSOURCES!B169 -> TTTGttttttttttttttttts | D190: =IFERROR(RESSOURCES!C169,"") -> X
A191: Fourntiures & consommables | B191: =RESSOURCES!A170 -> A.257 | C191: =RESSOURCES!B170 -> TTTGttttttttttttttttts | D191: =IFERROR(RESSOURCES!C170,"") -> X
A192: Fourntiures & consommables | B192: =RESSOURCES!A171 -> A.258 | C192: =RESSOURCES!B171 -> TTTGttttttttttttttttts | D192: =IFERROR(RESSOURCES!C171,"") -> X
A193: Fourntiures & consommables | B193: =RESSOURCES!A172 -> A.259 | C193: =RESSOURCES!B172 -> TTTGttttttttttttttttts | D193: =IFERROR(RESSOURCES!C172,"") -> U
A194: Fourntiures & consommables | B194: =RESSOURCES!A173 -> A.260 | C194: =RESSOURCES!B173 -> TTTGttttttttttttttttts | D194: =IFERROR(RESSOURCES!C173,"") -> X
A195: Fourntiures & consommables | B195: =RESSOURCES!A174 -> A.261 | C195: =RESSOURCES!B174 -> TTTGttttttttttttttttts | D195: =IFERROR(RESSOURCES!C174,"") -> X
A196: Fourntiures & consommables | B196: =RESSOURCES!A175 -> A.262 | C196: =RESSOURCES!B175 -> TTTGttttttttttttttttts | D196: =IFERROR(RESSOURCES!C175,"") -> M3 | E196: 848.90792 | F196: 74703.89696
A197: Fourntiures & consommables | B197: =RESSOURCES!A176 -> A.263 | C197: =RESSOURCES!B176 -> TTTGttttttttttttttttts | D197: =IFERROR(RESSOURCES!C176,"") -> M3 | E197: 153.2503135 | F197: 13486.02759
A198: Fourntiures & consommables | B198: =RESSOURCES!A177 -> A.264 | C198: =RESSOURCES!B177 -> TTTGttttttttttttttttts | D198: =IFERROR(RESSOURCES!C177,"") -> M3
A199: Fourntiures & consommables | B199: =RESSOURCES!A178 -> A.265 | C199: =RESSOURCES!B178 -> TTTGttttttttttttttttts | D199: =IFERROR(RESSOURCES!C178,"") -> U
A200: Fourntiures & consommables | B200: =RESSOURCES!A179 -> A.266 | C200: =RESSOURCES!B179 -> TTTGttttttttttttttttts | D200: =IFERROR(RESSOURCES!C179,"") -> U
A201: Fourntiures & consommables | B201: =RESSOURCES!A180 -> A.267 | C201: =RESSOURCES!B180 -> TTTGttttttttttttttttts | D201: =IFERROR(RESSOURCES!C180,"") -> U
A202: Fourntiures & consommables | B202: =RESSOURCES!A181 -> A.268 | C202: =RESSOURCES!B181 -> TTTGttttttttttttttttts | D202: =IFERROR(RESSOURCES!C181,"") -> U
... 81 more rows

Sheet FRAIS DE CHANTIER (hidden)
B2: hjsgfza s | AI2: OBSERVATIONS
B3: 1.2842 | I3: 1 | AI3: 0 | AJ3: €
M4: 2020 | AI4: 0 | AJ4: $
D5: UN. | E5: % | F5: USD | G5: DFGHJ | H5: FGHJ | I5: DFGH | K5: QUANT. | M5: AOUT. | N5: SEPT. | O5: OCT. | P5: NOV. | Q5: DÉC. | R5: MOIS 1 | S5: MOIS 2 | T5: MOIS 3 | U5: MOIS 4 | V5: MOIS 5 | W5: MOIS 6 | X5: MOIS 7 | Y5: MOIS 8 | Z5: MOIS 9 | AA5: MOIS 10 | AB5: MOIS 11 | AC5: MOIS 12 | AD5: MOIS 13 | AE5: MOIS 14 | AF5: MOIS 15 | AG5: MOIS 16 | AI5: 1 | AJ5: XAF
A7: DRFTGHJK | B7: gqv K?S | H7: =SUM(H9:H22) -> 0 | M7: =M8+#REF! ->  | N7: =N8+#REF! ->  | O7: =O8+#REF! ->  | P7: =P8+#REF! ->  | Q7: =Q8+#REF! ->  | R7: =R8+R17 -> 0 | S7: 0 | T7: 0 | U7: 0 | V7: 0 | W7: 0 | X7: 0 | Y7: 0 | Z7: 0 | AA7: 0 | AB7: 0 | AC7: 0 | AD7: 0 | AE7: 0 | AF7: 0 | AG7: 0 | AJ7: =SUM(R7:AG7) -> 0
A8: CODE | B8: KLSKN S | Q8: =+SUM(Q9:Q13) -> 0 | R8: =+SUM(R9:R16) -> 0 | S8: 0 | T8: 0 | U8: 0 | V8: 0 | W8: 0 | X8: 0 | Y8: 0 | Z8: 0 | AA8: 0 | AB8: 0 | AC8: 0 | AD8: 0 | AE8: 0 | AF8: 0 | AG8: 0 | AJ8: =SUM(M8:AG8) -> 0
B9: =IFERROR(UPPER(VLOOKUP(A9,RESTAF_01,2,0)),"") ->  | D9: MOIS | E9: =IF(A9="",0%,100%) -> 0 | G9: =IFERROR(VLOOKUP(A9,RESTAF_01,4,0),"-") -> - | H9: =IFERROR(E9*$AI$3+F9*$AI$4+G9*$AI$5,0) -> 0 | I9: XAF | K9: 0 | R9: =$H9*$K9 -> 0 | S9: =$H9*$K9 -> 0 | T9: =$H9*$K9 -> 0 | U9: 0 | V9: =$H9*$K9 -> 0 | W9: 0 | X9: 0 | Y9: 0 | Z9: 0 | AA9: 0 | AB9: 0 | AC9: 0 | AD9: 0 | AE9: 0 | AF9: =$H9*$K9 -> 0 | AG9: 0 | AJ9: 0
D10: MOIS | E10: =IF(A10="",0%,100%) -> 0 | G10: - | H10: 0 | I10: XAF | K10: 0 | R10: 0 | S10: 0 | T10: 0 | U10: 0 | V10: 0 | W10: 0 | X10: 0 | Y10: 0 | Z10: 0 | AA10: 0 | AB10: 0 | AC10: 0 | AD10: 0 | AE10: 0 | AF10: 0 | AG10: 0 | AJ10: 0
D11: MOIS | E11: 0 | G11: - | H11: 0 | I11: XAF | K11: 0 | R11: 0 | S11: 0 | T11: 0 | U11: 0 | V11: 0 | W11: 0 | X11: 0 | Y11: 0 | Z11: 0 | AA11: 0 | AB11: 0 | AC11: 0 | AD11: 0 | AE11: 0 | AF11: 0 | AG11: 0 | AJ11: 0
D12: MOIS | E12: 0 | G12: - | H12: 0 | I12: XAF | K12: 0 | R12: 0 | S12: 0 | T12: 0 | U12: 0 | V12: 0 | W12: 0 | X12: 0 | Y12: 0 | Z12: 0 | AA12: 0 | AB12: 0 | AC12: 0 | AD12: 0 | AE12: 0 | AF12: 0 | AG12: 0 | AJ12: 0
D13: MOIS | E13: 0 | G13: - | H13: 0 | I13: XAF | K13: 0 | R13: 0 | S13: 0 | T13: 0 | U13: 0 | V13: 0 | W13: 0 | X13: 0 | Y13: 0 | Z13: 0 | AA13: 0 | AB13: 0 | AC13: 0 | AD13: 0 | AE13: 0 | AF13: 0 | AG13: 0 | AJ13: 0
D14: MOIS | E14: 0 | G14: - | H14: 0 | I14: XAF | K14: 0 | R14: 0 | S14: 0 | T14: 0 | U14: 0 | V14: 0 | W14: 0 | X14: 0 | Y14: 0 | Z14: 0 | AA14: 0 | AB14: 0 | AC14: 0 | AD14: 0 | AE14: 0 | AF14: 0 | AG14: 0 | AJ14: 0
D15: MOIS | E15: 0 | G15: - | H15: 0 | I15: XAF | K15: 0 | R15: 0 | S15: 0 | T15: 0 | U15: 0 | V15: 0 | W15: 0 | X15: 0 | Y15: 0 | Z15: 0 | AA15: 0 | AB15: 0 | AC15: 0 | AD15: 0 | AE15: 0 | AF15: 0 | AG15: 0 | AJ15: 0
D16: MOIS | E16: 0 | G16: - | H16: 0 | I16: XAF | K16: 0 | R16: 0 | S16: 0 | T16: 0 | U16: 0 | V16: 0 | W16: 0 | X16: 0 | Y16: 0 | Z16: 0 | AA16: 0 | AB16: 0 | AC16: 0 | AD16: 0 | AE16: 0 | AF16: 0 | AG16: 0 | AJ16: 0
A17: CODE | B17: SDFGHJK | M17: =+SUM(M18:M22) -> 0 | N17: 0 | O17: 0 | P17: 0 | Q17: 0 | R17: 0 | S17: 0 | T17: 0 | U17: 0 | V17: 0 | W17: 0 | X17: 0 | Y17: 0 | Z17: 0 | AA17: 0 | AB17: 0 | AC17: 0 | AD17: 0 | AE17: 0 | AF17: 0 | AG17: 0 | AJ17: 0
B18: =IFERROR(UPPER(VLOOKUP(A18,RESTAF_01,2,0)),"") ->  | D18: MOIS | E18: 0 | G18: =IFERROR(VLOOKUP(A18,RESTAF_01,4,0),"-") -> - | H18: =IFERROR(E18*$AI$3+F18*$AI$4+G18*$AI$5,0) -> 0 | I18: XAF | K18: 0 | R18: =$H18*$K18 -> 0 | S18: 0 | T18: 0 | U18: 0 | V18: 0 | W18: 0 | X18: 0 | Y18: 0 | Z18: 0 | AA18: 0 | AB18: 0 | AC18: 0 | AD18: 0 | AE18: 0 | AF18: 0 | AG18: 0 | AJ18: 0
B19: =IFERROR(UPPER(VLOOKUP(A19,RESTAF_01,2,0)),"") ->  | D19: MOIS | E19: 0 | G19: =IFERROR(VLOOKUP(A19,RESTAF_01,4,0),"-") -> - | H19: 0 | I19: XAF | K19: 0 | R19: 0 | S19: 0 | T19: 0 | U19: 0 | V19: 0 | W19: 0 | X19: 0 | Y19: 0 | Z19: 0 | AA19: 0 | AB19: 0 | AC19: 0 | AD19: 0 | AE19: 0 | AF19: 0 | AG19: 0 | AJ19: 0
B20: =IFERROR(UPPER(VLOOKUP(A20,RESTAF_01,2,0)),"") ->  | D20: MOIS | E20: 0 | G20: =IFERROR(VLOOKUP(A20,RESTAF_01,4,0),"-") -> - | H20: 0 | I20: XAF | K20: 0 | R20: 0 | S20: 0 | T20: 0 | U20: 0 | V20: 0 | W20: 0 | X20: 0 | Y20: 0 | Z20: 0 | AA20: 0 | AB20: 0 | AC20: 0 | AD20: 0 | AE20: 0 | AF20: 0 | AG20: 0 | AJ20: 0
B21: =IFERROR(UPPER(VLOOKUP(A21,RESTAF_01,2,0)),"") ->  | D21: MOIS | E21: 0 | G21: =IFERROR(VLOOKUP(A21,RESTAF_01,4,0),"-") -> - | H21: 0 | I21: XAF | K21: 0 | R21: 0 | S21: 0 | T21: 0 | U21: 0 | V21: 0 | W21: 0 | X21: 0 | Y21: 0 | Z21: 0 | AA21: 0 | AB21: 0 | AC21: 0 | AD21: 0 | AE21: 0 | AF21: 0 | AG21: 0 | AJ21: 0
B22: =IFERROR(UPPER(VLOOKUP(A22,RESTAF_01,2,0)),"") ->  | D22: MOIS | E22: 0 | G22: =IFERROR(VLOOKUP(A22,RESTAF_01,4,0),"-") -> - | H22: 0 | I22: XAF | K22: 0 | R22: 0 | S22: 0 | T22: 0 | U22: 0 | V22: 0 | W22: 0 | X22: 0 | Y22: 0 | Z22: 0 | AA22: 0 | AB22: 0 | AC22: 0 | AD22: 0 | AE22: 0 | AF22: 0 | AG22: 0 | AJ22: 0
A23: TT | B23: gqv K?S | H23: =SUM(H24:H29) -> 0 | R23: =+R24 -> 0 | S23: =+S24 -> 0 | T23: 0 | U23: 0 | V23: 0 | W23: 0 | X23: 0 | Y23: 0 | Z23: 0 | AA23: 0 | AB23: 0 | AC23: 0 | AJ23: =SUM(R23:AG23) -> 0
A24: CODE | B24: JQHG S | M24: =+SUM(M25:M29) -> 0 | N24: 0 | O24: 0 | P24: 0 | Q24: 0 | R24: 0 | S24: 0 | T24: 0 | U24: 0 | V24: 0 | W24: 0 | X24: 0 | Y24: 0 | Z24: 0 | AA24: 0 | AB24: 0 | AC24: 0 | AJ24: =SUM(M24:AG24) -> 0
B25: =IFERROR(UPPER(VLOOKUP(A25,RESTAF_01,2,0)),"") ->  | D25: MOIS | E25: =IF(A25="",0%,100%) -> 0 | G25: =IFERROR(VLOOKUP(A25,RESTAF_01,4,0),"-") -> - | H25: =IFERROR(E25*$AI$3+F25*$AI$4+G25*$AI$5,0) -> 0 | I25: XAF | K25: 0 | R25: =$H25*$K25 -> 0 | S25: 0 | T25: 0 | U25: 0 | V25: 0 | W25: 0 | X25: 0 | Y25: 0 | Z25: 0 | AA25: 0 | AB25: 0 | AC25: 0 | AJ25: 0
B26: =IFERROR(UPPER(VLOOKUP(A26,RESTAF_01,2,0)),"") ->  | D26: MOIS | E26: 0 | G26: =IFERROR(VLOOKUP(A26,RESTAF_01,4,0),"-") -> - | H26: 0 | I26: XAF | K26: 0 | R26: 0 | S26: 0 | T26: 0 | U26: 0 | V26: 0 | W26: 0 | X26: 0 | Y26: 0 | Z26: 0 | AA26: 0 | AB26: 0 | AC26: 0 | AJ26: 0
B27: =IFERROR(UPPER(VLOOKUP(A27,RESTAF_01,2,0)),"") ->  | D27: MOIS | E27: 0 | G27: =IFERROR(VLOOKUP(A27,RESTAF_01,4,0),"-") -> - | H27: 0 | I27: XAF | K27: 0 | R27: 0 | S27: 0 | T27: 0 | U27: 0 | V27: 0 | W27: 0 | X27: 0 | Y27: 0 | Z27: 0 | AA27: 0 | AB27: 0 | AC27: 0 | AJ27: 0
B28: =IFERROR(UPPER(VLOOKUP(A28,RESTAF_01,2,0)),"") ->  | D28: MOIS | E28: 0 | G28: =IFERROR(VLOOKUP(A28,RESTAF_01,4,0),"-") -> - | H28: 0 | I28: XAF | K28: 0 | R28: 0 | S28: 0 | T28: 0 | U28: 0 | V28: 0 | W28: 0 | X28: 0 | Y28: 0 | Z28: 0 | AA28: 0 | AB28: 0 | AC28: 0 | AJ28: 0
B29: =IFERROR(UPPER(VLOOKUP(A29,RESTAF_01,2,0)),"") ->  | D29: MOIS | E29: 0 | G29: =IFERROR(VLOOKUP(A29,RESTAF_01,4,0),"-") -> - | H29: 0 | I29: XAF | K29: 0 | R29: =$H29*$K29 -> 0 | S29: 0 | T29: 0 | U29: 0 | V29: 0 | W29: 0 | X29: 0 | Y29: 0 | Z29: 0 | AA29: 0 | AB29: 0 | AC29: 0 | AJ29: 0
A30: TT | B30: gqv K?S | H30: =SUM(H32:H39) -> 0 | M30: =M31+M37 -> 0 | N30: 0 | O30: 0 | P30: 0 | Q30: 0 | R30: 0 | S30: 0 | T30: 0 | U30: 0 | V30: 0 | W30: 0 | X30: 0 | Y30: 0 | Z30: 0 | AA30: 0 | AB30: 0 | AC30: 0 | AJ30: 0
A31: CODE | B31: ¨SDFGHJKLO | M31: =SUM(M32:M36) -> 0 | N31: 0 | O31: 0 | P31: 0 | Q31: 0 | R31: 0 | S31: 0 | T31: 0 | U31: 0 | V31: 0 | W31: 0 | X31: 0 | Y31: 0 | Z31: 0 | AA31: 0 | AB31: 0 | AC31: 0 | AJ31: 0
B32: =IFERROR(UPPER(VLOOKUP(A32,RESTAF_01,2,0)),"") ->  | D32: MOIS | E32: =IF(A32="",0%,100%) -> 0 | G32: =IFERROR(VLOOKUP(A32,RESTAF_01,4,0),"-") -> - | H32: =IFERROR(E32*$AI$3+F32*$AI$4+G32*$AI$5,0) -> 0 | I32: XAF | K32: 1 | R32: =$H32*$K32 -> 0 | S32: 0 | T32: 0 | U32: 0 | V32: 0 | W32: 0 | X32: 0 | Y32: 0 | Z32: 0 | AA32: 0 | AB32: 0 | AC32: 0 | AJ32: 0
B33: =IFERROR(UPPER(VLOOKUP(A33,RESTAF_01,2,0)),"") ->  | D33: MOIS | E33: 0 | G33: =IFERROR(VLOOKUP(A33,RESTAF_01,4,0),"-") -> - | H33: 0 | I33: XAF | K33: 0 | R33: 0 | S33: 0 | T33: 0 | U33: 0 | V33: 0 | W33: 0 | X33: 0 | Y33: 0 | Z33: 0 | AA33: 0 | AB33: 0 | AC33: 0 | AJ33: 0
B34: =IFERROR(UPPER(VLOOKUP(A34,RESTAF_01,2,0)),"") ->  | D34: MOIS | E34: 0 | G34: =IFERROR(VLOOKUP(A34,RESTAF_01,4,0),"-") -> - | H34: 0 | I34: XAF | K34: 0 | R34: 0 | S34: 0 | T34: 0 | U34: 0 | V34: 0 | W34: 0 | X34: 0 | Y34: 0 | Z34: 0 | AA34: 0 | AB34: 0 | AC34: 0 | AJ34: 0
B35: =IFERROR(UPPER(VLOOKUP(A35,RESTAF_01,2,0)),"") ->  | D35: MOIS | E35: 0 | G35: =IFERROR(VLOOKUP(A35,RESTAF_01,4,0),"-") -> - | H35: 0 | I35: XAF | K35: 0 | R35: 0 | S35: 0 | T35: 0 | U35: 0 | V35: 0 | W35: 0 | X35: 0 | Y35: 0 | Z35: 0 | AA35: 0 | AB35: 0 | AC35: 0 | AJ35: 0
B36: =IFERROR(UPPER(VLOOKUP(A36,RESTAF_01,2,0)),"") ->  | D36: MOIS | E36: 0 | G36: =IFERROR(VLOOKUP(A36,RESTAF_01,4,0),"-") -> - | H36: 0 | I36: XAF | K36: 0 | R36: 0 | S36: 0 | T36: 0 | U36: 0 | V36: 0 | W36: 0 | X36: 0 | Y36: 0 | Z36: 0 | AA36: 0 | AB36: 0 | AC36: 0 | AJ36: 0
A37: CODE | B37: YUIOP | M37: =+SUM(M38:M39) -> 0 | N37: 0 | O37: 0 | P37: 0 | Q37: 0 | R37: 0 | S37: 0 | T37: 0 | U37: 0 | V37: 0 | W37: 0 | X37: 0 | Y37: 0 | Z37: 0 | AA37: 0 | AB37: 0 | AC37: 0 | AJ37: 0
B38: =IFERROR(UPPER(VLOOKUP(A38,RESTAF_01,2,0)),"") ->  | D38: MOIS | E38: 0 | G38: =IFERROR(VLOOKUP(A38,RESTAF_01,4,0),"-") -> - | H38: =IFERROR(E38*$AI$3+F38*$AI$4+G38*$AI$5,0) -> 0 | I38: XAF | K38: 0 | R38: =$H38*$K38 -> 0 | S38: 0 | T38: 0 | U38: 0 | V38: 0 | W38: 0 | X38: 0 | Y38: 0 | Z38: 0 | AA38: 0 | AB38: 0 | AC38: 0 | AJ38: 0
B39: =IFERROR(UPPER(VLOOKUP(A39,RESTAF_01,2,0)),"") ->  | D39: MOIS | E39: 0 | G39: =IFERROR(VLOOKUP(A39,RESTAF_01,4,0),"-") -> - | H39: 0 | I39: XAF | K39: 0 | R39: 0 | S39: 0 | T39: 0 | U39: 0 | V39: 0 | W39: 0 | X39: 0 | Y39: 0 | Z39: 0 | AA39: 0 | AB39: 0 | AC39: 0 | AJ39: 0
A40: TT | B40: gqv K?S | M40: =M41+M47 -> 0 | N40: =N41+N47 -> 0 | O40: =O41+O47 -> 0 | P40: =P41+P47 -> 0 | Q40: =Q41+Q47 -> 0 | R40: =R41+R47+R52 -> 0 | S40: 0 | T40: 0 | U40: 0 | V40: 0 | W40: 0 | X40: 0 | Y40: 0 | Z40: 0 | AA40: 0 | AB40: 0 | AC40: 0 | AJ40: 0
A41: CODE | B41: CHEF TOPO | M41: =SUM(M42:M46) -> 0 | N41: 0 | O41: 0 | P41: 0 | Q41: 0 | R41: 0 | S41: 0 | T41: 0 | U41: 0 | V41: 0 | W41: 0 | X41: 0 | Y41: 0 | Z41: 0 | AA41: 0 | AB41: 0 | AC41: 0 | AJ41: 0
B42: =IFERROR(UPPER(VLOOKUP(A42,RESTAF_01,2,0)),"") ->  | D42: MOIS | E42: =IF(A42="",0%,100%) -> 0 | G42: =IFERROR(VLOOKUP(A42,RESTAF_01,4,0),"-") -> - | H42: =IFERROR(E42*$AI$3+F42*$AI$4+G42*$AI$5,0) -> 0 | I42: XAF | K42: 0 | O42: =IF($I42="EUR",$K42*$H42,IF($I42="HTG",($K42*$H42*$AI$5))*IF($I42="$",($K42*$H42*$AI$4))) -> 0 | P42: =IF($I42="EUR",$K42*$H42,IF($I42="HTG",($K42*$H42*$AI$5))*IF($I42="$",($K42*$H42*$AI$4))) -> 0 | Q42: =IF($I42="EUR",$K42*$H42,IF($I42="HTG",($K42*$H42*$AI$5))*IF($I42="$",($K42*$H42*$AI$4))) -> 0 | R42: =$H42*$K42 -> 0 | S42: 0 | T42: 0 | U42: 0 | V42: 0 | W42: 0 | X42: 0 | Y42: 0 | Z42: 0 | AA42: 0 | AB42: 0 | AC42: 0 | AJ42: 0
B43: =IFERROR(UPPER(VLOOKUP(A43,RESTAF_01,2,0)),"") ->  | D43: MOIS | E43: 0 | G43: =IFERROR(VLOOKUP(A43,RESTAF_01,4,0),"-") -> - | H43: 0 | I43: XAF | K43: 0 | R43: 0 | S43: 0 | T43: 0 | U43: 0 | V43: 0 | W43: 0 | X43: 0 | Y43: 0 | Z43: 0 | AA43: 0 | AB43: 0 | AC43: 0 | AJ43: 0
B44: =IFERROR(UPPER(VLOOKUP(A44,RESTAF_01,2,0)),"") ->  | D44: MOIS | E44: 0 | G44: =IFERROR(VLOOKUP(A44,RESTAF_01,4,0),"-") -> - | H44: 0 | I44: XAF | K44: 0 | R44: 0 | S44: 0 | T44: 0 | U44: 0 | V44: 0 | W44: 0 | X44: 0 | Y44: 0 | Z44: 0 | AA44: 0 | AB44: 0 | AC44: 0 | AJ44: 0
B45: =IFERROR(UPPER(VLOOKUP(A45,RESTAF_01,2,0)),"") ->  | D45: MOIS | E45: 0 | G45: =IFERROR(VLOOKUP(A45,RESTAF_01,4,0),"-") -> - | H45: 0 | I45: XAF | K45: 0 | R45: 0 | S45: 0 | T45: 0 | U45: 0 | V45: 0 | W45: 0 | X45: 0 | Y45: 0 | Z45: 0 | AA45: 0 | AB45: 0 | AC45: 0 | AJ45: 0
B46: =IFERROR(UPPER(VLOOKUP(A46,RESTAF_01,2,0)),"") ->  | D46: MOIS | E46: 0 | G46: =IFERROR(VLOOKUP(A46,RESTAF_01,4,0),"-") -> - | H46: 0 | I46: XAF | K46: 0 | R46: 0 | S46: 0 | T46: 0 | U46: 0 | V46: 0 | W46: 0 | X46: 0 | Y46: 0 | Z46: 0 | AA46: 0 | AB46: 0 | AC46: 0 | AJ46: 0
A47: CODE | B47: KSHB D | M47: =SUM(M48:M53) -> 0 | N47: =SUM(N48:N50) -> 0 | O47: =SUM(O48:O50) -> 0 | P47: =SUM(P48:P50) -> 0 | Q47: =SUM(Q48:Q50) -> 0 | R47: =SUM(R48:R51) -> 0 | S47: 0 | T47: 0 | U47: 0 | V47: 0 | W47: 0 | X47: 0 | Y47: 0 | Z47: 0 | AA47: 0 | AB47: 0 | AC47: 0 | AJ47: 0
B48: =IFERROR(UPPER(VLOOKUP(A48,RESTAF_01,2,0)),"") ->  | D48: MOIS | E48: 0 | G48: =IFERROR(VLOOKUP(A48,RESTAF_01,4,0),"-") -> - | H48: =IFERROR(E48*$AI$3+F48*$AI$4+G48*$AI$5,0) -> 0 | I48: XAF | K48: 0 | R48: 0 | S48: 0 | T48: =$H48*$K48 -> 0 | U48: 0 | V48: 0 | W48: 0 | X48: 0 | Y48: 0 | Z48: 0 | AA48: 0 | AB48: 0 | AC48: 0 | AJ48: 0
B49: =IFERROR(UPPER(VLOOKUP(A49,RESTAF_01,2,0)),"") ->  | D49: MOIS | E49: 0 | G49: =IFERROR(VLOOKUP(A49,RESTAF_01,4,0),"-") -> - | H49: 0 | I49: XAF | K49: 0 | R49: 0 | S49: 0 | T49: 0 | U49: 0 | V49: 0 | W49: 0 | X49: 0 | Y49: 0 | Z49: 0 | AA49: 0 | AB49: 0 | AC49: 0 | AJ49: 0
B50: =IFERROR(UPPER(VLOOKUP(A50,RESTAF_01,2,0)),"") ->  | D50: MOIS | E50: 0 | G50: =IFERROR(VLOOKUP(A50,RESTAF_01,4,0),"-") -> - | H50: 0 | I50: XAF | K50: 0 | R50: 0 | S50: 0 | T50: 0 | U50: 0 | V50: 0 | W50: 0 | X50: 0 | Y50: 0 | Z50: 0 | AA50: 0 | AB50: 0 | AC50: 0 | AJ50: 0
B51: =IFERROR(UPPER(VLOOKUP(A51,RESTAF_01,2,0)),"") ->  | D51: MOIS | E51: 0 | G51: =IFERROR(VLOOKUP(A51,RESTAF_01,4,0),"-") -> - | H51: 0 | I51: XAF | K51: 0 | R51: 0 | S51: 0 | T51: 0 | U51: 0 | V51: 0 | W51: 0 | X51: 0 | Y51: 0 | Z51: 0 | AA51: 0 | AB51: 0 | AC51: 0 | AJ51: 0
A52: CODE | B52: NHSGTV ZS | M52: =SUM(M53:M59) -> 0 | N52: =SUM(N53:N53) -> 0 | O52: 0 | P52: 0 | Q52: 0 | R52: 0 | S52: 0 | T52: 0 | U52: 0 | V52: 0 | W52: 0 | X52: 0 | Y52: 0 | Z52: 0 | AA52: 0 | AB52: 0 | AC52: 0 | AJ52: 0
B53: =IFERROR(UPPER(VLOOKUP(A53,RESTAF_01,2,0)),"") ->  | D53: MOIS | E53: 0 | G53: =IFERROR(VLOOKUP(A53,RESTAF_01,4,0),"-") -> - | H53: 0 | I53: XAF | K53: 0 | R53: 0 | S53: 0 | T53: =$H53*$K53 -> 0 | U53: 0 | V53: 0 | W53: 0 | X53: 0 | Y53: 0 | Z53: 0 | AA53: 0 | AB53: 0 | AC53: 0 | AJ53: 0
A54: TT | B54: gqv K?S | M54: =M55 -> 0 | N54: =N55 -> 0 | O54: 0 | P54: 0 | Q54: 0 | R54: =R55+R61 -> 0 | S54: 0 | T54: 0 | U54: 0 | V54: 0 | W54: 0 | X54: 0 | Y54: 0 | Z54: 0 | AA54: 0 | AB54: 0 | AC54: 0 | AJ54: 0
A55: CODE | B55: HGHSQHB AQ | M55: =+SUM(M56:M63) -> 0 | N55: =SUM(N56:N63) -> 0 | O55: =SUM(O56:O63) -> 0 | P55: =SUM(P56:P63) -> 0 | Q55: =SUM(Q56:Q63) -> 0 | R55: =SUM(R56:R60) -> 0 | S55: 0 | T55: 0 | U55: 0 | V55: 0 | W55: 0 | X55: 0 | Y55: 0 | Z55: 0 | AA55: 0 | AB55: 0 | AC55: 0 | AJ55: =SUM(M55:AG55) -> 0
B56: =IFERROR(UPPER(VLOOKUP(A56,RESTAF_01,2,0)),"") ->  | D56: MOIS | E56: =IF(A56="",0%,100%) -> 0 | G56: =IFERROR(VLOOKUP(A56,RESTAF_01,4,0),"-") -> - | H56: =IFERROR(E56*$AI$3+F56*$AI$4+G56*$AI$5,0) -> 0 | I56: XAF | K56: 0 | R56: =$H56*$K56 -> 0 | S56: 0 | T56: 0 | U56: 0 | V56: 0 | W56: 0 | X56: 0 | Y56: 0 | Z56: 0 | AA56: 0 | AB56: 0 | AC56: 0 | AJ56: 0
B57: =IFERROR(UPPER(VLOOKUP(A57,RESTAF_01,2,0)),"") ->  | D57: MOIS | E57: 0 | G57: =IFERROR(VLOOKUP(A57,RESTAF_01,4,0),"-") -> - | H57: =IFERROR(E57*$AI$3+F57*$AI$4+G57*$AI$5,0) -> 0 | I57: XAF | K57: 0 | R57: 0 | S57: 0 | T57: 0 | U57: 0 | V57: 0 | W57: 0 | X57: 0 | Y57: 0 | Z57: 0 | AA57: 0 | AB57: 0 | AC57: 0 | AJ57: 0
B58: =IFERROR(UPPER(VLOOKUP(A58,RESTAF_01,2,0)),"") ->  | D58: MOIS | E58: 0 | G58: =IFERROR(VLOOKUP(A58,RESTAF_01,4,0),"-") -> - | H58: 0 | I58: XAF | K58: 0 | R58: 0 | S58: 0 | T58: 0 | U58: 0 | V58: 0 | W58: 0 | X58: 0 | Y58: 0 | Z58: 0 | AA58: 0 | AB58: 0 | AC58: 0 | AJ58: 0
B59: =IFERROR(UPPER(VLOOKUP(A59,RESTAF_01,2,0)),"") ->  | D59: MOIS | E59: 0 | G59: =IFERROR(VLOOKUP(A59,RESTAF_01,4,0),"-") -> - | H59: 0 | I59: XAF | K59: 0 | R59: 0 | S59: 0 | T59: 0 | U59: 0 | V59: 0 | W59: 0 | X59: 0 | Y59: 0 | Z59: 0 | AA59: 0 | AB59: 0 | AC59: 0 | AJ59: 0
B60: =IFERROR(UPPER(VLOOKUP(A60,RESTAF_01,2,0)),"") ->  | D60: MOIS | E60: 0 | G60: =IFERROR(VLOOKUP(A60,RESTAF_01,4,0),"-") -> - | H60: 0 | I60: XAF | K60: 0 | R60: 0 | S60: 0 | T60: 0 | U60: 0 | V60: 0 | W60: 0 | X60: 0 | Y60: 0 | Z60: 0 | AA60: 0 | AB60: 0 | AC60: 0 | AJ60: 0
A61: CODE | B61: QSDFGHJ | M61: =+SUM(M62:M69) -> 0 | N61: =+SUM(N62:N69) -> 0 | O61: =+SUM(O62:O69) -> 0 | P61: =+SUM(P62:P69) -> 0 | Q61: =+SUM(Q62:Q69) -> 0 | R61: =+SUM(R62:R63) -> 0 | S61: 0 | T61: 0 | U61: 0 | V61: 0 | W61: 0 | X61: 0 | Y61: 0 | Z61: 0 | AA61: 0 | AB61: 0 | AC61: 0 | AJ61: 0
B62: =IFERROR(UPPER(VLOOKUP(A62,RESTAF_01,2,0)),"") ->  | D62: MOIS | E62: 0 | G62: =IFERROR(VLOOKUP(A62,RESTAF_01,4,0),"-") -> - | H62: 0 | I62: XAF | K62: 0 | R62: =$H62*$K62 -> 0 | S62: 0 | T62: 0 | U62: 0 | V62: 0 | W62: 0 | X62: 0 | Y62: 0 | Z62: 0 | AA62: 0 | AB62: 0 | AC62: 0 | AJ62: 0
B63: =IFERROR(UPPER(VLOOKUP(A63,RESTAF_01,2,0)),"") ->  | D63: MOIS | E63: 0 | G63: =IFERROR(VLOOKUP(A63,RESTAF_01,4,0),"-") -> - | H63: 0 | I63: XAF | K63: 0 | R63: 0 | S63: 0 | T63: 0 | U63: 0 | V63: 0 | W63: 0 | X63: 0 | Y63: 0 | Z63: 0 | AA63: 0 | AB63: 0 | AC63: 0 | AJ63: 0
A64: TT | B64: SDFGHJK | M64: =+M65+M68 -> 0 | N64: 0 | O64: 0 | P64: 0 | Q64: 0 | R64: 0 | S64: 0 | T64: 0 | U64: 0 | V64: 0 | W64: 0 | X64: 0 | Y64: 0 | Z64: 0 | AA64: 0 | AB64: 0 | AC64: 0 | AJ64: 0
A65: CODE | B65: SNJSBN SZ | M65: =+SUM(M66:M67) -> 0 | N65: =+SUM(N66:N67) -> 0 | O65: =+SUM(O66:O67) -> 0 | P65: =+SUM(P66:P67) -> 0 | Q65: =SUM(Q66:Q67) -> 0 | R65: =+SUM(R66:R67) -> 0 | S65: 0 | T65: 0 | U65: 0 | V65: 0 | W65: 0 | X65: 0 | Y65: 0 | Z65: 0 | AA65: 0 | AB65: 0 | AC65: 0 | AJ65: 0
B66: =IFERROR(UPPER(VLOOKUP(A66,RESTAF_01,2,0)),"") ->  | D66: MOIS | E66: =IF(A66="",0%,100%) -> 0 | G66: =IFERROR(VLOOKUP(A66,RESTAF_01,4,0),"-") -> - | H66: =IFERROR(E66*$AI$3+F66*$AI$4+G66*$AI$5,0) -> 0 | I66: XAF | K66: 0 | R66: =$H66*$K66 -> 0 | S66: 0 | T66: 0 | U66: 0 | V66: 0 | W66: 0 | X66: 0 | Y66: 0 | Z66: 0 | AA66: 0 | AB66: 0 | AC66: 0 | AJ66: 0
B67: =IFERROR(UPPER(VLOOKUP(A67,RESTAF_01,2,0)),"") ->  | D67: MOIS | E67: 0 | G67: =IFERROR(VLOOKUP(A67,RESTAF_01,4,0),"-") -> - | H67: 0 | I67: XAF | K67: 0 | R67: 0 | S67: 0 | T67: 0 | U67: 0 | V67: 0 | W67: 0 | X67: 0 | Y67: 0 | Z67: 0 | AA67: 0 | AB67: 0 | AC67: 0 | AJ67: 0
A68: CODE | B68: LLPZ?ND | M68: =+SUM(M69:M80) -> 0 | N68: 0 | O68: 0 | P68: 0 | Q68: 0 | R68: =+SUM(R69:R80) -> 0 | S68: =+SUM(S69:S80) -> 0 | T68: 0 | U68: 0 | V68: 0 | W68: 0 | X68: 0 | Y68: 0 | Z68: 0 | AA68: 0 | AB68: 0 | AC68: 0 | AJ68: 0
B69: =IFERROR(UPPER(VLOOKUP(A69,RESTAF_01,2,0)),"") ->  | D69: MOIS | E69: 0 | G69: =IFERROR(VLOOKUP(A69,RESTAF_01,4,0),"-") -> - | H69: 0 | I69: XAF | K69: 0 | R69: =$H69*$K69 -> 0 | S69: 0 | T69: 0 | U69: 0 | V69: 0 | W69: 0 | X69: 0 | Y69: 0 | Z69: 0 | AA69: 0 | AB69: 0 | AC69: 0 | AJ69: 0
D70: MOIS | E70: 0 | G70: - | H70: 0 | I70: XAF | K70: 0 | R70: 0 | S70: 0 | T70: 0 | U70: 0 | V70: 0 | W70: 0 | X70: 0 | Y70: 0 | Z70: 0 | AA70: 0 | AB70: 0 | AC70: 0 | AJ70: 0
D71: MOIS | E71: 0 | G71: - | H71: 0 | I71: XAF | K71: 0 | R71: 0 | S71: 0 | T71: 0 | U71: 0 | V71: 0 | W71: 0 | X71: 0 | Y71: 0 | Z71: 0 | AA71: 0 | AB71: 0 | AC71: 0 | AJ71: 0
D72: MOIS | E72: 0 | G72: - | H72: 0 | I72: XAF | K72: 0 | R72: 0 | S72: 0 | T72: 0 | U72: 0 | V72: 0 | W72: 0 | X72: 0 | Y72: 0 | Z72: 0 | AA72: 0 | AB72: 0 | AC72: 0 | AJ72: 0
D73: MOIS | E73: 0 | G73: - | H73: 0 | I73: XAF | K73: 0 | R73: 0 | S73: 0 | T73: 0 | U73: 0 | V73: 0 | W73: 0 | X73: 0 | Y73: 0 | Z73: 0 | AA73: 0 | AB73: 0 | AC73: 0 | AJ73: 0
D74: MOIS | E74: 0 | G74: - | H74: 0 | I74: XAF | K74: 0 | R74: 0 | S74: 0 | T74: 0 | U74: 0 | V74: 0 | W74: 0 | X74: 0 | Y74: 0 | Z74: 0 | AA74: 0 | AB74: 0 | AC74: 0 | AJ74: 0
D75: MOIS | E75: 0 | G75: - | H75: 0 | I75: XAF | K75: 0 | R75: 0 | S75: 0 | T75: 0 | U75: 0 | V75: 0 | W75: 0 | X75: 0 | Y75: 0 | Z75: 0 | AA75: 0 | AB75: 0 | AC75: 0 | AJ75: 0
D76: MOIS | E76: 0 | G76: - | H76: 0 | I76: XAF | K76: 0 | R76: 0 | S76: 0 | T76: 0 | U76: 0 | V76: 0 | W76: 0 | X76: 0 | Y76: 0 | Z76: 0 | AA76: 0 | AB76: 0 | AC76: 0 | AJ76: 0
D77: MOIS | E77: 0 | G77: - | H77: 0 | I77: XAF | K77: 0 | R77: 0 | S77: 0 | T77: 0 | U77: 0 | V77: 0 | W77: 0 | X77: 0 | Y77: 0 | Z77: 0 | AA77: 0 | AB77: 0 | AC77: 0 | AJ77: 0
D78: MOIS | E78: 0 | G78: - | H78: 0 | I78: XAF | K78: 0 | R78: 0 | S78: 0 | T78: 0 | U78: 0 | V78: 0 | W78: 0 | X78: 0 | Y78: 0 | Z78: 0 | AA78: 0 | AB78: 0 | AC78: 0 | AJ78: 0
D79: MOIS | E79: 0 | G79: - | H79: 0 | I79: XAF | K79: 0 | R79: 0 | S79: 0 | T79: 0 | U79: 0 | V79: 0 | W79: 0 | X79: 0 | Y79: 0 | Z79: 0 | AA79: 0 | AB79: 0 | AC79: 0 | AJ79: 0
D80: MOIS | E80: 0 | G80: - | H80: 0 | I80: XAF | K80: 0 | R80: 0 | S80: 0 | T80: 0 | U80: 0 | V80: 0 | W80: 0 | X80: 0 | Y80: 0 | Z80: 0 | AA80: 0 | AB80: 0 | AC80: 0 | AJ80: 0
A81: TT | B81: MSM?N XD | M81: =M82 -> 0 | N81: =N82+N90 -> 0 | O81: 0 | P81: 0 | Q81: 0 | R81: 0 | S81: =S82+S90 -> 0 | T81: 0 | U81: 0 | V81: 0 | W81: 0 | X81: 0 | Y81: 0 | Z81: 0 | AA81: 0 | AB81: 0 | AC81: 0 | AJ81: 0
A82: ST | B82: FLLSN S | M82: =SUM(M83:M88) -> 0 | N82: =SUM(N83:N88) -> 0 | O82: =SUM(O83:O88) -> 0 | P82: =SUM(P83:P88) -> 0 | Q82: =SUM(Q83:Q88) -> 0 | R82: =SUM(R83:R89) -> 0 | S82: =SUM(S83:S89) -> 0 | T82: =SUM(T83:T89) -> 0 | U82: =SUM(U83:U89) -> 0 | V82: 0 | W82: 0 | X82: 0 | Y82: 0 | Z82: 0 | AA82: 0 | AB82: 0 | AC82: 0 | AJ82: 0
B83: =IFERROR(UPPER(VLOOKUP(A83,RESTAF_01,2,0)),"") ->  | D83: MOIS | E83: =IF(A83="",0%,100%) -> 0 | G83: =IFERROR(VLOOKUP(A83,RESTAF_01,4,0),"-") -> - | H83: =IFERROR(E83*$AI$3+F83*$AI$4+G83*$AI$5,0) -> 0 | I83: XAF | K83: 0 | R83: =$H83*$K83 -> 0 | S83: 0 | T83: 0 | U83: 0 | V83: 0 | W83: 0 | X83: 0 | Y83: 0 | Z83: 0 | AA83: 0 | AB83: 0 | AC83: 0 | AJ83: 0
D84: MOIS | E84: 0 | G84: - | H84: 0 | I84: XAF | K84: 0 | R84: 0 | S84: 0 | T84: 0 | U84: 0 | V84: 0 | W84: 0 | X84: 0 | Y84: 0 | Z84: 0 | AA84: 0 | AB84: 0 | AC84: 0 | AJ84: 0
D85: MOIS | E85: 0 | G85: - | H85: 0 | I85: XAF | K85: 0 | R85: 0 | S85: 0 | T85: 0 | U85: 0 | V85: 0 | W85: 0 | X85: 0 | Y85: 0 | Z85: 0 | AA85: 0 | AB85: 0 | AC85: 0 | AJ85: 0
D86: MOIS | E86: 0 | G86: - | H86: 0 | I86: XAF | K86: 0 | R86: 0 | S86: 0 | T86: 0 | U86: 0 | V86: 0 | W86: 0 | X86: 0 | Y86: 0 | Z86: 0 | AA86: 0 | AB86: 0 | AC86: 0 | AJ86: 0
D87: MOIS | E87: 0 | G87: - | H87: 0 | I87: XAF | K87: 0 | R87: 0 | S87: 0 | T87: 0 | U87: 0 | V87: 0 | W87: 0 | X87: 0 | Y87: 0 | Z87: 0 | AA87: 0 | AB87: 0 | AC87: 0 | AJ87: =SUM(M87:AG87) -> 0
D88: MOIS | E88: 0 | G88: - | H88: 0 | I88: XAF | K88: 0 | R88: 0 | S88: 0 | T88: 0 | U88: 0 | V88: 0 | W88: 0 | X88: 0 | Y88: 0 | Z88: 0 | AA88: 0 | AB88: 0 | AC88: 0 | AJ88: 0
D89: MOIS | E89: 0 | G89: - | H89: 0 | I89: XAF | K89: 0 | R89: 0 | S89: 0 | T89: 0 | U89: 0 | V89: 0 | W89: 0 | X89: 0 | Y89: 0 | Z89: 0 | AA89: 0 | AB89: 0 | AC89: 0 | AJ89: 0
A90: ST | B90: DFKLKQANNBD | M90: =SUM(M91:M102) -> 0 | N90: 0 | O90: 0 | P90: 0 | Q90: 0 | R90: 0 | S90: 0 | T90: 0 | U90: 0 | V90: 0 | W90: 0 | X90: 0 | Y90: 0 | Z90: 0 | AA90: 0 | AB90: 0 | AC90: 0 | AJ90: 0
B91: =IFERROR(UPPER(VLOOKUP(A91,RESTAF_01,2,0)),"") ->  | D91: MOIS | E91: 0 | G91: =IFERROR(VLOOKUP(A91,RESTAF_01,4,0),"-") -> - | H91: =IFERROR(E91*$AI$3+F91*$AI$4+G91*$AI$5,0) -> 0 | I91: XAF | K91: 0 | R91: =$H91*$K91 -> 0 | S91: 0 | T91: 0 | U91: 0 | V91: 0 | W91: 0 | X91: 0 | Y91: 0 | Z91: 0 | AA91: 0 | AB91: 0 | AC91: 0 | AJ91: 0
D92: MOIS | E92: 0 | G92: - | H92: 0 | I92: XAF | K92: 0 | R92: 0 | S92: 0 | T92: 0 | U92: 0 | V92: 0 | W92: 0 | X92: 0 | Y92: 0 | Z92: 0 | AA92: 0 | AB92: 0 | AC92: 0 | AJ92: 0
D93: MOIS | E93: 0 | G93: - | H93: 0 | I93: XAF | K93: 0 | R93: 0 | S93: 0 | T93: 0 | U93: 0 | V93: 0 | W93: 0 | X93: 0 | Y93: 0 | Z93: 0 | AA93: 0 | AB93: 0 | AC93: 0 | AJ93: 0
D94: MOIS | E94: 0 | G94: - | H94: 0 | I94: XAF | K94: 0 | R94: 0 | S94: 0 | T94: 0 | U94: 0 | V94: 0 | W94: 0 | X94: 0 | Y94: 0 | Z94: 0 | AA94: 0 | AB94: 0 | AC94: 0 | AJ94: 0
D95: MOIS | E95: 0 | G95: - | H95: 0 | I95: XAF | K95: 0 | R95: 0 | S95: 0 | T95: 0 | U95: 0 | V95: 0 | W95: 0 | X95: 0 | Y95: 0 | Z95: 0 | AA95: 0 | AB95: 0 | AC95: 0 | AJ95: 0
D96: MOIS | E96: 0 | G96: - | H96: 0 | I96: XAF | K96: 0 | R96: 0 | S96: 0 | T96: 0 | U96: 0 | V96: 0 | W96: 0 | X96: 0 | Y96: 0 | Z96: 0 | AA96: 0 | AB96: 0 | AC96: 0 | AJ96: 0
D97: MOIS | E97: 0 | G97: - | H97: 0 | I97: XAF | K97: 0 | R97: 0 | S97: 0 | T97: 0 | U97: 0 | V97: 0 | W97: 0 | X97: 0 | Y97: 0 | Z97: 0 | AA97: 0 | AB97: 0 | AC97: 0 | AJ97: 0
D98: MOIS | E98: 0 | G98: - | H98: 0 | I98: XAF | K98: 0 | R98: 0 | S98: 0 | T98: 0 | U98: 0 | V98: 0 | W98: 0 | X98: 0 | Y98: 0 | Z98: 0 | AA98: 0 | AB98: 0 | AC98: 0 | AJ98: 0
D99: MOIS | E99: 0 | G99: - | H99: 0 | I99: XAF | K99: 0 | R99: 0 | S99: 0 | T99: 0 | U99: 0 | V99: 0 | W99: 0 | X99: 0 | Y99: 0 | Z99: 0 | AA99: 0 | AB99: 0 | AC99: 0 | AJ99: 0
D100: MOIS | E100: 0 | G100: - | H100: 0 | I100: XAF | K100: 0 | R100: 0 | S100: 0 | T100: 0 | U100: 0 | V100: 0 | W100: 0 | X100: 0 | Y100: 0 | Z100: 0 | AA100: 0 | AB100: 0 | AC100: 0 | AJ100: 0
D101: MOIS | E101: 0 | G101: - | H101: 0 | I101: XAF | K101: 0 | R101: 0 | S101: 0 | T101: 0 | U101: 0 | V101: 0 | W101: 0 | X101: 0 | Y101: 0 | Z101: 0 | AA101: 0 | AB101: 0 | AC101: 0 | AJ101: 0
D102: MOIS | E102: 0 | G102: - | H102: 0 | I102: XAF | K102: 0 | R102: 0 | S102: 0 | T102: 0 | U102: 0 | V102: 0 | W102: 0 | X102: 0 | Y102: 0 | Z102: 0 | AA102: 0 | AB102: 0 | AC102: 0 | AJ102: 0
A103: TT | B103: DKJJDHHDF | M103: =M104+M120+M126+M129 -> 0 | N103: =N104+N120+N126+N129 -> 0 | O103: =O104+O120+O126+O129 -> 0 | P103: =P104+P120+P126+P129 -> 0 | Q103: =Q104+Q120+Q126+Q129 -> 0 | R103: =R104+R116+R120+R126+R129+R110 -> 0 | S103: 0 | T103: 0 | U103: 0 | V103: 0 | W103: 0 | X103: 0 | Y103: 0 | Z103: 0 | AA103: 0 | AB103: 0 | AC103: 0 | AJ103: 0
A104: ST | B104: FKLLQK?J?NDX | M104: =SUM(M105:M125) -> 0 | N104: =SUM(N105:N108) -> 0 | O104: 0 | P104: 0 | Q104: 0 | R104: =SUM(R105:R109) -> 0 | S104: =SUM(S105:S109) -> 0 | T104: 0 | U104: 0 | V104: 0 | W104: 0 | X104: 0 | Y104: 0 | Z104: 0 | AA104: 0 | AB104: 0 | AC104: 0 | AJ104: 0
B105: =IFERROR(UPPER(VLOOKUP(A105,RESTAF_01,2,0)),"") ->  | D105: MOIS | E105: =IF(A105="",0%,100%) -> 0 | G105: =IFERROR(VLOOKUP(A105,RESTAF_01,4,0),"-") -> - | H105: =IFERROR(E105*$AI$3+F105*$AI$4+G105*$AI$5,0) -> 0 | I105: XAF | K105: 0 | R105: =$H105*$K105 -> 0 | S105: 0 | T105: 0 | U105: 0 | V105: 0 | W105: 0 | X105: 0 | Y105: 0 | Z105: 0 | AA105: 0 | AB105: 0 | AC105: 0 | AJ105: 0
B106: =IFERROR(UPPER(VLOOKUP(A106,RESTAF_01,2,0)),"") ->  | D106: MOIS | E106: 0 | G106: =IFERROR(VLOOKUP(A106,RESTAF_01,4,0),"-") -> - | H106: 0 | I106: XAF | K106: 0 | R106: 0 | S106: 0 | T106: 0 | U106: 0 | V106: 0 | W106: 0 | X106: 0 | Y106: 0 | Z106: 0 | AA106: 0 | AB106: 0 | AC106: 0 | AJ106: 0
B107: =IFERROR(UPPER(VLOOKUP(A107,RESTAF_01,2,0)),"") ->  | D107: MOIS | E107: 0 | G107: =IFERROR(VLOOKUP(A107,RESTAF_01,4,0),"-") -> - | H107: 0 | I107: XAF | K107: 0 | R107: 0 | S107: 0 | T107: 0 | U107: 0 | V107: 0 | W107: 0 | X107: 0 | Y107: 0 | Z107: 0 | AA107: 0 | AB107: 0 | AC107: 0 | AJ107: 0
B108: =IFERROR(UPPER(VLOOKUP(A108,RESTAF_01,2,0)),"") ->  | D108: MOIS | E108: 0 | G108: =IFERROR(VLOOKUP(A108,RESTAF_01,4,0),"-") -> - | H108: 0 | I108: XAF | K108: 0 | R108: 0 | S108: 0 | T108: 0 | U108: 0 | V108: 0 | W108: 0 | X108: 0 | Y108: 0 | Z108: 0 | AA108: 0 | AB108: 0 | AC108: 0 | AJ108: 0
B109: =IFERROR(UPPER(VLOOKUP(A109,RESTAF_01,2,0)),"") ->  | D109: MOIS | E109: 0 | G109: =IFERROR(VLOOKUP(A109,RESTAF_01,4,0),"-") -> - | H109: 0 | I109: XAF | K109: 0 | R109: 0 | S109: 0 | T109: 0 | U109: 0 | V109: 0 | W109: 0 | X109: 0 | Y109: 0 | Z109: 0 | AA109: 0 | AB109: 0 | AC109: 0 | AJ109: 0
A110: ST | B110: F/MMMSL.K?K??DC | M110: =SUM(M111:M127) -> 0 | N110: =SUM(N111:N114) -> 0 | O110: 0 | P110: 0 | Q110: 0 | R110: =SUM(R111:R115) -> 0 | S110: =SUM(S111:S115) -> 0 | T110: 0 | U110: 0 | V110: 0 | W110: 0 | X110: 0 | Y110: 0 | Z110: 0 | AA110: 0 | AB110: 0 | AC110: 0 | AJ110: 0
B111: =IFERROR(UPPER(VLOOKUP(A111,RESTAF_01,2,0)),"") ->  | D111: MOIS | E111: 0 | G111: =IFERROR(VLOOKUP(A111,RESTAF_01,4,0),"-") -> - | H111: =IFERROR(E111*$AI$3+F111*$AI$4+G111*$AI$5,0) -> 0 | I111: XAF | K111: 0 | R111: 0 | S111: 0 | T111: 0 | U111: 0 | V111: 0 | W111: 0 | X111: 0 | Y111: 0 | Z111: 0 | AA111: 0 | AB111: 0 | AC111: 0 | AJ111: 0
B112: =IFERROR(UPPER(VLOOKUP(A112,RESTAF_01,2,0)),"") ->  | D112: MOIS | E112: 0 | G112: =IFERROR(VLOOKUP(A112,RESTAF_01,4,0),"-") -> - | H112: 0 | I112: XAF | K112: 0 | R112: 0 | S112: 0 | T112: 0 | U112: 0 | V112: 0 | W112: 0 | X112: 0 | Y112: 0 | Z112: 0 | AA112: 0 | AB112: 0 | AC112: 0 | AJ112: 0
B113: =IFERROR(UPPER(VLOOKUP(A113,RESTAF_01,2,0)),"") ->  | D113: MOIS | E113: 0 | G113: =IFERROR(VLOOKUP(A113,RESTAF_01,4,0),"-") -> - | H113: 0 | I113: XAF | K113: 0 | R113: 0 | S113: 0 | T113: 0 | U113: 0 | V113: 0 | W113: 0 | X113: 0 | Y113: 0 | Z113: 0 | AA113: 0 | AB113: 0 | AC113: 0 | AJ113: 0
B114: =IFERROR(UPPER(VLOOKUP(A114,RESTAF_01,2,0)),"") ->  | D114: MOIS | E114: 0 | G114: =IFERROR(VLOOKUP(A114,RESTAF_01,4,0),"-") -> - | H114: 0 | I114: XAF | K114: 0 | R114: 0 | S114: 0 | T114: 0 | U114: 0 | V114: 0 | W114: 0 | X114: 0 | Y114: 0 | Z114: 0 | AA114: 0 | AB114: 0 | AC114: 0 | AJ114: 0
B115: =IFERROR(UPPER(VLOOKUP(A115,RESTAF_01,2,0)),"") ->  | D115: MOIS | E115: 0 | G115: =IFERROR(VLOOKUP(A115,RESTAF_01,4,0),"-") -> - | H115: 0 | I115: XAF | K115: 0 | R115: 0 | S115: 0 | T115: 0 | U115: 0 | V115: 0 | W115: 0 | X115: 0 | Y115: 0 | Z115: 0 | AA115: 0 | AB115: 0 | AC115: 0 | AJ115: 0
A116: ST | B116: FGGSZTBV SD | M116: =SUM(M117:M128) -> 0 | N116: =SUM(N117:N119) -> 0 | O116: 0 | P116: 0 | Q116: 0 | R116: 0 | S116: 0 | T116: 0 | U116: 0 | V116: 0 | W116: 0 | X116: 0 | Y116: 0 | Z116: 0 | AA116: 0 | AB116: 0 | AC116: 0 | AJ116: 0
B117: =IFERROR(UPPER(VLOOKUP(A117,RESTAF_01,2,0)),"") ->  | D117: MOIS | E117: =IF(A117="",0%,100%) -> 0 | G117: =IFERROR(VLOOKUP(A117,RESTAF_01,4,0),"-") -> - | H117: =IFERROR(E117*$AI$3+F117*$AI$4+G117*$AI$5,0) -> 0 | I117: XAF | K117: 0 | R117: 0 | S117: 0 | T117: 0 | U117: 0 | V117: 0 | W117: 0 | X117: 0 | Y117: 0 | Z117: 0 | AA117: 0 | AB117: 0 | AC117: 0 | AJ117: 0
B118: =IFERROR(UPPER(VLOOKUP(A118,RESTAF_01,2,0)),"") ->  | D118: MOIS | E118: 0 | G118: =IFERROR(VLOOKUP(A118,RESTAF_01,4,0),"-") -> - | H118: 0 | I118: XAF | K118: 0 | R118: 0 | S118: 0 | T118: 0 | U118: 0 | V118: 0 | W118: 0 | X118: 0 | Y118: 0 | Z118: 0 | AA118: 0 | AB118: 0 | AC118: 0 | AJ118: 0
B119: =IFERROR(UPPER(VLOOKUP(A119,RESTAF_01,2,0)),"") ->  | D119: MOIS | E119: 0 | G119: =IFERROR(VLOOKUP(A119,RESTAF_01,4,0),"-") -> - | H119: 0 | I119: XAF | K119: 0 | S119: 0 | T119: 0 | U119: 0 | V119: 0 | W119: 0 | X119: 0 | Y119: 0 | Z119: 0 | AA119: 0 | AB119: 0 | AC119: 0 | AJ119: =SUM(M119:AG119) -> 0
A120: ST | B120: DFMMFKFV | M120: =SUM(M121:M123) -> 0 | N120: =SUM(N121:N123) -> 0 | O120: =SUM(O121:O123) -> 0 | P120: =SUM(P121:P123) -> 0 | Q120: =SUM(Q121:Q125) -> 0 | R120: 0 | S120: 0 | T120: 0 | U120: 0 | V120: 0 | W120: 0 | X120: 0 | Y120: 0 | Z120: 0 | AA120: 0 | AB120: 0 | AC120: 0 | AJ120: 0
B121: =IFERROR(UPPER(VLOOKUP(A121,RESTAF_01,2,0)),"") ->  | D121: MOIS | E121: =IF(A121="",0%,100%) -> 0 | G121: =IFERROR(VLOOKUP(A121,RESTAF_01,4,0),"-") -> - | H121: =IFERROR(E121*$AI$3+F121*$AI$4+G121*$AI$5,0) -> 0 | I121: XAF | K121: 0 | R121: =$H121*$K121 -> 0 | S121: 0 | T121: 0 | U121: 0 | V121: 0 | W121: 0 | X121: 0 | Y121: 0 | Z121: 0 | AA121: 0 | AB121: 0 | AC121: 0 | AJ121: 0
B122: =IFERROR(UPPER(VLOOKUP(A122,RESTAF_01,2,0)),"") ->  | D122: MOIS | E122: 0 | G122: =IFERROR(VLOOKUP(A122,RESTAF_01,4,0),"-") -> - | H122: 0 | I122: XAF | K122: 0 | R122: 0 | S122: 0 | T122: 0 | U122: 0 | V122: 0 | W122: 0 | X122: 0 | Y122: 0 | Z122: 0 | AA122: 0 | AB122: 0 | AC122: 0 | AJ122: 0
B123: =IFERROR(UPPER(VLOOKUP(A123,RESTAF_01,2,0)),"") ->  | D123: MOIS | E123: 0 | G123: =IFERROR(VLOOKUP(A123,RESTAF_01,4,0),"-") -> - | H123: 0 | I123: XAF | K123: 0 | R123: 0 | S123: 0 | T123: 0 | U123: 0 | V123: 0 | W123: 0 | X123: 0 | Y123: 0 | Z123: 0 | AA123: 0 | AB123: 0 | AC123: 0 | AJ123: 0
B124: =IFERROR(UPPER(VLOOKUP(A124,RESTAF_01,2,0)),"") ->  | D124: MOIS | E124: 0 | G124: =IFERROR(VLOOKUP(A124,RESTAF_01,4,0),"-") -> - | H124: 0 | I124: XAF | K124: 0 | R124: 0 | S124: 0 | T124: 0 | U124: 0 | V124: 0 | W124: 0 | X124: 0 | Y124: 0 | Z124: 0 | AA124: 0 | AB124: 0 | AC124: 0 | AJ124: 0
B125: =IFERROR(UPPER(VLOOKUP(A125,RESTAF_01,2,0)),"") ->  | D125: MOIS | E125: 0 | G125: =IFERROR(VLOOKUP(A125,RESTAF_01,4,0),"-") -> - | H125: 0 | I125: XAF | K125: 0 | R125: 0 | S125: 0 | T125: 0 | U125: 0 | V125: 0 | W125: 0 | X125: 0 | Y125: 0 | Z125: 0 | AA125: 0 | AB125: 0 | AC125: 0 | AJ125: 0
A126: ST | B126: FMMS?JJNDF | M126: =SUM(M127:M128) -> 0 | N126: 0 | O126: 0 | P126: 0 | Q126: 0 | R126: 0 | S126: 0 | T126: 0 | U126: 0 | V126: 0 | W126: 0 | X126: 0 | Y126: 0 | Z126: 0 | AA126: 0 | AB126: 0 | AC126: 0 | AJ126: 0
B127: =IFERROR(UPPER(VLOOKUP(A127,RESTAF_01,2,0)),"") ->  | D127: MOIS | E127: =IF(A127="",0%,100%) -> 0 | G127: =IFERROR(VLOOKUP(A127,RESTAF_01,4,0),"-") -> - | H127: =IFERROR(E127*$AI$3+F127*$AI$4+G127*$AI$5,0) -> 0 | I127: XAF | K127: 0 | W127: =$H127*$K127 -> 0 | X127: 0 | AB127: 0 | AC127: 0 | AJ127: 0
B128: =IFERROR(UPPER(VLOOKUP(A128,RESTAF_01,2,0)),"") ->  | D128: MOIS | E128: 0 | G128: =IFERROR(VLOOKUP(A128,RESTAF_01,4,0),"-") -> - | H128: 0 | I128: XAF | K128: 0 | W128: 0 | X128: 0 | AB128: 0 | AC128: 0 | AJ128: 0
A129: ST | B129: D/MM??NFC | M129: =SUM(M130:M134) -> 0 | N129: 0 | O129: 0 | P129: 0 | Q129: 0 | R129: 0 | S129: 0 | T129: 0 | U129: 0 | V129: 0 | W129: 0 | X129: 0 | Y129: 0 | Z129: 0 | AA129: 0 | AB129: 0 | AC129: 0 | AJ129: 0
B130: =IFERROR(UPPER(VLOOKUP(A130,RESTAF_01,2,0)),"") ->  | D130: MOIS | E130: =IF(A130="",0%,100%) -> 0 | G130: =IFERROR(VLOOKUP(A130,RESTAF_01,4,0),"-") -> - | H130: =IFERROR(E130*$AI$3+F130*$AI$4+G130*$AI$5,0) -> 0 | I130: XAF | K130: 0 | R130: =$H130*$K130 -> 0 | S130: 0 | T130: 0 | U130: 0 | V130: 0 | W130: 0 | X130: 0 | Y130: 0 | Z130: 0 | AA130: 0 | AB130: 0 | AC130: 0 | AJ130: 0
B131: =IFERROR(UPPER(VLOOKUP(A131,RESTAF_01,2,0)),"") ->  | D131: MOIS | E131: 0 | G131: =IFERROR(VLOOKUP(A131,RESTAF_01,4,0),"-") -> - | H131: 0 | I131: XAF | K131: 0 | R131: 0 | S131: 0 | T131: 0 | U131: 0 | V131: 0 | W131: 0 | X131: 0 | Y131: 0 | Z131: 0 | AA131: 0 | AB131: 0 | AC131: 0 | AJ131: 0
B132: =IFERROR(UPPER(VLOOKUP(A132,RESTAF_01,2,0)),"") ->  | D132: MOIS | E132: 0 | G132: =IFERROR(VLOOKUP(A132,RESTAF_01,4,0),"-") -> - | H132: 0 | I132: XAF | K132: 0 | R132: 0 | S132: 0 | T132: 0 | U132: 0 | V132: 0 | W132: 0 | X132: 0 | Y132: 0 | Z132: 0 | AA132: 0 | AB132: 0 | AC132: 0 | AJ132: 0
B133: =IFERROR(UPPER(VLOOKUP(A133,RESTAF_01,2,0)),"") ->  | D133: MOIS | E133: 0 | G133: =IFERROR(VLOOKUP(A133,RESTAF_01,4,0),"-") -> - | H133: 0 | I133: XAF | K133: 0 | R133: 0 | S133: 0 | T133: 0 | U133: 0 | V133: 0 | W133: 0 | X133: 0 | Y133: 0 | Z133: 0 | AA133: 0 | AB133: 0 | AC133: 0 | AJ133: 0
B134: =IFERROR(UPPER(VLOOKUP(A134,RESTAF_01,2,0)),"") ->  | D134: MOIS | E134: 0 | G134: =IFERROR(VLOOKUP(A134,RESTAF_01,4,0),"-") -> - | H134: 0 | I134: XAF | K134: 0 | R134: 0 | S134: 0 | T134: 0 | U134: 0 | V134: 0 | W134: 0 | X134: 0 | Y134: 0 | Z134: 0 | AA134: 0 | AB134: 0 | AC134: 0 | AJ134: 0
A135: TT | B135: FM/LKNBVCD | M135: =#REF!+#REF!+#REF!+#REF! ->  | N135: =#REF!+#REF!+#REF!+#REF! ->  | O135: =#REF!+#REF!+#REF!+#REF! ->  | P135: =#REF!+#REF!+#REF!+#REF! ->  | Q135: =#REF!+#REF!+#REF!+#REF! ->  | R135: =+R136 -> 0 | S135: =+S136 -> 0 | T135: 0 | U135: 0 | V135: 0 | W135: 0 | X135: 0 | Y135: 0 | Z135: 0 | AA135: 0 | AB135: 0 | AC135: 0 | AJ135: =SUM(R135:AG135) -> 0
A136: ST | B136: FFFFFF | M136: =SUM(M137:M145) -> 0 | N136: 0 | O136: 0 | P136: 0 | Q136: 0 | R136: =SUM(R137:R161) -> 0 | S136: 0 | T136: 0 | U136: 0 | V136: 0 | W136: 0 | X136: 0 | Y136: 0 | Z136: 0 | AA136: 0 | AB136: 0 | AC136: 0 | AJ136: =SUM(M136:AG136) -> 0
B137: =IFERROR(UPPER(VLOOKUP(A137,RESTAF_01,2,0)),"") ->  | D137: MOIS | E137: =IF(A137="",0%,100%) -> 0 | G137: =IFERROR(VLOOKUP(A137,RESTAF_01,4,0),"-") -> - | H137: =IFERROR(E137*$AI$3+F137*$AI$4+G137*$AI$5,0) -> 0 | K137: 0 | R137: =$H137*$K137 -> 0 | S137: 0 | T137: 0 | U137: 0 | V137: 0 | W137: 0 | X137: 0 | Y137: 0 | Z137: 0 | AA137: 0 | AB137: 0 | AC137: 0 | AJ137: 0
D138: MOIS | E138: 0 | G138: - | H138: 0 | K138: 0 | R138: 0 | S138: 0 | T138: 0 | U138: 0 | V138: 0 | W138: 0 | X138: 0 | Y138: 0 | Z138: 0 | AA138: 0 | AB138: 0 | AC138: 0 | AJ138: 0
D139: MOIS | E139: 0 | G139: - | H139: 0 | K139: 0 | R139: 0 | S139: 0 | T139: 0 | U139: 0 | V139: 0 | W139: 0 | X139: 0 | Y139: 0 | Z139: 0 | AA139: 0 | AB139: 0 | AC139: 0 | AJ139: 0
D140: MOIS | E140: 0 | G140: - | H140: 0 | K140: 0 | R140: 0 | S140: 0 | T140: 0 | U140: 0 | V140: 0 | W140: 0 | X140: 0 | Y140: 0 | Z140: 0 | AA140: 0 | AB140: 0 | AC140: 0 | AJ140: 0
D141: MOIS | E141: 0 | G141: - | H141: 0 | K141: 0 | R141: 0 | S141: 0 | T141: 0 | U141: 0 | V141: 0 | W141: 0 | X141: 0 | Y141: 0 | Z141: 0 | AA141: 0 | AB141: 0 | AC141: 0 | AJ141: 0
D142: MOIS | E142: 0 | G142: - | H142: 0 | K142: 0 | R142: 0 | S142: 0 | T142: 0 | U142: 0 | V142: 0 | W142: 0 | X142: 0 | Y142: 0 | Z142: 0 | AA142: 0 | AB142: 0 | AC142: 0 | AJ142: 0
D143: MOIS | E143: 0 | G143: - | H143: 0 | K143: 0 | R143: 0 | S143: 0 | T143: 0 | U143: 0 | V143: 0 | W143: 0 | X143: 0 | Y143: 0 | Z143: 0 | AA143: 0 | AB143: 0 | AC143: 0 | AJ143: 0
D144: MOIS | E144: 0 | G144: - | H144: 0 | K144: 0 | R144: 0 | S144: 0 | T144: 0 | U144: 0 | V144: 0 | W144: 0 | X144: 0 | Y144: 0 | Z144: 0 | AA144: 0 | AB144: 0 | AC144: 0 | AJ144: 0
D145: MOIS | E145: 0 | G145: - | H145: 0 | K145: 0 | R145: 0 | S145: 0 | T145: 0 | U145: 0 | V145: 0 | W145: 0 | X145: 0 | Y145: 0 | Z145: 0 | AA145: 0 | AB145: 0 | AC145: 0 | AJ145: 0
D146: MOIS | E146: 0 | G146: - | H146: 0 | K146: 0 | M146: 0 | R146: 0 | S146: 0 | T146: 0 | U146: 0 | V146: 0 | W146: 0 | X146: 0 | Y146: 0 | Z146: 0 | AA146: 0 | AB146: 0 | AC146: 0 | AJ146: 0
D147: MOIS | E147: 0 | G147: - | H147: 0 | K147: 0 | R147: 0 | S147: 0 | T147: 0 | U147: 0 | V147: 0 | W147: 0 | X147: 0 | Y147: 0 | Z147: 0 | AA147: 0 | AB147: 0 | AC147: 0 | AJ147: 0
D148: MOIS | E148: 0 | G148: - | H148: 0 | K148: 0 | R148: 0 | S148: 0 | T148: 0 | U148: 0 | V148: 0 | W148: 0 | X148: 0 | Y148: 0 | Z148: 0 | AA148: 0 | AB148: 0 | AC148: 0 | AJ148: 0
D149: MOIS | E149: 0 | G149: - | H149: 0 | K149: 0 | R149: 0 | S149: 0 | T149: 0 | U149: 0 | V149: 0 | W149: 0 | X149: 0 | Y149: 0 | Z149: 0 | AA149: 0 | AB149: 0 | AC149: 0 | AJ149: 0
D150: MOIS | E150: 0 | G150: - | H150: 0 | K150: 0 | R150: 0 | S150: 0 | T150: 0 | U150: 0 | V150: 0 | W150: 0 | X150: 0 | Y150: 0 | Z150: 0 | AA150: 0 | AB150: 0 | AC150: 0 | AJ150: 0
D151: MOIS | E151: 0 | G151: - | H151: 0 | K151: 0 | R151: 0 | S151: 0 | T151: 0 | U151: 0 | V151: 0 | W151: 0 | X151: 0 | Y151: 0 | Z151: 0 | AA151: 0 | AB151: 0 | AC151: 0 | AJ151: 0
D152: MOIS | E152: 0 | G152: - | H152: 0 | K152: 0 | R152: 0 | S152: 0 | T152: 0 | U152: 0 | V152: 0 | W152: 0 | X152: 0 | Y152: 0 | Z152: 0 | AA152: 0 | AB152: 0 | AC152: 0 | AJ152: 0
D153: MOIS | E153: 0 | G153: - | H153: 0 | K153: 0 | R153: =$H153*$K153 -> 0 | S153: 0 | T153: 0 | U153: 0 | V153: 0 | W153: 0 | X153: 0 | Y153: 0 | Z153: 0 | AA153: 0 | AB153: 0 | AC153: 0 | AJ153: 0
D154: MOIS | E154: 0 | G154: - | H154: 0 | K154: 0 | R154: 0 | S154: 0 | T154: 0 | U154: 0 | V154: 0 | W154: 0 | X154: 0 | Y154: 0 | Z154: 0 | AA154: 0 | AB154: 0 | AC154: 0 | AJ154: 0
D155: MOIS | E155: 0 | G155: - | H155: 0 | K155: 0 | R155: 0 | S155: 0 | T155: 0 | U155: 0 | V155: 0 | W155: 0 | X155: 0 | Y155: 0 | Z155: 0 | AA155: 0 | AB155: 0 | AC155: 0 | AJ155: 0
D156: MOIS | E156: 0 | G156: - | H156: 0 | K156: 0 | R156: 0 | S156: 0 | T156: 0 | U156: 0 | V156: 0 | W156: 0 | X156: 0 | Y156: 0 | Z156: 0 | AA156: 0 | AB156: 0 | AC156: 0 | AJ156: 0
D157: MOIS | E157: 0 | G157: - | H157: 0 | K157: 0 | R157: 0 | S157: 0 | T157: 0 | U157: 0 | V157: 0 | W157: 0 | X157: 0 | Y157: 0 | Z157: 0 | AA157: 0 | AB157: 0 | AC157: 0 | AJ157: 0
D158: MOIS | E158: 0 | G158: - | H158: 0 | K158: 0 | R158: 0 | S158: 0 | T158: 0 | U158: 0 | V158: 0 | W158: 0 | X158: 0 | Y158: 0 | Z158: 0 | AA158: 0 | AB158: 0 | AC158: 0 | AJ158: 0
D159: MOIS | E159: 0 | G159: - | H159: 0 | K159: 0 | R159: 0 | S159: 0 | T159: 0 | U159: 0 | V159: 0 | W159: 0 | X159: 0 | Y159: 0 | Z159: 0 | AA159: 0 | AB159: 0 | AC159: 0 | AJ159: 0
D160: MOIS | E160: 0 | G160: - | H160: 0 | K160: 0 | R160: 0 | S160: 0 | T160: 0 | U160: 0 | V160: 0 | W160: 0 | X160: 0 | Y160: 0 | Z160: 0 | AA160: 0 | AB160: 0 | AC160: 0 | AJ160: 0
D161: MOIS | E161: 0 | G161: - | H161: 0 | K161: 0 | R161: 0 | S161: 0 | T161: 0 | U161: 0 | V161: 0 | W161: 0 | X161: 0 | Y161: 0 | Z161: 0 | AA161: 0 | AB161: 0 | AC161: 0 | AJ161: 0
A162: TT | B162: BLNBVCSCF | M162: =+M163 -> 0 | N162: =+N163 -> 0 | O162: 0 | P162: 0 | Q162: 0 | R162: =+R163 -> 0 | S162: 0 | T162: 0 | U162: 0 | V162: 0 | W162: 0 | X162: 0 | Y162: 0 | Z162: 0 | AA162: 0 | AB162: 0 | AC162: 0 | AJ162: 0
A163: ST | B163: COÛT GARDIENNAGE | M163: =+SUM(M164:M165) -> 0 | N163: 0 | O163: 0 | P163: 0 | Q163: 0 | R163: =+SUM(R164:R167) -> 0 | S163: =+SUM(S164:S167) -> 0 | T163: 0 | U163: 0 | V163: 0 | W163: 0 | X163: 0 | Y163: 0 | Z163: 0 | AA163: 0 | AB163: 0 | AC163: 0 | AJ163: 0
B164: =IFERROR(UPPER(VLOOKUP(A164,RESTAF_01,2,0)),"") ->  | D164: U | E164: =IF(A164="",0%,100%) -> 0 | G164: =IFERROR(VLOOKUP(A164,RESTAF_01,4,0),"-") -> - | H164: =IFERROR(E164*$AI$3+F164*$AI$4+G164*$AI$5,0) -> 0 | K164: 0 | R164: =$H164*$K164 -> 0 | S164: 0 | T164: 0 | U164: 0 | V164: 0 | W164: 0 | X164: 0 | Y164: 0 | Z164: 0 | AA164: 0 | AB164: 0 | AC164: 0 | AJ164: 0
B165: =IFERROR(UPPER(VLOOKUP(A165,RESTAF_01,2,0)),"") ->  | D165: U | E165: 0 | G165: =IFERROR(VLOOKUP(A165,RESTAF_01,4,0),"-") -> - | H165: 0 | K165: 0 | R165: 0 | S165: 0 | T165: 0 | U165: 0 | V165: 0 | W165: 0 | X165: 0 | Y165: 0 | Z165: 0 | AA165: 0 | AB165: 0 | AC165: 0 | AJ165: 0
B166: =IFERROR(UPPER(VLOOKUP(A166,RESTAF_01,2,0)),"") ->  | D166: U | E166: 0 | G166: =IFERROR(VLOOKUP(A166,RESTAF_01,4,0),"-") -> - | H166: 0 | K166: 0 | R166: 0 | S166: 0 | T166: 0 | U166: 0 | V166: 0 | W166: 0 | X166: 0 | Y166: 0 | Z166: 0 | AA166: 0 | AB166: 0 | AC166: 0 | AJ166: 0
B167: =IFERROR(UPPER(VLOOKUP(A167,RESTAF_01,2,0)),"") ->  | D167: U | E167: 0 | G167: =IFERROR(VLOOKUP(A167,RESTAF_01,4,0),"-") -> - | H167: 0 | K167: 0 | R167: 0 | S167: 0 | T167: 0 | U167: 0 | V167: 0 | W167: 0 | X167: 0 | Y167: 0 | Z167: 0 | AA167: 0 | AB167: 0 | AC167: 0 | AJ167: 0
B168: FGHKIOPO | M168: =#REF!+M169+M172+M180 ->  | N168: =#REF!+N169+N172+N180 ->  | O168: =#REF!+O169+O172+O180 ->  | P168: =#REF!+P169+P172+P180 ->  | Q168: =#REF!+Q169+Q172+Q180 ->  | R168: =R169+R172+R180 -> 0 | S168: =S169+S172+S180 -> 0 | T168: 0 | U168: 0 | V168: 0 | W168: 0 | X168: 0 | Y168: 0 | Z168: 0 | AA168: 0 | AB168: 0 | AC168: 0 | AJ168: =SUM(R168:AG168) -> 0
A169: ST | B169: JJKLKM | M169: =SUM(#REF!) ->  | N169: =SUM(#REF!) ->  | O169: =SUM(#REF!) ->  | P169: =SUM(#REF!) ->  | Q169: =SUM(#REF!) ->  | R169: =SUM(R170:R171) -> 0 | S169: =SUM(S170:S171) -> 0 | T169: 0 | U169: 0 | V169: 0 | W169: 0 | X169: 0 | Y169: 0 | Z169: 0 | AA169: 0 | AB169: 0 | AC169: 0 | AJ169: =+SUM(R169:AG169) -> 0
B170: =IFERROR(UPPER(VLOOKUP(A170,RESTAF_01,2,0)),"") ->  | D170: MOIS | E170: =IF(A170="",0%,100%) -> 0 | G170: =IFERROR(VLOOKUP(A170,RESTAF_01,4,0),"-") -> - | H170: =IFERROR(E170*$AI$3+F170*$AI$4+G170*$AI$5,0) -> 0 | K170: 0 | S170: =$H170*$K170 -> 0 | T170: 0 | U170: 0 | V170: 0 | W170: 0 | X170: 0 | Y170: 0 | Z170: 0 | AA170: 0 | AB170: 0 | AC170: 0 | AJ170: =SUM(M170:AG170) -> 0
B171: =IFERROR(UPPER(VLOOKUP(A171,RESTAF_01,2,0)),"") ->  | D171: MOIS | E171: 0 | G171: =IFERROR(VLOOKUP(A171,RESTAF_01,4,0),"-") -> - | H171: 0 | K171: 0 | S171: =$H171*$K171 -> 0 | T171: 0 | U171: 0 | V171: 0 | W171: 0 | X171: 0 | Y171: 0 | Z171: 0 | AA171: 0 | AB171: 0 | AC171: 0 | AJ171: 0
A172: ST | B172: DGHJKL | M172: =SUM(M173:M179) -> 0 | N172: 0 | O172: 0 | P172: 0 | Q172: 0 | R172: 0 | S172: 0 | T172: 0 | U172: 0 | V172: 0 | W172: 0 | X172: 0 | Y172: 0 | Z172: 0 | AA172: 0 | AB172: 0 | AC172: 0 | AJ172: 0
B173: =IFERROR(UPPER(VLOOKUP(A173,RESTAF_01,2,0)),"") ->  | D173: MOIS | E173: =IF(A173="",0%,100%) -> 0 | G173: =IFERROR(VLOOKUP(A173,RESTAF_01,4,0),"-") -> - | H173: =IFERROR(E173*$AI$3+F173*$AI$4+G173*$AI$5,0) -> 0 | K173: 0 | S173: =$H173*$K173 -> 0 | T173: 0 | U173: 0 | V173: 0 | W173: 0 | X173: 0 | Y173: 0 | Z173: 0 | AA173: 0 | AB173: 0 | AC173: 0 | AJ173: 0
D174: MOIS | E174: 0 | G174: - | H174: 0 | K174: 0 | S174: 0 | T174: 0 | U174: 0 | V174: 0 | W174: 0 | X174: 0 | Y174: 0 | Z174: 0 | AA174: 0 | AB174: 0 | AC174: 0 | AJ174: 0
D175: MOIS | E175: 0 | G175: - | H175: 0 | K175: 0 | S175: 0 | T175: 0 | U175: 0 | V175: 0 | W175: 0 | X175: 0 | Y175: 0 | Z175: 0 | AA175: 0 | AB175: 0 | AC175: 0 | AJ175: 0
D176: MOIS | E176: 0 | G176: - | H176: 0 | K176: 0 | S176: 0 | T176: 0 | U176: 0 | V176: 0 | W176: 0 | X176: 0 | Y176: 0 | Z176: 0 | AA176: 0 | AB176: 0 | AC176: 0 | AJ176: 0
D177: MOIS | E177: 0 | G177: - | H177: 0 | K177: 0 | S177: 0 | T177: 0 | U177: 0 | V177: 0 | W177: 0 | X177: 0 | Y177: 0 | Z177: 0 | AA177: 0 | AB177: 0 | AC177: 0 | AJ177: 0
D178: MOIS | E178: 0 | G178: - | H178: 0 | K178: 0 | S178: 0 | T178: 0 | U178: 0 | V178: 0 | W178: 0 | X178: 0 | Y178: 0 | Z178: 0 | AA178: 0 | AB178: 0 | AC178: 0 | AJ178: 0
D179: MOIS | E179: 0 | G179: - | H179: 0 | K179: 0 | S179: 0 | T179: 0 | U179: 0 | V179: 0 | W179: 0 | X179: 0 | Y179: 0 | Z179: 0 | AA179: 0 | AB179: 0 | AC179: 0 | AJ179: 0
A180: ST | B180: COÛT DE MISSION | M180: =SUM(M181:M184) -> 0 | N180: 0 | O180: 0 | P180: 0 | Q180: 0 | R180: 0 | S180: 0 | T180: 0 | U180: 0 | V180: 0 | W180: 0 | X180: 0 | Y180: 0 | Z180: 0 | AA180: 0 | AB180: 0 | AC180: 0 | AJ180: 0
B181: =IFERROR(UPPER(VLOOKUP(A181,RESTAF_01,2,0)),"") ->  | D181: MOIS | E181: =IF(A181="",0%,100%) -> 0 | G181: =IFERROR(VLOOKUP(A181,RESTAF_01,4,0),"-") -> - | H181: =IFERROR(E181*$AI$3+F181*$AI$4+G181*$AI$5,0) -> 0 | K181: 0 | R181: =$H181*$K181 -> 0 | S181: 0 | T181: 0 | U181: 0 | V181: 0 | W181: 0 | X181: 0 | Y181: 0 | Z181: 0 | AA181: 0 | AB181: 0 | AC181: 0 | AJ181: 0
B182: =IFERROR(UPPER(VLOOKUP(A182,RESTAF_01,2,0)),"") ->  | D182: MOIS | E182: 0 | G182: =IFERROR(VLOOKUP(A182,RESTAF_01,4,0),"-") -> - | H182: 0 | K182: 0 | R182: 0 | S182: 0 | T182: 0 | U182: 0 | V182: 0 | W182: 0 | X182: 0 | Y182: 0 | Z182: 0 | AA182: 0 | AB182: 0 | AC182: 0 | AJ182: 0
B183: =IFERROR(UPPER(VLOOKUP(A183,RESTAF_01,2,0)),"") ->  | D183: MOIS | E183: 0 | G183: =IFERROR(VLOOKUP(A183,RESTAF_01,4,0),"-") -> - | H183: 0 | K183: 0 | R183: 0 | S183: 0 | T183: 0 | U183: 0 | V183: 0 | W183: 0 | X183: 0 | Y183: 0 | Z183: 0 | AA183: 0 | AB183: 0 | AC183: 0 | AJ183: 0
E184: 0 | G184: =IFERROR(VLOOKUP(A184,RESTAF_01,4,0),"-") -> - | H184: 0 | R184: 0 | S184: 0 | T184: 0 | U184: 0 | V184: 0 | W184: 0 | X184: 0 | Y184: 0 | Z184: 0 | AA184: 0 | AB184: 0 | AC184: 0 | AJ184: 0
AJ185: 0
E186: TOTAL MESUEL (PRIX SEC) | M186: =#REF!+M23+M30+M40+M54+M103+M135+M162+M168 ->  | N186: =#REF!+N23+N30+N40+N54+N103+N135+N162+N168 ->  | O186: =O168+O162+#REF!+O135+O103+O81+O64+O54+O40+O30+O23+O7+#REF! ->  | P186: =P168+P162+#REF!+P135+P103+P81+P64+P54+P40+P30+P23+P7+#REF! ->  | Q186: =Q168+Q162+#REF!+Q135+Q103+Q81+Q64+Q54+Q40+Q30+Q23+Q7+#REF! ->  | R186: =R168+R162+R135+R103+R81+R64+R54+R40+R30+R23+R7 -> 0 | S186: 0 | T186: 0 | U186: 0 | V186: 0 | W186: 0 | X186: 0 | Y186: 0 | Z186: 0 | AA186: 0 | AB186: 0 | AC186: 0 | AD186: 0 | AE186: 0 | AF186: 0 | AG186: 0 | AJ186: =SUM(R186:AG186) -> 0
E187: CUMULLÉ (PRIX SEC) | M187: =M186 ->  | N187: =M186+N186 ->  | O187: =N187+O186 ->  | R187: =R186 -> 0 | S187: =R187+S186 -> 0 | T187: 0 | U187: 0 | V187: 0 | W187: 0 | X187: 0 | Y187: 0 | Z187: 0 | AA187: 0 | AB187: 0 | AC187: 0 | AD187: 0 | AE187: 0 | AF187: 0 | AG187: 0
F188: K VENTE HIP 2 | H188: =G188*H$260 -> 0
AJ189: =SUM(M189:AG189) -> 0
R190: =R186 -> 0 | S190: 0 | T190: 0 | U190: 0 | V190: 0 | W190: 0 | X190: 0 | Y190: 0 | Z190: 0 | AA190: 0 | AB190: 0 | AC190: 0 | AD190: 0 | AE190: 0 | AF190: 0 | AG190: 0 | AJ190: =SUM(M190:AG190) -> 0
R191: =R190 -> 0 | S191: =R191+S190 -> 0 | T191: =S191+T190 -> 0 | U191: 0 | V191: 0 | W191: 0 | X191: 0 | Y191: 0 | Z191: 0 | AA191: 0 | AB191: 0 | AC191: 0 | AD191: 0 | AE191: 0 | AF191: 0 | AG191: 0
AJ192: =SUM(M192:AG192) -> 0
AC195: =+AC191/AC194 -> 

Sheet OPTION 2 PHASES (COST) (hidden)
A5: SDFGHJKL | B5: FGHJKLM% | C5: AAAA | D5: BBBB | E5: Tranche Ferme | F5: GHNN??? | G5: Tranche conditionnelle | H5: DFGHJKL
E6: FFGTHJK | F6: ?KKLL | G6: FGHJK | H6: FGHJKL
B8: AAAAAAAAAAAAAAAAAAAA
A9: N° DE PRIX | B9: AAAAAAAAAAAAAAAAAAAA | C9: FGHJKL | D9: 409201933.3 | E9: 1 | F9: =E9*$D9 -> 409201933.3 | G9: 0 | H9: =G9*$D9 -> 0
B10: AAAAAAAAAAAAAAAAAAAA | F10: =SUM(F9) -> 409201933.3 | H10: =SUM(H9) -> 0
B11: AAAAAAAAAAAAAAAAAAAA
A12: 0 | B12: AAAAAAAAAAAAAAAAAAAA | C12: FGHJKL | D12: =+'101'!K41 -> 10 | E12: 49427.18912 | F12: =E12*$D12 -> 494271.8912 | G12: 0 | H12: =G12*$D12 -> 0
A13: 0 | B13: AAAAAAAAAAAAAAAAAAAA | C13: FGHJKL | D13: 0 | E13: 0 | F13: =E13*$D13 -> 0 | G13: 0 | H13: =G13*$D13 -> 0
A14: 0 | B14: AAAAAAAAAAAAAAAAAAAA | C14: FGHJKL | D14: 0 | E14: 0 | F14: =E14*$D14 -> 0 | G14: 0 | H14: =G14*$D14 -> 0
A15: 0 | B15: AAAAAAAAAAAAAAAAAAAA | C15: FGHJKL | D15: 0 | E15: 0 | F15: 0 | G15: 0 | H15: 0
B16: AAAAAAAAAAAAAAAAAAAA | C16: FGHJKL | E16: 0 | F16: =SUM(F12:F15) -> 494271.8912 | G16: 0 | H16: =SUM(H12:H15) -> 0
B17: AAAAAAAAAAAAAAAAAAAA | C17: FGHJKL | D17: 0
A18: 0 | B18: AAAAAAAAAAAAAAAAAAAA | C18: FGHJKL | D18: =+'201'!K38 -> 60 | E18: 23160.67713 | F18: =E18*$D18 -> 1389640.628 | G18: 0 | H18: =G18*$D18 -> 0
A19: 0 | B19: AAAAAAAAAAAAAAAAAAAA | C19: FGHJKL | E19: 0 | F19: 0 | G19: 0 | H19: 0
A20: 0 | B20: AAAAAAAAAAAAAAAAAAAA | C20: FGHJKL | D20: =+'202'!K38 -> 100 | E20: 60490.52267 | F20: 6049052.267 | G20: 0 | H20: 0
A21: 0 | B21: AAAAAAAAAAAAAAAAAAAA | C21: FGHJKL | D21: =+'203'!K38 -> 530 | E21: 56751.51078 | F21: 30078300.71 | G21: 0 | H21: 0
A22: 0 | B22: AAAAAAAAAAAAAAAAAAAA | C22: FGHJKL | D22: =+'204'!K38 -> 10 | E22: 46676.38889 | F22: 466763.8889 | G22: 0 | H22: 0
A23: 0 | B23: AAAAAAAAAAAAAAAAAAAA | C23: FGHJKL | D23: =+'205'!K41 -> 10 | E23: 123649.7118 | F23: 1236497.118 | G23: 0 | H23: 0
B24: AAAAAAAAAAAAAAAAAAAA | C24: FGHJKL | E24: 0 | F24: =SUM(F18:F23) -> 39220254.61 | G24: 0 | H24: =SUM(H18:H23) -> 0
B25: AAAAAAAAAAAAAAAAAAAA | C25: FGHJKL | D25: 0
A26: 0 | B26: AAAAAAAAAAAAAAAAAAAA | C26: FGHJKL | D26: =+'301'!K38 -> 120 | E26: 32702.42743 | F26: =E26*$D26 -> 3924291.292 | G26: 0 | H26: =G26*$D26 -> 0
A27: 0 | B27: AAAAAAAAAAAAAAAAAAAA | C27: FGHJKL | D27: =+'302'!K38 -> 70 | E27: 24226.41613 | F27: 1695849.129 | G27: 0 | H27: 0
A28: 0 | B28: AAAAAAAAAAAAAAAAAAAA | C28: FGHJKL | D28: =+'303'!K38 -> 70 | E28: 98187.6779 | F28: 6873137.453 | G28: 0 | H28: 0
A29: 0 | B29: AAAAAAAAAAAAAAAAAAAA | C29: FGHJKL | D29: 730 | F29: 0 | G29: 0 | H29: 0
A30: 0 | B30: AAAAAAAAAAAAAAAAAAAA | C30: FGHJKL | D30: 0
A31: 0 | B31: AAAAAAAAAAAAAAAAAAAA | C31: FGHJKL | D31: =+'304'!K38 -> 120 | E31: 98187.6779 | F31: 11782521.35 | G31: 0 | H31: 0
A32: 0 | B32: AAAAAAAAAAAAAAAAAAAA | C32: FGHJKL | D32: 0 | E32: 0 | F32: 0 | G32: 0 | H32: 0
A33: 0 | B33: AAAAAAAAAAAAAAAAAAAA | C33: FGHJKL | D33: =+'305'!K42 -> 80 | E33: 0 | F33: =E33*$D33 -> 0 | G33: 77196.2443 | H33: =G33*$D33 -> 6175699.544
A34: 0 | B34: AAAAAAAAAAAAAAAAAAAA | C34: FGHJKL | D34: =+'307'!K38 -> 70 | E34: 0 | F34: 0 | G34: 21456.52 | H34: =G34*$D34 -> 1501956.4
A35: 0 | B35: AAAAAAAAAAAAAAAAAAAA | C35: FGHJKL | D35: =+'306'!K38 -> 2420 | E35: 5452.789699 | F35: 13195751.07 | G35: 0 | H35: 0
A36: 0 | B36: AAAAAAAAAAAAAAAAAAAA | C36: FGHJKL | D36: 3500 | E36: 10589.69236 | F36: 37063923.26 | G36: 0 | H36: 0
B37: AAAAAAAAAAAAAAAAAAAA | C37: FGHJKL | E37: 0 | F37: =SUM(F26:F35) -> 37471550.29 | G37: 0 | H37: =SUM(H26:H35) -> 7677655.944
B38: AAAAAAAAAAAAAAAAAAAA | C38: FGHJKL | D38: 0 | E38: 0 | G38: 0
A39: 0 | B39: AAAAAAAAAAAAAAAAAAAA | C39: FGHJKL | D39: 27430 | E39: 323 | F39: =E39*$D39 -> 8859890 | G39: 0 | H39: =G39*$D39 -> 0
A40: 0 | B40: AAAAAAAAAAAAAAAAAAAA | C40: FGHJKL | D40: 303070 | E40: 84 | F40: 25457880 | G40: 0 | H40: 0
A41: 0 | B41: AAAAAAAAAAAAAAAAAAAA | C41: FGHJKL | D41: 58400 | E41: 200 | F41: 11680000 | G41: 0 | H41: 0
A42: 0 | B42: AAAAAAAAAAAAAAAAAAAA | C42: FGHJKL
A43: 0 | B43: AAAAAAAAAAAAAAAAAAAA | C43: FGHJKL | D43: 6890 | E43: 80.5 | F43: 554645 | G43: 0 | H43: =G43*$D43 -> 0
A44: 0 | B44: AAAAAAAAAAAAAAAAAAAA | C44: FGHJKL | D44: 13810 | E44: 0 | F44: 0 | G44: 0 | H44: 0
A45: 0 | B45: AAAAAAAAAAAAAAAAAAAA | C45: FGHJKL | D45: =+'401'!K42 -> 90 | E45: 9578.144593 | F45: =E45*$D45 -> 862033.0134 | G45: 11377.47046 | H45: =G45*$D45 -> 1023972.341
A46: 0 | B46: AAAAAAAAAAAAAAAAAAAA | C46: FGHJKL | D46: 13120 | E46: 0 | F46: =E46*$D46 -> 0 | G46: 0 | H46: =G46*$D46 -> 0
A47: 0 | B47: AAAAAAAAAAAAAAAAAAAA | C47: FGHJKL
A48: 0 | B48: AAAAAAAAAAAAAAAAAAAA | C48: FGHJKL | F48: 0 | G48: 0 | H48: =G48*$D48 -> 0
A49: 0 | B49: AAAAAAAAAAAAAAAAAAAA | C49: FGHJKL | D49: 0 | E49: 0 | F49: 0 | G49: 0 | H49: 0
A50: 0 | B50: AAAAAAAAAAAAAAAAAAAA | C50: FGHJKL | D50: 0 | E50: 0 | F50: 0 | G50: 0 | H50: 0
A51: 0 | B51: AAAAAAAAAAAAAAAAAAAA | C51: FGHJKL | D51: 0 | E51: 0 | F51: 0 | G51: 0 | H51: 0
A52: 0 | B52: AAAAAAAAAAAAAAAAAAAA | C52: FGHJKL | D52: =+'402'!K43 -> 120 | E52: 9515.404659 | F52: =E52*$D52 -> 1141848.559 | G52: 0 | H52: =G52*$D53 -> 0
A53: 0 | B53: AAAAAAAAAAAAAAAAAAAA | C53: FGHJKL | D53: 6770 | E53: 10182.18 | F53: =E53*D53 -> 68933358.6 | G53: 0 | H53: =G53*$D54 -> 0
A54: 0 | B54: AAAAAAAAAAAAAAAAAAAA | C54: FGHJKL | D54: 23880 | E54: 827.7173923 | F54: =E54*D54 -> 19765891.33 | G54: 0
A55: 0 | B55: AAAAAAAAAAAAAAAAAAAA | C55: FGHJKL | D55: 0
A56: 0 | B56: AAAAAAAAAAAAAAAAAAAA | C56: FGHJKL | D56: 0 | E56: 0 | F56: 0 | G56: 0 | H56: =G56*$D56 -> 0
A57: 0 | B57: AAAAAAAAAAAAAAAAAAAA | C57: FGHJKL | D57: 0 | E57: 0 | F57: 0 | G57: 0 | H57: 0
A58: 0 | B58: AAAAAAAAAAAAAAAAAAAA | C58: FGHJKL | D58: 0 | E58: 0 | F58: 0 | G58: 0 | H58: 0
A59: 0 | B59: AAAAAAAAAAAAAAAAAAAA | C59: FGHJKL | E59: 0 | F59: 0 | G59: 0 | H59: 0
A60: 0 | B60: AAAAAAAAAAAAAAAAAAAA | C60: FGHJKL | D60: 0
A61: 0 | B61: AAAAAAAAAAAAAAAAAAAA | C61: FGHJKL | D61: 0 | E61: 0 | F61: 0 | G61: 0 | H61: =G61*$D61 -> 0
A62: 0 | B62: AAAAAAAAAAAAAAAAAAAA | C62: FGHJKL | E62: 0 | F62: =E62*$D63 -> 0 | G62: 0 | H62: =G62*$D63 -> 0
A63: 0 | B63: AAAAAAAAAAAAAAAAAAAA | C63: FGHJKL | D63: =+'404'!K38 -> 16920 | E63: 234.89 | F63: =E63*D63 -> 3974338.8 | G63: 0 | H63: 0
A64: 0 | B64: AAAAAAAAAAAAAAAAAAAA | C64: FGHJKL | D64: 0 | E64: 0 | F64: 0 | G64: 0 | H64: 0
A65: 0 | B65: AAAAAAAAAAAAAAAAAAAA | C65: FGHJKL | D65: =+'404B'!K38 -> 25550 | E65: 51.3 | F65: 1310715 | G65: 0 | H65: 0
A66: 0 | B66: AAAAAAAAAAAAAAAAAAAA | C66: FGHJKL | D66: 0 | E66: 0 | F66: 0 | G66: 0 | H66: 0
A67: 0 | B67: AAAAAAAAAAAAAAAAAAAA | C67: FGHJKL | D67: 0 | E67: 0 | F67: 0 | G67: 0 | H67: 0
A68: 0 | B68: AAAAAAAAAAAAAAAAAAAA | C68: FGHJKL | D68: =+'404C'!K38 -> 76440 | E68: 16 | F68: 1223040 | G68: 0 | H68: 0
A69: 0 | B69: AAAAAAAAAAAAAAAAAAAA | C69: FGHJKL | D69: =+'404D'!K38 -> 252590 | E69: 16.8 | F69: 4243512 | G69: 0 | H69: 0
A70: 0 | B70: AAAAAAAAAAAAAAAAAAAA | C70: FGHJKL | F70: 0
A71: 0 | B71: AAAAAAAAAAAAAAAAAAAA | C71: FGHJKL | D71: 0 | E71: 0 | F71: 0 | G71: 0 | H71: =G71*$D72 -> 0
A72: 0 | B72: AAAAAAAAAAAAAAAAAAAA | C72: FGHJKL | D72: 0 | E72: 0 | F72: 0 | G72: 0 | H72: 0
A73: 0 | B73: AAAAAAAAAAAAAAAAAAAA | C73: FGHJKL | D73: =+'405A'!K38 -> 19380 | E73: 28 | F73: 542640 | G73: 0 | H73: 0
A74: 0 | B74: AAAAAAAAAAAAAAAAAAAA | C74: FGHJKL | D74: 0 | E74: 0 | F74: 0 | G74: 0 | H74: 0
A75: 0 | B75: AAAAAAAAAAAAAAAAAAAA | C75: FGHJKL | D75: =+'405B'!K38 -> 19990 | E75: 6 | F75: 119940 | G75: 0 | H75: 0
A76: 0 | B76: AAAAAAAAAAAAAAAAAAAA | C76: FGHJKL | D76: 0 | E76: 0 | F76: 0 | G76: 0 | H76: 0
A77: 0 | B77: AAAAAAAAAAAAAAAAAAAA | C77: FGHJKL | D77: 0 | E77: 0 | F77: 0 | G77: 0 | H77: 0
A78: 0 | B78: AAAAAAAAAAAAAAAAAAAA | C78: FGHJKL | D78: =+'405C'!K38 -> 44490 | E78: 2 | F78: 88980 | G78: 0 | H78: 0
A79: 0 | B79: AAAAAAAAAAAAAAAAAAAA | C79: FGHJKL | D79: =+'405D'!K38 -> 720300 | E79: 2 | F79: 1440600 | G79: 0 | H79: 0
A80: 0 | B80: AAAAAAAAAAAAAAAAAAAA | C80: FGHJKL | D80: 109570 | E80: 3 | F80: 328710 | G80: 0 | H80: 0
A81: 0 | B81: AAAAAAAAAAAAAAAAAAAA | C81: FGHJKL | D81: 1210 | E81: 220.5 | F81: 266805 | G81: 0 | H81: 0
A82: 0 | B82: AAAAAAAAAAAAAAAAAAAA | C82: FGHJKL | D82: 16920 | E82: 160.1 | F82: 2708892 | G82: 0
B83: AAAAAAAAAAAAAAAAAAAA | C83: FGHJKL | E83: 0 | F83: =SUM(F39:F82) -> 153503719.3 | G83: 0 | H83: =SUM(H39:H82) -> 1023972.341
B84: AAAAAAAAAAAAAAAAAAAA | C84: FGHJKL | D84: 0 | E84: 0 | G84: 0
A85: 0 | B85: AAAAAAAAAAAAAAAAAAAA | C85: FGHJKL | E85: 0 | G85: 0
B86: AAAAAAAAAAAAAAAAAAAA | C86: FGHJKL | E86: 0 | F86: =SUM(F84:F85) -> 0 | G86: 0 | H86: =SUM(H84:H85) -> 0
B87: AAAAAAAAAAAAAAAAAAAA | C87: FGHJKL | E87: 0
A88: 0 | B88: AAAAAAAAAAAAAAAAAAAA | C88: FGHJKL | E88: 0
A89: 0 | B89: AAAAAAAAAAAAAAAAAAAA | C89: FGHJKL | D89: 2900 | E89: 0 | F89: =E89*$D90 -> 0 | G89: 10195.32 | H89: =+D89*G89 -> 29566428
A90: 0 | B90: AAAAAAAAAAAAAAAAAAAA | C90: FGHJKL | D90: 0 | E90: 0 | G90: 0 | H90: =+D90*G90 -> 0
A91: 0 | B91: AAAAAAAAAAAAAAAAAAAA | C91: FGHJKL | D91: 2400 | E91: 0 | F91: =E91*$D91 -> 0 | G91: 19760.1 | H91: 47424240
A92: 0 | B92: AAAAAAAAAAAAAAAAAAAA | C92: FGHJKL | D92: 2470 | E92: 0 | F92: 0 | G92: 487.28 | H92: 1203581.6
A93: 0 | B93: AAAAAAAAAAAAAAAAAAAA | C93: FGHJKL | D93: 8990 | E93: 0 | F93: 0 | G93: 200.52 | H93: 1802674.8
A94: 0 | B94: AAAAAAAAAAAAAAAAAAAA | C94: FGHJKL | D94: 19310 | E94: 0 | F94: =E94*$D94 -> 0 | G94: 385 | H94: 7434350
A95: 0 | B95: AAAAAAAAAAAAAAAAAAAA | C95: FGHJKL | D95: 8990 | E95: 0 | F95: 0 | G95: 20.23 | H95: 181867.7
A96: 0 | B96: AAAAAAAAAAAAAAAAAAAA | C96: FGHJKL | D96: 164355 | E96: 0 | F96: 0 | G96: 61 | H96: 10025655
A97: 0 | B97: AAAAAAAAAAAAAAAAAAAA | C97: FGHJKL | D97: 1066800 | E97: 0 | F97: =E97*$D97 -> 0 | G97: 1 | H97: 1066800
A98: 0 | B98: AAAAAAAAAAAAAAAAAAAA | C98: FGHJKL | D98: 1066800 | E98: 0 | F98: =E98*$D98 -> 0 | G98: 22 | H98: 23469600
A99: 0 | B99: AAAAAAAAAAAAAAAAAAAA | C99: FGHJKL | D99: 164355 | E99: 0 | F99: 0 | G99: 19 | H99: 3122745
A100: 0 | B100: AAAAAAAAAAAAAAAAAAAA | C100: FGHJKL | D100: 1500000 | E100: 0 | F100: 0 | G100: 94 | H100: 141000000
A101: 0 | B101: AAAAAAAAAAAAAAAAAAAA | C101: FGHJKL | D101: 1066800 | E101: 0 | F101: 0 | G101: 4 | H101: 4267200
A102: 0 | B102: AAAAAAAAAAAAAAAAAAAA | C102: FGHJKL | D102: 0 | E102: 0 | F102: 0 | G102: 3 | H102: 0
B103: AAAAAAAAAAAAAAAAAAAA | C103: FGHJKL | E103: 0 | F103: =SUM(F89:F102) -> 0 | G103: 0 | H103: =SUM(H89:H102) -> 270565142.1
B104: AAAAAAAAAAAAAAAAAAAA | C104: FGHJKL | E104: 0 | F104: 0 | G104: 0 | H104: =G104*$D104 -> 0
A105: 0 | B105: AAAAAAAAAAAAAAAAAAAA | C105: FGHJKL | D105: 296630 | E105: 0 | F105: =E105*$D105 -> 0 | G105: 511 | H105: =G105*$D105 -> 151577930
A106: 0 | B106: AAAAAAAAAAAAAAAAAAAA | C106: FGHJKL | D106: 0 | E106: 0 | F106: 0 | G106: 0 | H106: =G106*$D106 -> 0
A107: 0 | B107: AAAAAAAAAAAAAAAAAAAA | C107: FGHJKL | D107: 1000000 | E107: 0 | F107: 0 | G107: 511 | H107: 511000000
B108: AAAAAAAAAAAAAAAAAAAA | C108: FGHJKL | E108: 0 | F108: =SUM(F104:F107) -> 0 | G108: 0 | H108: =SUM(H104:H107) -> 662577930
B109: AAAAAAAAAAAAAAAAAAAA | C109: FGHJKL | E109: 0 | G109: 0
A110: 0 | B110: AAAAAAAAAAAAAAAAAAAA | C110: FGHJKL | D110: 0 | F110: =G110*$D110 -> 0 | G110: 1 | H110: =G110*$D110 -> 0
A111: 0 | B111: AAAAAAAAAAAAAAAAAAAA | C111: FGHJKL
A112: 0 | B112: AAAAAAAAAAAAAAAAAAAA | C112: FGHJKL | D112: 41900 | G112: 330 | H112: =G112*$D112 -> 13827000
A113: 0 | B113: AAAAAAAAAAAAAAAAAAAA | C113: FGHJKL | D113: 85900 | G113: 660 | H113: =G113*$D113 -> 56694000
A114: 0 | B114: AAAAAAAAAAAAAAAAAAAA | C114: FGHJKL | D114: 201200 | G114: 330 | H114: 66396000
B115: AAAAAAAAAAAAAAAAAAAA | C115: FGHJKL | F115: =SUM(F110:F114) -> 0 | H115: =SUM(H110:H114) -> 136917000
B116: AAAAAAAAAAAAAAAAAAAA
B117: AAAAAAAAAAAAAAAAAAAA | F117: =F10 -> 409201933.3 | H117: =H10 -> 0
B118: AAAAAAAAAAAAAAAAAAAA | F118: =F16 -> 494271.8912 | H118: =H16 -> 0
B119: AAAAAAAAAAAAAAAAAAAA | F119: =F24 -> 39220254.61 | H119: =H24 -> 0
B120: AAAAAAAAAAAAAAAAAAAA | F120: =F37 -> 37471550.29 | H120: =H37 -> 7677655.944
B121: AAAAAAAAAAAAAAAAAAAA | F121: =F83 -> 153503719.3 | H121: =H83 -> 1023972.341
B122: AAAAAAAAAAAAAAAAAAAA | F122: =F86 -> 0 | H122: =H86 -> 0
B123: AAAAAAAAAAAAAAAAAAAA | F123: =F103 -> 0 | H123: =H103 -> 270565142.1
B124: AAAAAAAAAAAAAAAAAAAA | F124: =F108 -> 0 | H124: =H108 -> 662577930
B125: AAAAAAAAAAAAAAAAAAAA | F125: =F115 -> 0 | H125: =H115 -> 136917000
B126: SDFGHJ | F126: =SUM(F117:F125) -> 639891729.4 | G126: =SUBTOTAL(109,G117:G125) -> 0 | H126: =SUBTOTAL(109,H117:H125) -> 1078761700

Sheet OPTION 2 (fosse terre) (hidden)
A5: FGHJKLM% | B5: SDFGHJ?K.L/§ | C5: XCVBN?./ | D5: CFVGBHNJ?K./§ | E5: Tranche Ferme | F5: AAAAAAAAA | G5: AAAAAAAAA
E6: Quantités | F6: BBBBBBB | G6: BBB | H6: BBBBB
B8: BBBBBBBD
A9: N° DE PRIX | B9: BBBBBBBD | C9: forfait | D9: 516701933.3 | E9: 1 | F9: =E9*$D9 -> 516701933.3 | G9: 0 | H9: =G9*$D9 -> 0
B10: BBBBBBBD | F10: =SUM(F9) -> 516701933.3 | H10: =SUM(H9) -> 0
B11: BBBBBBBD
A12: 0 | B12: BBBBBBBD | C12: m² | D12: 460 | E12: 49427.18912 | F12: =E12*$D12 -> 22736507 | G12: 0 | H12: =G12*$D12 -> 0
A13: 0 | B13: BBBBBBBD | C13: m3 | D13: 0 | E13: 0 | F13: =E13*$D13 -> 0 | G13: 0 | H13: =G13*$D13 -> 0
A14: 0 | B14: BBBBBBBD | C14: m3 | D14: 0 | E14: 0 | F14: =E14*$D14 -> 0 | G14: 0 | H14: =G14*$D14 -> 0
A15: 0 | B15: BBBBBBBD | C15: U | D15: 0 | E15: 0 | F15: 0 | G15: 0 | H15: 0
B16: BBBBBBBD | E16: 0 | F16: =SUM(F12:F15) -> 22736507 | G16: 0 | H16: =SUM(H12:H15) -> 0
B17: BBBBBBBD | C17: 0 | D17: 0
A18: 0 | B18: BBBBBBBD | C18: m3 | D18: 2900 | E18: 23160.67713 | F18: =E18*$D18 -> 67165963.68 | G18: 0 | H18: =G18*$D18 -> 0
A19: 0 | B19: BBBBBBBD | C19: m3 | E19: 0 | F19: 0 | G19: 0 | H19: 0
A20: 0 | B20: BBBBBBBD | C20: m3 | D20: 9070 | E20: 60490.52267 | F20: 548649040.6 | G20: 0 | H20: 0
A21: 0 | B21: BBBBBBBD | C21: m3 | D21: 10960 | E21: 56751.51078 | F21: 621996558.1 | G21: 0 | H21: 0
A22: 0 | B22: BBBBBBBD | C22: m² | D22: 2830 | E22: 46676.38889 | F22: 132094180.5 | G22: 0 | H22: 0
A23: 0 | B23: BBBBBBBD | C23: m² | D23: 170 | E23: 123649.7118 | F23: 21020451.01 | G23: 0 | H23: 0
B24: BBBBBBBD | E24: 0 | F24: =SUM(F18:F23) -> 1390926194 | G24: 0 | H24: =SUM(H18:H23) -> 0
B25: BBBBBBBD | C25: 0 | D25: 0
A26: 0 | B26: BBBBBBBD | C26: m³ | D26: 10340 | E26: 32702.42743 | F26: =E26*$D26 -> 338143099.6 | G26: 0 | H26: =G26*$D26 -> 0
A27: 0 | B27: BBBBBBBD | C27: m³ | D27: 36070 | E27: 24226.41613 | F27: 873846829.7 | G27: 0 | H27: 0
A28: 0 | B28: BBBBBBBD | C28: m² | D28: 1200 | E28: 98187.6779 | F28: 117825213.5 | G28: 0 | H28: 0
A29: 0 | B29: BBBBBBBD | C29: m² | D29: 730 | F29: 0 | G29: 0 | H29: 0
A30: 0 | B30: BBBBBBBD | C30: 0 | D30: 0
A31: 0 | B31: BBBBBBBD | C31: m³ | D31: 3580 | E31: 98187.6779 | F31: 351511886.9 | G31: 0 | H31: 0
A32: 0 | B32: BBBBBBBD | C32: m³ | D32: 0 | E32: 0 | F32: 0 | G32: 0 | H32: 0
A33: 0 | B33: BBBBBBBD | C33: m² | D33: 15700 | E33: 0 | F33: =E33*$D33 -> 0 | G33: 77196.2443 | H33: =G33*$D33 -> 1211981036
A34: 0 | B34: BBBBBBBD | C34: m² | D34: =+D80*0.08+0.4*D81 -> 9316 | E34: 0 | F34: 0 | G34: 21456.52 | H34: =G34*$D34 -> 199888940.3
A35: 0 | B35: BBBBBBBD | C35: m² | D35: 28820 | F35: 0 | G35: 5452.789699 | H35: 157149399.1
A36: 0 | B36: BBBBBBBD | C36: m² | D36: 3500 | E36: 10589.69236 | F36: 37063923.26 | G36: 0 | H36: 0
B37: BBBBBBBD | E37: 0 | F37: =SUM(F26:F35) -> 1681327030 | G37: 0 | H37: =SUM(H26:H35) -> 1569019375
B38: BBBBBBBD | C38: 0 | D38: 0 | E38: 0 | G38: 0
A39: 0 | B39: BBBBBBBD | C39: m³ | D39: 27430 | E39: 323 | F39: =E39*$D39 -> 8859890 | G39: 0 | H39: =G39*$D39 -> 0
A40: 0 | B40: BBBBBBBD | C40: ml | D40: 303070 | E40: 84 | F40: 25457880 | G40: 0 | H40: 0
A41: 0 | B41: BBBBBBBD | C41: ml | D41: 58400 | E41: 200 | F41: 11680000 | G41: 0 | H41: 0
A42: 0 | B42: BBBBBBBD
A43: 0 | B43: BBBBBBBD | C43: ml | D43: 6890 | E43: 80.5 | F43: 554645 | G43: 0 | H43: =G43*$D43 -> 0
A44: 0 | B44: BBBBBBBD | C44: ml | D44: 13810 | E44: 0 | F44: 0 | G44: 0 | H44: 0
A45: 0 | B45: BBBBBBBD | C45: ml | D45: 14800 | E45: 9578.144593 | F45: =E45*$D45 -> 141756540 | G45: 11377.47046 | H45: =G45*$D45 -> 168386562.7
A46: 0 | B46: BBBBBBBD | C46: ml | D46: 13590 | E46: 0 | F46: =E46*$D46 -> 0 | G46: 0 | H46: =G46*$D46 -> 0
A47: 0 | B47: BBBBBBBD
A48: 0 | B48: BBBBBBBD | C48: ml | F48: 0 | G48: 0 | H48: =G48*$D48 -> 0
A49: 0 | B49: BBBBBBBD | C49: ml | D49: 0 | E49: 0 | F49: 0 | G49: 0 | H49: 0
A50: 0 | B50: BBBBBBBD | C50: ml | D50: 0 | E50: 0 | F50: 0 | G50: 0 | H50: 0
A51: 0 | B51: BBBBBBBD | C51: ml | D51: 0 | E51: 0 | F51: 0 | G51: 0 | H51: 0
A52: 0 | B52: BBBBBBBD | C52: ml | D52: 41230 | F52: =E52*$D52 -> 0 | G52: 9515.404659 | H52: =G52*$D52 -> 392320134.1
A53: 0 | B53: BBBBBBBD | C53: ml | D53: 6770 | E53: =10182.18+G52 -> 19697.58466 | F53: =E53*D53 -> 133352648.1 | G53: 0 | H53: =G53*$D54 -> 0
A54: 0 | B54: BBBBBBBD | C54: ml | D54: 23900 | E54: 827.7173923 | F54: =E54*D54 -> 19782445.68 | G54: 0
A55: 0 | B55: BBBBBBBD | D55: 0
A56: 0 | B56: BBBBBBBD | C56: ml | D56: 0 | E56: 0 | F56: 0 | G56: 0 | H56: =G56*$D56 -> 0
A57: 0 | B57: BBBBBBBD | C57: ml | D57: 0 | E57: 0 | F57: 0 | G57: 0 | H57: 0
A58: 0 | B58: BBBBBBBD | C58: ml | D58: 0 | E58: 0 | F58: 0 | G58: 0 | H58: 0
A59: 0 | B59: BBBBBBBD | C59: ml | E59: 0 | F59: 0 | G59: 0 | H59: 0
A60: 0 | B60: BBBBBBBD | D60: 0
A61: 0 | B61: BBBBBBBD | C61: ml | D61: 0 | E61: 0 | F61: 0 | G61: 0 | H61: =G61*$D61 -> 0
A62: 0 | B62: BBBBBBBD | C62: ml | E62: 0 | F62: =E62*$D63 -> 0 | G62: 0 | H62: =G62*$D63 -> 0
A63: 0 | B63: BBBBBBBD | C63: ml | D63: 609070 | E63: 234.89 | F63: =E63*D63 -> 143064452.3 | G63: 0 | H63: 0
A64: 0 | B64: BBBBBBBD | C64: ml | D64: 0 | E64: 0 | F64: 0 | G64: 0 | H64: 0
A65: 0 | B65: BBBBBBBD | C65: ml | D65: 898400 | E65: 51.3 | F65: 46087920 | G65: 0 | H65: 0
A66: 0 | B66: BBBBBBBD | C66: ml | D66: 0 | E66: 0 | F66: 0 | G66: 0 | H66: 0
A67: 0 | B67: BBBBBBBD | C67: ml | D67: 0 | E67: 0 | F67: 0 | G67: 0 | H67: 0
A68: 0 | B68: BBBBBBBD | C68: ml | D68: 5662850 | E68: 16 | F68: 90605600 | G68: 0 | H68: 0
A69: 0 | B69: BBBBBBBD | C69: ml | D69: 9638130 | E69: 16.8 | F69: 161920584 | G69: 0 | H69: 0
A70: 0 | B70: BBBBBBBD | F70: 0
A71: 0 | B71: BBBBBBBD | C71: u | D71: 0 | E71: 0 | F71: 0 | G71: 0 | H71: =G71*$D72 -> 0
A72: 0 | B72: BBBBBBBD | C72: u | D72: 0 | E72: 0 | F72: 0 | G72: 0 | H72: 0
A73: 0 | B73: BBBBBBBD | C73: u | D73: 935650 | E73: 28 | F73: 26198200 | G73: 0 | H73: 0
A74: 0 | B74: BBBBBBBD | C74: u | D74: 0 | E74: 0 | F74: 0 | G74: 0 | H74: 0
A75: 0 | B75: BBBBBBBD | C75: u | D75: 1915040 | E75: 6 | F75: 11490240 | G75: 0 | H75: 0
A76: 0 | B76: BBBBBBBD | C76: u | D76: 0 | E76: 0 | F76: 0 | G76: 0 | H76: 0
A77: 0 | B77: BBBBBBBD | C77: u | D77: 0 | E77: 0 | F77: 0 | G77: 0 | H77: 0
A78: 0 | B78: BBBBBBBD | C78: u | D78: 9056910 | E78: 2 | F78: 18113820 | G78: 0 | H78: 0
A79: 0 | B79: BBBBBBBD | C79: u | D79: 22519620 | E79: 2 | F79: 45039240 | G79: 0 | H79: 0
A80: 0 | B80: BBBBBBBD | C80: m3 | D80: 110400 | E80: 3 | F80: 331200 | G80: 0 | H80: 0
A81: 0 | B81: BBBBBBBD | C81: Kg | D81: 1210 | E81: 220.5 | F81: 266805 | G81: 0 | H81: 0
A82: 0 | B82: BBBBBBBD | C82: m3 | D82: 16920 | E82: 160.1 | F82: 2708892 | G82: 0
B83: BBBBBBBD | E83: 0 | F83: =SUM(F39:F82) -> 887271002.1 | G83: 0 | H83: =SUM(H39:H82) -> 560706696.8
B84: BBBBBBBD | D84: 0 | E84: 0 | G84: 0
A85: 0 | B85: BBBBBBBD | C85: m² | E85: 0 | G85: 0
B86: BBBBBBBD | E86: 0 | F86: =SUM(F84:F85) -> 0 | G86: 0 | H86: =SUM(H84:H85) -> 0
B87: BBBBBBBD | E87: 0
A88: 0 | B88: BBBBBBBD | E88: 0
A89: 601 | B89: BBBBBBBD | C89: ml | D89: 2900 | E89: 0 | F89: =E89*$D90 -> 0 | G89: 10195.32 | H89: =+D89*G89 -> 29566428
A90: 602 | B90: BBBBBBBD | C90: ml | D90: 0 | E90: 0 | G90: 0 | H90: =+D90*G90 -> 0
A91: 603 | B91: BBBBBBBD | C91: ml | D91: 2400 | E91: 0 | F91: =E91*$D91 -> 0 | G91: 19760.1 | H91: 47424240
A92: 604 | B92: BBBBBBBD | C92: ml | D92: 2470 | E92: 0 | F92: 0 | G92: 487.28 | H92: 1203581.6
A93: 605 | B93: BBBBBBBD | C93: ml | D93: 8990 | E93: 0 | F93: 0 | G93: 200.52 | H93: 1802674.8
A94: 606 | B94: BBBBBBBD | C94: m² | D94: 19310 | E94: 0 | F94: =E94*$D94 -> 0 | G94: 385 | H94: 7434350
A95: 607 | B95: BBBBBBBD | C95: ml | D95: 8990 | E95: 0 | F95: 0 | G95: 20.23 | H95: 181867.7
A96: 608 | B96: BBBBBBBD | C96: U | D96: 165600 | E96: 0 | F96: 0 | G96: 61 | H96: 10101600
A97: 609 | B97: BBBBBBBD | C97: U | D97: 1066800 | E97: 0 | F97: =E97*$D97 -> 0 | G97: 1 | H97: 1066800
A98: 610 | B98: BBBBBBBD | C98: U | D98: 1066800 | E98: 0 | F98: =E98*$D98 -> 0 | G98: 22 | H98: 23469600
A99: 611 | B99: BBBBBBBD | C99: U | D99: 165600 | E99: 0 | F99: 0 | G99: 19 | H99: 3146400
A100: 612 | B100: BBBBBBBD | C100: U | D100: 1500000 | E100: 0 | F100: 0 | G100: 94 | H100: 141000000
A101: 613 | B101: BBBBBBBD | C101: U | D101: 1066800 | E101: 0 | F101: 0 | G101: 4 | H101: 4267200
A102: 614 | B102: BBBBBBBD | C102: U | D102: 0 | E102: 0 | F102: 0 | G102: 3 | H102: 0
B103: BBBBBBBD | E103: 0 | F103: =SUM(F89:F102) -> 0 | G103: 0 | H103: =SUM(H89:H102) -> 270664742.1
B104: BBBBBBBD | E104: 0 | F104: 0 | G104: 0 | H104: =G104*$D104 -> 0
A105: 0 | B105: BBBBBBBD | C105: U | D105: 296910 | E105: 0 | F105: =E105*$D105 -> 0 | G105: 511 | H105: =G105*$D105 -> 151721010
A106: 0 | B106: BBBBBBBD | C106: u | D106: 0 | E106: 0 | F106: 0 | G106: 0 | H106: =G106*$D106 -> 0
A107: 0 | B107: BBBBBBBD | C107: u | D107: 1000000 | E107: 0 | F107: 0 | G107: 511 | H107: 511000000
B108: BBBBBBBD | E108: 0 | F108: =SUM(F104:F107) -> 0 | G108: 0 | H108: =SUM(H104:H107) -> 662721010
B109: BBBBBBBD | E109: 0 | G109: 0
A110: 0 | B110: BBBBBBBD | C110: FF | D110: 0 | F110: =G110*$D110 -> 0 | G110: 1 | H110: =G110*$D110 -> 0
A111: 0 | B111: BBBBBBBD
A112: 0 | B112: BBBBBBBD | C112: ml | D112: 41900 | G112: 330 | H112: =G112*$D112 -> 13827000
A113: 0 | B113: BBBBBBBD | C113: ml | D113: 85900 | G113: 660 | H113: =G113*$D113 -> 56694000
A114: 0 | B114: BBBBBBBD | C114: ml | D114: 201200 | G114: 330 | H114: 66396000
B115: BBBBBBBD | F115: =SUM(F110:F114) -> 0 | H115: =SUM(H110:H114) -> 136917000
B116: BBBBBBBD
B117: BBBBBBBD | F117: =F10 -> 516701933.3 | H117: =H10 -> 0
B118: BBBBBBBD | F118: =F16 -> 22736507 | H118: =H16 -> 0
B119: BBBBBBBD | F119: =F24 -> 1390926194 | H119: =H24 -> 0
B120: BBBBBBBD | F120: =F37 -> 1681327030 | H120: =H37 -> 1569019375
B121: BBBBBBBD | F121: =F83 -> 887271002.1 | H121: =H83 -> 560706696.8
B122: BBBBBBBD | F122: =F86 -> 0 | H122: =H86 -> 0
B123: BBBBBBBD | F123: =F103 -> 0 | H123: =H103 -> 270664742.1
B124: BBBBBBBD | F124: =F108 -> 0 | H124: =H108 -> 662721010
B125: BBBBBBBD | F125: =F115 -> 0 | H125: =H115 -> 136917000
B126: TOTAL | F126: =SUM(F117:F125) -> 4498962666 | G126: =SUBTOTAL(109,G117:G125) -> 0 | H126: =SUBTOTAL(109,H117:H125) -> 3200028824

Sheet RESSOURCES
A1: dfgsn!,kmdzef,!kn n,e vd
A2: 8
A3: Code | B3: Libellé | C3: U | D3: PU | E3: gfn sz | F3: bgst vqa
A4: A.101 | B4: prprtttttttttttttttttttttttkuù | C4: Ms | D4: 33 | E4: 0 | F4: 0
A5: A.102 | B5: prprtttttttttttttttttttttttkuù | C5: Ms | D5: 33 | E5: 0 | F5: 0
A6: A.103 | B6: prprtttttttttttttttttttttttkuù | C6: Ms | D6: 33 | E6: 0 | F6: 0
A7: A.104 | B7: prprtttttttttttttttttttttttkuù | C7: Ms | D7: 0 | E7: 0 | F7: 0
A8: A.105 | B8: prprtttttttttttttttttttttttkuù | C8: Ms | D8: 0 | E8: 0 | F8: 0
A9: A.106 | B9: prprtttttttttttttttttttttttkuù | C9: Ms | D9: 0 | E9: 0 | F9: 0
A10: A.107 | B10: prprtttttttttttttttttttttttkuù | C10: Ms | D10: 33 | E10: 0 | F10: 0
A11: A.108 | B11: prprtttttttttttttttttttttttkuù | C11: Ms | D11: 33 | E11: 0 | F11: 0
A12: A.109 | B12: prprtttttttttttttttttttttttkuù | C12: Ms | D12: 33 | E12: 0 | F12: 0
A13: A.100 | B13: prprtttttttttttttttttttttttkuù | C13: Ms | D13: 33 | E13: 0 | F13: 0
A14: A.101 | B14: prprtttttttttttttttttttttttkuù | C14: Ms | D14: 33 | E14: 0 | F14: 0
A15: A.102 | B15: prprtttttttttttttttttttttttkuù | C15: Ms | D15: 33 | E15: 0 | F15: 0
A16: A.103 | B16: prprtttttttttttttttttttttttkuù | C16: Ms | D16: 33 | E16: 0 | F16: 0
A17: A.104 | B17: prprtttttttttttttttttttttttkuù | C17: Ms | D17: 33 | E17: 0 | F17: 0
A18: A.105 | B18: prprtttttttttttttttttttttttkuù | C18: Ms | D18: 33 | E18: 0 | F18: 0
A19: A.106 | B19: prprtttttttttttttttttttttttkuù | C19: Ms | D19: 33 | E19: 0 | F19: 0
A20: A.107 | B20: prprtttttttttttttttttttttttkuù | C20: Ms | D20: 33 | E20: 0 | F20: 0
A21: A.108 | B21: prprtttttttttttttttttttttttkuù | C21: Ms | D21: 33 | E21: 0 | F21: 0
A22: A.109 | B22: prprtttttttttttttttttttttttkuù | C22: Ms | D22: 33 | E22: 0 | F22: 0
A23: A.110 | B23: prprtttttttttttttttttttttttkuù | C23: Ms | D23: 33 | E23: 0 | F23: 0
A24: A.111 | B24: prprtttttttttttttttttttttttkuù | C24: Ms | D24: 0 | E24: 0 | F24: 0
A25: A.112 | B25: prprtttttttttttttttttttttttkuù | C25: Ms | D25: 0 | E25: 0 | F25: 0
A26: A.113 | B26: prprtttttttttttttttttttttttkuù | C26: Ms | D26: 0 | E26: 0 | F26: 0
A27: A.114 | B27: prprtttttttttttttttttttttttkuù | C27: H | D27: 33 | E27: 0 | F27: 0
A28: A.115 | B28: prprtttttttttttttttttttttttkuù | C28: H | D28: 33 | E28: 0 | F28: 0
A29: A.116 | B29: prprtttttttttttttttttttttttkuù | C29: H | D29: 33 | E29: 0 | F29: 0
A30: A.117 | B30: prprtttttttttttttttttttttttkuù | C30: H | D30: 33 | E30: 0 | F30: 0
A31: A.118 | B31: prprtttttttttttttttttttttttkuù | C31: H | D31: 33 | E31: 0 | F31: 0
A32: A.119 | B32: prprtttttttttttttttttttttttkuù | C32: H | D32: 33 | E32: 0 | F32: 0
A33: A.120 | B33: prprtttttttttttttttttttttttkuù | C33: Ms | D33: 33 | E33: 0 | F33: 0
A34: A.121 | B34: prprtttttttttttttttttttttttkuù | C34: H | D34: 33 | E34: 0 | F34: 0
A35: A.122 | B35: prprtttttttttttttttttttttttkuù | C35: Ms | D35: 33 | E35: 0 | F35: 0
A36: A.123 | B36: prprtttttttttttttttttttttttkuù | C36: Ft | D36: 0 | E36: 0 | F36: 0
A37: A.124
A38: A.125 | B38: ssssssssssss | C38: ml | D38: 777 | E38: 0 | F38: 0
A39: A.126 | B39: ssssssssssss | C39: ml | D39: 444 | E39: 0 | F39: 0
A40: A.127 | B40: ssssssssssss | C40: ml | D40: 3333 | E40: 0 | F40: 0
A41: A.128 | B41: ssssssssssss | C41: U | D41: 0 | E41: 0 | F41: 0
A42: A.129 | B42: ssssssssssss | C42: U | D42: 0 | E42: 0 | F42: 0
A43: A.130 | B43: ssssssssssss | C43: U | D43: 0 | E43: 0 | F43: 0
A44: A.131 | B44: ssssssssssss | C44: U | D44: 0 | E44: 0 | F44: 0
A45: A.132 | B45: ssssssssssss | C45: U | D45: 0 | E45: 0 | F45: 0
A46: A.133 | B46: ssssssssssss | C46: ml | D46: 1111 | E46: 0 | F46: 0
A47: A.134 | B47: ssssssssssss | C47: ml | D47: 0 | E47: 0 | F47: 0
A48: A.135 | B48: ssssssssssss | C48: ml | D48: 0 | E48: 0 | F48: 0
A49: A.136 | B49: ssssssssssss | C49: ml | D49: 0 | E49: 0 | F49: 0
A50: A.137 | B50: ssssssssssss | C50: ml | D50: 0 | E50: 0 | F50: 0
A51: A.138 | B51: ssssssssssss | C51: ml | D51: 0 | E51: 0 | F51: 0
A52: A.139 | B52: ssssssssssss | C52: ml | D52: 0 | E52: 0 | F52: 0
A53: A.140 | B53: ssssssssssss | C53: ml | D53: 0 | E53: 0 | F53: 0
A54: A.141 | B54: ssssssssssss | C54: ml | D54: 4444 | E54: 0 | F54: 0
A55: A.142 | B55: ssssssssssss | C55: U | D55: 0 | E55: 0 | F55: 0
A56: A.143 | B56: ssssssssssss | C56: U | D56: 0 | E56: 0 | F56: 0
A57: A.144 | B57: ssssssssssss | C57: ml | D57: 33 | E57: 0 | F57: 0
A58: A.145 | B58: ssssssssssss | C58: ml | D58: 111 | E58: 0 | F58: 0
A59: A.146 | B59: ssssssssssss | C59: ml | D59: 111 | E59: 0 | F59: 0
A60: A.147 | B60: ssssssssssss | C60: ml | D60: 111 | E60: 0 | F60: 0
A61: A.148 | B61: ssssssssssss | C61: ml | D61: 111 | E61: 0 | F61: 0
A62: A.149 | B62: ssssssssssss | C62: ml | D62: 111 | E62: 0 | F62: 0
A63: A.150 | B63: ssssssssssss | C63: ml | D63: 111 | E63: 0 | F63: 0
A64: A.151 | B64: ssssssssssss | C64: ml | D64: 111 | E64: 0 | F64: 0
A65: A.152 | B65: ssssssssssss | C65: ml | D65: 111 | E65: 0 | F65: 0
A66: A.153 | B66: ssssssssssss | C66: Kg | D66: 111 | E66: 0 | F66: 0
A67: A.154 | B67: ssssssssssss | C67: T | D67: 111 | E67: 0 | F67: 0
A68: A.155 | B68: ssssssssssss | C68: M² | D68: 111 | E68: 0 | F68: 0
A69: A.156 | B69: ssssssssssss | C69: ml | D69: 0 | E69: 0 | F69: 0
A70: A.157 | B70: ssssssssssss | C70: ml | D70: 0 | E70: 0 | F70: 0
A71: A.158 | B71: ssssssssssss | C71: M² | D71: 0 | E71: 0 | F71: 0
A72: A.159 | B72: ssssssssssss | C72: M3 | D72: 33 | E72: 0 | F72: 0
A73: A.160 | B73: ssssssssssss | C73: M3 | D73: 33 | E73: 0 | F73: 0
A74: A.161 | B74: ssssssssssss | C74: ml | D74: 33 | E74: 0 | F74: 0
A75: A.162 | B75: ssssssssssss | C75: Ft | D75: 0 | E75: 0 | F75: 0
A76: A.163 | B76: ssssssssssss | C76: Ft | D76: 0 | E76: 0 | F76: 0
A77: A.164 | B77: ssssssssssss | C77: Ft | D77: 0 | E77: 0 | F77: 0
A78: A.165 | B78: ssssssssssss | C78: Ft | D78: 0 | E78: 0 | F78: 0
A79: A.166 | B79: ssssssssssss | C79: Ft | D79: 0 | E79: 0 | F79: 0
A80: A.167 | B80: ssssssssssss | C80: Ft | D80: 0 | E80: 0 | F80: 0
A81: A.168 | B81: ssssssssssss | C81: Ft | D81: 33 | E81: 0 | F81: 0
A82: A.169 | B82: ssssssssssss | C82: U | D82: 0 | E82: 0 | F82: 0
A83: A.170 | B83: ssssssssssss | C83: Ft | D83: 0 | E83: 0 | F83: 0
A84: A.171 | B84: ssssssssssss | C84: Ft | D84: 0 | E84: 0 | F84: 0
A85: A.172 | B85: ssssssssssss | C85: M² | D85: 33 | E85: 0 | F85: 0
A86: A.173 | B86: ssssssssssss | C86: M² | D86: 33 | E86: 0 | F86: 0
A87: A.174 | B87: ssssssssssss | C87: M² | D87: 33 | E87: 0 | F87: 0
A88: A.175 | B88: ssssssssssss | C88: M² | D88: 33 | E88: 0 | F88: 0
A89: A.176 | B89: ssssssssssss | C89: M² | D89: 33 | E89: 0 | F89: 0
A90: A.177 | B90: ssssssssssss | C90: Ft | E90: 0 | F90: 0
A91: A.178 | B91: ssssssssssss | C91: Ft | D91: 0 | E91: 0 | F91: 0
A92: A.179 | B92: ssssssssssss | C92: X | D92: 0 | E92: 0 | F92: 0
A93: A.180 | B93: ssssssssssss | C93: X | D93: 0 | E93: 0 | F93: 0
A94: A.181 | B94: ssssssssssss | C94: Ft | D94: 0 | E94: 0 | F94: 0
A95: A.182 | B95: ssssssssssss | C95: Ft | D95: 0 | E95: 0 | F95: 0
A96: A.183 | B96: ssssssssssss | C96: Ft | D96: 0 | E96: 0 | F96: 0
A97: A.184 | B97: ssssssssssss | C97: Ft | D97: 0 | E97: 0 | F97: 0
A98: A.185 | B98: ssssssssssss | C98: Ft | D98: 0 | E98: 0 | F98: 0
A99: A.186 | B99: ssssssssssss | C99: X | D99: 0 | E99: 0 | F99: 0
A100: A.187 | B100: ssssssssssss | C100: U | D100: 0 | E100: 0 | F100: 0
A101: A.188 | B101: ssssssssssss | C101: Ms | D101: 0 | E101: 0 | F101: 0
A102: A.189 | B102: ssssssssssss | C102: Ft | D102: 0 | E102: 0 | F102: 0
A103: A.190 | B103: ssssssssssss | C103: Ft | D103: 0 | E103: 0 | F103: 0
A104: A.191 | B104: ssssssssssss | C104: Ft | D104: 0 | E104: 0 | F104: 0
A105: A.192 | B105: ssssssssssss | C105: Ft | D105: 0 | E105: 0 | F105: 0
A106: A.193 | B106: ssssssssssss | C106: Ft | D106: 33 | E106: 0 | F106: 0
A107: A.194 | B107: ssssssssssss | C107: Ft | D107: 33 | E107: 0 | F107: 0
A108: A.195 | B108: ssssssssssss | C108: Ft | D108: 0 | E108: 0 | F108: 0
A109: A.196 | B109: ssssssssssss | C109: Ft | D109: 0 | E109: 0 | F109: 0
A110: A.197
A111: A.198 | B111: aaaaaaaaaaaaaa | C111: J | D111: 7777 | E111: 0 | F111: 0
A112: A.199 | B112: aaaaaaaaaaaaaa | C112: J | D112: 2222 | E112: 0 | F112: 0
A113: A.200 | B113: aaaaaaaaaaaaaa | C113: J | D113: 2222 | E113: 0 | F113: 0
A114: A.201 | B114: aaaaaaaaaaaaaa | C114: J | D114: 2222 | E114: 0 | F114: 0
A115: A.202 | B115: aaaaaaaaaaaaaa | C115: J | D115: 2222 | E115: 0 | F115: 0
A116: A.203 | B116: aaaaaaaaaaaaaa | C116: J | D116: 2222 | E116: 0 | F116: 0
A117: A.204 | B117: aaaaaaaaaaaaaa | C117: J | D117: 2222 | E117: 0 | F117: 0
A118: A.205 | B118: aaaaaaaaaaaaaa | C118: J | D118: 2222 | E118: 0 | F118: 0
A119: A.206 | B119: aaaaaaaaaaaaaa | C119: J | D119: 2222 | E119: 0 | F119: 0 | Q119: tete de dalot
A120: A.207 | B120: aaaaaaaaaaaaaa | C120: J | D120: 2222 | E120: 0 | F120: 0 | Q120: 1.3
A121: A.208 | B121: aaaaaaaaaaaaaa | C121: J | D121: 2222 | E121: 0 | F121: 0 | Q121: 3.5
A122: A.209 | B122: aaaaaaaaaaaaaa | C122: J | D122: 2222 | E122: 0 | F122: 0 | O122: =7*0.1 -> 0.7 | Q122: 15 | R122: =+N122*1.5 -> 0
A123: A.210 | B123: aaaaaaaaaaaaaa | C123: J | D123: 2222 | E123: 0 | F123: 0 | Q123: 50
A124: A.211 | B124: aaaaaaaaaaaaaa | C124: J | D124: 2222 | E124: 0 | F124: 0
A125: A.212 | B125: aaaaaaaaaaaaaa | D125: 2222
A126: A.213 | B126: aaaaaaaaaaaaaa | C126: X | D126: 0 | E126: 0 | F126: 0
A127: A.214 | B127: aaaaaaaaaaaaaa | C127: X | D127: 0 | E127: 0 | F127: 0
A128: A.215 | B128: aaaaaaaaaaaaaa | C128: X | D128: 0 | E128: 0 | F128: 0
A129: A.216 | B129: aaaaaaaaaaaaaa | C129: X | D129: 0 | E129: 0 | F129: 0
A130: A.217 | B130: aaaaaaaaaaaaaa | C130: X | D130: 0 | E130: 0 | F130: 0
A131: A.218 | B131: aaaaaaaaaaaaaa | C131: X | D131: 0 | E131: 0 | F131: 0
A132: A.219 | B132: aaaaaaaaaaaaaa | C132: Ft | D132: 0 | E132: 0 | F132: 0
A133: A.220 | B133: aaaaaaaaaaaaaa | C133: L | D133: 33 | E133: 0 | F133: 0
A134: A.221 | B134: aaaaaaaaaaaaaa | C134: M3 | D134: 33 | E134: 0 | F134: 0
A135: A.222 | B135: aaaaaaaaaaaaaa | C135: M3 | D135: 33 | E135: 0 | F135: 0
A136: A.223 | B136: aaaaaaaaaaaaaa | C136: T | D136: 33 | E136: 0 | F136: 0
A137: A.224 | B137: aaaaaaaaaaaaaa | C137: T | D137: 33 | E137: 0 | F137: 0
A138: A.225 | B138: aaaaaaaaaaaaaa | C138: T | D138: 33 | E138: 0 | F138: 0
A139: A.226 | B139: aaaaaaaaaaaaaa | C139: T | D139: 33 | E139: 0 | F139: 0
A140: A.227 | B140: aaaaaaaaaaaaaa | C140: T | D140: 33 | E140: 0 | F140: 0
A141: A.228 | B141: aaaaaaaaaaaaaa | C141: Kg | D141: 33 | E141: 0 | F141: 0
A142: A.229 | B142: aaaaaaaaaaaaaa | C142: Rouleau | D142: 33 | E142: 0 | F142: 0
A143: A.230 | B143: aaaaaaaaaaaaaa | C143: M² | D143: 33 | E143: 0 | F143: 0
A144: A.231 | B144: aaaaaaaaaaaaaa | C144: M² | D144: 33 | E144: 0 | F144: 0
A145: A.232 | B145: aaaaaaaaaaaaaa | C145: M² | D145: 33 | E145: 0 | F145: 0
A146: A.233 | B146: aaaaaaaaaaaaaa | C146: U | D146: 0 | E146: 0 | F146: 0
A147: A.234 | B147: aaaaaaaaaaaaaa | C147: U | D147: 0 | E147: 0 | F147: 0
A148: A.235 | B148: aaaaaaaaaaaaaa | C148: T | D148: 33 | E148: 0 | F148: 0 | O148: 1.8
A149: A.236 | B149: aaaaaaaaaaaaaa | C149: T | D149: 33 | E149: 0 | F149: 0
A150: A.237 | B150: aaaaaaaaaaaaaa | C150: T | D150: 33 | E150: 0 | F150: 0
A151: A.238 | B151: aaaaaaaaaaaaaa | D151: 33
A152: A.239 | B152: aaaaaaaaaaaaaa | C152: kg | D152: 33
A153: A.240 | B153: aaaaaaaaaaaaaa | C153: T | D153: 33
A154: A.241 | B154: aaaaaaaaaaaaaa | C154: FF | D154: 33
A155: A.242 | B155: aaaaaaaaaaaaaa | D155: 33
A156: A.243 | B156: aaaaaaaaaaaaaa | C156: FF | D156: 33
A157: A.244 | B157: aaaaaaaaaaaaaa | C157: cfa/T | D157: 33
A158: A.245 | B158: aaaaaaaaaaaaaa | C158: Ft | D158: 0 | E158: 0 | F158: 0
A159: A.246 | B159: aaaaaaaaaaaaaa | C159: t | D159: 33
A160: A.247 | B160: TTTGttttttttttttttttts | C160: M² | D160: 33 | E160: 0 | F160: 0
A161: A.248 | B161: TTTGttttttttttttttttts | C161: M² | D161: 33 | E161: 0 | F161: 0
A162: A.249 | B162: TTTGttttttttttttttttts | C162: U | D162: 0 | E162: 0 | F162: 0
A163: A.250 | B163: TTTGttttttttttttttttts | C163: X | D163: 0 | E163: 0 | F163: 0
A164: A.251 | B164: TTTGttttttttttttttttts | C164: Ms | D164: 1 | E164: 0 | F164: 0
A165: A.252 | B165: TTTGttttttttttttttttts | C165: X | D165: 0 | E165: 0 | F165: 0
A166: A.253 | B166: TTTGttttttttttttttttts | C166: U | D166: 33 | E166: 0 | F166: 0
A167: A.254 | B167: TTTGttttttttttttttttts | C167: U | D167: 33 | E167: 0 | F167: 0
A168: A.255 | B168: TTTGttttttttttttttttts | C168: U | D168: 33 | E168: 0 | F168: 0
A169: A.256 | B169: TTTGttttttttttttttttts | C169: X | D169: 0 | E169: 0 | F169: 0
A170: A.257 | B170: TTTGttttttttttttttttts | C170: X | D170: 0 | E170: 0 | F170: 0
A171: A.258 | B171: TTTGttttttttttttttttts | C171: X | D171: 0 | E171: 0 | F171: 0
A172: A.259 | B172: TTTGttttttttttttttttts | C172: U | D172: 23 | E172: 0 | F172: 0
A173: A.260 | B173: TTTGttttttttttttttttts | C173: X | D173: 0 | E173: 0 | F173: 0
A174: A.261 | B174: TTTGttttttttttttttttts | C174: X | D174: 0 | E174: 0 | F174: 0
A175: A.262 | B175: TTTGttttttttttttttttts | C175: M3 | D175: 88 | E175: 0 | F175: 0
A176: A.263 | B176: TTTGttttttttttttttttts | C176: M3 | D176: 88 | E176: 0 | F176: 0
A177: A.264 | B177: TTTGttttttttttttttttts | C177: M3 | D177: 88 | E177: 0 | F177: 0
A178: A.265 | B178: TTTGttttttttttttttttts | C178: U | D178: 0 | E178: 0 | F178: 0
A179: A.266 | B179: TTTGttttttttttttttttts | C179: U | D179: 0 | E179: 0 | F179: 0
A180: A.267 | B180: TTTGttttttttttttttttts | C180: U | D180: 0 | E180: 0 | F180: 0
A181: A.268 | B181: TTTGttttttttttttttttts | C181: U | D181: 0 | E181: 0 | F181: 0
A182: A.269
A183: A.270 | B183: roooooooooooooooooo | C183: LJ | D183: 88 | E183: 15 | F183: 0
A184: A.271 | B184: roooooooooooooooooo | C184: LJ | D184: 88 | E184: 15 | F184: 0
A185: A.272 | B185: roooooooooooooooooo | C185: LJ | D185: 88 | E185: 15 | F185: 0
A186: A.273 | B186: roooooooooooooooooo | C186: LJ | D186: 88 | E186: 15 | F186: 0
A187: A.274 | B187: roooooooooooooooooo | C187: LJ | D187: 88 | E187: 15 | F187: 0
A188: A.275 | B188: roooooooooooooooooo | C188: LJ | D188: 88 | E188: 15 | F188: 0
A189: A.276 | B189: roooooooooooooooooo | C189: LJ | D189: 88 | E189: 15 | F189: 0
A190: A.277 | B190: roooooooooooooooooo | C190: LJ | D190: 88 | E190: 15 | F190: 0
A191: A.278 | B191: roooooooooooooooooo | C191: LJ | D191: 88 | E191: 15 | F191: 0
A192: A.279 | B192: roooooooooooooooooo | C192: LJ | D192: 88 | E192: 15 | F192: 0
A193: A.280 | B193: roooooooooooooooooo | C193: LJ | D193: 88 | E193: 15 | F193: 0
A194: A.281 | B194: roooooooooooooooooo | C194: LJ | D194: 88 | E194: 15 | F194: 0
A195: A.282 | B195: roooooooooooooooooo | C195: LJ | D195: 88 | E195: 15 | F195: 0
A196: A.283 | B196: roooooooooooooooooo | C196: LJ | D196: 88 | E196: 15 | F196: 0
A197: A.284 | B197: roooooooooooooooooo | C197: LJ | D197: 88 | E197: 15 | F197: 0
A198: A.285 | B198: roooooooooooooooooo | C198: LJ | D198: 88 | E198: 15 | F198: 0
A199: A.286 | B199: roooooooooooooooooo | C199: LH | D199: 88 | E199: 54 | F199: =110%*(Tableau35[[#This Row],[Colonne4]]) -> 96.8
A200: A.287 | B200: roooooooooooooooooo | C200: LH | D200: 88 | E200: 54 | F200: =110%*(Tableau35[[#This Row],[Colonne4]]) -> 96.8
... 161 more rows

Sheet 101
F1: SOUS DETAIL DE PRIX BUDGET
C4: 101 | P4: =SUM(N17:N26) -> 444.8447021 | Q4: =IFERROR(SUM(Q17:Q26)/VLOOKUP(A17,MAT_VAL,6,0),"") -> 444.8447021 | R4: =SUM(R17:R26)/RESSOURCES!$D$133 -> 10097.97474
B5: DESIGNATION DU PRIX : | C5: DECAPAGE | E5: Unités : | L5: Unités : | P5: =SUM(P17:P26) -> 39146.33378 | Q5: =SUM(Q17:Q26) -> 43060.96716 | R5: =SUM(R17:R26) -> 333233.1663
B6: QUANTITES PREVUES : | D6: =+'OPTION 2 (fosse terre)'!E12 -> 49427.18912 | H6: Quantités de rendement : | K6: 1000 | L6: 444.8447021 | M6: K | N6: =IFERROR(D6/K6,"") -> 49.42718912 | O6: Mo | P6: Mat_BSI | Q6: Entretien | R6: Carb
E7: Travaux Propres | J7: ST | L7: 39146.33378 | M7: Coût
A8: Code | B8: Désignation | C8: Unité | D8: Qté ou durée d'utilisation | E8: Main d'œuvre | F8: Amortissement | G8: Entretien | H8: Carb-Energie | I8: Fournitures | J8: Sous-traitant | K8: TOTAL Travaux propres | L8: TOTAL Travaux ST | U8: =B10 -> prprtttttttttttttttttttttttkuù | V8: =B11 -> prprtttttttttttttttttttttttkuù | W8: =B12 -> prprtttttttttttttttttttttttkuù | X8: =B13 -> prprtttttttttttttttttttttttkuù | Y8: =B14 -> prprtttttttttttttttttttttttkuù | Z8: =K15 ->  | AA8: =B17 -> roooooooooooooooooo | AB8: =B18 -> roooooooooooooooooo | AC8: =B19 ->  | AD8: =B20 ->  | AE8: =B21 ->  | AF8: =B22 ->  | AG8: =B23 ->  | AH8: =B24 ->  | AI8: =B25 ->  | AJ8: =B26 ->  | AK8: =A27 -> Ftures & conso | AL8: =+J8 -> Sous-traitant
A9: Personnel
A10: A.114 | B10: =IFERROR(VLOOKUP(A10,RESTAF_01,2,0),"") -> prprtttttttttttttttttttttttkuù | C10: =IFERROR(VLOOKUP(A10,RESTAF_01,3,0),"") -> H | D10: 6 | E10: =IFERROR(VLOOKUP(A10,PERS_VAL,4,0),"-") -> 33 | K10: =IFERROR((E10*D10),"") -> 198 | L10: =IFERROR(J10*D10,"-") -> 0 | M10: =IFERROR(IF($D$6>0,K10*$N$6,K10),"") -> 9786.583446 | N10: =IFERROR(IF($D$6>0,D10*$N$6,D10),"") -> 296.5631347 | O10: =IFERROR(IF($D$6>0,(E10*D10)*$N$6,(E10*D10)),0) -> 9786.583446 | S10: =IFERROR(-SUM(U10:AL10)+M10+N10,"") -> 296.5631347 | U10: =IFERROR(+K10*$N$6,0) -> 9786.583446
A11: A.117 | B11: prprtttttttttttttttttttttttkuù | C11: H | E11: 33 | K11: =IFERROR((E11*D11),"") -> 0 | L11: 0 | M11: 0 | N11: =IFERROR(IF($D$6>0,D11*$N$6,D11),"") -> 0 | O11: =IFERROR(IF($D$6>0,(E11*D11)*$N$6,(E11*D11)),0) -> 0 | S11: 0 | V11: =IFERROR(+K11*$N$6,0) -> 0
A12: A.118 | B12: prprtttttttttttttttttttttttkuù | C12: H | E12: 33 | K12: 0 | L12: 0 | M12: 0 | N12: 0 | O12: 0 | S12: 0 | W12: =IFERROR(+K12*$N$6,0) -> 0
A13: A.116 | B13: =IFERROR(VLOOKUP(A13,RESTAF_01,2,0),"") -> prprtttttttttttttttttttttttkuù | C13: =IFERROR(VLOOKUP(A13,RESTAF_01,3,0),"") -> H | D13: 9 | E13: 33 | K13: =IFERROR((E13*D13),"") -> 297 | L13: =IFERROR(J13*D13,"-") -> 0 | M13: =IFERROR(IF($D$6>0,K13*$N$6,K13),"") -> 14679.87517 | N13: 444.8447021 | O13: =IFERROR(IF($D$6>0,(E13*D13)*$N$6,(E13*D13)),0) -> 14679.87517 | S13: =IFERROR(-SUM(U13:AL13)+M13+N13,"") -> 444.8447021 | W13: =IFERROR(+K13*$N$6,0) -> 14679.87517
A14: A.119 | B14: prprtttttttttttttttttttttttkuù | C14: H | E14: 33 | K14: 0 | L14: 0 | M14: 0 | N14: 0 | O14: 0 | S14: 0 | W14: 0
E15: - | L15: 0 | N15: 0 | O15: 0 | W15: 0
A16: Matériel
A17: A.302 | B17: roooooooooooooooooo | C17: LH | D17: 6 | F17: =IFERROR(VLOOKUP(A17,MAT_VAL,4,0),"-") -> 88 | G17: =IFERROR(VLOOKUP(A17,MAT_VAL,6,0),"-") -> 96.8 | H17: =IFERROR(IF(A17="","",RESSOURCES!$D$133*VLOOKUP(A17,MAT_VAL,5,0)),"-") -> 798.6 | J17: =IFERROR(VLOOKUP(A17,ST_VAL,4,0),"-") -> - | K17: =IFERROR((E17+F17+G17+D17+H17+I17)*D17,"") -> 5936.4 | L17: - | M17: 293419.5655 | N17: 296.5631347 | P17: =IFERROR(IF($D$6>0,(F17*D17)*$N$6,(F17)),0) -> 26097.55586 | Q17: =IFERROR(IF($D$6>0,(G17*D17)*$N$6,(G17*D17)),0) -> 28707.31144 | R17: =IFERROR(IF($D$6>0,(H17*D17)*$N$6,(H17*D17)),0) -> 236835.3194 | S17: 289366.536 | AA17: =IFERROR(F17*$N$6,0) -> 4349.592643 | AL17: =IFERROR(D17*J17*$N$6,0) -> 0
A18: A.313 | B18: roooooooooooooooooo | C18: LH | D18: 3 | F18: 88 | G18: 96.8 | H18: =IFERROR(IF(A18="","",RESSOURCES!$D$133*VLOOKUP(A18,MAT_VAL,5,0)),"-") -> 650.1 | J18: - | K18: =IFERROR((E18+F18+G18+D18+H18+I18)*D18,"") -> 2513.7 | L18: - | M18: 124245.1253 | N18: 148.2815674 | P18: =IFERROR(IF($D$6>0,(F18*D18)*$N$6,(F18)),0) -> 13048.77793 | Q18: =IFERROR(IF($D$6>0,(G18*D18)*$N$6,(G18*D18)),0) -> 14353.65572 | R18: =IFERROR(IF($D$6>0,(H18*D18)*$N$6,(H18*D18)),0) -> 96397.84694 | S18: 120043.8142 | AB18: =IFERROR(F18*$N$6,0) -> 4349.592643 | AL18: =IFERROR(D18*J18*$N$6,0) -> 0
F19: - | G19: - | H19: =IFERROR(IF(A19="","",RESSOURCES!$D$133*VLOOKUP(A19,MAT_VAL,5,0)),"-") ->  | J19: - | L19: - | N19: 0 | P19: 0 | Q19: 0 | R19: 0 | AC19: =IFERROR(F19*$N$6,0) -> 0 | AL19: 0
F20: - | G20: - | H20: =IFERROR(IF(A20="","",RESSOURCES!$D$133*VLOOKUP(A20,MAT_VAL,5,0)),"-") ->  | J20: - | L20: - | N20: 0 | P20: 0 | Q20: 0 | R20: 0 | AD20: =IFERROR(F20*$N$6,0) -> 0 | AL20: 0
F21: - | G21: - | H21: =IFERROR(IF(A21="","",RESSOURCES!$D$133*VLOOKUP(A21,MAT_VAL,5,0)),"-") ->  | J21: - | L21: - | N21: 0 | P21: 0 | Q21: 0 | R21: 0 | AE21: =IFERROR(F21*$N$6,0) -> 0 | AL21: 0
F22: - | G22: - | H22: =IFERROR(IF(A22="","",RESSOURCES!$D$133*VLOOKUP(A22,MAT_VAL,5,0)),"-") ->  | J22: - | L22: - | N22: 0 | P22: 0 | Q22: 0 | R22: 0 | AF22: =IFERROR(F22*$N$6,0) -> 0 | AL22: 0
F23: - | G23: - | H23: =IFERROR(IF(A23="","",RESSOURCES!$D$133*VLOOKUP(A23,MAT_VAL,5,0)),"-") ->  | J23: - | L23: - | N23: 0 | P23: 0 | Q23: 0 | R23: 0 | AG23: =IFERROR(F23*$N$6,0) -> 0 | AL23: 0
F24: - | G24: - | H24: =IFERROR(IF(A24="","",RESSOURCES!$D$133*VLOOKUP(A24,MAT_VAL,5,0)),"-") ->  | J24: - | L24: - | P24: 0 | Q24: 0 | R24: 0 | AH24: =IFERROR(F24*$N$6,0) -> 0 | AL24: 0
F25: - | G25: - | H25: =IFERROR(IF(A25="","",RESSOURCES!$D$133*VLOOKUP(A25,MAT_VAL,5,0)),"-") ->  | J25: - | L25: - | N25: 0 | P25: 0 | Q25: 0 | R25: 0 | AI25: =IFERROR(F25*$N$6,0) -> 0 | AL25: 0
F26: - | G26: - | H26: =IFERROR(IF(A26="","",RESSOURCES!$D$133*VLOOKUP(A26,MAT_VAL,5,0)),"-") ->  | J26: - | L26: - | N26: 0 | P26: 0 | Q26: 0 | R26: 0 | AJ26: =IFERROR(G26*$N$6,0) -> 0 | AL26: 0
A27: Ftures & conso
I28: =IFERROR(VLOOKUP(A28,RESSCH_1,4,0),"-") -> - | K28: =IFERROR((E28*D28+F28+G28*D28+D28*H28+D28*I28),"") ->  | L28: 0 | N28: 0 | AK28: =IFERROR(D28*I28*$N$6,0) -> 0 | AL28: 0
I29: - | L29: 0 | N29: 0 | AK29: 0 | AL29: 0
I30: - | L30: 0 | N30: 0 | AK30: 0 | AL30: 0
I31: - | L31: 0 | N31: 0 | AK31: 0 | AL31: 0
I32: - | L32: 0 | N32: 0 | AK32: 0 | AL32: 0
I33: - | N33: 0 | AK33: 0 | AL33: 0
I34: - | L34: 0 | N34: 0 | AK34: 0 | AL34: 0
I35: - | L35: 0 | N35: 0 | AK35: 0 | AL35: 0
I36: - | N36: 0 | AK36: 0 | AL36: 0
B37: TOTAL | K37: =SUM(K10:K36) -> 8945.1 | L37: =SUM(L10:L36) -> 0 | U37: =+SUM(U10:U36) -> 9786.583446 | V37: 0 | W37: 14679.87517 | X37: 0 | Y37: 0 | Z37: 0 | AA37: 4349.592643 | AB37: 4349.592643 | AC37: 0 | AD37: 0 | AE37: 0 | AF37: 0 | AG37: 0 | AH37: 0 | AI37: 0 | AJ37: =+SUM(AJ10:AJ36) -> 0 | AK37: =+SUM(AK10:AK36) -> 0 | AL37: =+SUM(AL10:AL36) -> 0
K39: =IFERROR((K37+L37)/$K$6,"") -> 8.9451 | L39: CFA
G41: TOTAL DEBOURSE SEC HT ARRONDI A : | K41: =IFERROR(ROUNDUP(K39,-1),"") -> 10 | L41: CFA
G42: TOTAL VENTE HT ARRONDI A : | K42: =IFERROR(K41*K43,"") -> 0 | L42: CFA
I43: Coef. de vente
K45: =IFERROR(K39*$D$6,0) -> 442131.1494
K100: =K45 -> 442131.1494

Sheet 201
F1: SOUS DETAIL DE PRIX BUDGET
C3: 200 | D3: TERRASSEMENTS GENERAUX : TYPE A
C4: 201 | P4: =SUM(N17:N26) -> 1389.640628 | Q4: =IFERROR(SUM(Q17:Q26)/VLOOKUP(A17,MAT_VAL,6,0),"") -> 1296.997919 | R4: =SUM(R17:R26)/RESSOURCES!$D$133 -> 25601.8125
B5: DESIGNATION DU PRIX : | C5: DEBLAI | E5: Unités : | L5: Unités : | P5: =SUM(P17:P26) -> 114135.8169 | Q5: =SUM(Q17:Q26) -> 125549.3986 | R5: =SUM(R17:R26) -> 844859.8125
B6: QUANTITES PREVUES : | D6: =+'OPTION 2 (fosse terre)'!E18 -> 23160.67713 | E6: M3 | H6: Quantités de rendement : | K6: 500 | L6: M3 | M6: K | N6: =IFERROR(D6/K6,"") -> 46.32135426 | O6: Mo | P6: Mat_BSI | Q6: Entretien | R6: Carb
E7: Travaux Propres | J7: ST | M7: Coût
A8: Code | B8: Désignation | C8: Unité | D8: Qté ou durée d'utilisation | E8: Main d'œuvre | F8: Amortissement | G8: Entretien | H8: Carb-Energie | I8: Fournitures | J8: Sous-traitant | K8: TOTAL Travaux propres | L8: TOTAL Travaux ST | U8: =B10 -> prprtttttttttttttttttttttttkuù | V8: =B11 -> prprtttttttttttttttttttttttkuù | W8: =B12 -> prprtttttttttttttttttttttttkuù | X8: =B13 -> prprtttttttttttttttttttttttkuù | Y8: =B14 -> prprtttttttttttttttttttttttkuù | Z8: =B15 ->  | AA8: =B17 -> roooooooooooooooooo | AB8: =B18 -> roooooooooooooooooo | AC8: =B19 -> roooooooooooooooooo | AD8: =B20 -> roooooooooooooooooo | AE8: =B21 -> roooooooooooooooooo | AF8: =B22 -> roooooooooooooooooo | AG8: =B23 ->  | AH8: =B25 ->  | AI8: =B26 ->  | AJ8: =B27 ->  | AK8: =A29 -> Ftures & conso | AL8: =+J8 -> Sous-traitant
A9: Personnel
A10: A.114 | B10: =IFERROR(VLOOKUP(A10,RESTAF_01,2,0),"") -> prprtttttttttttttttttttttttkuù | C10: =IFERROR(VLOOKUP(A10,RESTAF_01,3,0),"") -> H | D10: 10 | E10: =IFERROR(VLOOKUP(A10,PERS_VAL,4,0),"-") -> 33 | K10: =IFERROR((E10*D10),"") -> 330 | L10: =IFERROR(J10*D10,"-") -> 0 | M10: =IFERROR(IF($D$6>0,K10*$N$6,K10),"") -> 15286.04691 | N10: =IFERROR(IF($D$6>0,D10*$N$6,D10),"") -> 463.2135426 | O10: =IFERROR(IF($D$6>0,(E10*D10)*$N$6,(E10*D10)),0) -> 15286.04691 | S10: =IFERROR(-SUM(U10:AL10)+M10+N10,"") -> 463.2135426 | U10: =IFERROR(+K10*$N$6,0) -> 15286.04691
A11: A.117 | B11: prprtttttttttttttttttttttttkuù | C11: H | D11: 10 | E11: 33 | K11: =IFERROR((E11*D11),"") -> 330 | L11: 0 | M11: 15286.04691 | N11: =IFERROR(IF($D$6>0,D11*$N$6,D11),"") -> 463.2135426 | O11: =IFERROR(IF($D$6>0,(E11*D11)*$N$6,(E11*D11)),0) -> 15286.04691 | S11: 463.2135426 | V11: =IFERROR(+K11*$N$6,0) -> 15286.04691
A12: A.118 | B12: =IFERROR(VLOOKUP(A12,RESTAF_01,2,0),"") -> prprtttttttttttttttttttttttkuù | C12: =IFERROR(VLOOKUP(A12,RESTAF_01,3,0),"") -> H | D12: 10 | E12: 33 | K12: 330 | L12: =IFERROR(J12*D12,"-") -> 0 | M12: =IFERROR(IF($D$6>0,K12*$N$6,K12),"") -> 15286.04691 | N12: 463.2135426 | O12: =IFERROR(IF($D$6>0,(E12*D12)*$N$6,(E12*D12)),0) -> 15286.04691 | S12: =IFERROR(-SUM(U12:AL12)+M12+N12,"") -> 463.2135426 | W12: =IFERROR(+K12*$N$6,0) -> 15286.04691
A13: A.116 | B13: prprtttttttttttttttttttttttkuù | C13: H | D13: 30 | E13: 33 | K13: 990 | L13: 0 | M13: 45858.14072 | N13: 1389.640628 | O13: 45858.14072 | S13: 1389.640628 | X13: =IFERROR(+K13*$N$6,0) -> 45858.14072
A14: A.119 | B14: =IFERROR(VLOOKUP(A14,RESTAF_01,2,0),"") -> prprtttttttttttttttttttttttkuù | C14: =IFERROR(VLOOKUP(A14,RESTAF_01,3,0),"") -> H | D14: 40 | E14: 33 | K14: 1320 | L14: =IFERROR(J14*D14,"-") -> 0 | M14: =IFERROR(IF($D$6>0,K14*$N$6,K14),"") -> 61144.18762 | N14: 1852.85417 | O14: =IFERROR(IF($D$6>0,(E14*D14)*$N$6,(E14*D14)),0) -> 61144.18762 | S14: =IFERROR(-SUM(U14:AL14)+M14+N14,"") -> 1852.85417 | Y14: =IFERROR(+K14*$N$6,0) -> 61144.18762
E15: - | L15: 0 | N15: 0 | O15: 0 | Z15: =IFERROR(+K15*$N$6,0) -> 0
A16: Matériel
A17: A.310 | B17: roooooooooooooooooo | C17: LH | D17: 3 | F17: =IFERROR(VLOOKUP(A17,MAT_VAL,4,0),"-") -> 88 | G17: =IFERROR(VLOOKUP(A17,MAT_VAL,6,0),"-") -> 96.8 | H17: =IFERROR(IF(A17="","",RESSOURCES!$D$133*VLOOKUP(A17,MAT_VAL,5,0)),"-") -> 541.2 | J17: =IFERROR(VLOOKUP(A17,ST_VAL,4,0),"-") -> - | K17: =IFERROR((E17+F17+G17+D17+H17+I17)*D17,"") -> 2187 | L17: - | M17: 101304.8018 | N17: 138.9640628 | P17: =IFERROR(IF($D$6>0,(F17*D17)*$N$6,(F17)),0) -> 12228.83752 | Q17: =IFERROR(IF($D$6>0,(G17*D17)*$N$6,(G17*D17)),0) -> 13451.72128 | R17: =IFERROR(IF($D$6>0,(H17*D17)*$N$6,(H17*D17)),0) -> 75207.35078 | S17: 97367.48666 | AA17: =IFERROR(F17*$N$6,0) -> 4076.279175 | AL17: =IFERROR(D17*J17*$N$6,0) -> 0
A18: A.302 | B18: roooooooooooooooooo | C18: LH | D18: 5 | F18: =IFERROR(VLOOKUP(A18,MAT_VAL,4,0),"-") -> 88 | G18: 96.8 | H18: =IFERROR(IF(A18="","",RESSOURCES!$D$133*VLOOKUP(A18,MAT_VAL,5,0)),"-") -> 798.6 | J18: - | K18: =IFERROR((E18+F18+G18+D18+H18+I18)*D18,"") -> 4942 | L18: - | M18: 228920.1328 | N18: 231.6067713 | P18: =IFERROR(IF($D$6>0,(F18*D18)*$N$6,(F18)),0) -> 20381.39587 | Q18: =IFERROR(IF($D$6>0,(G18*D18)*$N$6,(G18*D18)),0) -> 22419.53546 | R18: =IFERROR(IF($D$6>0,(H18*D18)*$N$6,(H18*D18)),0) -> 184961.1676 | S18: 225075.4604 | AB18: =IFERROR(F18*$N$6,0) -> 4076.279175 | AL18: =IFERROR(D18*J18*$N$6,0) -> 0
A19: A.313 | B19: roooooooooooooooooo | C19: LH | D19: 3 | F19: 88 | G19: 96.8 | H19: =IFERROR(IF(A19="","",RESSOURCES!$D$133*VLOOKUP(A19,MAT_VAL,5,0)),"-") -> 650.1 | J19: - | K19: 2513.7 | L19: - | M19: 116437.9882 | N19: 138.9640628 | P19: 12228.83752 | Q19: 13451.72128 | R19: 90340.53721 | S19: 112500.6731 | AC19: =IFERROR(F19*$N$6,0) -> 4076.279175 | AL19: 0
A20: A.304 | B20: roooooooooooooooooo | C20: LH | D20: 3 | F20: 88 | G20: 96.8 | H20: =IFERROR(IF(A20="","",RESSOURCES!$D$133*VLOOKUP(A20,MAT_VAL,5,0)),"-") -> 805.2 | J20: - | K20: 2979 | L20: - | M20: 137991.3143 | N20: 138.9640628 | P20: 12228.83752 | Q20: 13451.72128 | R20: 111893.8634 | S20: 134053.9992 | AD20: =IFERROR(F20*$N$6,0) -> 4076.279175 | AL20: 0
A21: A.289 | B21: roooooooooooooooooo | C21: LH | D21: 12 | F21: 88 | G21: 96.8 | H21: =IFERROR(IF(A21="","",RESSOURCES!$D$133*VLOOKUP(A21,MAT_VAL,5,0)),"-") -> 561 | J21: - | K21: 9093.6 | L21: - | M21: 421227.8671 | N21: 555.8562511 | P21: 48915.3501 | Q21: 53806.88511 | R21: 311835.3569 | S21: 417707.4442 | AE21: =IFERROR(F21*$N$6,0) -> 4076.279175 | AL21: 0
A22: A.307 | B22: =IFERROR(VLOOKUP(A22,RESTAF_01,2,0),"") -> roooooooooooooooooo | C22: =IFERROR(VLOOKUP(A22,RESTAF_01,3,0),"") -> LH | D22: 2 | F22: =IFERROR(VLOOKUP(A22,MAT_VAL,4,0),"-") -> 88 | G22: =IFERROR(VLOOKUP(A22,MAT_VAL,6,0),"-") -> 96.8 | H22: =IFERROR(IF(A22="","",RESSOURCES!$D$133*VLOOKUP(A22,MAT_VAL,5,0)),"-") -> 762.3 | J22: =IFERROR(VLOOKUP(A22,ST_VAL,4,0),"-") -> - | K22: 1898.2 | L22: =IFERROR(J22*D22,"-") -> - | M22: =IFERROR(IF($D$6>0,K22*$N$6,K22),"") -> 87927.19466 | N22: 92.64270852 | P22: 8152.55835 | Q22: 8967.814185 | R22: 70621.53671 | S22: =IFERROR(-SUM(U22:AL22)+M22+N22,"") -> 83943.55819 | AF22: =IFERROR(F22*$N$6,0) -> 4076.279175 | AL22: =IFERROR(D22*J22*$N$6,0) -> 0
D23: 2 | F23: - | G23: - | H23: =IFERROR(IF(A23="","",RESSOURCES!$D$133*VLOOKUP(A23,MAT_VAL,5,0)),"-") ->  | J23: - | L23: - | N23: 92.64270852 | P23: 0 | Q23: =IFERROR(IF($C$6>0,(G23*D23)*$N$6,(G23*D23)),0) -> 0 | R23: =IFERROR(IF($C$6>0,(H23*D23)*$N$6,(H23*D23)),0) -> 0 | AG23: =IFERROR(F23*$N$6,0) -> 0 | AL23: 0
A24: Locat° &ST
H25: =IFERROR(IF(A25="","",RESSOURCES!$D$133*VLOOKUP(A25,MAT_VAL,5,0)),"-") ->  | J25: - | K25: =IFERROR((E25*D25+F25+G25*D25+D25*H25+D25*I25),"") ->  | L25: - | N25: 0 | P25: 0 | Q25: =IFERROR(IF($D$6>0,(G25*D25)*$N$6,(G25*D25)),0) -> 0 | R25: =IFERROR(IF($D$6>0,(H25*D25)*$N$6,(H25*D25)),0) -> 0 | AH25: =IFERROR(F25*$N$6,0) -> 0 | AL25: 0
H26: =IFERROR(IF(A26="","",RESSOURCES!$D$133*VLOOKUP(A26,MAT_VAL,5,0)),"-") ->  | J26: - | L26: - | N26: 0 | P26: 0 | Q26: 0 | R26: 0 | AI26: =IFERROR(F26*$N$6,0) -> 0 | AL26: 0
H27: =IFERROR(IF(A27="","",RESSOURCES!$D$133*VLOOKUP(A27,MAT_VAL,5,0)),"-") ->  | J27: - | L27: - | P27: 0 | Q27: 0 | R27: 0 | AJ27: =IFERROR(F27*$N$6,0) -> 0 | AL27: 0
H28: =IFERROR(IF(A28="","",RESSOURCES!$D$133*VLOOKUP(A28,MAT_VAL,5,0)),"-") ->  | J28: - | L28: - | N28: 0 | P28: 0 | Q28: 0 | R28: 0 | AL28: 0
A29: Ftures & conso | N29: 0
I30: =IFERROR(VLOOKUP(A30,RESSCH_1,4,0),"-") -> - | L30: 0 | N30: 0 | AK30: =IFERROR(D30*I30*$N$6,0) -> 0 | AL30: 0
I31: =IFERROR(VLOOKUP(A31,RESSCH_1,4,0),"-") -> - | L31: 0 | N31: 0 | AK31: 0 | AL31: 0
I32: =IFERROR(VLOOKUP(A32,RESSCH_1,4,0),"-") -> - | L32: 0 | N32: 0 | AK32: 0 | AL32: 0
I33: =IFERROR(VLOOKUP(A33,RESSCH_1,4,0),"-") -> - | L33: 0 | N33: 0 | AK33: 0 | AL33: 0
B34: TOTAL | K34: =SUM(K10:K33) -> 26913.5 | L34: =SUM(L10:L33) -> 0 | U34: =+SUM(U10:U33) -> 15286.04691 | V34: 15286.04691 | W34: 15286.04691 | X34: 45858.14072 | Y34: =+SUM(Y10:Y33) -> 61144.18762 | Z34: 0 | AA34: 4076.279175 | AB34: 4076.279175 | AC34: 4076.279175 | AD34: 4076.279175 | AE34: 4076.279175 | AF34: =+SUM(AF10:AF33) -> 4076.279175 | AG34: 0 | AH34: 0 | AI34: 0 | AJ34: 0 | AK34: 0 | AL34: 0
K36: =IFERROR((K34+L34)/$K$6,"") -> 53.827 | L36: CFA
G38: TOTAL DEBOURSE SEC HT ARRONDI A : | K38: =IFERROR(ROUNDUP(K36,-1),"") -> 60 | L38: CFA
G39: TOTAL VENTE HT ARRONDI A : | K39: =IFERROR(K38*K40,"") -> 0 | L39: CFA
I40: Coef. de vente
K42: =IFERROR(K36*$D$6,0) -> 1246669.768
K100: =K42 -> 1246669.768

Sheet 202
F1: SOUS DETAIL DE PRIX BUDGET
C3: 200 | D3: TERRASSEMENTS GENERAUX : TYPE A
C4: 202 | P4: =SUM(N17:N26) -> 2333.205874 | Q4: =IFERROR(SUM(Q17:Q26)/VLOOKUP(A17,MAT_VAL,6,0),"") -> 2333.205874 | R4: =SUM(R17:R26)/RESSOURCES!$D$133 -> 61371.956
B5: DESIGNATION DU PRIX : | C5: REMBLAI EMPRUNT | E5: Unités : | L5: Unités : | P5: =SUM(P17:P26) -> 205322.1169 | Q5: =SUM(Q17:Q26) -> 225854.3286 | R5: =SUM(R17:R26) -> 2025274.548
B6: QUANTITES PREVUES : | D6: =+'OPTION 2 (fosse terre)'!E20 -> 60490.52267 | H6: Quantités de rendement : | K6: 700 | M6: K | N6: =IFERROR(D6/K6,"") -> 86.41503238 | O6: Mo | P6: Mat_BSI | Q6: Entretien | R6: Carb
E7: Travaux Propres | J7: ST | M7: Coût
A8: Code | B8: Désignation | C8: Unité | D8: Qté ou durée d'utilisation | E8: Main d'œuvre | F8: Amortissement | G8: Entretien | H8: Carb-Energie | I8: Fournitures | J8: Sous-traitant | K8: TOTAL Travaux propres | L8: TOTAL Travaux ST | U8: =B10 -> prprtttttttttttttttttttttttkuù | V8: =B11 -> prprtttttttttttttttttttttttkuù | W8: =B12 -> prprtttttttttttttttttttttttkuù | X8: =B13 -> prprtttttttttttttttttttttttkuù | Y8: =B14 -> prprtttttttttttttttttttttttkuù | Z8: =B15 ->  | AA8: =B17 -> roooooooooooooooooo | AB8: =B18 -> roooooooooooooooooo | AC8: =B19 -> roooooooooooooooooo | AD8: =B20 -> roooooooooooooooooo | AE8: =B21 -> roooooooooooooooooo | AF8: =B22 -> roooooooooooooooooo | AG8: =B23 -> roooooooooooooooooo | AH8: =B25 ->  | AI8: =B26 ->  | AJ8: =A27 -> Ftures & conso | AK8: =+J8 -> Sous-traitant
A9: Personnel
A10: A.114 | B10: =IFERROR(VLOOKUP(A10,RESTAF_01,2,0),"") -> prprtttttttttttttttttttttttkuù | C10: =IFERROR(VLOOKUP(A10,RESTAF_01,3,0),"") -> H | D10: 10 | E10: =IFERROR(VLOOKUP(A10,PERS_VAL,4,0),"-") -> 33 | K10: =IFERROR((E10*D10),"") -> 330 | L10: =IFERROR(J10*D10,"-") -> 0 | M10: =IFERROR(IF($D$6>0,K10*$N$6,K10),"") -> 28516.96069 | N10: =IFERROR(IF($D$6>0,D10*$N$6,D10),"") -> 864.1503238 | O10: =IFERROR(IF($D$6>0,(E10*D10)*$N$6,(E10*D10)),0) -> 28516.96069 | S10: =IFERROR(-SUM(U10:AK10)+M10+N10,"") -> 864.1503238 | U10: =IFERROR(+K10*$N$6,0) -> 28516.96069
A11: A.117 | B11: prprtttttttttttttttttttttttkuù | C11: H | D11: 10 | E11: 33 | K11: =IFERROR((E11*D11),"") -> 330 | L11: 0 | M11: 28516.96069 | N11: =IFERROR(IF($D$6>0,D11*$N$6,D11),"") -> 864.1503238 | O11: =IFERROR(IF($D$6>0,(E11*D11)*$N$6,(E11*D11)),0) -> 28516.96069 | S11: 864.1503238 | V11: =IFERROR(+K11*$N$6,0) -> 28516.96069
A12: A.118 | B12: prprtttttttttttttttttttttttkuù | C12: H | D12: 10 | E12: 33 | K12: 330 | L12: 0 | M12: 28516.96069 | N12: 864.1503238 | O12: 28516.96069 | S12: 864.1503238 | W12: =IFERROR(+K12*$N$6,0) -> 28516.96069
A13: A.116 | B13: prprtttttttttttttttttttttttkuù | C13: H | D13: 50 | E13: 33 | K13: 1650 | L13: 0 | M13: 142584.8034 | N13: 4320.751619 | O13: 142584.8034 | S13: 4320.751619 | X13: =IFERROR(+K13*$N$6,0) -> 142584.8034
A14: A.119 | B14: =IFERROR(VLOOKUP(A14,RESTAF_01,2,0),"") -> prprtttttttttttttttttttttttkuù | C14: =IFERROR(VLOOKUP(A14,RESTAF_01,3,0),"") -> H | D14: 30 | E14: 33 | K14: 990 | L14: 0 | M14: 85550.88206 | N14: 2592.450971 | O14: 85550.88206 | S14: 2592.450971 | Y14: =IFERROR(+K14*$N$6,0) -> 85550.88206
E15: - | L15: =IFERROR(J15*D15,"-") -> 0 | M15: =IFERROR(IF($D$6>0,K15*$N$6,K15),"") ->  | N15: 0 | O15: =IFERROR(IF($D$6>0,(E15*D15)*$N$6,(E15*D15)),0) -> 0 | X15: =IFERROR(+K15*N7,) -> 0 | Z15: =IFERROR(+K15*$N$6,0) -> 0
A16: Matériel
A17: A.310 | B17: roooooooooooooooooo | C17: LH | D17: 2 | F17: =IFERROR(VLOOKUP(A17,MAT_VAL,4,0),"-") -> 88 | G17: =IFERROR(VLOOKUP(A17,MAT_VAL,6,0),"-") -> 96.8 | H17: =IFERROR(IF(A17="","",RESSOURCES!$D$133*VLOOKUP(A17,MAT_VAL,5,0)),"-") -> 541.2 | J17: =IFERROR(VLOOKUP(A17,ST_VAL,4,0),"-") -> - | K17: =IFERROR((E17+F17+G17+D17+H17+I17)*D17,"") -> 1456 | L17: - | M17: 125820.2871 | N17: 172.8300648 | P17: =IFERROR(IF($D$6>0,(F17*D17)*$N$6,(F17)),0) -> 15209.0457 | Q17: =IFERROR(IF($D$6>0,(G17*D17)*$N$6,(G17*D17)),0) -> 16729.95027 | R17: =IFERROR(IF($D$6>0,(H17*D17)*$N$6,(H17*D17)),0) -> 93535.63105 | S17: =IFERROR(-SUM(U17:AK17)+M17+N17,"") -> 118388.5944 | AA17: =IFERROR(F17*$N$6,0) -> 7604.522849 | AK17: =IFERROR(D17*J17*$N$6,0) -> 0
A18: A.302 | B18: roooooooooooooooooo | C18: LH | D18: 1 | F18: 88 | G18: 96.8 | H18: =IFERROR(IF(A18="","",RESSOURCES!$D$133*VLOOKUP(A18,MAT_VAL,5,0)),"-") -> 798.6 | J18: - | K18: =IFERROR((E18+F18+G18+D18+H18+I18)*D18,"") -> 984.4 | L18: - | M18: 85066.95787 | N18: 86.41503238 | P18: =IFERROR(IF($D$6>0,(F18*D18)*$N$6,(F18)),0) -> 7604.522849 | Q18: =IFERROR(IF($D$6>0,(G18*D18)*$N$6,(G18*D18)),0) -> 8364.975134 | R18: =IFERROR(IF($D$6>0,(H18*D18)*$N$6,(H18*D18)),0) -> 69011.04486 | S18: 77548.85006 | AB18: =IFERROR(F18*$N$6,0) -> 7604.522849 | AK18: 0
A19: A.313 | B19: roooooooooooooooooo | C19: LH | D19: 6 | F19: 88 | G19: 96.8 | H19: =IFERROR(IF(A19="","",RESSOURCES!$D$133*VLOOKUP(A19,MAT_VAL,5,0)),"-") -> 650.1 | J19: - | K19: 5045.4 | L19: - | M19: 435998.4044 | N19: 518.4901943 | P19: 45627.1371 | Q19: 50189.85081 | R19: 337070.4753 | S19: 428912.3717 | AC19: =IFERROR(F19*$N$6,0) -> 7604.522849 | AK19: 0
A20: A.304 | B20: roooooooooooooooooo | C20: LH | D20: 1 | F20: 88 | G20: 96.8 | H20: =IFERROR(IF(A20="","",RESSOURCES!$D$133*VLOOKUP(A20,MAT_VAL,5,0)),"-") -> 805.2 | J20: - | K20: 991 | L20: - | M20: 85637.29709 | N20: 86.41503238 | P20: 7604.522849 | Q20: 8364.975134 | R20: 69581.38407 | S20: 78119.18927 | AD20: =IFERROR(F20*$N$6,0) -> 7604.522849 | AK20: 0
A21: A.289 | B21: roooooooooooooooooo | C21: LH | D21: 6 | F21: 88 | G21: 96.8 | H21: =IFERROR(IF(A21="","",RESSOURCES!$D$133*VLOOKUP(A21,MAT_VAL,5,0)),"-") -> 561 | J21: - | K21: 4510.8 | L21: - | M21: 389800.9281 | N21: 518.4901943 | P21: 45627.1371 | Q21: 50189.85081 | R21: 290872.999 | S21: 382714.8954 | AE21: =IFERROR(F21*$N$6,0) -> 7604.522849 | AK21: 0
A22: A.307 | B22: =IFERROR(VLOOKUP(A22,RESTAF_01,2,0),"") -> roooooooooooooooooo | C22: =IFERROR(VLOOKUP(A22,RESTAF_01,3,0),"") -> LH | D22: 6 | F22: =IFERROR(VLOOKUP(A22,MAT_VAL,4,0),"-") -> 88 | G22: =IFERROR(VLOOKUP(A22,MAT_VAL,6,0),"-") -> 96.8 | H22: =IFERROR(IF(A22="","",RESSOURCES!$D$133*VLOOKUP(A22,MAT_VAL,5,0)),"-") -> 762.3 | J22: =IFERROR(VLOOKUP(A22,ST_VAL,4,0),"-") -> - | K22: 5718.6 | L22: =IFERROR(J22*D22,"-") -> - | M22: =IFERROR(IF($D$6>0,K22*$N$6,K22),"") -> 494173.0042 | N22: 518.4901943 | P22: 45627.1371 | Q22: 50189.85081 | R22: 395245.0751 | S22: 487086.9715 | AF22: =IFERROR(F22*$N$6,0) -> 7604.522849 | AK22: 0
A23: A.288 | B23: roooooooooooooooooo | C23: LH | D23: 5 | F23: 88 | G23: 96.8 | H23: =IFERROR(IF(A23="","",RESSOURCES!$D$133*VLOOKUP(A23,MAT_VAL,5,0)),"-") -> 1782 | J23: - | K23: 9859 | L23: - | M23: 851965.8042 | N23: 432.0751619 | P23: 38022.61425 | Q23: 41824.87567 | R23: 769957.9385 | S23: 844793.3565 | AG23: =IFERROR(F23*$N$6,0) -> 7604.522849 | AK23: 0
A24: Locat° &ST
B25: =IFERROR(VLOOKUP(A25,RESTAF_01,2,0),"") ->  | C25: =IFERROR(VLOOKUP(A25,RESTAF_01,3,0),"") ->  | F25: =IFERROR(VLOOKUP(A25,MAT_VAL,4,0),"-") -> - | G25: =IFERROR(VLOOKUP(A25,MAT_VAL,6,0),"-") -> - | H25: =IFERROR(IF(A25="","",RESSOURCES!$D$133*VLOOKUP(A25,MAT_VAL,5,0)),"-") ->  | J25: =IFERROR(VLOOKUP(A25,ST_VAL,4,0),"-") -> - | K25: =IFERROR((E25*D25+F25+G25*D25+D25*H25+D25*I25),"") ->  | L25: =IFERROR(J25*D25,"-") -> - | M25: =IFERROR(IF($D$6>0,K25*$N$6,K25),"") ->  | N25: 0 | P25: =IFERROR(IF($D$6>0,(F25)*$N$6,(F25)),0) -> 0 | Q25: =IFERROR(IF($D$6>0,(G25*D25)*$N$6,(G25*D25)),0) -> 0 | R25: 0 | S25: =IFERROR(-SUM(U25:AK25)+M25+N25,"") ->  | AH25: =IFERROR(F25*$N$6,0) -> 0 | AK25: =IFERROR(D25*J25*$N$6,0) -> 0
F26: - | G26: - | H26: =IFERROR(IF(A26="","",RESSOURCES!$D$133*VLOOKUP(A26,MAT_VAL,5,0)),"-") ->  | J26: - | L26: - | N26: 0 | P26: 0 | Q26: 0 | R26: 0 | S26: =IFERROR(-SUM(U26:AK26)+M26+N26,"") ->  | AI26: =IFERROR(H26*$N$6,0) -> 0 | AK26: =IFERROR(D26*J26*$N$6,0) -> 0
A27: Ftures & conso
A28: A.221 | B28: =IFERROR(VLOOKUP(A28,RESTAF_01,2,0),"") -> aaaaaaaaaaaaaa | C28: =IFERROR(VLOOKUP(A28,RESTAF_01,3,0),"") -> M3 | D28: =+K6*D41 -> 980 | I28: =IFERROR(VLOOKUP(A28,RESSCH_1,4,0),"-") -> 33 | K28: =IFERROR((E28*D28+F28+G28*D28+D28*H28+D28*I28),"") -> 32340 | L28: =IFERROR(J28*D28,"-") -> 0 | M28: =IFERROR(IF($D$6>0,K28*$N$6,K28),"") -> 2794662.147 | N28: 84686.73173 | S28: =IFERROR(-SUM(U28:AK28)+M28+N28,"") -> 84686.73173 | AJ28: =IFERROR(D28*I28*$N$6,0) -> 2794662.147 | AK28: =IFERROR(D28*J28*$N$6,0) -> 0
F29: - | G29: - | H29: =IFERROR(IF(A29="","",D29*730*VLOOKUP(A29,MAT_VAL,5,0)),"-") ->  | I29: =IFERROR(VLOOKUP(A29,RESTAF_01,4,0),"-") -> - | K29: =IFERROR((E29*D29+F29+G29*D29+D29*H29+D29*I29),"") ->  | L29: 0 | N29: 0 | AJ29: 0 | AK29: 0
I30: =IFERROR(VLOOKUP(A30,RESSCH_1,4,0),"-") -> - | L30: 0 | N30: 0 | AJ30: 0 | AK30: 0
I31: =IFERROR(VLOOKUP(A31,RESSCH_1,4,0),"-") -> - | L31: 0 | N31: 0 | AJ31: 0 | AK31: 0
I32: =IFERROR(VLOOKUP(A32,RESSCH_1,4,0),"-") -> - | L32: 0 | N32: 0 | AJ32: 0 | AK32: 0
I33: =IFERROR(VLOOKUP(A33,RESSCH_1,4,0),"-") -> - | L33: 0 | N33: 0 | AJ33: 0 | AK33: 0
B34: TOTAL | K34: =SUM(K10:K33) -> 64535.2 | L34: =SUM(L10:L33) -> 0 | U34: =+SUM(U10:U33) -> 28516.96069 | V34: 28516.96069 | W34: 28516.96069 | X34: 142584.8034 | Y34: =+SUM(Y10:Y33) -> 85550.88206 | Z34: 0 | AA34: 7604.522849 | AB34: 7604.522849 | AC34: 7604.522849 | AD34: 7604.522849 | AE34: 7604.522849 | AF34: 7604.522849 | AG34: 7604.522849 | AH34: =+SUM(AH10:AH33) -> 0 | AI34: 0 | AJ34: 2794662.147 | AK34: 0
K36: =IFERROR((K34+L34)/$K$6,"") -> 92.19314286 | L36: CFA
G38: TOTAL DEBOURSE SEC HT ARRONDI A : | K38: =IFERROR(ROUNDUP(K36,-1),"") -> 100 | L38: CFA
G39: TOTAL VENTE HT ARRONDI A : | K39: =IFERROR(K38*K40,"") -> 0 | L39: CFA
I40: Coef. de vente
C41: FOISONNEMENT | D41: 1.4
K42: =IFERROR(K36*$D$6,0) -> 5576811.398
K100: =K42 -> 5576811.398

Sheet 203
F1: SOUS DETAIL DE PRIX BUDGET
C3: 200 | D3: TERRASSEMENTS GENERAUX : TYPE A
C4: 203 | P4: =SUM(N17:N26) -> 4445.535011 | Q4: =IFERROR(SUM(Q17:Q26)/VLOOKUP(A17,MAT_VAL,6,0),"") -> 3688.848201 | R4: =SUM(R17:R26)/RESSOURCES!$D$133 -> 784643.8084
B5: DESIGNATION DU PRIX : | C5: PURGE ET SUBSTITUTION BLOCS LATERITE | E5: Unités : | L5: Unités : | P5: =SUM(P17:P26) -> 324618.6416 | Q5: =SUM(Q17:Q26) -> 357080.5058 | R5: =SUM(R17:R26) -> 25893245.68
B6: QUANTITES PREVUES : | D6: =+'OPTION 2 (fosse terre)'!E21 -> 56751.51078 | H6: Quantités de rendement : | K6: 600 | M6: K | N6: =IFERROR(D6/K6,"") -> 94.5858513 | O6: Mo | P6: Mat_BSI | Q6: Entretien | R6: Carb
E7: Travaux Propres | J7: ST | M7: Coût
A8: Code | B8: Désignation | C8: Unité | D8: Qté ou durée d'utilisation | E8: Main d'œuvre | F8: Amortissement | G8: Entretien | H8: Carb-Energie | I8: Fournitures | J8: Sous-traitant | K8: TOTAL Travaux propres | L8: TOTAL Travaux ST | U8: =B10 -> prprtttttttttttttttttttttttkuù | V8: =B11 -> prprtttttttttttttttttttttttkuù | W8: =B12 -> prprtttttttttttttttttttttttkuù | X8: =B13 -> prprtttttttttttttttttttttttkuù | Y8: =B15 ->  | Z8: =B17 -> roooooooooooooooooo | AA8: =B18 -> roooooooooooooooooo | AB8: =B19 -> roooooooooooooooooo | AC8: =B20 -> roooooooooooooooooo | AD8: =B21 -> roooooooooooooooooo | AE8: =B22 -> roooooooooooooooooo | AF8: =B23 -> roooooooooooooooooo | AG8: =B24 -> roooooooooooooooooo | AH8: =B26 ->  | AI8: =A27 -> Ftures & conso | AJ8: =+J8 -> Sous-traitant
A9: Personnel
A10: A.114 | B10: =IFERROR(VLOOKUP(A10,RESTAF_01,2,0),"") -> prprtttttttttttttttttttttttkuù | C10: =IFERROR(VLOOKUP(A10,RESTAF_01,3,0),"") -> H | D10: 10 | E10: =IFERROR(VLOOKUP(A10,PERS_VAL,4,0),"-") -> 33 | K10: =IFERROR((E10*D10),"") -> 330 | L10: =IFERROR(J10*D10,"-") -> 0 | M10: =IFERROR(IF($D$6>0,K10*$N$6,K10),"") -> 31213.33093 | N10: =IFERROR(IF($D$6>0,D10*$N$6,D10),"") -> 945.858513 | O10: =IFERROR(IF($D$6>0,(E10*D10)*$N$6,(E10*D10)),0) -> 31213.33093 | S10: =IFERROR(-SUM(U10:AJ10)+M10+N10,"") -> 945.858513 | U10: =IFERROR(+K10*$N$6,0) -> 31213.33093
A11: A.117 | B11: prprtttttttttttttttttttttttkuù | C11: H | D11: 10 | E11: 33 | K11: =IFERROR((E11*D11),"") -> 330 | L11: 0 | M11: 31213.33093 | N11: 945.858513 | O11: =IFERROR(IF($D$6>0,(E11*D11)*$N$6,(E11*D11)),0) -> 31213.33093 | S11: 945.858513 | V11: =IFERROR(+K11*N6,0) -> 31213.33093
A12: A.118 | B12: prprtttttttttttttttttttttttkuù | C12: H | D12: 10 | E12: 33 | K12: 330 | L12: 0 | M12: 31213.33093 | N12: 945.858513 | O12: 31213.33093 | S12: 945.858513 | W12: =IFERROR(+K12*N6,0) -> 31213.33093
A13: A.116 | B13: prprtttttttttttttttttttttttkuù | C13: H | D13: 50 | E13: 33 | K13: 1650 | L13: 0 | M13: 156066.6546 | N13: 4729.292565 | O13: 156066.6546 | S13: 4729.292565 | X13: =IFERROR(+K13*N6,) -> 156066.6546
A14: A.119 | B14: =IFERROR(VLOOKUP(A14,RESTAF_01,2,0),"") -> prprtttttttttttttttttttttttkuù | C14: =IFERROR(VLOOKUP(A14,RESTAF_01,3,0),"") -> H | D14: 30 | E14: 33 | J14: =IFERROR(VLOOKUP(A14,ST_VAL,4,0),"-") -> - | K14: =IFERROR((E14*D14),"") -> 990 | L14: =IFERROR(J14*D14,"-") -> - | M14: =IFERROR(IF($D$6>0,K14*$N$6,K14),"") -> 93639.99278 | N14: 2837.575539 | O14: =IFERROR(IF($D$6>0,(E14*D14)*$N$6,(E14*D14)),0) -> 93639.99278 | P14: =IFERROR(IF($C$6>0,(F14)*$N$6,(F14)),0) -> 0 | Q14: =IFERROR(IF($C$6>0,(G14*D14)*$N$6,(G14*D14)),0) -> 0 | R14: =IFERROR(IF($C$6>0,(H14*D14)*$N$6,(H14*D14)),0) -> 0 | S14: =IFERROR(-SUM(U14:AJ14)+M14+N14,"") -> 96477.56832 | Y14: =IFERROR(F14*$N$6,0) -> 0 | AJ14: =IFERROR(D14*J14*$N$6,0) -> 0
E15: - | J15: =IFERROR(VLOOKUP(A15,ST_VAL,4,0),"-") -> - | L15: - | N15: 0 | O15: 0 | P15: =IFERROR(IF($C$6>0,(F15)*$N$6,(F15)),0) -> 0 | Q15: =IFERROR(IF($C$6>0,(G15*D15)*$N$6,(G15*D15)),0) -> 0 | R15: =IFERROR(IF($C$6>0,(H15*D15)*$N$6,(H15*D15)),0) -> 0 | Y15: =IFERROR(F15*$N$6,0) -> 0 | AJ15: =IFERROR(D15*J15*$N$6,0) -> 0
A16: Matériel
A17: A.310 | B17: roooooooooooooooooo | C17: LH | D17: 8 | F17: =IFERROR(VLOOKUP(A17,MAT_VAL,4,0),"-") -> 88 | G17: =IFERROR(VLOOKUP(A17,MAT_VAL,6,0),"-") -> 96.8 | H17: =IFERROR(IF(A17="","",RESSOURCES!$D$133*VLOOKUP(A17,MAT_VAL,5,0)),"-") -> 541.2 | J17: - | K17: =IFERROR((E17+F17+G17+D17+H17+I17)*D17,"") -> 5872 | L17: - | M17: 555408.1188 | N17: =IFERROR(IF($D$6>0,D17*$N$6,D17),"") -> 756.6868104 | P17: =IFERROR(IF($D$6>0,(F17*D17)*$N$6,(F17)),0) -> 66588.43931 | Q17: =IFERROR(IF($D$6>0,(G17*D17)*$N$6,(G17*D17)),0) -> 73247.28324 | R17: =IFERROR(IF($D$6>0,(H17*D17)*$N$6,(H17*D17)),0) -> 409518.9018 | S17: 547841.2507 | Z17: =IFERROR(F17*$N$6,0) -> 8323.554914 | AJ17: =IFERROR(D17*J17*$N$6,0) -> 0
A18: A.302 | B18: roooooooooooooooooo | C18: LH | D18: 2 | F18: 88 | G18: 96.8 | H18: =IFERROR(IF(A18="","",RESSOURCES!$D$133*VLOOKUP(A18,MAT_VAL,5,0)),"-") -> 798.6 | J18: - | K18: =IFERROR((E18+F18+G18+D18+H18+I18)*D18,"") -> 1970.8 | L18: - | M18: 186409.7957 | N18: 189.1717026 | P18: 16647.10983 | Q18: =IFERROR(IF($D$6>0,(G18*D18)*$N$6,(G18*D18)),0) -> 18311.82081 | R18: =IFERROR(IF($D$6>0,(H18*D18)*$N$6,(H18*D18)),0) -> 151072.5217 | S18: 178275.4125 | AA18: =IFERROR(F18*$N$6,0) -> 8323.554914 | AJ18: 0
A19: A.313 | B19: roooooooooooooooooo | C19: LH | D19: 1 | F19: 88 | G19: 96.8 | H19: =IFERROR(IF(A19="","",RESSOURCES!$D$133*VLOOKUP(A19,MAT_VAL,5,0)),"-") -> 650.1 | J19: - | K19: 835.9 | L19: - | M19: 79064.3131 | N19: 94.5858513 | P19: 8323.554914 | Q19: 9155.910405 | R19: 61490.26193 | S19: 70835.34404 | AB19: =IFERROR(F19*$N$6,0) -> 8323.554914 | AJ19: 0
A20: A.304 | B20: roooooooooooooooooo | C20: LH | D20: 1 | F20: 88 | G20: 96.8 | H20: =IFERROR(IF(A20="","",RESSOURCES!$D$133*VLOOKUP(A20,MAT_VAL,5,0)),"-") -> 805.2 | J20: - | K20: 991 | L20: - | M20: 93734.57863 | N20: 94.5858513 | P20: 8323.554914 | Q20: 9155.910405 | R20: 76160.52746 | S20: 85505.60957 | AC20: =IFERROR(F20*$N$6,0) -> 8323.554914 | AJ20: 0
A21: A.289 | B21: roooooooooooooooooo | C21: LH | D21: 8 | F21: 88 | G21: 96.8 | H21: =IFERROR(IF(A21="","",RESSOURCES!$D$133*VLOOKUP(A21,MAT_VAL,5,0)),"-") -> 561 | J21: - | K21: 6030.4 | L21: - | M21: 570390.5177 | N21: 756.6868104 | P21: 66588.43931 | Q21: 73247.28324 | R21: 424501.3006 | S21: 562823.6496 | AD21: =IFERROR(F21*$N$6,0) -> 8323.554914 | AJ21: 0
A22: A.307 | B22: roooooooooooooooooo | C22: LH | D22: 6 | F22: 88 | G22: 96.8 | H22: =IFERROR(IF(A22="","",RESSOURCES!$D$133*VLOOKUP(A22,MAT_VAL,5,0)),"-") -> 762.3 | J22: - | K22: 5718.6 | L22: - | M22: 540898.6492 | N22: 567.5151078 | P22: 49941.32948 | Q22: 54935.46243 | R22: 432616.7667 | S22: 533142.6094 | AE22: =IFERROR(F22*$N$6,0) -> 8323.554914 | AJ22: 0
A23: A.288 | B23: roooooooooooooooooo | C23: LH | D23: 5 | F23: 88 | G23: 96.8 | H23: =IFERROR(IF(A23="","",RESSOURCES!$D$133*VLOOKUP(A23,MAT_VAL,5,0)),"-") -> 1782 | J23: - | K23: 9859 | L23: - | M23: 932521.9079 | N23: 472.9292565 | P23: 41617.77457 | Q23: 45779.55203 | R23: 842759.935 | S23: 924671.2823 | AF23: =IFERROR(F23*$N$6,0) -> 8323.554914 | AJ23: 0
A24: A.289 | B24: =IFERROR(VLOOKUP(A24,RESTAF_01,2,0),"") -> roooooooooooooooooo | C24: =IFERROR(VLOOKUP(A24,RESTAF_01,3,0),"") -> LH | D24: 8 | F24: =IFERROR(VLOOKUP(A24,MAT_VAL,4,0),"-") -> 88 | G24: =IFERROR(VLOOKUP(A24,MAT_VAL,6,0),"-") -> 96.8 | H24: 31050 | J24: =IFERROR(VLOOKUP(A24,ST_VAL,4,0),"-") -> - | K24: =IFERROR((E24+F24+G24+D24+H24+I24)*D24,"") -> 249942.4 | L24: =IFERROR(J24*D24,"-") -> - | M24: =IFERROR(IF($D$6>0,K24*$N$6,K24),"") -> 23641014.68 | N24: 756.6868104 | P24: 66588.43931 | Q24: 73247.28324 | R24: 23495125.46 | S24: =IFERROR(-SUM(U24:AJ24)+M24+N24,"") -> 23633447.81 | AG24: =IFERROR(F24*$N$6,0) -> 8323.554914 | AJ24: =IFERROR(D24*J24*$N$6,0) -> 0
A25: Locat° &ST
D26: 8 | F26: - | G26: - | H26: =IFERROR(IF(A26="","",RESSOURCES!$D$133*VLOOKUP(A26,MAT_VAL,5,0)),"-") ->  | J26: - | L26: - | N26: =IFERROR(IF($D$6>0,D26*$N$6,D26),"") -> 756.6868104 | P26: =IFERROR(IF($D$6>0,(F26*D26)*$N$6,(F26)),0) -> 0 | Q26: =IFERROR(IF($C$6>0,(G26*D26)*$N$6,(G26*D26)),0) -> 0 | R26: =IFERROR(IF($C$6>0,(H26*D26)*$N$6,(H26*D26)),0) -> 0 | AG26: =IFERROR(F26*$N$6,0) -> 0 | AH26: =IFERROR(F26*$N$6,0) -> 0 | AJ26: 0
A27: Ftures & conso
A28: A.222 | B28: =IFERROR(VLOOKUP(A28,RESTAF_01,2,0),"") -> aaaaaaaaaaaaaa | C28: =IFERROR(VLOOKUP(A28,RESTAF_01,3,0),"") -> M3 | D28: =+K6*D43 -> 840 | I28: =IFERROR(VLOOKUP(A28,RESSCH_1,4,0),"-") -> 33 | K28: =IFERROR((E28*D28+F28+G28*D28+D28*H28+D28*I28),"") -> 27720 | L28: =IFERROR(J28*D28,"-") -> 0 | M28: =IFERROR(IF($D$6>0,K28*$N$6,K28),"") -> 2621919.798 | N28: =IFERROR(IF($D$6>0,D28*$N$6,D28),"") -> 79452.11509 | S28: =IFERROR(-SUM(U28:AJ28)+M28+N28,"") -> 79452.11509 | AI28: =IFERROR(D28*I28*$N$6,0) -> 2621919.798 | AJ28: =IFERROR(D28*J28*$N$6,0) -> 0
I29: - | L29: 0 | N29: 0 | AI29: 0 | AJ29: 0
I30: - | K30: =IFERROR((E30*D30+F30+G30*D30+D30*H30+D30*I30),"") ->  | L30: 0 | N30: 0 | AI30: =IFERROR(D30*I30*$N$6,0) -> 0 | AJ30: 0
B31: =IFERROR(VLOOKUP(A31,RESTAF_01,2,0),"") ->  | C31: =IFERROR(VLOOKUP(A31,RESTAF_01,3,0),"") ->  | I31: - | L31: 0 | N31: 0 | AI31: 0 | AJ31: 0
I32: - | L32: 0 | N32: 0 | AI32: 0 | AJ32: 0
I33: - | L33: 0 | N33: 0 | AI33: 0 | AJ33: 0
B34: TOTAL | K34: =SUM(K10:K33) -> 312570.1 | L34: =SUM(L10:L33) -> 0 | U34: =+SUM(U10:U33) -> 31213.33093 | V34: 31213.33093 | W34: 31213.33093 | X34: 156066.6546 | Y34: 0 | Z34: 8323.554914 | AA34: 8323.554914 | AB34: 8323.554914 | AC34: 8323.554914 | AD34: 8323.554914 | AE34: 8323.554914 | AF34: 8323.554914 | AG34: 8323.554914 | AH34: =+SUM(AH10:AH33) -> 0 | AI34: 2621919.798 | AJ34: 0
K36: =IFERROR((K34+L34)/$K$6,"") -> 520.9501667 | L36: CFA
G38: TOTAL DEBOURSE SEC HT ARRONDI A : | K38: =IFERROR(ROUNDUP(K36,-1),"") -> 530 | L38: CFA
G39: TOTAL VENTE HT ARRONDI A : | K39: =IFERROR(K38*K40,"") -> 0 | L39: CFA
I40: Coef. de vente
K42: =IFERROR(K36*$D$6,0) -> 29564709
C43: FOISONNEMENT | D43: 1.4
K100: =K42 -> 29564709

Sheet 204
F1: SOUS DETAIL DE PRIX BUDGET
C3: 200 | D3: TERRASSEMENTS GENERAUX : TYPE A
C4: 204 | P4: =SUM(N17:N26) -> 388.9699074 | Q4: =IFERROR(SUM(Q17:Q26)/VLOOKUP(A17,MAT_VAL,6,0),"") -> 311.1759259 | R4: =SUM(R17:R26)/RESSOURCES!$D$133 -> 9727.359444
B5: DESIGNATION DU PRIX : | C5: GEOTEXTILE RENFORCEMENT | E5: Unités : | L5: Unités : | P5: =SUM(P17:P26) -> 27383.48148 | Q5: =SUM(Q17:Q26) -> 30121.82963 | R5: =SUM(R17:R26) -> 321002.8616
B6: QUANTITES PREVUES : | D6: =+'OPTION 2 (fosse terre)'!E22 -> 46676.38889 | E6: M3 | H6: Quantités de rendement : | K6: 3000 | L6: M3 | M6: K | N6: =IFERROR(D6/K6,"") -> 15.5587963 | O6: Mo | P6: Mat_BSI | Q6: Entretien | R6: Carb
E7: Travaux Propres | J7: ST | M7: Coût
A8: Code | B8: Désignation | C8: Unité | D8: Qté ou durée d'utilisation | E8: Main d'œuvre | F8: Amortissement | G8: Entretien | H8: Carb-Energie | I8: Fournitures | J8: Sous-traitant | K8: TOTAL Travaux propres | L8: TOTAL Travaux ST | U8: =B10 -> prprtttttttttttttttttttttttkuù | V8: =B11 -> prprtttttttttttttttttttttttkuù | W8: =B12 -> prprtttttttttttttttttttttttkuù | X8: =B13 -> prprtttttttttttttttttttttttkuù | Y8: =B14 -> prprtttttttttttttttttttttttkuù | Z8: =B15 ->  | AA8: =B17 -> roooooooooooooooooo | AB8: =B18 -> roooooooooooooooooo | AC8: =B19 -> roooooooooooooooooo | AD8: =B20 -> roooooooooooooooooo | AE8: =B21 -> roooooooooooooooooo | AF8: =B22 ->  | AG8: =B24 ->  | AH8: =B25 ->  | AI8: =B26 ->  | AJ8: =A27 -> Ftures & conso | AK8: =+J8 -> Sous-traitant
A9: Personnel
A10: A.114 | B10: =IFERROR(VLOOKUP(A10,RESTAF_01,2,0),"") -> prprtttttttttttttttttttttttkuù | C10: =IFERROR(VLOOKUP(A10,RESTAF_01,3,0),"") -> H | D10: 10 | E10: =IFERROR(VLOOKUP(A10,PERS_VAL,4,0),"-") -> 33 | K10: =IFERROR((E10*D10),"") -> 330 | L10: =IFERROR(J10*D10,"-") -> 0 | M10: =IFERROR(IF($D$6>0,K10*$N$6,K10),"") -> 5134.402777 | N10: =IFERROR(IF($D$6>0,D10*$N$6,D10),"") -> 155.587963 | O10: =IFERROR(IF($D$6>0,(E10*D10)*$N$6,(E10*D10)),0) -> 5134.402777 | S10: =IFERROR(-SUM(U10:AK10)+M10+N10,"") -> 155.587963 | U10: =IFERROR(+K10*$N$6,0) -> 5134.402777
A11: A.117 | B11: prprtttttttttttttttttttttttkuù | C11: H | D11: 10 | E11: 33 | K11: =IFERROR((E11*D11),"") -> 330 | L11: 0 | M11: 5134.402777 | N11: 155.587963 | O11: =IFERROR(IF($D$6>0,(E11*D11)*$N$6,(E11*D11)),0) -> 5134.402777 | S11: 155.587963 | V11: =IFERROR(+K11*$N$6,0) -> 5134.402777
A12: A.118 | B12: prprtttttttttttttttttttttttkuù | C12: H | D12: 10 | E12: 33 | K12: 330 | L12: 0 | M12: 5134.402777 | N12: 155.587963 | O12: 5134.402777 | S12: 155.587963 | W12: =IFERROR(+K12*$N$6,0) -> 5134.402777
A13: A.116 | B13: prprtttttttttttttttttttttttkuù | C13: H | D13: 50 | E13: 33 | K13: 1650 | L13: 0 | M13: 25672.01389 | N13: 777.9398148 | O13: 25672.01389 | S13: 777.9398148 | X13: =IFERROR(+K13*$N$6,0) -> 25672.01389
A14: A.119 | B14: =IFERROR(VLOOKUP(A14,RESTAF_01,2,0),"") -> prprtttttttttttttttttttttttkuù | C14: =IFERROR(VLOOKUP(A14,RESTAF_01,3,0),"") -> H | D14: 30 | E14: 33 | K14: 990 | L14: =IFERROR(J14*D14,"-") -> 0 | M14: =IFERROR(IF($D$6>0,K14*$N$6,K14),"") -> 15403.20833 | N14: 466.7638889 | O14: =IFERROR(IF($D$6>0,(E14*D14)*$N$6,(E14*D14)),0) -> 15403.20833 | S14: =IFERROR(-SUM(U14:AK14)+M14+N14,"") -> 466.7638889 | Y14: =IFERROR(K14*$N$6,0) -> 15403.20833 | AK14: =IFERROR(D14*J14*$N$6,0) -> 0
E15: - | L15: 0 | N15: 0 | O15: 0 | Z15: =IFERROR(K15*$N$6,0) -> 0 | AK15: =IFERROR(D15*J15*$N$6,0) -> 0
A16: Matériel
A17: A.288 | B17: roooooooooooooooooo | C17: LH | D17: 8 | F17: =IFERROR(VLOOKUP(A17,MAT_VAL,4,0),"-") -> 88 | G17: =IFERROR(VLOOKUP(A17,MAT_VAL,6,0),"-") -> 96.8 | H17: =IFERROR(IF(A17="","",RESSOURCES!$D$133*VLOOKUP(A17,MAT_VAL,5,0)),"-") -> 1782 | J17: =IFERROR(VLOOKUP(A17,ST_VAL,4,0),"-") -> - | K17: =IFERROR((E17+F17+G17+D17+H17+I17)*D17,"") -> 15798.4 | L17: - | M17: 245804.0874 | N17: =IFERROR(IF($D$6>0,D17*$N$6,D17),"") -> 124.4703704 | P17: =IFERROR(IF($D$6>0,(F17*D17)*$N$6,(F17)),0) -> 10953.39259 | Q17: =IFERROR(IF($D$6>0,(G17*D17)*$N$6,(G17*D17)),0) -> 12048.73185 | R17: =IFERROR(IF($D$6>0,(H17*D17)*$N$6,(H17*D17)),0) -> 221806.2 | S17: 244559.3837 | AA17: =IFERROR(F17*$N$6,0) -> 1369.174074 | AK17: =IFERROR(D17*J17*$N$6,0) -> 0
A18: A.296 | B18: roooooooooooooooooo | C18: LH | D18: 2 | F18: 88 | G18: 96.8 | H18: =IFERROR(IF(A18="","",RESSOURCES!$D$133*VLOOKUP(A18,MAT_VAL,5,0)),"-") -> 712.8 | J18: - | K18: 1799.2 | L18: - | M18: 27993.38629 | N18: 31.11759259 | P18: 2738.348148 | Q18: =IFERROR(IF($D$6>0,(G18*D18)*$N$6,(G18*D18)),0) -> 3012.182963 | R18: =IFERROR(IF($D$6>0,(H18*D18)*$N$6,(H18*D18)),0) -> 22180.62 | S18: 26655.32981 | AB18: =IFERROR(F18*$N$6,0) -> 1369.174074 | AK18: 0
A19: A.306 | B19: roooooooooooooooooo | C19: LH | D19: 1 | F19: 88 | G19: 96.8 | H19: =IFERROR(IF(A19="","",RESSOURCES!$D$133*VLOOKUP(A19,MAT_VAL,5,0)),"-") -> 462 | J19: - | K19: 647.8 | L19: - | M19: 10078.98824 | N19: 15.5587963 | P19: 1369.174074 | Q19: 1506.091481 | R19: 7188.163888 | S19: 8725.372962 | AC19: =IFERROR(F19*$N$6,0) -> 1369.174074 | AK19: 0
A20: A.312 | B20: roooooooooooooooooo | C20: LH | D20: 1 | F20: 88 | G20: 96.8 | H20: =IFERROR(IF(A20="","",RESSOURCES!$D$133*VLOOKUP(A20,MAT_VAL,5,0)),"-") -> 0 | J20: - | K20: 185.8 | L20: - | M20: 2890.824352 | N20: 15.5587963 | P20: 1369.174074 | Q20: 1506.091481 | R20: 0 | S20: 1537.209074 | AD20: =IFERROR(F20*$N$6,0) -> 1369.174074 | AK20: 0
A21: A.289 | B21: roooooooooooooooooo | C21: LH | D21: 8 | F21: 88 | G21: 96.8 | H21: =IFERROR(IF(A21="","",RESSOURCES!$D$133*VLOOKUP(A21,MAT_VAL,5,0)),"-") -> 561 | J21: - | K21: 6030.4 | L21: - | M21: 93825.76518 | N21: 124.4703704 | P21: 10953.39259 | Q21: 12048.73185 | R21: 69827.87777 | S21: 92581.06147 | AE21: =IFERROR(F21*$N$6,0) -> 1369.174074 | AK21: 0
F22: - | G22: - | H22: =IFERROR(IF(A22="","",RESSOURCES!$D$133*VLOOKUP(A22,MAT_VAL,5,0)),"-") ->  | J22: - | L22: - | N22: 0 | P22: 0 | Q22: 0 | R22: 0 | AF22: =IFERROR(F22*$N$6,0) -> 0 | AK22: 0
A23: Locat° &ST
D24: 5 | F24: - | G24: - | H24: =IFERROR(IF(A24="","",RESSOURCES!$D$133*VLOOKUP(A24,MAT_VAL,5,0)),"-") ->  | J24: - | K24: =IFERROR((E24*D24+F24+G24*D24+D24*H24+D24*I24),"") ->  | L24: - | N24: =IFERROR(IF($D$6>0,D24*$N$6,D24),"") -> 77.79398148 | P24: =IFERROR(IF($D$6>0,(F24*D24)*$N$6,(F24)),0) -> 0 | Q24: =IFERROR(IF($D$6>0,(G24*D24)*$N$6,(G24*D24)),0) -> 0 | R24: =IFERROR(IF($D$6>0,(H24*D24)*$N$6,(H24*D24)),0) -> 0 | AG24: =IFERROR(F24*$N$6,0) -> 0 | AK24: 0
B25: =IFERROR(VLOOKUP(A25,RESTAF_01,2,0),"") ->  | C25: =IFERROR(VLOOKUP(A25,RESTAF_01,3,0),"") ->  | D25: 8 | F25: =IFERROR(VLOOKUP(A25,MAT_VAL,4,0),"-") -> - | G25: =IFERROR(VLOOKUP(A25,MAT_VAL,6,0),"-") -> - | H25: =IFERROR(IF(A25="","",RESSOURCES!$D$133*VLOOKUP(A25,MAT_VAL,5,0)),"-") ->  | J25: =IFERROR(VLOOKUP(A25,ST_VAL,4,0),"-") -> - | K25: =IFERROR((E25*D25+F25+G25*D25+D25*H25+D25*I25),"") ->  | L25: =IFERROR(J25*D25,"-") -> - | M25: =IFERROR(IF($D$6>0,K25*$N$6,K25),"") ->  | P25: =IFERROR(IF($D$6>0,(F25*D25)*$N$6,(F25)),0) -> 0 | Q25: =IFERROR(IF($D$6>0,(G25*D25)*$N$6,(G25*D25)),0) -> 0 | R25: =IFERROR(IF($D$6>0,(H25*D25)*$N$6,(H25*D25)),0) -> 0 | S25: =IFERROR(-SUM(U25:AK25)+M25+N25,"") ->  | AH25: =IFERROR(F25*$N$6,0) -> 0 | AK25: =IFERROR(D25*J25*$N$6,0) -> 0
F26: - | G26: - | H26: =IFERROR(IF(A26="","",RESSOURCES!$D$133*VLOOKUP(A26,MAT_VAL,5,0)),"-") ->  | J26: - | L26: - | N26: =IFERROR(IF($D$6>0,D26*$N$6,D26),"") -> 0 | P26: =IFERROR(IF($D$6>0,(F26*D26)*$N$6,(F26)),0) -> 0 | Q26: =IFERROR(IF($D$6>0,(G26*D26)*$N$6,(G26*D26)),0) -> 0 | R26: =IFERROR(IF($D$6>0,(H26*D26)*$N$6,(H26*D26)),0) -> 0 | AI26: =IFERROR(F26*$N$6,0) -> 0 | AK26: 0
A27: Ftures & conso
B28: =IFERROR(VLOOKUP(A28,RESTAF_01,2,0),"") ->  | C28: =IFERROR(VLOOKUP(A28,RESTAF_01,3,0),"") ->  | F28: =IFERROR(VLOOKUP(A28,MAT_VAL,4,0),"-") -> - | G28: =IFERROR(VLOOKUP(A28,MAT_VAL,6,0),"-") -> - | H28: =IFERROR(IF(A28="","",D28*730*VLOOKUP(A28,MAT_VAL,5,0)),"-") ->  | I28: =IFERROR(VLOOKUP(A28,RESTAF_01,4,0),"-") -> - | K28: =IFERROR((E28*D28+F28+G28*D28+D28*H28+D28*I28),"") ->  | L28: =IFERROR(J28*D28,"-") -> 0 | M28: =IFERROR(IF($D$6>0,K28*$N$6,K28),"") ->  | N28: =IFERROR(IF($D$6>0,D28*$N$6,D28),"") -> 0 | S28: =IFERROR(-SUM(U28:AK28)+M28+N28,"") ->  | AJ28: =IFERROR(D28*I28*$N$6,0) -> 0 | AK28: =IFERROR(D28*J28*$N$6,0) -> 0
F29: - | G29: - | H29: =IFERROR(IF(A29="","",D29*730*VLOOKUP(A29,MAT_VAL,5,0)),"-") ->  | I29: =IFERROR(VLOOKUP(A29,RESTAF_01,4,0),"-") -> - | L29: 0 | N29: 0 | AJ29: =IFERROR(D29*I29*$N$6,0) -> 0 | AK29: 0
A30: A.247 | B30: TTTGttttttttttttttttts | C30: M² | D30: =+K6*RESSOURCES!G135 -> 0 | I30: =IFERROR(VLOOKUP(A30,RESSCH_1,4,0),"-") -> 33 | K30: 0 | L30: 0 | M30: 0 | N30: 0 | S30: 0 | AJ30: =IFERROR(D30*I30*$N$6,0) -> 0 | AK30: 0
B31: =IFERROR(VLOOKUP(A31,RESTAF_01,2,0),"") ->  | C31: =IFERROR(VLOOKUP(A31,RESTAF_01,3,0),"") ->  | I31: =IFERROR(VLOOKUP(A31,RESSCH_1,4,0),"-") -> - | K31: =IFERROR((E31*D31+F31+G31*D31+D31*H31+D31*I31),"") ->  | L31: 0 | N31: 0 | AJ31: 0 | AK31: 0
I32: =IFERROR(VLOOKUP(A32,RESSCH_1,4,0),"-") -> - | L32: 0 | N32: 0 | AJ32: 0 | AK32: 0
I33: =IFERROR(VLOOKUP(A33,RESSCH_1,4,0),"-") -> - | L33: 0 | N33: 0 | AJ33: 0 | AK33: 0
B34: TOTAL | K34: =SUM(K10:K33) -> 28091.6 | L34: =SUM(L10:L33) -> 0 | U34: =+SUM(U10:U33) -> 5134.402777 | V34: 5134.402777 | W34: 5134.402777 | X34: 25672.01389 | Y34: =+SUM(Y10:Y33) -> 15403.20833 | Z34: 0 | AA34: 1369.174074 | AB34: 1369.174074 | AC34: 1369.174074 | AD34: 1369.174074 | AE34: 1369.174074 | AF34: 0 | AG34: 0 | AH34: 0 | AI34: =+SUM(AI10:AI33) -> 0 | AJ34: 0 | AK34: 0
K36: =IFERROR((K34+L34)/$K$6,"") -> 9.363866667 | L36: CFA
G38: TOTAL DEBOURSE SEC HT ARRONDI A : | K38: =IFERROR(ROUNDUP(K36,-1),"") -> 10 | L38: CFA
G39: TOTAL VENTE HT ARRONDI A : | K39: =IFERROR(K38*K40,"") -> 0 | L39: CFA
I40: Coef. de vente
K42: =IFERROR(K36*$D$6,0) -> 437071.482
K100: =K42 -> 437071.482

Sheet 205
F1: SOUS DETAIL DE PRIX BUDGET
C4: 205 | P4: =SUM(N17:N26) -> 989.1976944 | Q4: =IFERROR(SUM(Q17:Q26)/VLOOKUP(A17,MAT_VAL,6,0),"") -> 989.1976944 | R4: =SUM(R17:R26)/RESSOURCES!$D$133 -> 22850.46674
B5: DESIGNATION DU PRIX : | C5: COMPACTAGE DE L'ARASE DE LA PLATEFORME | E5: Unités : | L5: Unités : | P5: =SUM(P17:P26) -> 87049.39711 | Q5: =SUM(Q17:Q26) -> 95754.33682 | R5: =SUM(R17:R26) -> 754065.4024
B6: QUANTITES PREVUES : | D6: =+'OPTION 2 (fosse terre)'!E23 -> 123649.7118 | H6: Quantités de rendement : | K6: 1000 | M6: K | N6: =IFERROR(D6/K6,"") -> 123.6497118 | O6: Mo | P6: Mat_BSI | Q6: Entretien | R6: Carb
E7: Travaux Propres | J7: ST | M7: Coût
A8: Code | B8: Désignation | C8: Unité | D8: Qté ou durée d'utilisation | E8: Main d'œuvre | F8: Amortissement | G8: Entretien | H8: Carb-Energie | I8: Fournitures | J8: Sous-traitant | K8: TOTAL Travaux propres | L8: TOTAL Travaux ST | U8: =B10 -> prprtttttttttttttttttttttttkuù | V8: =B11 -> prprtttttttttttttttttttttttkuù | W8: =B12 -> prprtttttttttttttttttttttttkuù | X8: =B13 -> prprtttttttttttttttttttttttkuù | Y8: =B14 -> prprtttttttttttttttttttttttkuù | Z8: =K15 ->  | AA8: =B17 -> roooooooooooooooooo | AB8: =B18 ->  | AC8: =B19 ->  | AD8: =B20 ->  | AE8: =B21 ->  | AF8: =B22 ->  | AG8: =B23 ->  | AH8: =B24 ->  | AI8: =B25 ->  | AJ8: =B26 ->  | AK8: =A27 -> Ftures & conso | AL8: =+J8 -> Sous-traitant
A9: Personnel
A10: A.114 | B10: =IFERROR(VLOOKUP(A10,RESTAF_01,2,0),"") -> prprtttttttttttttttttttttttkuù | C10: =IFERROR(VLOOKUP(A10,RESTAF_01,3,0),"") -> H | D10: 4 | E10: =IFERROR(VLOOKUP(A10,PERS_VAL,4,0),"-") -> 33 | K10: =IFERROR((E10*D10),"") -> 132 | L10: =IFERROR(J10*D10,"-") -> 0 | M10: =IFERROR(IF($D$6>0,K10*$N$6,K10),"") -> 16321.76196 | N10: =IFERROR(IF($D$6>0,D10*$N$6,D10),"") -> 494.5988472 | O10: =IFERROR(IF($D$6>0,(E10*D10)*$N$6,(E10*D10)),0) -> 16321.76196 | S10: =IFERROR(-SUM(U10:AL10)+M10+N10,"") -> 494.5988472 | U10: =IFERROR(+K10*$N$6,0) -> 16321.76196
A11: A.117 | B11: prprtttttttttttttttttttttttkuù | C11: H | D11: 4 | E11: 33 | K11: =IFERROR((E11*D11),"") -> 132 | L11: 0 | M11: 16321.76196 | N11: 494.5988472 | O11: =IFERROR(IF($D$6>0,(E11*D11)*$N$6,(E11*D11)),0) -> 16321.76196 | S11: 494.5988472 | V11: =IFERROR(+K11*$N$6,0) -> 16321.76196
A12: A.118 | B12: prprtttttttttttttttttttttttkuù | C12: H | D12: 1 | E12: 33 | K12: 33 | L12: 0 | M12: 4080.440489 | N12: 123.6497118 | O12: 4080.440489 | S12: 123.6497118 | W12: =IFERROR(+K12*$N$6,0) -> 4080.440489
A13: A.119 | B13: =IFERROR(VLOOKUP(A13,RESTAF_01,2,0),"") -> prprtttttttttttttttttttttttkuù | C13: =IFERROR(VLOOKUP(A13,RESTAF_01,3,0),"") -> H | D13: 1 | E13: 33 | K13: =IFERROR((E13*D13),"") -> 33 | L13: =IFERROR(J13*D13,"-") -> 0 | M13: =IFERROR(IF($D$6>0,K13*$N$6,K13),"") -> 4080.440489 | N13: 123.6497118 | O13: =IFERROR(IF($D$6>0,(E13*D13)*$N$6,(E13*D13)),0) -> 4080.440489 | S13: =IFERROR(-SUM(U13:AL13)+M13+N13,"") -> 123.6497118 | W13: =IFERROR(+K13*$N$6,0) -> 4080.440489
A14: A.116 | B14: prprtttttttttttttttttttttttkuù | C14: H | D14: 8 | E14: 33 | K14: 264 | L14: 0 | M14: 32643.52392 | N14: 989.1976944 | O14: 32643.52392 | S14: 989.1976944 | W14: 32643.52392
E15: - | L15: 0 | N15: 0 | O15: 0 | W15: 0
A16: Matériel
A17: A.307 | B17: roooooooooooooooooo | C17: LH | D17: 8 | F17: =IFERROR(VLOOKUP(A17,MAT_VAL,4,0),"-") -> 88 | G17: =IFERROR(VLOOKUP(A17,MAT_VAL,6,0),"-") -> 96.8 | H17: =IFERROR(IF(A17="","",RESSOURCES!$D$133*VLOOKUP(A17,MAT_VAL,5,0)),"-") -> 762.3 | J17: =IFERROR(VLOOKUP(A17,ST_VAL,4,0),"-") -> - | K17: =IFERROR((E17+F17+G17+D17+H17+I17)*D17,"") -> 7640.8 | L17: - | M17: 944782.7179 | N17: =IFERROR(IF($D$6>0,D17*$N$6,D17),"") -> 989.1976944 | P17: =IFERROR(IF($D$6>0,(F17*D17)*$N$6,(F17)),0) -> 87049.39711 | Q17: =IFERROR(IF($D$6>0,(G17*D17)*$N$6,(G17*D17)),0) -> 95754.33682 | R17: =IFERROR(IF($D$6>0,(H17*D17)*$N$6,(H17*D17)),0) -> 754065.4024 | S17: 934890.741 | AA17: =IFERROR(F17*$N$6,0) -> 10881.17464 | AL17: =IFERROR(D17*J17*$N$6,0) -> 0
F18: - | G18: - | H18: =IFERROR(IF(A18="","",RESSOURCES!$D$133*VLOOKUP(A18,MAT_VAL,5,0)),"-") ->  | J18: - | K18: =IFERROR((E18+F18+G18+D18+H18+I18)*D18,"") ->  | L18: - | N18: 0 | P18: 0 | Q18: =IFERROR(IF($D$6>0,(G18*D18)*$N$6,(G18*D18)),0) -> 0 | R18: =IFERROR(IF($D$6>0,(H18*D18)*$N$6,(H18*D18)),0) -> 0 | AB18: =IFERROR(F18*$N$6,0) -> 0 | AL18: =IFERROR(D18*J18*$N$6,0) -> 0
F19: - | G19: - | H19: =IFERROR(IF(A19="","",RESSOURCES!$D$133*VLOOKUP(A19,MAT_VAL,5,0)),"-") ->  | J19: - | L19: - | N19: 0 | P19: 0 | Q19: 0 | R19: 0 | AC19: =IFERROR(F19*$N$6,0) -> 0 | AL19: 0
F20: - | G20: - | H20: =IFERROR(IF(A20="","",RESSOURCES!$D$133*VLOOKUP(A20,MAT_VAL,5,0)),"-") ->  | J20: - | L20: - | N20: 0 | P20: 0 | Q20: 0 | R20: 0 | AD20: =IFERROR(F20*$N$6,0) -> 0 | AL20: 0
F21: - | G21: - | H21: =IFERROR(IF(A21="","",RESSOURCES!$D$133*VLOOKUP(A21,MAT_VAL,5,0)),"-") ->  | J21: - | L21: - | N21: 0 | P21: 0 | Q21: 0 | R21: 0 | AE21: =IFERROR(F21*$N$6,0) -> 0 | AL21: 0
F22: - | G22: - | H22: =IFERROR(IF(A22="","",RESSOURCES!$D$133*VLOOKUP(A22,MAT_VAL,5,0)),"-") ->  | J22: - | L22: - | N22: 0 | P22: 0 | Q22: 0 | R22: 0 | AF22: =IFERROR(F22*$N$6,0) -> 0 | AL22: 0
F23: - | G23: - | H23: =IFERROR(IF(A23="","",RESSOURCES!$D$133*VLOOKUP(A23,MAT_VAL,5,0)),"-") ->  | J23: - | L23: - | P23: 0 | Q23: 0 | R23: 0 | AG23: =IFERROR(F23*$N$6,0) -> 0 | AL23: 0
F24: - | G24: - | H24: =IFERROR(IF(A24="","",RESSOURCES!$D$133*VLOOKUP(A24,MAT_VAL,5,0)),"-") ->  | J24: - | L24: - | N24: =IFERROR(IF($D$6>0,D24*$N$6,D24),"") -> 0 | P24: 0 | Q24: 0 | R24: 0 | AH24: =IFERROR(F24*$N$6,0) -> 0 | AL24: 0
F25: - | G25: - | H25: =IFERROR(IF(A25="","",RESSOURCES!$D$133*VLOOKUP(A25,MAT_VAL,5,0)),"-") ->  | J25: - | L25: - | P25: 0 | Q25: 0 | R25: 0 | AI25: =IFERROR(F25*$N$6,0) -> 0 | AL25: 0
F26: - | G26: - | H26: =IFERROR(IF(A26="","",RESSOURCES!$D$133*VLOOKUP(A26,MAT_VAL,5,0)),"-") ->  | J26: - | L26: - | N26: =IFERROR(IF($D$6>0,D26*$N$6,D26),"") -> 0 | P26: 0 | Q26: 0 | R26: 0 | AJ26: =IFERROR(G26*$N$6,0) -> 0 | AL26: 0
A27: Ftures & conso
I28: =IFERROR(VLOOKUP(A28,RESSCH_1,4,0),"-") -> - | K28: =IFERROR((E28*D28+F28+G28*D28+D28*H28+D28*I28),"") ->  | L28: 0 | N28: =IFERROR(IF($D$6>0,D28*$N$6,D28),"") -> 0 | AK28: =IFERROR(D28*I28*$N$6,0) -> 0 | AL28: 0
I29: - | L29: 0 | N29: =IFERROR(IF($D$6>0,D29*$N$6,D29),"") -> 0 | AK29: 0 | AL29: 0
I30: - | L30: 0 | N30: =IFERROR(IF($D$6>0,D30*$N$6,D30),"") -> 0 | AK30: 0 | AL30: 0
I31: - | L31: 0 | N31: =IFERROR(IF($D$6>0,D31*$N$6,D31),"") -> 0 | AK31: 0 | AL31: 0
I32: - | L32: 0 | N32: 0 | AK32: 0 | AL32: 0
I33: - | N33: 0 | AK33: 0 | AL33: 0
I34: - | L34: 0 | N34: 0 | AK34: 0 | AL34: 0
I35: - | L35: 0 | N35: 0 | AK35: 0 | AL35: 0
I36: - | N36: 0 | AK36: 0 | AL36: 0
B37: TOTAL | K37: =SUM(K10:K36) -> 8234.8 | L37: =SUM(L10:L36) -> 0 | U37: =+SUM(U10:U36) -> 16321.76196 | V37: 16321.76196 | W37: 40804.40489 | X37: 0 | Y37: 0 | Z37: 0 | AA37: 10881.17464 | AB37: 0 | AC37: 0 | AD37: 0 | AE37: 0 | AF37: 0 | AG37: 0 | AH37: 0 | AI37: 0 | AJ37: =+SUM(AJ10:AJ36) -> 0 | AK37: =+SUM(AK10:AK36) -> 0 | AL37: =+SUM(AL10:AL36) -> 0
K39: =IFERROR((K37+L37)/$K$6,"") -> 8.2348 | L39: CFA
G41: TOTAL DEBOURSE SEC HT ARRONDI A : | K41: =IFERROR(ROUNDUP(K39,-1),"") -> 10 | L41: CFA
G42: TOTAL VENTE HT ARRONDI A : | K42: =IFERROR(K41*K43,"") -> 0 | L42: CFA
I43: Coef. de vente
K45: =IFERROR(K39*$D$6,0) -> 1018230.647
K100: =K45 -> 1018230.647

Sheet 301
F1: SOUS DETAIL DE PRIX BUDGET
C3: 300 | D3: CHAUSSEES
C4: 301 | P4: =SUM(N17:N26) -> 1765.931081 | Q4: =IFERROR(SUM(Q17:Q26)/VLOOKUP(A17,MAT_VAL,6,0),"") -> 1765.931081 | R4: =SUM(R17:R26)/RESSOURCES!$D$133 -> 46450.52792
B5: DESIGNATION DU PRIX : | C5: MATERIAUX D'APPORT POUR STABILISATION | E5: Unités : | L5: Unités : | P5: =SUM(P17:P26) -> 155401.9352 | Q5: =SUM(Q17:Q26) -> 170942.1287 | R5: =SUM(R17:R26) -> 1532867.422
B6: QUANTITES PREVUES : | D6: =+'OPTION 2 (fosse terre)'!E26 -> 32702.42743 | H6: Quantités de rendement : | K6: 500 | M6: K | N6: =IFERROR(D6/K6,"") -> 65.40485486 | O6: Mo | P6: Mat_BSI | Q6: Entretien | R6: Carb
E7: Travaux Propres | J7: ST | M7: Coût
A8: Code | B8: Désignation | C8: Unité | D8: Qté ou durée d'utilisation | E8: Main d'œuvre | F8: Amortissement | G8: Entretien | H8: Carb-Energie | I8: Fournitures | J8: Sous-traitant | K8: TOTAL Travaux propres | L8: TOTAL Travaux ST | U8: =B10 -> prprtttttttttttttttttttttttkuù | V8: =B11 -> prprtttttttttttttttttttttttkuù | W8: =B12 -> prprtttttttttttttttttttttttkuù | X8: =B13 -> prprtttttttttttttttttttttttkuù | Y8: =B14 ->  | Z8: =B17 -> roooooooooooooooooo | AA8: =B18 -> roooooooooooooooooo | AB8: =B19 -> roooooooooooooooooo | AC8: =B20 -> roooooooooooooooooo | AD8: =B21 -> roooooooooooooooooo | AE8: =B22 -> roooooooooooooooooo | AF8: =B23 -> roooooooooooooooooo | AG8: =B24 ->  | AH8: =B25 ->  | AI8: =B26 ->  | AJ8: =A27 -> Ftures & conso | AK8: =+J8 -> Sous-traitant
A9: Personnel
A10: A.114 | B10: =IFERROR(VLOOKUP(A10,RESTAF_01,2,0),"") -> prprtttttttttttttttttttttttkuù | C10: =IFERROR(VLOOKUP(A10,RESTAF_01,3,0),"") -> H | D10: 10 | E10: =IFERROR(VLOOKUP(A10,PERS_VAL,4,0),"-") -> 33 | K10: =IFERROR((E10*D10),"") -> 330 | L10: =IFERROR(J10*D10,"-") -> 0 | M10: =IFERROR(IF($D$6>0,K10*$N$6,K10),"") -> 21583.60211 | N10: =IFERROR(IF($D$6>0,D10*$N$6,D10),"") -> 654.0485486 | O10: =IFERROR(IF($D$6>0,(E10*D10)*$N$6,(E10*D10)),0) -> 21583.60211 | S10: =IFERROR(-SUM(U10:AK10)+M10+N10,"") -> 654.0485486 | U10: =IFERROR(+K10*$N$6,0) -> 21583.60211
A11: A.117 | B11: prprtttttttttttttttttttttttkuù | C11: H | D11: 10 | E11: 33 | K11: =IFERROR((E11*D11),"") -> 330 | L11: 0 | M11: 21583.60211 | N11: 654.0485486 | O11: =IFERROR(IF($D$6>0,(E11*D11)*$N$6,(E11*D11)),0) -> 21583.60211 | S11: 654.0485486 | V11: =IFERROR(+K11*$N$6,0) -> 21583.60211
A12: A.118 | B12: prprtttttttttttttttttttttttkuù | C12: H | D12: 10 | E12: 33 | K12: 330 | L12: 0 | M12: 21583.60211 | N12: 654.0485486 | O12: 21583.60211 | S12: 654.0485486 | W12: =IFERROR(+K12*$N$6,0) -> 21583.60211
A13: A.119 | B13: =IFERROR(VLOOKUP(A13,RESTAF_01,2,0),"") -> prprtttttttttttttttttttttttkuù | C13: =IFERROR(VLOOKUP(A13,RESTAF_01,3,0),"") -> H | D13: 50 | E13: 33 | K13: =IFERROR((E13*D13),"") -> 1650 | L13: =IFERROR(J13*D13,"-") -> 0 | M13: =IFERROR(IF($D$6>0,K13*$N$6,K13),"") -> 107918.0105 | N13: 3270.242743 | O13: =IFERROR(IF($D$6>0,(E13*D13)*$N$6,(E13*D13)),0) -> 107918.0105 | S13: =IFERROR(-SUM(U13:AK13)+M13+N13,"") -> 3270.242743 | X13: =IFERROR(+K13*$N$6,0) -> 107918.0105
D14: 30 | E14: - | L14: 0 | N14: 1962.145646 | O14: 0 | Y14: =IFERROR(+K14*$N$6,0) -> 0
E15: - | L15: 0 | N15: 0 | O15: 0
A16: Matériel
A17: A.310 | B17: roooooooooooooooooo | C17: LH | D17: 2 | F17: =IFERROR(VLOOKUP(A17,MAT_VAL,4,0),"-") -> 88 | G17: =IFERROR(VLOOKUP(A17,MAT_VAL,6,0),"-") -> 96.8 | H17: =IFERROR(IF(A17="","",RESSOURCES!$D$133*VLOOKUP(A17,MAT_VAL,5,0)),"-") -> 541.2 | J17: =IFERROR(VLOOKUP(A17,ST_VAL,4,0),"-") -> - | K17: =IFERROR((E17+F17+G17+D17+H17+I17)*D17,"") -> 1456 | L17: - | M17: 95229.46868 | N17: =IFERROR(IF($D$6>0,D17*$N$6,D17),"") -> 130.8097097 | P17: =IFERROR(IF($D$6>0,(F17*D17)*$N$6,(F17)),0) -> 11511.25446 | Q17: =IFERROR(IF($D$6>0,(G17*D17)*$N$6,(G17*D17)),0) -> 12662.3799 | R17: =IFERROR(IF($D$6>0,(H17*D17)*$N$6,(H17*D17)),0) -> 70794.2149 | S17: 89604.65116 | Z17: =IFERROR(F17*$N$6,0) -> 5755.627228 | AK17: =IFERROR(D17*J17*$N$6,0) -> 0
A18: A.302 | B18: roooooooooooooooooo | C18: LH | D18: 1 | F18: 88 | G18: 96.8 | H18: =IFERROR(IF(A18="","",RESSOURCES!$D$133*VLOOKUP(A18,MAT_VAL,5,0)),"-") -> 798.6 | J18: - | K18: =IFERROR((E18+F18+G18+D18+H18+I18)*D18,"") -> 984.4 | L18: - | M18: 64384.53913 | N18: 65.40485486 | P18: 5755.627228 | Q18: =IFERROR(IF($D$6>0,(G18*D18)*$N$6,(G18*D18)),0) -> 6331.189951 | R18: =IFERROR(IF($D$6>0,(H18*D18)*$N$6,(H18*D18)),0) -> 52232.31709 | S18: 58694.31675 | AA18: =IFERROR(F18*$N$6,0) -> 5755.627228 | AK18: =IFERROR(D18*J18*$N$6,0) -> 0
A19: A.313 | B19: roooooooooooooooooo | C19: LH | D19: 6 | F19: 88 | G19: 96.8 | H19: =IFERROR(IF(A19="","",RESSOURCES!$D$133*VLOOKUP(A19,MAT_VAL,5,0)),"-") -> 650.1 | J19: - | K19: 5045.4 | L19: - | M19: 329993.6547 | N19: 392.4291292 | P19: 34533.76337 | Q19: 37987.13971 | R19: 255118.1769 | S19: 324630.4566 | AB19: =IFERROR(F19*$N$6,0) -> 5755.627228 | AK19: 0
A20: A.304 | B20: roooooooooooooooooo | C20: LH | D20: 1 | F20: 88 | G20: 96.8 | H20: =IFERROR(IF(A20="","",RESSOURCES!$D$133*VLOOKUP(A20,MAT_VAL,5,0)),"-") -> 805.2 | J20: - | K20: 991 | L20: - | M20: 64816.21117 | N20: 65.40485486 | P20: 5755.627228 | Q20: 6331.189951 | R20: 52663.98914 | S20: 59125.9888 | AC20: =IFERROR(F20*$N$6,0) -> 5755.627228 | AK20: 0
A21: A.289 | B21: roooooooooooooooooo | C21: LH | D21: 6 | F21: 88 | G21: 96.8 | H21: =IFERROR(IF(A21="","",RESSOURCES!$D$133*VLOOKUP(A21,MAT_VAL,5,0)),"-") -> 561 | J21: - | K21: 4510.8 | L21: - | M21: 295028.2193 | N21: 392.4291292 | P21: 34533.76337 | Q21: 37987.13971 | R21: 220152.7415 | S21: 289665.0212 | AD21: =IFERROR(F21*$N$6,0) -> 5755.627228 | AK21: 0
A22: A.307 | B22: roooooooooooooooooo | C22: LH | D22: 6 | F22: 88 | G22: 96.8 | H22: =IFERROR(IF(A22="","",RESSOURCES!$D$133*VLOOKUP(A22,MAT_VAL,5,0)),"-") -> 762.3 | J22: - | K22: 5718.6 | L22: - | M22: 374024.203 | N22: 392.4291292 | P22: 34533.76337 | Q22: 37987.13971 | R22: 299148.7252 | S22: 368661.0049 | AE22: =IFERROR(F22*$N$6,0) -> 5755.627228 | AK22: 0
A23: A.288 | B23: roooooooooooooooooo | C23: LH | D23: 5 | F23: 88 | G23: 96.8 | H23: =IFERROR(IF(A23="","",RESSOURCES!$D$133*VLOOKUP(A23,MAT_VAL,5,0)),"-") -> 1782 | J23: - | K23: 9859 | L23: - | M23: 644826.4641 | N23: 327.0242743 | P23: 28778.13614 | Q23: 31655.94975 | R23: 582757.2568 | S23: 639397.8612 | AF23: =IFERROR(F23*$N$6,0) -> 5755.627228 | AK23: 0
D24: 0 | F24: - | G24: - | H24: =IFERROR(IF(A24="","",RESSOURCES!$D$133*VLOOKUP(A24,MAT_VAL,5,0)),"-") ->  | J24: - | L24: - | N24: 0 | P24: 0 | Q24: 0 | R24: 0 | AG24: =IFERROR(F24*$N$6,0) -> 0 | AK24: 0
F25: - | G25: - | H25: =IFERROR(IF(A25="","",RESSOURCES!$D$133*VLOOKUP(A25,MAT_VAL,5,0)),"-") ->  | J25: - | L25: - | N25: 0 | P25: 0 | Q25: 0 | R25: 0 | AH25: =IFERROR(F25*$N$6,0) -> 0 | AK25: 0
F26: - | G26: - | H26: =IFERROR(IF(A26="","",RESSOURCES!$D$133*VLOOKUP(A26,MAT_VAL,5,0)),"-") ->  | J26: - | L26: - | N26: 0 | P26: 0 | Q26: 0 | R26: 0 | AI26: =IFERROR(F26*$N$6,0) -> 0 | AK26: 0
A27: Ftures & conso
A28: A.221 | B28: aaaaaaaaaaaaaa | C28: M3 | D28: =+D41*K6 -> 750 | I28: =IFERROR(VLOOKUP(A28,RESSCH_1,4,0),"-") -> 33 | K28: =IFERROR((E28*D28+F28+G28*D28+D28*H28+D28*I28),"") -> 24750 | L28: 0 | M28: 1618770.158 | N28: =IFERROR(IF($D$6>0,D28*$N$6,D28),"") -> 49053.64115 | S28: 49053.64115 | AJ28: =IFERROR(D28*I28*$N$6,0) -> 1618770.158 | AK28: 0
I29: - | L29: 0 | N29: 0 | AJ29: 0 | AK29: 0
I30: - | L30: 0 | N30: 0 | AJ30: 0 | AK30: 0
I31: - | L31: 0 | N31: 0 | AJ31: 0 | AK31: 0
I32: - | L32: 0 | N32: 0 | AJ32: 0 | AK32: 0
I33: - | N33: 0 | AJ33: 0 | AK33: 0
B34: TOTAL | K34: =SUM(K10:K33) -> 55955.2 | L34: =SUM(L10:L33) -> 0 | U34: =+SUM(U10:U33) -> 21583.60211 | V34: 21583.60211 | W34: 21583.60211 | X34: =+SUM(X10:X33) -> 107918.0105 | Y34: 0 | Z34: 5755.627228 | AA34: 5755.627228 | AB34: 5755.627228 | AC34: 5755.627228 | AD34: 5755.627228 | AE34: 5755.627228 | AF34: 5755.627228 | AG34: 0 | AH34: 0 | AI34: =+SUM(AI10:AI33) -> 0 | AJ34: 1618770.158 | AK34: 0
K36: =IFERROR((K34+L34)/$K$6,"") -> 111.9104 | L36: CFA
G38: TOTAL DEBOURSE SEC HT ARRONDI A : | K38: =IFERROR(ROUNDUP(K36,-1),"") -> 120 | L38: CFA
G39: TOTAL VENTE HT ARRONDI A : | K39: =IFERROR(K38*K40,"") -> 0 | L39: CFA
I40: Coef. de vente
C41: FOISONNEMENT | D41: 1.5
K42: =IFERROR(K36*$D$6,0) -> 3659741.735
K100: =K42 -> 3659741.735

Sheet 302
F1: SOUS DETAIL DE PRIX BUDGET
C3: 300 | D3: CHAUSSEES
C4: 302 | P4: =SUM(N17:N26) -> 1046.581177 | Q4: =IFERROR(SUM(Q17:Q26)/VLOOKUP(A17,MAT_VAL,6,0),"") -> 1046.581177 | R4: =SUM(R17:R26)/RESSOURCES!$D$133 -> 35118.61282
B5: DESIGNATION DU PRIX : | C5: RECYCLAGE ET STABILISATION DES SOLS AVEC CIMENT+NOVOCRETE | E5: Unités : | L5: Unités : | P5: =SUM(P17:P26) -> 92099.14355 | Q5: =SUM(Q17:Q26) -> 101309.0579 | R5: =SUM(R17:R26) -> 1158914.223
B6: QUANTITES PREVUES : | D6: =+'OPTION 2 (fosse terre)'!E27 -> 24226.41613 | H6: Quantités de rendement : | K6: 1250 | M6: K | N6: =IFERROR(D6/K6,"") -> 19.3811329 | O6: Mo | P6: Mat_BSI | Q6: Entretien | R6: Carb
E7: Travaux Propres | J7: ST | M7: Coût
A8: Code | B8: Désignation | C8: Unité | D8: Qté ou durée d'utilisation | E8: Main d'œuvre | F8: Amortissement | G8: Entretien | H8: Carb-Energie | I8: Fournitures | J8: Sous-traitant | K8: TOTAL Travaux propres | L8: TOTAL Travaux ST | U8: =B10 -> prprtttttttttttttttttttttttkuù | V8: =B11 -> prprtttttttttttttttttttttttkuù | W8: =B12 -> prprtttttttttttttttttttttttkuù | X8: =B13 -> prprtttttttttttttttttttttttkuù | Y8: =B14 -> prprtttttttttttttttttttttttkuù | Z8: =B17 -> roooooooooooooooooo | AA8: =B18 -> roooooooooooooooooo | AB8: =B19 -> roooooooooooooooooo | AC8: =B20 -> roooooooooooooooooo | AD8: =B21 -> roooooooooooooooooo | AE8: =B22 -> roooooooooooooooooo | AF8: =B23 -> roooooooooooooooooo | AG8: =B24 -> roooooooooooooooooo | AH8: =B25 ->  | AI8: =B26 ->  | AJ8: =A27 -> Ftures & conso | AK8: =+J8 -> Sous-traitant
A9: Personnel
A10: A.114 | B10: =IFERROR(VLOOKUP(A10,RESTAF_01,2,0),"") -> prprtttttttttttttttttttttttkuù | C10: =IFERROR(VLOOKUP(A10,RESTAF_01,3,0),"") -> H | D10: 10 | E10: =IFERROR(VLOOKUP(A10,PERS_VAL,4,0),"-") -> 33 | K10: =IFERROR((E10*D10),"") -> 330 | L10: =IFERROR(J10*D10,"-") -> 0 | M10: =IFERROR(IF($D$6>0,K10*$N$6,K10),"") -> 6395.773858 | N10: =IFERROR(IF($D$6>0,D10*$N$6,D10),"") -> 193.811329 | O10: =IFERROR(IF($D$6>0,(E10*D10)*$N$6,(E10*D10)),0) -> 6395.773858 | S10: =IFERROR(-SUM(U10:AK10)+M10+N10,"") -> 193.811329 | U10: =IFERROR(+K10*$N$6,0) -> 6395.773858
A11: A.117 | B11: prprtttttttttttttttttttttttkuù | C11: H | D11: 10 | E11: 33 | K11: =IFERROR((E11*D11),"") -> 330 | L11: 0 | M11: 6395.773858 | N11: 193.811329 | O11: 6395.773858 | S11: 193.811329 | V11: =IFERROR(+K11*$N$6,0) -> 6395.773858
A12: A.118 | B12: prprtttttttttttttttttttttttkuù | C12: H | D12: 40 | E12: 33 | K12: =IFERROR((E12*D12),"") -> 1320 | L12: =IFERROR(J12*D12,"-") -> 0 | M12: =IFERROR(IF($D$6>0,K12*$N$6,K12),"") -> 25583.09543 | N12: 775.2453161 | O12: 25583.09543 | S12: =IFERROR(-SUM(U12:AK12)+M12+N12,"") -> 775.2453161 | W12: =IFERROR(+K12*$N$6,0) -> 25583.09543
A13: A.116 | B13: prprtttttttttttttttttttttttkuù | C13: H | D13: 50 | E13: 33 | K13: 1650 | L13: 0 | M13: 31978.86929 | N13: 969.0566451 | O13: 31978.86929 | S13: 969.0566451 | X13: =IFERROR(+K13*$N$6,0) -> 31978.86929
A14: A.119 | B14: prprtttttttttttttttttttttttkuù | C14: H | D14: 30 | E14: 33 | K14: 990 | L14: 0 | M14: 19187.32157 | N14: 581.433987 | O14: 19187.32157 | S14: 581.433987 | Y14: =IFERROR(+K14*$N$6,0) -> 19187.32157
B15: =IFERROR(VLOOKUP(A15,RESTAF_01,2,0),"") ->  | C15: =IFERROR(VLOOKUP(A15,RESTAF_01,3,0),"") ->  | E15: =IFERROR(VLOOKUP(A15,PERS_VAL,4,0),"-") -> - | L15: 0 | N15: 0 | O15: 0
A16: Matériel
A17: A.319 | B17: =IFERROR(VLOOKUP(A17,RESTAF_01,2,0),"") -> roooooooooooooooooo | C17: =IFERROR(VLOOKUP(A17,RESTAF_01,3,0),"") -> LH | D17: 4 | F17: =IFERROR(VLOOKUP(A17,MAT_VAL,4,0),"-") -> 88 | G17: =IFERROR(VLOOKUP(A17,MAT_VAL,6,0),"-") -> 96.8 | H17: =IFERROR(IF(A17="","",RESSOURCES!$D$133*VLOOKUP(A17,MAT_VAL,5,0)),"-") -> 818.4 | J17: =IFERROR(VLOOKUP(A17,ST_VAL,4,0),"-") -> - | K17: =IFERROR((E17+F17+G17+D17+H17+I17)*D17,"") -> 4028.8 | L17: - | M17: 78082.70823 | N17: =IFERROR(IF($D$6>0,D17*$N$6,D17),"") -> 77.52453161 | P17: =IFERROR(IF($D$6>0,(F17*D17)*$N$6,(F17)),0) -> 6822.158781 | Q17: =IFERROR(IF($D$6>0,(G17*D17)*$N$6,(G17*D17)),0) -> 7504.374659 | R17: =IFERROR(IF($D$6>0,(H17*D17)*$N$6,(H17*D17)),0) -> 63446.07667 | S17: 76454.69307 | Z17: =IFERROR(F17*$N$6,0) -> 1705.539695 | AK17: =IFERROR(D17*J17*$N$6,0) -> 0
A18: A.296 | B18: roooooooooooooooooo | C18: LH | D18: 3 | F18: 88 | G18: 96.8 | H18: =IFERROR(IF(A18="","",RESSOURCES!$D$133*VLOOKUP(A18,MAT_VAL,5,0)),"-") -> 712.8 | J18: - | K18: =IFERROR((E18+F18+G18+D18+H18+I18)*D18,"") -> 2701.8 | L18: - | M18: 52363.94487 | N18: 58.1433987 | P18: 5116.619086 | Q18: =IFERROR(IF($D$6>0,(G18*D18)*$N$6,(G18*D18)),0) -> 5628.280995 | R18: =IFERROR(IF($D$6>0,(H18*D18)*$N$6,(H18*D18)),0) -> 41444.6146 | S18: 50716.54858 | AA18: =IFERROR(F18*$N$6,0) -> 1705.539695 | AK18: =IFERROR(D18*J18*$N$6,0) -> 0
A19: A.302 | B19: roooooooooooooooooo | C19: LH | D19: 8 | F19: 88 | G19: 96.8 | H19: =IFERROR(IF(A19="","",RESSOURCES!$D$133*VLOOKUP(A19,MAT_VAL,5,0)),"-") -> 798.6 | J19: - | K19: 7931.2 | L19: - | M19: 153715.6413 | N19: 155.0490632 | P19: 13644.31756 | Q19: 15008.74932 | R19: 123822.1819 | S19: 152165.1506 | AB19: =IFERROR(F19*$N$6,0) -> 1705.539695 | AK19: 0
A20: A.309 | B20: roooooooooooooooooo | C20: LH | D20: 4 | F20: 88 | G20: 96.8 | H20: =IFERROR(IF(A20="","",RESSOURCES!$D$133*VLOOKUP(A20,MAT_VAL,5,0)),"-") -> 297 | J20: - | K20: 1943.2 | L20: - | M20: 37661.41745 | N20: 77.52453161 | P20: 6822.158781 | Q20: 7504.374659 | R20: 23024.78589 | S20: 36033.40229 | AC20: =IFERROR(F20*$N$6,0) -> 1705.539695 | AK20: 0
A21: A.316 | B21: roooooooooooooooooo | C21: LH | D21: 6 | F21: 88 | G21: 96.8 | H21: =IFERROR(IF(A21="","",RESSOURCES!$D$133*VLOOKUP(A21,MAT_VAL,5,0)),"-") -> 2884.2 | J21: - | K21: 18450 | L21: - | M21: 357581.902 | N21: 116.2867974 | P21: 10233.23817 | Q21: 11256.56199 | R21: 335394.3811 | S21: 355992.6491 | AD21: =IFERROR(F21*$N$6,0) -> 1705.539695 | AK21: 0
A22: A.307 | B22: roooooooooooooooooo | C22: LH | D22: 20 | F22: 88 | G22: 96.8 | H22: =IFERROR(IF(A22="","",RESSOURCES!$D$133*VLOOKUP(A22,MAT_VAL,5,0)),"-") -> 762.3 | J22: - | K22: 19342 | L22: - | M22: 374869.8726 | N22: 387.622658 | P22: 34110.79391 | Q22: 37521.8733 | R22: 295484.7522 | S22: 373551.9555 | AE22: =IFERROR(F22*$N$6,0) -> 1705.539695 | AK22: 0
A23: A.286 | B23: roooooooooooooooooo | C23: LH | D23: 8 | F23: 88 | G23: 96.8 | H23: =IFERROR(IF(A23="","",RESSOURCES!$D$133*VLOOKUP(A23,MAT_VAL,5,0)),"-") -> 1782 | J23: - | K23: 15798.4 | L23: - | M23: 306190.89 | N23: 155.0490632 | P23: 13644.31756 | Q23: 15008.74932 | R23: 276297.4306 | S23: 304640.3994 | AF23: =IFERROR(F23*$N$6,0) -> 1705.539695 | AK23: 0
A24: A.321 | B24: roooooooooooooooooo | C24: LH | D24: 1 | F24: 88 | G24: 96.8 | H24: =IFERROR(IF(A24="","",RESSOURCES!$D$133*VLOOKUP(A24,MAT_VAL,5,0)),"-") -> 0 | J24: - | K24: 185.8 | L24: - | M24: 3601.014493 | N24: 19.3811329 | P24: 1705.539695 | Q24: 1876.093665 | R24: 0 | S24: 1914.855931 | AG24: =IFERROR(F24*$N$6,0) -> 1705.539695 | AK24: 0
F25: - | G25: - | H25: =IFERROR(IF(A25="","",RESSOURCES!$D$133*VLOOKUP(A25,MAT_VAL,5,0)),"-") ->  | J25: - | L25: - | N25: 0 | P25: 0 | Q25: 0 | R25: 0 | AH25: =IFERROR(F25*$N$6,0) -> 0 | AK25: 0
F26: - | G26: - | H26: =IFERROR(IF(A26="","",RESSOURCES!$D$133*VLOOKUP(A26,MAT_VAL,5,0)),"-") ->  | J26: - | L26: - | N26: 0 | P26: 0 | Q26: 0 | R26: 0 | AI26: =IFERROR(F26*$N$6,0) -> 0 | AK26: 0
A27: Ftures & conso
A28: A.225 | B28: aaaaaaaaaaaaaa | C28: T | D28: =+D38*'302'!K6*'302'!E38 -> 186.6875 | I28: =IFERROR(VLOOKUP(A28,RESSCH_1,4,0),"-") -> 33 | K28: =IFERROR((E28*D28+F28+G28*D28+D28*H28+D28*I28),"") -> 6160.6875 | L28: 0 | M28: 119401.1032 | N28: =IFERROR(IF($D$6>0,D28*$N$6,D28),"") -> 3618.215249 | O28: 0 | P28: =IFERROR(IF($C$6>0,(F28)*$N$6,(F28)),0) -> 0 | Q28: =IFERROR(IF($C$6>0,(G28*D28)*$N$6,(G28*D28)),0) -> 0 | R28: =IFERROR(IF($C$6>0,(H28*D28)*$N$6,(H28*D28)),0) -> 0 | S28: 3618.215249 | AJ28: =IFERROR(D28*I28*$N$6,0) -> 119401.1032 | AK28: 0
A29: A.246 | B29: aaaaaaaaaaaaaa | C29: t | D29: =+D28*F38 -> 3.73375 | I29: 33 | K29: 123.21375 | L29: 0 | M29: 2388.022064 | N29: 72.36430497 | O29: 0 | P29: 0 | Q29: 0 | R29: 0 | S29: 72.36430497 | AJ29: 2388.022064 | AK29: 0
I30: - | L30: 0 | N30: 0 | O30: 0 | P30: 0 | Q30: 0 | R30: 0 | AJ30: 0 | AK30: 0
I31: - | L31: 0 | N31: 0 | O31: 0 | P31: 0 | Q31: 0 | R31: 0 | AJ31: 0 | AK31: 0
I32: - | L32: 0 | N32: 0 | O32: 0 | P32: 0 | Q32: 0 | R32: 0 | AJ32: 0 | AK32: 0
I33: - | N33: 0 | O33: 0 | P33: 0 | Q33: 0 | R33: 0 | AJ33: 0 | AK33: 0
B34: TOTAL | K34: =SUM(K10:K33) -> 81285.10125 | L34: =SUM(L10:L33) -> 0 | U34: =+SUM(U10:U33) -> 6395.773858 | V34: 6395.773858 | W34: 25583.09543 | X34: 31978.86929 | Y34: =+SUM(Y10:Y33) -> 19187.32157 | Z34: 1705.539695 | AA34: 1705.539695 | AB34: 1705.539695 | AC34: 1705.539695 | AD34: 1705.539695 | AE34: 1705.539695 | AF34: 1705.539695 | AG34: 1705.539695 | AH34: 0 | AI34: =+SUM(AI10:AI33) -> 0 | AJ34: 121789.1253 | AK34: 0
K36: =IFERROR((K34+L34)/$K$6,"") -> 65.028081 | L36: CFA
D38: 0.145 | E38: 1.03 | F38: 0.02 | G38: TOTAL DEBOURSE SEC HT ARRONDI A : | K38: =IFERROR(ROUNDUP(K36,-1),"") -> 70 | L38: CFA
G39: TOTAL VENTE HT ARRONDI A : | K39: =IFERROR(K38*K40,"") -> 0 | L39: CFA
I40: Coef. de vente
K42: =IFERROR(K36*$D$6,0) -> 1575397.35
K100: =K42 -> 1575397.35

Sheet 303
F1: SOUS DETAIL DE PRIX BUDGET
C3: 300 | D3: CHAUSSEES
C4: 303 | P4: =SUM(N17:N26) -> 196.3753558 | Q4: =IFERROR(SUM(Q17:Q26)/VLOOKUP(A17,MAT_VAL,6,0),"") -> 196.3753558 | R4: =SUM(R17:R26)/RESSOURCES!$D$133 -> 4752.28361
B5: DESIGNATION DU PRIX : | C5: COUCHE D'IMPREGNATION CUT BACK | E5: Unités : | L5: Unités : | P5: =SUM(P17:P26) -> 17281.03131 | Q5: =SUM(Q17:Q26) -> 3946285.509 | R5: =SUM(R17:R26) -> 156825.3591
B6: QUANTITES PREVUES : | D6: =+'OPTION 2 (fosse terre)'!E28 -> 98187.6779 | H6: Quantités de rendement : | K6: 4000 | M6: K | N6: =IFERROR(D6/K6,"") -> 24.54691948 | O6: Mo | P6: Mat_BSI | Q6: Entretien | R6: Carb
E7: Travaux Propres | J7: ST | M7: Coût
A8: Code | B8: Désignation | C8: Unité | D8: Qté ou durée d'utilisation | E8: Main d'œuvre | F8: Amortissement | G8: Entretien | H8: Carb-Energie | I8: Fournitures | J8: Sous-traitant | K8: TOTAL Travaux propres | L8: TOTAL Travaux ST | U8: =B10 -> prprtttttttttttttttttttttttkuù | V8: =B11 -> prprtttttttttttttttttttttttkuù | W8: =B12 -> prprtttttttttttttttttttttttkuù | X8: =B13 ->  | Y8: =B17 -> roooooooooooooooooo | Z8: =B18 ->  | AA8: =B19 ->  | AB8: =B20 ->  | AC8: =B21 ->  | AD8: =B22 ->  | AE8: =B23 ->  | AF8: =B24 ->  | AG8: =B25 ->  | AH8: =B26 ->  | AI8: =A27 -> Ftures & conso | AJ8: =+J8 -> Sous-traitant
A9: Personnel
A10: A.114 | B10: =IFERROR(VLOOKUP(A10,RESTAF_01,2,0),"") -> prprtttttttttttttttttttttttkuù | C10: =IFERROR(VLOOKUP(A10,RESTAF_01,3,0),"") -> H | D10: 10 | E10: =IFERROR(VLOOKUP(A10,PERS_VAL,4,0),"-") -> 33 | K10: =IFERROR((E10*D10),"") -> 330 | L10: =IFERROR(J10*D10,"-") -> 0 | M10: =IFERROR(IF($D$6>0,K10*$N$6,K10),"") -> 8100.483427 | N10: =IFERROR(IF($D$6>0,D10*$N$6,D10),"") -> 245.4691948 | O10: =IFERROR(IF($D$6>0,(E10*D10)*$N$6,(E10*D10)),0) -> 8100.483427 | S10: =IFERROR(-SUM(U10:AJ10)+M10+N10,"") -> 245.4691948 | U10: =IFERROR(+K10*$N$6,0) -> 8100.483427
A11: A.117 | B11: prprtttttttttttttttttttttttkuù | C11: H | D11: 10 | E11: =IFERROR(VLOOKUP(A11,PERS_VAL,4,0),"-") -> 33 | K11: =IFERROR((E11*D11),"") -> 330 | L11: 0 | M11: 8100.483427 | N11: 245.4691948 | O11: =IFERROR(IF($D$6>0,(E11*D11)*$N$6,(E11*D11)),0) -> 8100.483427 | S11: 245.4691948 | V11: =IFERROR(+K11*N6,0) -> 8100.483427
A12: A.118 | B12: prprtttttttttttttttttttttttkuù | C12: H | D12: 10 | E12: =IFERROR(VLOOKUP(A12,PERS_VAL,4,0),"-") -> 33 | K12: 330 | L12: 0 | M12: 8100.483427 | N12: 245.4691948 | O12: 8100.483427 | S12: 245.4691948 | W12: =IFERROR(+K12*N6,0) -> 8100.483427
E13: - | L13: 0 | N13: 0 | O13: 0 | X13: =IFERROR(+K13*N4,) -> 0
E14: - | L14: 0 | N14: 0 | O14: 0
E15: =IFERROR(VLOOKUP(A15,PERS_VAL,4,0),"-") -> - | L15: 0 | N15: 0 | O15: 0
A16: Matériel
A17: A.290 | B17: roooooooooooooooooo | C17: LH | D17: 8 | F17: =IFERROR(VLOOKUP(A17,MAT_VAL,4,0),"-") -> 88 | G17: =IFERROR(VLOOKUP(A17,MAT_VAL,6,0),"-") -> 20095.625 | H17: =IFERROR(IF(A17="","",RESSOURCES!$D$133*VLOOKUP(A17,MAT_VAL,5,0)),"-") -> 798.6 | J17: =IFERROR(VLOOKUP(A17,ST_VAL,4,0),"-") -> - | K17: =IFERROR((E17+F17+G17+D17+H17+I17)*D17,"") -> 167921.8 | L17: - | M17: 4121962.903 | N17: =IFERROR(IF($D$6>0,D17*$N$6,D17),"") -> 196.3753558 | P17: =IFERROR(IF($D$6>0,(F17*D17)*$N$6,(F17)),0) -> 17281.03131 | Q17: =IFERROR(IF($D$6>0,(G17*D17)*$N$6,(G17*D17)),0) -> 3946285.509 | R17: =IFERROR(IF($D$6>0,(H17*D17)*$N$6,(H17*D17)),0) -> 156825.3591 | S17: 4119999.149 | Y17: =IFERROR(F17*$N$6,0) -> 2160.128914 | AJ17: =IFERROR(D17*J17*$N$6,0) -> 0
F18: - | G18: - | H18: =IFERROR(IF(A18="","",RESSOURCES!$D$133*VLOOKUP(A18,MAT_VAL,5,0)),"-") ->  | J18: - | K18: =IFERROR((E18+F18+G18+D18+H18+I18)*D18,"") ->  | L18: - | N18: 0 | P18: 0 | Q18: =IFERROR(IF($D$6>0,(G18*C18)*$N$6,(G18*C18)),0) -> 0 | R18: =IFERROR(IF($D$6>0,(H18*D18)*$N$6,(H18*D18)),0) -> 0 | Z18: =IFERROR(F18*$N$6,0) -> 0 | AJ18: =IFERROR(D18*J18*$N$6,0) -> 0
F19: - | G19: - | H19: =IFERROR(IF(A19="","",RESSOURCES!$D$133*VLOOKUP(A19,MAT_VAL,5,0)),"-") ->  | J19: - | L19: - | N19: 0 | P19: 0 | Q19: 0 | R19: 0 | AA19: =IFERROR(F19*$N$6,0) -> 0 | AJ19: 0
F20: - | G20: - | H20: =IFERROR(IF(A20="","",RESSOURCES!$D$133*VLOOKUP(A20,MAT_VAL,5,0)),"-") ->  | J20: - | L20: - | N20: 0 | P20: 0 | Q20: 0 | R20: 0 | AB20: =IFERROR(F20*$N$6,0) -> 0 | AJ20: 0
F21: - | G21: - | H21: =IFERROR(IF(A21="","",RESSOURCES!$D$133*VLOOKUP(A21,MAT_VAL,5,0)),"-") ->  | J21: - | L21: - | N21: 0 | P21: 0 | Q21: 0 | R21: 0 | AC21: =IFERROR(F21*$N$6,0) -> 0 | AJ21: 0
F22: - | G22: - | H22: =IFERROR(IF(A22="","",RESSOURCES!$D$133*VLOOKUP(A22,MAT_VAL,5,0)),"-") ->  | J22: - | L22: - | N22: 0 | P22: 0 | Q22: 0 | R22: 0 | AD22: =IFERROR(F22*$N$6,0) -> 0 | AJ22: 0
F23: - | G23: - | H23: =IFERROR(IF(A23="","",RESSOURCES!$D$133*VLOOKUP(A23,MAT_VAL,5,0)),"-") ->  | J23: - | L23: - | N23: 0 | P23: 0 | Q23: 0 | R23: 0 | AE23: =IFERROR(F23*$N$6,0) -> 0 | AJ23: 0
F24: - | G24: - | H24: =IFERROR(IF(A24="","",RESSOURCES!$D$133*VLOOKUP(A24,MAT_VAL,5,0)),"-") ->  | J24: - | L24: - | N24: 0 | P24: 0 | Q24: 0 | R24: 0 | AF24: =IFERROR(F24*$N$6,0) -> 0 | AJ24: 0
F25: - | G25: - | H25: =IFERROR(IF(A25="","",RESSOURCES!$D$133*VLOOKUP(A25,MAT_VAL,5,0)),"-") ->  | J25: - | L25: - | N25: 0 | P25: 0 | Q25: 0 | R25: 0 | AG25: =IFERROR(F25*$N$6,0) -> 0 | AJ25: 0
F26: - | G26: - | H26: =IFERROR(IF(A26="","",RESSOURCES!$D$133*VLOOKUP(A26,MAT_VAL,5,0)),"-") ->  | J26: - | L26: - | N26: 0 | P26: 0 | Q26: 0 | R26: 0 | AH26: =IFERROR(F26*$N$6,0) -> 0 | AJ26: 0
A27: Ftures & conso
I28: =IFERROR(VLOOKUP(A28,RESSCH_1,4,0),"-") -> - | K28: =IFERROR((E28*D28+F28+G28*D28+D28*H28+D28*I28),"") ->  | L28: 0 | N28: =IFERROR(IF($D$6>0,D28*$N$6,D28),"") -> 0 | AI28: =IFERROR(D28*I28*$N$6,0) -> 0 | AJ28: 0
I29: - | L29: 0 | N29: 0 | AI29: 0 | AJ29: 0
A30: A.357 | B30: ffffttttg | C30: Kg | D30: =+D43*K6 -> 8000 | I30: 12 | K30: 96000 | L30: 0 | M30: 2356504.27 | N30: 196375.3558 | S30: 196375.3558 | AI30: 2356504.27 | AJ30: 0
A31: A.244 | B31: aaaaaaaaaaaaaa | C31: cfa/T | I31: 33 | K31: 0 | L31: 0 | M31: 0 | N31: 0 | S31: 0 | AI31: 0 | AJ31: 0
I32: - | L32: 0 | N32: 0 | AI32: 0 | AJ32: 0
I33: - | N33: 0 | AI33: 0 | AJ33: 0
B34: TOTAL | K34: =SUM(K10:K33) -> 264911.8 | L34: =SUM(L10:L33) -> 0 | U34: =+SUM(U10:U33) -> 8100.483427 | V34: 8100.483427 | W34: 8100.483427 | X34: 0 | Y34: 2160.128914 | Z34: 0 | AA34: 0 | AB34: 0 | AC34: 0 | AD34: 0 | AE34: 0 | AF34: 0 | AG34: 0 | AH34: =+SUM(AH10:AH33) -> 0 | AI34: 2356504.27 | AJ34: 0
K36: =IFERROR((K34+L34)/$K$6,"") -> 66.22795 | L36: CFA
G38: TOTAL DEBOURSE SEC HT ARRONDI A : | K38: =IFERROR(ROUNDUP(K36,-1),"") -> 70 | L38: CFA
G39: TOTAL VENTE HT ARRONDI A : | K39: =IFERROR(K38*K40,"") -> 0 | L39: CFA
I40: Coef. de vente
K42: =IFERROR(K36*$D$6,0) -> 6502768.623
D43: 2
K100: =K42 -> 6502768.623

Sheet 304
F1: SOUS DETAIL DE PRIX BUDGET
C3: 300 | D3: CHAUSSEES
C4: 304 | P4: =SUM(N17:N26) -> 392.7507116 | Q4: =IFERROR(SUM(Q17:Q26)/VLOOKUP(A17,MAT_VAL,6,0),"") -> 392.7507116 | R4: =SUM(R17:R26)/RESSOURCES!$D$133 -> 9504.567221
B5: DESIGNATION DU PRIX : | C5: COUCHE ENDUIT BICOUCHE DOUBLE GRAVILLONNAGE | E5: Unités : | L5: Unités : | P5: =SUM(P17:P26) -> 34562.06262 | Q5: =SUM(Q17:Q26) -> 7892571.019 | R5: =SUM(R17:R26) -> 313650.7183
B6: QUANTITES PREVUES : | D6: =+'OPTION 2 (fosse terre)'!E31 -> 98187.6779 | H6: Quantités de rendement : | K6: 2000 | M6: K | N6: =IFERROR(D6/K6,"") -> 49.09383895 | O6: Mo | P6: Mat_BSI | Q6: Entretien | R6: Carb
E7: Travaux Propres | J7: ST | M7: Coût
A8: Code | B8: Désignation | C8: Unité | D8: Qté ou durée d'utilisation | E8: Main d'œuvre | F8: Amortissement | G8: Entretien | H8: Carb-Energie | I8: Fournitures | J8: Sous-traitant | K8: TOTAL Travaux propres | L8: TOTAL Travaux ST | U8: =B10 -> prprtttttttttttttttttttttttkuù | V8: =B11 -> prprtttttttttttttttttttttttkuù | W8: =B12 -> prprtttttttttttttttttttttttkuù | X8: =B13 ->  | Y8: =B14 ->  | Z8: =B17 -> roooooooooooooooooo | AA8: =B18 ->  | AB8: =B19 ->  | AC8: =B20 ->  | AD8: =B21 ->  | AE8: =B22 ->  | AF8: =B23 ->  | AG8: =B24 ->  | AH8: =B25 ->  | AI8: =B26 ->  | AJ8: =A27 -> Ftures & conso | AK8: =+J8 -> Sous-traitant
A9: Personnel
A10: A.114 | B10: =IFERROR(VLOOKUP(A10,RESTAF_01,2,0),"") -> prprtttttttttttttttttttttttkuù | C10: =IFERROR(VLOOKUP(A10,RESTAF_01,3,0),"") -> H | D10: 10 | E10: =IFERROR(VLOOKUP(A10,PERS_VAL,4,0),"-") -> 33 | K10: =IFERROR((E10*D10),"") -> 330 | L10: =IFERROR(J10*D10,"-") -> 0 | M10: =IFERROR(IF($D$6>0,K10*$N$6,K10),"") -> 16200.96685 | N10: =IFERROR(IF($D$6>0,D10*$N$6,D10),"") -> 490.9383895 | O10: =IFERROR(IF($D$6>0,(E10*D10)*$N$6,(E10*D10)),0) -> 16200.96685 | S10: =IFERROR(-SUM(U10:AK10)+M10+N10,"") -> 490.9383895 | U10: =IFERROR(+K10*$N$6,0) -> 16200.96685
A11: A.117 | B11: prprtttttttttttttttttttttttkuù | C11: H | D11: 10 | E11: =IFERROR(VLOOKUP(A11,PERS_VAL,4,0),"-") -> 33 | K11: =IFERROR((E11*D11),"") -> 330 | L11: 0 | M11: 16200.96685 | N11: 490.9383895 | O11: =IFERROR(IF($D$6>0,(E11*D11)*$N$6,(E11*D11)),0) -> 16200.96685 | S11: 490.9383895 | V11: =IFERROR(+K11*N6,0) -> 16200.96685
A12: A.118 | B12: prprtttttttttttttttttttttttkuù | C12: H | D12: 40 | E12: =IFERROR(VLOOKUP(A12,PERS_VAL,4,0),"-") -> 33 | K12: 1320 | L12: 0 | M12: 64803.86741 | N12: 1963.753558 | O12: 64803.86741 | S12: 1963.753558 | W12: =IFERROR(+K12*N6,0) -> 64803.86741
E13: - | L13: 0 | N13: 0 | O13: 0 | X13: =IFERROR(+K13*N6,) -> 0
E14: - | L14: 0 | N14: 0 | O14: 0 | Y14: =IFERROR(+K14*N6,) -> 0
E15: =IFERROR(VLOOKUP(A15,PERS_VAL,4,0),"-") -> - | L15: 0 | N15: 0 | O15: 0
A16: Matériel
A17: A.290 | B17: roooooooooooooooooo | C17: LH | D17: 8 | F17: =IFERROR(VLOOKUP(A17,MAT_VAL,4,0),"-") -> 88 | G17: =IFERROR(VLOOKUP(A17,MAT_VAL,6,0),"-") -> 20095.625 | H17: =IFERROR(IF(A17="","",RESSOURCES!$D$133*VLOOKUP(A17,MAT_VAL,5,0)),"-") -> 798.6 | J17: =IFERROR(VLOOKUP(A17,ST_VAL,4,0),"-") -> - | K17: =IFERROR((E17+F17+G17+D17+H17+I17)*D17,"") -> 167921.8 | L17: - | M17: 8243925.805 | N17: =IFERROR(IF($D$6>0,D17*$N$6,D17),"") -> 392.7507116 | P17: =IFERROR(IF($D$6>0,(F17*D17)*$N$6,(F17)),0) -> 34562.06262 | Q17: =IFERROR(IF($D$6>0,(G17*D17)*$N$6,(G17*D17)),0) -> 7892571.019 | R17: =IFERROR(IF($D$6>0,(H17*D17)*$N$6,(H17*D17)),0) -> 313650.7183 | S17: 8239998.298 | Z17: =IFERROR(F17*$N$6,0) -> 4320.257828 | AK17: =IFERROR(D17*J17*$N$6,0) -> 0
F18: - | G18: - | H18: =IFERROR(IF(A18="","",RESSOURCES!$D$133*VLOOKUP(A18,MAT_VAL,5,0)),"-") ->  | J18: - | K18: =IFERROR((E18+F18+G18+D18+H18+I18)*D18,"") ->  | L18: - | N18: 0 | P18: 0 | Q18: =IFERROR(IF($D$6>0,(G18*D18)*$N$6,(G18*D18)),0) -> 0 | R18: =IFERROR(IF($D$6>0,(H18*D18)*$N$6,(H18*D18)),0) -> 0 | AA18: =IFERROR(F18*$N$6,0) -> 0 | AK18: =IFERROR(D18*J18*$N$6,0) -> 0
F19: - | G19: - | H19: =IFERROR(IF(A19="","",RESSOURCES!$D$133*VLOOKUP(A19,MAT_VAL,5,0)),"-") ->  | J19: - | L19: - | N19: 0 | P19: 0 | Q19: 0 | R19: 0 | AB19: =IFERROR(F19*$N$6,0) -> 0 | AK19: 0
F20: - | G20: - | H20: =IFERROR(IF(A20="","",RESSOURCES!$D$133*VLOOKUP(A20,MAT_VAL,5,0)),"-") ->  | J20: - | L20: - | N20: 0 | P20: 0 | Q20: 0 | R20: 0 | AC20: =IFERROR(F20*$N$6,0) -> 0 | AK20: 0
F21: - | G21: - | H21: =IFERROR(IF(A21="","",RESSOURCES!$D$133*VLOOKUP(A21,MAT_VAL,5,0)),"-") ->  | J21: - | L21: - | N21: 0 | P21: 0 | Q21: 0 | R21: 0 | AD21: =IFERROR(F21*$N$6,0) -> 0 | AK21: 0
F22: - | G22: - | H22: =IFERROR(IF(A22="","",RESSOURCES!$D$133*VLOOKUP(A22,MAT_VAL,5,0)),"-") ->  | J22: - | L22: - | N22: 0 | P22: 0 | Q22: 0 | R22: 0 | AE22: =IFERROR(F22*$N$6,0) -> 0 | AK22: 0
F23: - | G23: - | H23: =IFERROR(IF(A23="","",RESSOURCES!$D$133*VLOOKUP(A23,MAT_VAL,5,0)),"-") ->  | J23: - | L23: - | N23: 0 | P23: 0 | Q23: 0 | R23: 0 | AF23: =IFERROR(F23*$N$6,0) -> 0 | AK23: 0
F24: - | G24: - | H24: =IFERROR(IF(A24="","",RESSOURCES!$D$133*VLOOKUP(A24,MAT_VAL,5,0)),"-") ->  | J24: - | L24: - | N24: 0 | P24: 0 | Q24: 0 | R24: 0 | AG24: =IFERROR(F24*$N$6,0) -> 0 | AK24: 0
F25: - | G25: - | H25: =IFERROR(IF(A25="","",RESSOURCES!$D$133*VLOOKUP(A25,MAT_VAL,5,0)),"-") ->  | J25: - | L25: - | N25: 0 | P25: 0 | Q25: 0 | R25: 0 | AH25: =IFERROR(F25*$N$6,0) -> 0 | AK25: 0
F26: - | G26: - | H26: =IFERROR(IF(A26="","",RESSOURCES!$D$133*VLOOKUP(A26,MAT_VAL,5,0)),"-") ->  | J26: - | L26: - | N26: 0 | P26: 0 | Q26: 0 | R26: 0 | AI26: =IFERROR(F26*$N$6,0) -> 0 | AK26: 0
A27: Ftures & conso
A28: A.240 | B28: aaaaaaaaaaaaaa | C28: T | D28: =+$K$6*D37*E37 -> 80 | I28: =IFERROR(VLOOKUP(A28,RESSCH_1,4,0),"-") -> 33 | K28: =IFERROR((E28*D28+F28+G28*D28+D28*H28+D28*I28),"") -> 2640 | L28: 0 | M28: 129607.7348 | N28: =IFERROR(IF($D$6>0,D28*$N$6,D28),"") -> 3927.507116 | S28: 3927.507116 | AJ28: =IFERROR(D28*I28*$N$6,0) -> 129607.7348 | AK28: 0
A29: A.240 | B29: Agrégat 4/6 | C29: T | D29: =+$K$6*D38*E38 -> 60 | I29: 33 | K29: 1980 | L29: 0 | M29: 97205.80112 | N29: 2945.630337 | S29: 2945.630337 | AJ29: 97205.80112 | AK29: 0
A30: A.357 | B30: ffffttttg | C30: Kg | D30: =+F39*K6 -> 5000 | I30: 12 | K30: 60000 | L30: 0 | M30: 2945630.337 | N30: 245469.1948 | S30: 245469.1948 | AJ30: 2945630.337 | AK30: 0
A31: A.244 | B31: aaaaaaaaaaaaaa | C31: cfa/T | D31: =+D28+D29 -> 140 | I31: 33 | K31: 4620 | L31: 0 | M31: 226813.5359 | N31: 6873.137453 | S31: 6873.137453 | AJ31: 226813.5359 | AK31: 0
I32: - | L32: 0 | N32: 0 | AJ32: 0 | AK32: 0
I33: - | N33: 0 | AJ33: 0 | AK33: 0
B34: TOTAL | K34: =SUM(K10:K33) -> 239141.8 | L34: =SUM(L10:L33) -> 0 | U34: =+SUM(U10:U33) -> 16200.96685 | V34: 16200.96685 | W34: 64803.86741 | X34: 0 | Y34: =+SUM(Y10:Y33) -> 0 | Z34: 4320.257828 | AA34: 0 | AB34: 0 | AC34: 0 | AD34: 0 | AE34: 0 | AF34: 0 | AG34: 0 | AH34: 0 | AI34: =+SUM(AI10:AI33) -> 0 | AJ34: 3399257.409 | AK34: 0
D36: M3 | E36: DENSITE | F36: KG/M2 | K36: =IFERROR((K34+L34)/$K$6,"") -> 119.5709 | L36: CFA
C37: 1ERE COUCHE | D37: 0.02 | E37: 2
C38: 2EME COUCHE | D38: 0.015 | E38: 2 | G38: TOTAL DEBOURSE SEC HT ARRONDI A : | K38: =IFERROR(ROUNDUP(K36,-1),"") -> 120 | L38: CFA
C39: emulsion | F39: 2.5 | G39: TOTAL VENTE HT ARRONDI A : | K39: =IFERROR(K38*K40,"") -> 0 | L39: CFA
I40: Coef. de vente
K42: =IFERROR(K36*$D$6,0) -> 11740389.02
K100: =K42 -> 11740389.02

Sheet 305
F1: SOUS DETAIL DE PRIX BUDGET
C3: 300 | D3: CHAUSSEES
C4: 305 | P4: =SUM(N17:N26) -> 24 | Q4: =IFERROR(SUM(Q17:Q26)/VLOOKUP(A17,MAT_VAL,6,0),"") -> 24 | R4: =SUM(R17:R26)/RESSOURCES!$D$133 -> 369.6
B5: DESIGNATION DU PRIX : | C5: PAVES AUTOBLOQUANT EP.10CM Y/C LIT DE SABLE 4CM | E5: Unités : | L5: Unités : | P5: =SUM(P17:P26) -> 264 | Q5: =SUM(Q17:Q26) -> 2323.2 | R5: =SUM(R17:R26) -> 12196.8
B6: QUANTITES PREVUES : | D6: =+'OPTION 2 (fosse terre)'!E33 -> 0 | H6: Quantités de rendement : | K6: 700 | M6: K | N6: =IFERROR(D6/K6,"") -> 0 | O6: Mo | P6: Mat_BSI | Q6: Entretien | R6: Carb
E7: Travaux Propres | J7: ST | M7: Coût
A8: Code | B8: Désignation | C8: Unité | D8: Qté ou durée d'utilisation | E8: Main d'œuvre | F8: Amortissement | G8: Entretien | H8: Carb-Energie | I8: Fournitures | J8: Sous-traitant | K8: TOTAL Travaux propres | L8: TOTAL Travaux ST | U8: =B10 -> prprtttttttttttttttttttttttkuù | V8: =B11 -> prprtttttttttttttttttttttttkuù | W8: =B12 -> prprtttttttttttttttttttttttkuù | X8: =B13 -> prprtttttttttttttttttttttttkuù | Y8: =B14 ->  | Z8: =B17 -> roooooooooooooooooo | AA8: =B18 -> roooooooooooooooooo | AB8: =B19 -> roooooooooooooooooo | AC8: =B20 ->  | AD8: =B21 ->  | AE8: =B22 ->  | AF8: =B23 ->  | AG8: =B24 ->  | AH8: =B25 ->  | AI8: =B26 ->  | AJ8: =A27 -> Ftures & conso | AK8: =+J8 -> Sous-traitant
A9: Personnel
A10: A.114 | B10: =IFERROR(VLOOKUP(A10,RESTAF_01,2,0),"") -> prprtttttttttttttttttttttttkuù | C10: =IFERROR(VLOOKUP(A10,RESTAF_01,3,0),"") -> H | D10: 30 | E10: =IFERROR(VLOOKUP(A10,PERS_VAL,4,0),"-") -> 33 | K10: =IFERROR((E10*D10),"") -> 990 | L10: =IFERROR(J10*D10,"-") -> 0 | M10: =IFERROR(IF($D$6>0,K10*$N$6,K10),"") -> 990 | N10: =IFERROR(IF($D$6>0,D10*$N$6,D10),"") -> 30 | O10: =IFERROR(IF($D$6>0,(E10*D10)*$N$6,(E10*D10)),0) -> 990 | S10: =IFERROR(-SUM(U10:AK10)+M10+N10,"") -> 1020 | U10: =IFERROR(+K10*$N$6,0) -> 0
A11: A.117 | B11: prprtttttttttttttttttttttttkuù | C11: H | D11: 10 | E11: 33 | K11: =IFERROR((E11*D11),"") -> 330 | L11: 0 | M11: 330 | N11: 10 | O11: =IFERROR(IF($D$6>0,(E11*D11)*$N$6,(E11*D11)),0) -> 330 | S11: 340 | V11: =IFERROR(+K11*N6,0) -> 0
A12: A.118 | B12: prprtttttttttttttttttttttttkuù | C12: H | D12: 20 | E12: 33 | K12: 660 | L12: 0 | M12: 660 | N12: 20 | O12: 660 | S12: 680 | W12: =IFERROR(+K12*N6,0) -> 0
A13: A.119 | B13: =IFERROR(VLOOKUP(A13,RESTAF_01,2,0),"") -> prprtttttttttttttttttttttttkuù | C13: =IFERROR(VLOOKUP(A13,RESTAF_01,3,0),"") -> H | D13: 700 | E13: 33 | K13: =IFERROR((E13*D13),"") -> 23100 | L13: =IFERROR(J13*D13,"-") -> 0 | M13: =IFERROR(IF($D$6>0,K13*$N$6,K13),"") -> 23100 | N13: 700 | O13: =IFERROR(IF($D$6>0,(E13*D13)*$N$6,(E13*D13)),0) -> 23100 | S13: 23800 | X13: =IFERROR(+K13*N6,0) -> 0
E14: - | L14: 0 | N14: 0 | O14: 0 | Y14: =IFERROR(+K14*N6,0) -> 0
E15: - | L15: 0 | N15: 0 | O15: 0
A16: Matériel
A17: A.320 | B17: roooooooooooooooooo | C17: LH | D17: 8 | F17: =IFERROR(VLOOKUP(A17,MAT_VAL,4,0),"-") -> 88 | G17: =IFERROR(VLOOKUP(A17,MAT_VAL,6,0),"-") -> 96.8 | H17: =IFERROR(IF(A17="","",RESSOURCES!$D$133*VLOOKUP(A17,MAT_VAL,5,0)),"-") -> 349.8 | J17: =IFERROR(VLOOKUP(A17,ST_VAL,4,0),"-") -> - | K17: =IFERROR((E17+F17+G17+D17+H17+I17)*D17,"") -> 4340.8 | L17: - | M17: 4340.8 | N17: =IFERROR(IF($D$6>0,D17*$N$6,D17),"") -> 8 | P17: =IFERROR(IF($D$6>0,(F17*D17)*$N$6,(F17)),0) -> 88 | Q17: =IFERROR(IF($D$6>0,(G17*D17)*$N$6,(G17*D17)),0) -> 774.4 | R17: =IFERROR(IF($D$6>0,(H17*D17)*$N$6,(H17*D17)),0) -> 2798.4 | S17: 4348.8 | Z17: =IFERROR(F17*$N$6,0) -> 0 | AK17: =IFERROR(D17*J17*$N$6,0) -> 0
A18: A.296 | B18: roooooooooooooooooo | C18: LH | D18: 8 | F18: 88 | G18: 96.8 | H18: =IFERROR(IF(A18="","",RESSOURCES!$D$133*VLOOKUP(A18,MAT_VAL,5,0)),"-") -> 712.8 | J18: - | K18: =IFERROR((E18+F18+G18+D18+H18+I18)*D18,"") -> 7244.8 | L18: - | M18: 7244.8 | N18: 8 | P18: 88 | Q18: =IFERROR(IF($D$6>0,(G18*D18)*$N$6,(G18*D18)),0) -> 774.4 | R18: =IFERROR(IF($D$6>0,(H18*D18)*$N$6,(H18*D18)),0) -> 5702.4 | S18: 7252.8 | AA18: =IFERROR(F18*$N$6,0) -> 0 | AK18: =IFERROR(D18*J18*$N$6,0) -> 0
A19: A.306 | B19: roooooooooooooooooo | C19: LH | D19: 8 | F19: 88 | G19: 96.8 | H19: =IFERROR(IF(A19="","",RESSOURCES!$D$133*VLOOKUP(A19,MAT_VAL,5,0)),"-") -> 462 | J19: - | K19: 5238.4 | L19: - | M19: 5238.4 | N19: 8 | P19: 88 | Q19: 774.4 | R19: 3696 | S19: 5246.4 | AB19: =IFERROR(F19*$N$6,0) -> 0 | AK19: 0
F20: - | G20: - | H20: =IFERROR(IF(A20="","",RESSOURCES!$D$133*VLOOKUP(A20,MAT_VAL,5,0)),"-") ->  | J20: - | L20: - | N20: 0 | P20: - | Q20: 0 | R20: 0 | AC20: =IFERROR(F20*$N$6,0) -> 0 | AK20: 0
F21: - | G21: - | H21: =IFERROR(IF(A21="","",RESSOURCES!$D$133*VLOOKUP(A21,MAT_VAL,5,0)),"-") ->  | J21: - | L21: - | N21: 0 | P21: - | Q21: 0 | R21: 0 | AD21: =IFERROR(F21*$N$6,0) -> 0 | AK21: 0
F22: - | G22: - | H22: =IFERROR(IF(A22="","",RESSOURCES!$D$133*VLOOKUP(A22,MAT_VAL,5,0)),"-") ->  | J22: - | L22: - | N22: 0 | P22: - | Q22: 0 | R22: 0 | AE22: =IFERROR(F22*$N$6,0) -> 0 | AK22: 0
F23: - | G23: - | H23: =IFERROR(IF(A23="","",RESSOURCES!$D$133*VLOOKUP(A23,MAT_VAL,5,0)),"-") ->  | J23: - | L23: - | N23: 0 | P23: - | Q23: 0 | R23: 0 | AF23: =IFERROR(F23*$N$6,0) -> 0 | AK23: 0
F24: - | G24: - | H24: =IFERROR(IF(A24="","",RESSOURCES!$D$133*VLOOKUP(A24,MAT_VAL,5,0)),"-") ->  | J24: - | L24: - | N24: 0 | P24: - | Q24: 0 | R24: 0 | AG24: =IFERROR(F24*$N$6,0) -> 0 | AK24: 0
F25: - | G25: - | H25: =IFERROR(IF(A25="","",RESSOURCES!$D$133*VLOOKUP(A25,MAT_VAL,5,0)),"-") ->  | J25: - | L25: - | N25: 0 | P25: - | Q25: 0 | R25: 0 | AH25: =IFERROR(F25*$N$6,0) -> 0 | AK25: 0
F26: - | G26: - | H26: =IFERROR(IF(A26="","",RESSOURCES!$D$133*VLOOKUP(A26,MAT_VAL,5,0)),"-") ->  | J26: - | L26: - | N26: 0 | P26: - | Q26: 0 | R26: 0 | AI26: =IFERROR(F26*$N$6,0) -> 0 | AK26: 0
A27: Ftures & conso
A28: A.240 | B28: aaaaaaaaaaaaaa | C28: T | D28: =D48*K6*$D$41*$E$41 -> 43.26 | I28: =IFERROR(VLOOKUP(A28,RESSCH_1,4,0),"-") -> 33 | K28: =IFERROR((E28*D28+F28+G28*D28+D28*H28+D28*I28),"") -> 1427.58 | L28: 0 | M28: 1427.58 | N28: =IFERROR(IF($D$6>0,D28*$N$6,D28),"") -> 43.26 | S28: 1470.84 | AJ28: =IFERROR(D28*I28*$N$6,0) -> 0 | AK28: 0
A29: A.225 | B29: aaaaaaaaaaaaaa | C29: T | D29: =D46*$K$6*$D$41*$E$41 -> 28.84 | I29: 33 | K29: 951.72 | L29: 0 | M29: 951.72 | N29: =IFERROR(IF($D$6>0,D29*$N$6,D29),"") -> 28.84 | S29: 980.56 | AJ29: 0 | AK29: 0
A30: A.237 | B30: aaaaaaaaaaaaaa | C30: T | D30: =D49*$K$6*$D$41*$E$41 -> 32.16381 | I30: 33 | K30: 1061.40573 | L30: 0 | M30: 1061.40573 | N30: =IFERROR(IF($D$6>0,D30*$N$6,D30),"") -> 32.16381 | S30: 1093.56954 | AJ30: 0 | AK30: 0
A31: A.235 | B31: aaaaaaaaaaaaaa | C31: T | D31: =D48*$K$6*$D$41*$E$41 -> 43.26 | I31: 33 | K31: 1427.58 | L31: 0 | M31: 1427.58 | N31: =IFERROR(IF($D$6>0,D31*$N$6,D31),"") -> 43.26 | S31: 1470.84 | AJ31: 0 | AK31: 0
A32: A.244 | B32: =IFERROR(VLOOKUP(A32,RESTAF_01,2,0),"") -> aaaaaaaaaaaaaa | C32: =IFERROR(VLOOKUP(A32,RESTAF_01,3,0),"") -> cfa/T | D32: =+SUM(D28:D31)+D37 -> 175.52381 | I32: =IFERROR(VLOOKUP(A32,RESSCH_1,4,0),"-") -> 33 | K32: =IFERROR((E32*D32+F32+G32*D32+D32*H32+D32*I32),"") -> 5792.28573 | L32: =IFERROR(J32*D32,"-") -> 0 | M32: =IFERROR(IF($D$6>0,K32*$N$6,K32),"") -> 5792.28573 | N32: 175.52381 | S32: =IFERROR(-SUM(U32:AK32)+M32+N32,"") -> 5967.80954 | AJ32: =IFERROR(D32*I32*$N$6,0) -> 0 | AK32: =IFERROR(D32*J32*$N$6,0) -> 0
A33: A.241 | B33: aaaaaaaaaaaaaa | C33: FF | D33: 1 | I33: 33 | K33: 33 | L33: 0 | M33: 33 | N33: 1 | S33: 34 | AJ33: 0 | AK33: 0
A34: A.242 | B34: aaaaaaaaaaaaaa | C34: FF | D34: 1 | I34: 33 | K34: 33 | L34: 0 | M34: 33 | N34: 1 | S34: 34 | AJ34: 0 | AK34: 0
A35: A.243 | B35: aaaaaaaaaaaaaa | C35: FF | D35: 1 | I35: 33 | K35: 33 | L35: 0 | M35: 33 | N35: 1 | S35: 34 | AJ35: 0 | AK35: 0
A36: A.238 | B36: aaaaaaaaaaaaaa | C36: 0 | D36: =D50*$K$6*$D$41*$E$41 -> 28.84 | I36: 33 | K36: 951.72 | L36: 0 | M36: 951.72 | N36: 28.84 | S36: 980.56 | AJ36: 0 | AK36: 0
A37: A.356 | B37: ffffttttg | C37: T | D37: =+K6*D51 -> 28 | I37: 12 | K37: 336 | M37: 336 | N37: 28 | S37: 364 | AJ37: 0 | AK37: 0
B38: TOTAL | K38: =SUM(K10:K37) -> 53951.29146 | L38: =SUM(L10:L37) -> 0 | U38: =+SUM(U10:U37) -> 0 | V38: 0 | W38: 0 | X38: 0 | Y38: =+SUM(Y10:Y37) -> 0 | Z38: 0 | AA38: 0 | AB38: 0 | AC38: 0 | AD38: 0 | AE38: 0 | AF38: 0 | AG38: 0 | AH38: 0 | AI38: =+SUM(AI10:AI37) -> 0 | AJ38: 0 | AK38: 0
K40: =IFERROR((K38+L38)/$K$6,"") -> 77.07327351 | L40: CFA
D41: 0.1 | E41: 1.03
G42: TOTAL DEBOURSE SEC HT ARRONDI A : | K42: =IFERROR(ROUNDUP(K40,-1),"") -> 80 | L42: CFA
G43: TOTAL VENTE HT ARRONDI A : | K43: =IFERROR(K42*K44,"") -> 0 | L43: CFA
I44: Coef. de vente
C46: Ciment | D46: 0.4 | K46: =IFERROR(K40*$D$6,0) -> 0
C47: Sable Rivière | D47: 0.391
C48: agrégats 4/6 | D48: 0.6
C49: agrégats 5/15 | D49: 0.4461
C50: VICOFLOW | D50: 0.4
C51: SABLE POSE | D51: 0.04
K100: =K46 -> 0

Sheet 306
F1: SOUS DETAIL DE PRIX BUDGET
C3: 300 | D3: CHAUSSEES
C4: 306 | P4: =SUM(N17:N26) -> 10 | Q4: =IFERROR(SUM(Q17:Q26)/VLOOKUP(A17,MAT_VAL,6,0),"") -> 10 | R4: =SUM(R17:R26)/RESSOURCES!$D$133 -> 161.2
B5: DESIGNATION DU PRIX : | C5: PERRES MACONNES | E5: Unités : | L5: Unités : | P5: =SUM(P17:P26) -> 440 | Q5: =SUM(Q17:Q26) -> 968 | R5: =SUM(R17:R26) -> 5319.6
B6: QUANTITES PREVUES : | D6: =+'OPTION 2 (fosse terre)'!E35 -> 0 | H6: Quantités de rendement : | K6: 60 | M6: K | N6: =IFERROR(D6/K6,"") -> 0 | O6: Mo | P6: Mat_BSI | Q6: Entretien | R6: Carb
E7: Travaux Propres | J7: ST | M7: Coût
A8: Code | B8: Désignation | C8: Unité | D8: Qté ou durée d'utilisation | E8: Main d'œuvre | F8: Amortissement | G8: Entretien | H8: Carb-Energie | I8: Fournitures | J8: Sous-traitant | K8: TOTAL Travaux propres | L8: TOTAL Travaux ST | U8: =B10 -> prprtttttttttttttttttttttttkuù | V8: =B11 -> prprtttttttttttttttttttttttkuù | W8: =B12 -> prprtttttttttttttttttttttttkuù | X8: =B13 -> prprtttttttttttttttttttttttkuù | Y8: =B14 ->  | Z8: =B15 ->  | AA8: =B17 -> roooooooooooooooooo | AB8: =B18 -> roooooooooooooooooo | AC8: =B19 -> roooooooooooooooooo | AD8: =B20 -> roooooooooooooooooo | AE8: =B21 -> roooooooooooooooooo | AF8: =B22 ->  | AG8: =B23 ->  | AH8: =B24 ->  | AI8: =B25 ->  | AJ8: =B26 ->  | AK8: =A27 -> Ftures & conso | AL8: =+J8 -> Sous-traitant
A9: Personnel
A10: A.114 | B10: =IFERROR(VLOOKUP(A10,RESTAF_01,2,0),"") -> prprtttttttttttttttttttttttkuù | C10: =IFERROR(VLOOKUP(A10,RESTAF_01,3,0),"") -> H | D10: 10 | E10: =IFERROR(VLOOKUP(A10,PERS_VAL,4,0),"-") -> 33 | K10: =IFERROR((E10*D10),"") -> 330 | L10: =IFERROR(J10*D10,"-") -> 0 | M10: =IFERROR(IF($D$6>0,K10*$N$6,K10),"") -> 330 | N10: =IFERROR(IF($D$6>0,D10*$N$6,D10),"") -> 10 | O10: =IFERROR(IF($D$6>0,(E10*D10)*$N$6,(E10*D10)),0) -> 330 | S10: =IFERROR(-SUM(U10:AL10)+M10+N10,"") -> 340 | U10: =IFERROR(+K10*$N$6,0) -> 0
A11: A.117 | B11: =IFERROR(VLOOKUP(A11,RESTAF_01,2,0),"") -> prprtttttttttttttttttttttttkuù | C11: =IFERROR(VLOOKUP(A11,RESTAF_01,3,0),"") -> H | D11: 10 | E11: 33 | K11: =IFERROR((E11*D11),"") -> 330 | L11: =IFERROR(J11*D11,"-") -> 0 | M11: =IFERROR(IF($D$6>0,K11*$N$6,K11),"") -> 330 | N11: 10 | O11: =IFERROR(IF($D$6>0,(E11*D11)*$N$6,(E11*D11)),0) -> 330 | S11: =IFERROR(-SUM(U11:AL11)+M11+N11,"") -> 340 | V11: =IFERROR(+K11*$N$6,0) -> 0
A12: A.118 | B12: prprtttttttttttttttttttttttkuù | C12: H | D12: 20 | E12: 33 | K12: 660 | L12: 0 | M12: 660 | N12: 20 | O12: 660 | S12: 680 | W12: =IFERROR(+K12*$N$6,0) -> 0
A13: A.119 | B13: prprtttttttttttttttttttttttkuù | C13: H | D13: 50 | E13: 33 | K13: 1650 | L13: 0 | M13: 1650 | N13: 50 | O13: 1650 | S13: 1700 | X13: =IFERROR(+K13*$N$6,0) -> 0
E14: - | L14: 0 | N14: 0 | O14: 0 | Y14: =IFERROR(+K14*$N$6,0) -> 0
E15: - | L15: 0 | N15: 0 | O15: 0 | Z15: =IFERROR(+K15*$N$6,0) -> 0
A16: Matériel
A17: A.320 | B17: roooooooooooooooooo | C17: LH | D17: 2 | F17: =IFERROR(VLOOKUP(A17,MAT_VAL,4,0),"-") -> 88 | G17: =IFERROR(VLOOKUP(A17,MAT_VAL,6,0),"-") -> 96.8 | H17: =IFERROR(IF(A17="","",RESSOURCES!$D$133*VLOOKUP(A17,MAT_VAL,5,0)),"-") -> 349.8 | J17: =IFERROR(VLOOKUP(A17,ST_VAL,4,0),"-") -> - | K17: =IFERROR((E17+F17+G17+D17+H17+I17)*D17,"") -> 1073.2 | L17: - | M17: 1073.2 | N17: =IFERROR(IF($D$6>0,D17*$N$6,D17),"") -> 2 | O17: =IFERROR(IF($D$6>0,(E17*D17)*$N$6,(E17*D17)),0) -> 0 | P17: =IFERROR(IF($D$6>0,(F17*D17)*$N$6,(F17)),0) -> 88 | Q17: =IFERROR(IF($D$6>0,(G17*D17)*$N$6,(G17*D17)),0) -> 193.6 | R17: =IFERROR(IF($D$6>0,(H17*D17)*$N$6,(H17*D17)),0) -> 699.6 | S17: 1075.2 | AA17: =IFERROR(F17*$N$6,0) -> 0 | AL17: =IFERROR(D17*J17*$N$6,0) -> 0
A18: A.296 | B18: roooooooooooooooooo | C18: LH | D18: 3 | F18: 88 | G18: 96.8 | H18: =IFERROR(IF(A18="","",RESSOURCES!$D$133*VLOOKUP(A18,MAT_VAL,5,0)),"-") -> 712.8 | J18: - | K18: =IFERROR((E18+F18+G18+D18+H18+I18)*D18,"") -> 2701.8 | L18: - | M18: 2701.8 | N18: 3 | P18: 88 | Q18: =IFERROR(IF($D$6>0,(G18*D18)*$N$6,(G18*D18)),0) -> 290.4 | R18: =IFERROR(IF($D$6>0,(H18*D18)*$N$6,(H18*D18)),0) -> 2138.4 | S18: 2704.8 | AB18: =IFERROR(F18*$N$6,0) -> 0 | AL18: =IFERROR(D18*J18*$N$6,0) -> 0
A19: A.306 | B19: roooooooooooooooooo | C19: LH | D19: 2 | F19: 88 | G19: 96.8 | H19: =IFERROR(IF(A19="","",RESSOURCES!$D$133*VLOOKUP(A19,MAT_VAL,5,0)),"-") -> 462 | J19: - | K19: 1297.6 | L19: - | M19: 1297.6 | N19: 2 | P19: 88 | Q19: 193.6 | R19: 924 | S19: 1299.6 | AC19: =IFERROR(F19*$N$6,0) -> 0 | AL19: 0
A20: A.310 | B20: roooooooooooooooooo | C20: LH | D20: 2 | F20: 88 | G20: 96.8 | H20: =IFERROR(IF(A20="","",RESSOURCES!$D$133*VLOOKUP(A20,MAT_VAL,5,0)),"-") -> 541.2 | J20: - | K20: 1456 | L20: - | M20: 1456 | N20: 2 | P20: 88 | Q20: 193.6 | R20: 1082.4 | S20: 1458 | AD20: =IFERROR(F20*$N$6,0) -> 0 | AL20: 0
A21: A.298 | B21: roooooooooooooooooo | C21: LH | D21: 1 | F21: 88 | G21: 96.8 | H21: =IFERROR(IF(A21="","",RESSOURCES!$D$133*VLOOKUP(A21,MAT_VAL,5,0)),"-") -> 475.2 | J21: - | K21: 661 | L21: - | M21: 661 | N21: 1 | P21: 88 | Q21: 96.8 | R21: 475.2 | S21: 662 | AE21: =IFERROR(F21*$N$6,0) -> 0 | AL21: 0
F22: - | G22: - | H22: =IFERROR(IF(A22="","",RESSOURCES!$D$133*VLOOKUP(A22,MAT_VAL,5,0)),"-") ->  | J22: - | L22: - | N22: 0 | P22: - | Q22: 0 | R22: 0 | AF22: =IFERROR(F22*$N$6,0) -> 0 | AL22: 0
F23: - | G23: - | H23: =IFERROR(IF(A23="","",RESSOURCES!$D$133*VLOOKUP(A23,MAT_VAL,5,0)),"-") ->  | J23: - | L23: - | N23: 0 | P23: - | Q23: 0 | R23: 0 | AG23: =IFERROR(F23*$N$6,0) -> 0 | AL23: 0
F24: - | G24: - | H24: =IFERROR(IF(A24="","",RESSOURCES!$D$133*VLOOKUP(A24,MAT_VAL,5,0)),"-") ->  | J24: - | L24: - | N24: 0 | P24: - | Q24: 0 | R24: 0 | AH24: =IFERROR(F24*$N$6,0) -> 0 | AL24: 0
F25: - | G25: - | H25: =IFERROR(IF(A25="","",RESSOURCES!$D$133*VLOOKUP(A25,MAT_VAL,5,0)),"-") ->  | J25: - | L25: - | N25: 0 | P25: - | Q25: 0 | R25: 0 | AI25: =IFERROR(F25*$N$6,0) -> 0 | AL25: 0
F26: - | G26: - | H26: =IFERROR(IF(A26="","",RESSOURCES!$D$133*VLOOKUP(A26,MAT_VAL,5,0)),"-") ->  | J26: - | L26: - | N26: 0 | P26: - | Q26: 0 | R26: =IFERROR(IF($C$6>0,(H26*D26)*$N$6,(H26*D26)),0) -> 0 | AJ26: =IFERROR(F26*$N$6,0) -> 0 | AL26: 0
A27: Ftures & conso
A28: A.262 | B28: TTTGttttttttttttttttts | C28: M3 | D28: =+K6*D43+E43*K6+D45 -> 6.9 | I28: =IFERROR(VLOOKUP(A28,RESSCH_1,4,0),"-") -> 88 | K28: =IFERROR((E28*D28+F28+G28*D28+D28*H28+D28*I28),"") -> 607.2 | L28: 0 | M28: 607.2 | N28: =IFERROR(IF($D$6>0,D28*$N$6,D28),"") -> 6.9 | S28: 614.1 | AK28: =IFERROR(D28*I28*$N$6,0) -> 0 | AL28: 0
A29: A.223 | B29: aaaaaaaaaaaaaa | C29: T | D29: =+K6*F43*G43 -> 18.9 | I29: 33 | K29: 623.7 | L29: 0 | M29: 623.7 | N29: 18.9 | S29: 642.6 | AK29: 0 | AL29: 0
A30: A.212 | B30: aaaaaaaaaaaaaa | C30: 0 | D30: =+K6 -> 60 | I30: 2222 | K30: 133320 | L30: 0 | M30: 133320 | N30: 60 | S30: 133380 | AK30: 0 | AL30: 0
I31: - | L31: 0 | N31: 0 | AK31: 0 | AL31: 0
I32: - | L32: 0 | N32: 0 | AK32: 0 | AL32: 0
I33: - | L33: 0 | N33: 0 | AK33: 0 | AL33: 0
B34: TOTAL | K34: =SUM(K10:K33) -> 144710.5 | L34: =SUM(L10:L33) -> 0 | U34: =+SUM(U10:U33) -> 0 | V34: 0 | W34: 0 | X34: 0 | Y34: =+SUM(Y10:Y33) -> 0 | Z34: 0 | AA34: 0 | AB34: 0 | AC34: 0 | AD34: 0 | AE34: 0 | AF34: 0 | AG34: 0 | AH34: 0 | AI34: 0 | AJ34: =+SUM(AJ10:AJ33) -> 0 | AK34: 0 | AL34: 0
K36: =IFERROR((K34+L34)/$K$6,"") -> 2411.841667 | L36: CFA
G38: TOTAL DEBOURSE SEC HT ARRONDI A : | K38: =IFERROR(ROUNDUP(K36,-1),"") -> 2420 | L38: CFA
G39: TOTAL VENTE HT ARRONDI A : | K39: =IFERROR(K38*K40,"") -> 0 | L39: CFA
I40: Coef. de vente
D42: BP | E42: JOINTS | F42: MOELLON | K42: =IFERROR(K36*$D$6,0) -> 0
D43: 0.05 | E43: =0.05 -> 0.05 | F43: 0.15 | G43: 2.1
D44: BECHE
D45: =10*0.6*0.15 -> 0.9
K100: =K42 -> 0

Sheet 307
F1: SOUS DETAIL DE PRIX BUDGET
C3: 300 | D3: CHAUSSEES
C4: 307 | P4: =SUM(N17:N26) -> 15 | Q4: =IFERROR(SUM(Q17:Q26)/VLOOKUP(A17,MAT_VAL,6,0),"") -> 15 | R4: =SUM(R17:R26)/RESSOURCES!$D$133 -> 209.6
B5: DESIGNATION DU PRIX : | C5: DALLAGE POUR TROTTOIRS 8CM | E5: Unités : | L5: Unités : | P5: =SUM(P17:P26) -> 440 | Q5: =SUM(Q17:Q26) -> 1452 | R5: =SUM(R17:R26) -> 6916.8
B6: QUANTITES PREVUES : | D6: =+'OPTION 2 (fosse terre)'!E34 -> 0 | E6: ML | H6: Quantités de rendement : | K6: 200 | M6: K | N6: =IFERROR(D6/K6,"") -> 0 | O6: Mo | P6: Mat_BSI | Q6: Entretien | R6: Carb
E7: Travaux Propres | J7: ST | M7: Coût
A8: Code | B8: Désignation | C8: Unité | D8: Qté ou durée d'utilisation | E8: Main d'œuvre | F8: Amortissement | G8: Entretien | H8: Carb-Energie | I8: Fournitures | J8: Sous-traitant | K8: TOTAL Travaux propres | L8: TOTAL Travaux ST | U8: =B10 -> prprtttttttttttttttttttttttkuù | V8: =B11 -> prprtttttttttttttttttttttttkuù | W8: =B12 -> prprtttttttttttttttttttttttkuù | X8: =B13 ->  | Y8: =B14 ->  | Z8: =B17 -> roooooooooooooooooo | AA8: =B18 -> roooooooooooooooooo | AB8: =B19 -> roooooooooooooooooo | AC8: =B20 -> roooooooooooooooooo | AD8: =B21 -> roooooooooooooooooo | AE8: =B22 ->  | AF8: =B23 ->  | AG8: =B24 ->  | AH8: =B25 ->  | AI8: =B26 ->  | AJ8: =A27 -> Ftures & conso | AK8: =+J8 -> Sous-traitant
A9: Personnel
A10: A.114 | B10: =IFERROR(VLOOKUP(A10,RESTAF_01,2,0),"") -> prprtttttttttttttttttttttttkuù | C10: =IFERROR(VLOOKUP(A10,RESTAF_01,3,0),"") -> H | D10: 10 | E10: =IFERROR(VLOOKUP(A10,PERS_VAL,4,0),"-") -> 33 | K10: =IFERROR((E10*D10),"") -> 330 | L10: =IFERROR(J10*D10,"-") -> 0 | M10: =IFERROR(IF($D$6>0,K10*$N$6,K10),"") -> 330 | N10: =IFERROR(IF($D$6>0,D10*$N$6,D10),"") -> 10 | O10: =IFERROR(IF($D$6>0,(E10*D10)*$N$6,(E10*D10)),0) -> 330 | S10: =IFERROR(-SUM(U10:AK10)+M10+N10,"") -> 340 | U10: =IFERROR(+K10*$N$6,0) -> 0
A11: A.117 | B11: =IFERROR(VLOOKUP(A11,RESTAF_01,2,0),"") -> prprtttttttttttttttttttttttkuù | C11: =IFERROR(VLOOKUP(A11,RESTAF_01,3,0),"") -> H | D11: 10 | E11: 33 | K11: =IFERROR((E11*D11),"") -> 330 | L11: =IFERROR(J11*D11,"-") -> 0 | M11: =IFERROR(IF($D$6>0,K11*$N$6,K11),"") -> 330 | N11: 10 | O11: =IFERROR(IF($D$6>0,(E11*D11)*$N$6,(E11*D11)),0) -> 330 | S11: =IFERROR(-SUM(U11:AK11)+M11+N11,"") -> 340 | V11: =IFERROR(+K11*$N$6,0) -> 0
A12: A.118 | B12: prprtttttttttttttttttttttttkuù | C12: H | D12: 50 | E12: 33 | K12: 1650 | L12: 0 | M12: 1650 | N12: 50 | O12: 1650 | S12: 1700 | W12: =IFERROR(+K12*$N$6,0) -> 0
E13: - | L13: 0 | N13: 0 | O13: 0 | X13: =IFERROR(+K13*$N$6,0) -> 0
E14: - | L14: 0 | N14: 0 | O14: 0 | Y14: =IFERROR(+K14*$N$6,0) -> 0
E15: - | L15: 0 | N15: 0 | O15: 0
A16: Matériel
A17: A.320 | B17: roooooooooooooooooo | C17: LH | D17: 4 | F17: =IFERROR(VLOOKUP(A17,MAT_VAL,4,0),"-") -> 88 | G17: =IFERROR(VLOOKUP(A17,MAT_VAL,6,0),"-") -> 96.8 | H17: =IFERROR(IF(A17="","",RESSOURCES!$D$133*VLOOKUP(A17,MAT_VAL,5,0)),"-") -> 349.8 | J17: =IFERROR(VLOOKUP(A17,ST_VAL,4,0),"-") -> - | K17: =IFERROR((E17+F17+G17+D17+H17+I17)*D17,"") -> 2154.4 | L17: - | M17: 2154.4 | N17: =IFERROR(IF($D$6>0,D17*$N$6,D17),"") -> 4 | P17: =IFERROR(IF($D$6>0,(F17*D17)*$N$6,(F17)),0) -> 88 | Q17: =IFERROR(IF($D$6>0,(G17*D17)*$N$6,(G17*D17)),0) -> 387.2 | R17: =IFERROR(IF($D$6>0,(H17*D17)*$N$6,(H17*D17)),0) -> 1399.2 | S17: =IFERROR(-SUM(U17:AK17)+M17+N17,"") -> 2158.4 | Z17: =IFERROR(F17*$N$6,0) -> 0 | AK17: =IFERROR(D17*J17*$N$6,0) -> 0
A18: A.296 | B18: roooooooooooooooooo | C18: LH | D18: 1 | F18: 88 | G18: 96.8 | H18: =IFERROR(IF(A18="","",RESSOURCES!$D$133*VLOOKUP(A18,MAT_VAL,5,0)),"-") -> 712.8 | J18: - | K18: =IFERROR((E18+F18+G18+D18+H18+I18)*D18,"") -> 898.6 | L18: - | M18: 898.6 | N18: 1 | P18: 88 | Q18: =IFERROR(IF($D$6>0,(G18*D18)*$N$6,(G18*D18)),0) -> 96.8 | R18: =IFERROR(IF($D$6>0,(H18*D18)*$N$6,(H18*D18)),0) -> 712.8 | S18: 899.6 | AA18: =IFERROR(F18*$N$6,0) -> 0 | AK18: =IFERROR(D18*J18*$N$6,0) -> 0
A19: A.306 | B19: roooooooooooooooooo | C19: LH | D19: 1 | F19: 88 | G19: 96.8 | H19: =IFERROR(IF(A19="","",RESSOURCES!$D$133*VLOOKUP(A19,MAT_VAL,5,0)),"-") -> 462 | J19: - | K19: 647.8 | L19: - | M19: 647.8 | N19: 1 | P19: 88 | Q19: 96.8 | R19: 462 | S19: 648.8 | AB19: =IFERROR(F19*$N$6,0) -> 0 | AK19: 0
A20: A.310 | B20: roooooooooooooooooo | C20: LH | D20: 1 | F20: 88 | G20: 96.8 | H20: =IFERROR(IF(A20="","",RESSOURCES!$D$133*VLOOKUP(A20,MAT_VAL,5,0)),"-") -> 541.2 | J20: - | K20: 727 | L20: - | M20: 727 | N20: 1 | P20: 88 | Q20: 96.8 | R20: 541.2 | S20: 728 | AC20: =IFERROR(F20*$N$6,0) -> 0 | AK20: 0
A21: A.298 | B21: roooooooooooooooooo | C21: LH | D21: 8 | F21: 88 | G21: 96.8 | H21: =IFERROR(IF(A21="","",RESSOURCES!$D$133*VLOOKUP(A21,MAT_VAL,5,0)),"-") -> 475.2 | J21: - | K21: 5344 | L21: - | M21: 5344 | N21: 8 | P21: 88 | Q21: 774.4 | R21: 3801.6 | S21: 5352 | AD21: =IFERROR(F21*$N$6,0) -> 0 | AK21: 0
F22: - | G22: - | H22: =IFERROR(IF(A22="","",RESSOURCES!$D$133*VLOOKUP(A22,MAT_VAL,5,0)),"-") ->  | J22: - | L22: - | N22: 0 | P22: - | Q22: 0 | R22: 0 | AE22: =IFERROR(F22*$N$6,0) -> 0 | AK22: 0
F23: - | G23: - | H23: =IFERROR(IF(A23="","",RESSOURCES!$D$133*VLOOKUP(A23,MAT_VAL,5,0)),"-") ->  | J23: - | L23: - | N23: 0 | P23: - | Q23: 0 | R23: 0 | AF23: =IFERROR(F23*$N$6,0) -> 0 | AK23: 0
F24: - | G24: - | H24: =IFERROR(IF(A24="","",RESSOURCES!$D$133*VLOOKUP(A24,MAT_VAL,5,0)),"-") ->  | J24: - | L24: - | N24: 0 | P24: - | Q24: 0 | R24: 0 | AG24: =IFERROR(F24*$N$6,0) -> 0 | AK24: 0
F25: - | G25: - | H25: =IFERROR(IF(A25="","",RESSOURCES!$D$133*VLOOKUP(A25,MAT_VAL,5,0)),"-") ->  | J25: - | L25: - | N25: 0 | P25: - | Q25: 0 | R25: 0 | AH25: =IFERROR(F25*$N$6,0) -> 0 | AK25: 0
F26: - | G26: - | H26: =IFERROR(IF(A26="","",RESSOURCES!$D$133*VLOOKUP(A26,MAT_VAL,5,0)),"-") ->  | J26: - | L26: - | N26: 0 | P26: - | Q26: 0 | R26: 0 | AI26: =IFERROR(F26*$N$6,0) -> 0 | AK26: 0
A27: Ftures & conso
A28: A.262 | B28: TTTGttttttttttttttttts | C28: M3 | D28: =+K6*0.08 -> 16 | I28: =IFERROR(VLOOKUP(A28,RESSCH_1,4,0),"-") -> 88 | K28: =IFERROR((E28*D28+F28+G28*D28+D28*H28+D28*I28),"") -> 1408 | L28: 0 | M28: 1408 | N28: =IFERROR(IF($D$6>0,D28*$N$6,D28),"") -> 16 | S28: =IFERROR(-SUM(U28:AK28)+M28+N28,"") -> 1424 | AJ28: =IFERROR(D28*I28*$N$6,0) -> 0 | AK28: 0
A29: A.226 | B29: aaaaaaaaaaaaaa | C29: T | D29: =+D28*0.045 -> 0.72 | I29: 33 | K29: 23.76 | L29: 0 | M29: 23.76 | N29: 0.72 | S29: 24.48 | AJ29: 0 | AK29: 0
I30: - | L30: 0 | N30: 0 | AJ30: 0 | AK30: 0
I31: - | L31: 0 | N31: 0 | AJ31: 0 | AK31: 0
I32: - | L32: 0 | N32: 0 | AJ32: 0 | AK32: 0
I33: - | N33: 0 | AJ33: 0 | AK33: 0
B34: TOTAL | K34: =SUM(K10:K33) -> 13513.56 | L34: =SUM(L10:L33) -> 0 | U34: =+SUM(U10:U33) -> 0 | V34: 0 | W34: 0 | X34: 0 | Y34: =+SUM(Y10:Y33) -> 0 | Z34: 0 | AA34: 0 | AB34: 0 | AC34: 0 | AD34: 0 | AE34: 0 | AF34: 0 | AG34: 0 | AH34: 0 | AI34: =+SUM(AI10:AI33) -> 0 | AJ34: 0 | AK34: 0
K36: =IFERROR((K34+L34)/$K$6,"") -> 67.5678 | L36: CFA
G38: TOTAL DEBOURSE SEC HT ARRONDI A : | K38: =IFERROR(ROUNDUP(K36,-1),"") -> 70 | L38: CFA
G39: TOTAL VENTE HT ARRONDI A : | K39: =IFERROR(K38*K40,"") -> 0 | L39: CFA
I40: Coef. de vente
K42: =IFERROR(K36*$D$6,0) -> 0
K100: =K42 -> 0

Sheet 308
F1: SOUS DETAIL DE PRIX BUDGET
C4: 308 | K4: 2000 | P4: =SUM(N17:N26) -> 141.1958981 | Q4: =IFERROR(SUM(Q17:Q26)/VLOOKUP(A17,MAT_VAL,6,0),"") -> 141.1958981 | R4: =SUM(R17:R26)/RESSOURCES!$D$133 -> 2273.25396
B5: DESIGNATION DU PRIX : | C5: ENGAZONNEMENT | E5: Unités : | L5: Unités : | P5: =SUM(P17:P26) -> 12425.23903 | Q5: =SUM(Q17:Q26) -> 13667.76294 | R5: =SUM(R17:R26) -> 75017.38067
B6: QUANTITES PREVUES : | D6: =+'OPTION 2 (fosse terre)'!E36 -> 10589.69236 | H6: Quantités de rendement : | K6: 1200 | M6: K | N6: =IFERROR(D6/K6,"") -> 8.824743632 | O6: Mo | P6: Mat_BSI | Q6: Entretien | R6: Carb
E7: Travaux Propres | J7: ST | M7: Coût
A8: Code | B8: Désignation | C8: Unité | D8: Qté ou durée d'utilisation | E8: Main d'œuvre | F8: Amortissement | G8: Entretien | H8: Carb-Energie | I8: Fournitures | J8: Sous-traitant | K8: TOTAL Travaux propres | L8: TOTAL Travaux ST | U8: =B10 -> prprtttttttttttttttttttttttkuù | V8: =B11 -> prprtttttttttttttttttttttttkuù | W8: =B12 -> prprtttttttttttttttttttttttkuù | X8: =B13 -> prprtttttttttttttttttttttttkuù | Y8: =B14 ->  | Z8: =K15 ->  | AA8: =B17 -> roooooooooooooooooo | AB8: =B18 -> roooooooooooooooooo | AC8: =B19 ->  | AD8: =B20 ->  | AE8: =B21 ->  | AF8: =B22 ->  | AG8: =B23 ->  | AH8: =B24 ->  | AI8: =B25 ->  | AJ8: =B26 ->  | AK8: =A27 -> Ftures & conso | AL8: =+J8 -> Sous-traitant
A9: Personnel
A10: A.114 | B10: =IFERROR(VLOOKUP(A10,RESTAF_01,2,0),"") -> prprtttttttttttttttttttttttkuù | C10: =IFERROR(VLOOKUP(A10,RESTAF_01,3,0),"") -> H | D10: 8 | E10: =IFERROR(VLOOKUP(A10,PERS_VAL,4,0),"-") -> 33 | K10: =IFERROR((E10*D10),"") -> 264 | L10: =IFERROR(J10*D10,"-") -> 0 | M10: =IFERROR(IF($D$6>0,K10*$N$6,K10),"") -> 2329.732319 | N10: =IFERROR(IF($D$6>0,D10*$N$6,D10),"") -> 70.59794906 | O10: =IFERROR(IF($D$6>0,(E10*D10)*$N$6,(E10*D10)),0) -> 2329.732319 | S10: =IFERROR(-SUM(U10:AL10)+M10+N10,"") -> 70.59794906 | U10: =IFERROR(+K10*$N$6,0) -> 2329.732319
A11: A.117 | B11: =IFERROR(VLOOKUP(A11,RESTAF_01,2,0),"") -> prprtttttttttttttttttttttttkuù | C11: =IFERROR(VLOOKUP(A11,RESTAF_01,3,0),"") -> H | D11: 8 | E11: 33 | K11: =IFERROR((E11*D11),"") -> 264 | L11: =IFERROR(J11*D11,"-") -> 0 | M11: =IFERROR(IF($D$6>0,K11*$N$6,K11),"") -> 2329.732319 | N11: 70.59794906 | O11: =IFERROR(IF($D$6>0,(E11*D11)*$N$6,(E11*D11)),0) -> 2329.732319 | S11: =IFERROR(-SUM(U11:AL11)+M11+N11,"") -> 70.59794906 | U11: =IFERROR(+K11*$N$6,0) -> 2329.732319
A12: A.118 | B12: prprtttttttttttttttttttttttkuù | C12: H | D12: 40 | E12: 33 | K12: 1320 | L12: 0 | M12: 11648.66159 | N12: 352.9897453 | O12: 11648.66159 | S12: 352.9897453 | U12: 11648.66159
A13: A.119 | B13: prprtttttttttttttttttttttttkuù | C13: H | D13: 100 | E13: 33 | K13: 3300 | L13: 0 | M13: 29121.65399 | N13: 882.4743632 | O13: 29121.65399 | S13: 882.4743632 | U13: 29121.65399
E14: - | L14: 0 | N14: 0 | O14: 0 | U14: 0
E15: - | L15: 0 | N15: 0 | O15: 0 | U15: 0
A16: Matériel
A17: A.320 | B17: roooooooooooooooooo | C17: LH | D17: 8 | F17: =IFERROR(VLOOKUP(A17,MAT_VAL,4,0),"-") -> 88 | G17: =IFERROR(VLOOKUP(A17,MAT_VAL,6,0),"-") -> 96.8 | H17: =IFERROR(IF(A17="","",RESSOURCES!$D$133*VLOOKUP(A17,MAT_VAL,5,0)),"-") -> 349.8 | J17: =IFERROR(VLOOKUP(A17,ST_VAL,4,0),"-") -> - | K17: =IFERROR((E17+F17+G17+D17+H17+I17)*D17,"") -> 4340.8 | L17: - | M17: 38306.44716 | N17: =IFERROR(IF($D$6>0,D17*$N$6,D17),"") -> 70.59794906 | P17: =IFERROR(IF($D$6>0,(F17*D17)*$N$6,(F17)),0) -> 6212.619517 | Q17: =IFERROR(IF($D$6>0,(G17*D17)*$N$6,(G17*D17)),0) -> 6833.881469 | R17: =IFERROR(IF($D$6>0,(H17*D17)*$N$6,(H17*D17)),0) -> 24695.16258 | S17: 37600.46767 | AA17: =IFERROR(F17*$N$6,0) -> 776.5774396 | AL17: =IFERROR(D17*J17*$N$6,0) -> 0
A18: A.296 | B18: roooooooooooooooooo | C18: LH | D18: 8 | F18: 88 | G18: 96.8 | H18: =IFERROR(IF(A18="","",RESSOURCES!$D$133*VLOOKUP(A18,MAT_VAL,5,0)),"-") -> 712.8 | J18: - | K18: =IFERROR((E18+F18+G18+D18+H18+I18)*D18,"") -> 7244.8 | L18: - | M18: 63933.50267 | N18: 70.59794906 | P18: =IFERROR(IF($D$6>0,(F18*D18)*$N$6,(F18)),0) -> 6212.619517 | Q18: =IFERROR(IF($D$6>0,(G18*D18)*$N$6,(G18*D18)),0) -> 6833.881469 | R18: =IFERROR(IF($D$6>0,(H18*D18)*$N$6,(H18*D18)),0) -> 50322.21809 | S18: 63227.52318 | AB18: =IFERROR(F18*$N$6,0) -> 776.5774396 | AL18: =IFERROR(D18*J18*$N$6,0) -> 0
F19: - | G19: - | H19: =IFERROR(IF(A19="","",RESSOURCES!$D$133*VLOOKUP(A19,MAT_VAL,5,0)),"-") ->  | J19: - | L19: - | N19: 0 | P19: 0 | Q19: 0 | R19: 0 | AC19: =IFERROR(F19*$N$6,0) -> 0 | AL19: 0
F20: - | G20: - | H20: =IFERROR(IF(A20="","",RESSOURCES!$D$133*VLOOKUP(A20,MAT_VAL,5,0)),"-") ->  | J20: - | L20: - | N20: 0 | P20: 0 | Q20: 0 | R20: 0 | AD20: =IFERROR(F20*$N$6,0) -> 0 | AL20: 0
F21: - | G21: - | H21: =IFERROR(IF(A21="","",RESSOURCES!$D$133*VLOOKUP(A21,MAT_VAL,5,0)),"-") ->  | J21: - | L21: - | N21: 0 | P21: 0 | Q21: 0 | R21: 0 | AE21: =IFERROR(F21*$N$6,0) -> 0 | AL21: 0
F22: - | G22: - | H22: =IFERROR(IF(A22="","",RESSOURCES!$D$133*VLOOKUP(A22,MAT_VAL,5,0)),"-") ->  | J22: - | L22: - | N22: 0 | P22: 0 | Q22: 0 | R22: 0 | AF22: =IFERROR(F22*$N$6,0) -> 0 | AL22: 0
F23: - | G23: - | H23: =IFERROR(IF(A23="","",RESSOURCES!$D$133*VLOOKUP(A23,MAT_VAL,5,0)),"-") ->  | J23: - | L23: - | N23: 0 | P23: 0 | Q23: 0 | R23: 0 | AG23: =IFERROR(F23*$N$6,0) -> 0 | AL23: 0
F24: - | G24: - | H24: =IFERROR(IF(A24="","",RESSOURCES!$D$133*VLOOKUP(A24,MAT_VAL,5,0)),"-") ->  | J24: - | L24: - | N24: 0 | P24: 0 | Q24: 0 | R24: 0 | AH24: =IFERROR(F24*$N$6,0) -> 0 | AL24: 0
F25: - | G25: - | H25: =IFERROR(IF(A25="","",RESSOURCES!$D$133*VLOOKUP(A25,MAT_VAL,5,0)),"-") ->  | J25: - | L25: - | N25: 0 | P25: 0 | Q25: 0 | R25: 0 | AI25: =IFERROR(F25*$N$6,0) -> 0 | AL25: 0
F26: - | G26: - | H26: =IFERROR(IF(A26="","",RESSOURCES!$D$133*VLOOKUP(A26,MAT_VAL,5,0)),"-") ->  | J26: - | L26: - | N26: 0 | P26: 0 | Q26: 0 | R26: 0 | AJ26: =IFERROR(G26*$N$6,0) -> 0 | AL26: 0
A27: Ftures & conso
A28: A.358 | B28: xxxxxx | C28: M² | D28: =+K6 -> 1200 | I28: =IFERROR(VLOOKUP(A28,RESSCH_1,4,0),"-") -> 12 | K28: =IFERROR((E28*D28+F28+G28*D28+D28*H28+D28*I28),"") -> 14400 | L28: 0 | M28: 127076.3083 | N28: =IFERROR(IF($D$6>0,D28*$N$6,D28),"") -> 10589.69236 | S28: 10589.69236 | AK28: =IFERROR(D28*I28*$N$6,0) -> 127076.3083 | AL28: 0
I29: - | L29: 0 | N29: =IFERROR(IF($D$6>0,D29*$N$6,D29),"") -> 0 | AK29: 0 | AL29: 0
I30: - | L30: 0 | N30: =IFERROR(IF($D$6>0,D30*$N$6,D30),"") -> 0 | AK30: 0 | AL30: 0
I31: - | L31: 0 | N31: =IFERROR(IF($D$6>0,D31*$N$6,D31),"") -> 0 | AK31: 0 | AL31: 0
I32: - | L32: 0 | N32: 0 | AK32: 0 | AL32: 0
I33: - | N33: 0 | AK33: 0 | AL33: 0
I34: - | L34: 0 | N34: 0 | AK34: 0 | AL34: 0
I35: - | L35: 0 | N35: 0 | AK35: 0 | AL35: 0
I36: - | N36: 0 | AK36: 0 | AL36: 0
B37: TOTAL | K37: =SUM(K10:K36) -> 31133.6 | L37: =SUM(L10:L36) -> 0 | U37: =+SUM(U10:U36) -> 45429.78022 | V37: 0 | W37: 0 | X37: 0 | Y37: 0 | Z37: 0 | AA37: 776.5774396 | AB37: 776.5774396 | AC37: 0 | AD37: 0 | AE37: 0 | AF37: 0 | AG37: 0 | AH37: 0 | AI37: 0 | AJ37: =+SUM(AJ10:AJ36) -> 0 | AK37: =+SUM(AK10:AK36) -> 127076.3083 | AL37: =+SUM(AL10:AL36) -> 0
K39: =IFERROR((K37+L37)/$K$6,"") -> 25.94466667 | L39: CFA
G41: TOTAL DEBOURSE SEC HT ARRONDI A : | K41: =IFERROR(ROUNDUP(K39,-1),"") -> 30 | L41: CFA
G42: TOTAL VENTE HT ARRONDI A : | K42: =IFERROR(K41*K43,"") -> 0 | L42: CFA
I43: Coef. de vente
K45: =IFERROR(K39*$D$6,0) -> 274746.0384
K100: =K45 -> 274746.0384

Sheet 401
F1: SOUS DETAIL DE PRIX BUDGET
C3: 400 | D3: ASSAINISSEMENT ET DRAINAGE
C4: 401 | P4: =SUM(N17:N26) -> 957.8144593 | Q4: =IFERROR(SUM(Q17:Q26)/VLOOKUP(A17,MAT_VAL,6,0),"") -> 957.8144593 | R4: =SUM(R17:R26)/RESSOURCES!$D$133 -> 14290.59173
B5: DESIGNATION DU PRIX : | C5: BORDURE TYPE T2 | E5: Unités : | L5: Unités : | P5: =SUM(P17:P26) -> 84287.67242 | Q5: =SUM(Q17:Q26) -> 92716.43966 | R5: =SUM(R17:R26) -> 471589.5272
B6: QUANTITES PREVUES : | D6: =+'OPTION 2 (fosse terre)'!E45 -> 9578.144593 | E6: m | H6: Quantités de rendement : | K6: 200 | M6: K | N6: =IFERROR(D6/K6,"") -> 47.89072296 | O6: Mo | P6: Mat_BSI | Q6: Entretien | R6: Carb
E7: Travaux Propres | J7: ST | M7: Coût
A8: Code | B8: Désignation | C8: Unité | D8: Qté ou durée d'utilisation | E8: Main d'œuvre | F8: Amortissement | G8: Entretien | H8: Carb-Energie | I8: Fournitures | J8: Sous-traitant | K8: TOTAL Travaux propres | L8: TOTAL Travaux ST | U8: =B10 -> prprtttttttttttttttttttttttkuù | V8: =B11 -> prprtttttttttttttttttttttttkuù | W8: =B12 -> prprtttttttttttttttttttttttkuù | X8: =B13 ->  | Y8: =B14 ->  | Z8: =B17 -> roooooooooooooooooo | AA8: =B18 -> roooooooooooooooooo | AB8: =B19 -> roooooooooooooooooo | AC8: =B20 ->  | AD8: =B21 ->  | AE8: =B22 ->  | AF8: =B23 ->  | AG8: =B24 ->  | AH8: =B25 ->  | AI8: =B26 ->  | AJ8: =A27 -> Ftures & conso | AK8: =+J8 -> Sous-traitant
A9: Personnel
A10: A.114 | B10: =IFERROR(VLOOKUP(A10,RESTAF_01,2,0),"") -> prprtttttttttttttttttttttttkuù | C10: =IFERROR(VLOOKUP(A10,RESTAF_01,3,0),"") -> H | D10: 10 | E10: =IFERROR(VLOOKUP(A10,PERS_VAL,4,0),"-") -> 33 | K10: =IFERROR((E10*D10),"") -> 330 | L10: =IFERROR(J10*D10,"-") -> 0 | M10: =IFERROR(IF($D$6>0,K10*$N$6,K10),"") -> 15803.93858 | N10: =IFERROR(IF($D$6>0,D10*$N$6,D10),"") -> 478.9072296 | O10: =IFERROR(IF($D$6>0,(E10*D10)*$N$6,(E10*D10)),0) -> 15803.93858 | S10: =IFERROR(-SUM(U10:AK10)+M10+N10,"") -> 478.9072296 | U10: =IFERROR(+K10*$N$6,0) -> 15803.93858
A11: A.117 | B11: prprtttttttttttttttttttttttkuù | C11: H | D11: 10 | E11: =IFERROR(VLOOKUP(A11,PERS_VAL,4,0),"-") -> 33 | K11: =IFERROR((E11*D11),"") -> 330 | L11: 0 | M11: 15803.93858 | N11: 478.9072296 | O11: =IFERROR(IF($D$6>0,(E11*D11)*$N$6,(E11*D11)),0) -> 15803.93858 | S11: 478.9072296 | V11: =IFERROR(+K11*N6,0) -> 15803.93858
A12: A.118 | B12: prprtttttttttttttttttttttttkuù | C12: H | D12: 50 | E12: =IFERROR(VLOOKUP(A12,PERS_VAL,4,0),"-") -> 33 | K12: 1650 | L12: 0 | M12: 79019.69289 | N12: 2394.536148 | O12: 79019.69289 | S12: 2394.536148 | W12: =IFERROR(+K12*N6,0) -> 79019.69289
A13: A.119 | E13: - | L13: 0 | N13: 0 | O13: 0 | X13: =IFERROR(+K13*N6,) -> 0
E14: - | L14: 0 | N14: 0 | O14: 0 | Y14: =IFERROR(+K14*N6,) -> 0
E15: =IFERROR(VLOOKUP(A15,PERS_VAL,4,0),"-") -> - | L15: 0 | N15: 0 | O15: 0
A16: Matériel
A17: A.320 | B17: roooooooooooooooooo | C17: LH | D17: 8 | F17: =IFERROR(VLOOKUP(A17,MAT_VAL,4,0),"-") -> 88 | G17: =IFERROR(VLOOKUP(A17,MAT_VAL,6,0),"-") -> 96.8 | H17: =IFERROR(IF(A17="","",RESSOURCES!$D$133*VLOOKUP(A17,MAT_VAL,5,0)),"-") -> 349.8 | J17: =IFERROR(VLOOKUP(A17,ST_VAL,4,0),"-") -> - | K17: =IFERROR((E17+F17+G17+D17+H17+I17)*D17,"") -> 4340.8 | L17: - | M17: 207884.0502 | N17: =IFERROR(IF($D$6>0,D17*$N$6,D17),"") -> 383.1257837 | P17: =IFERROR(IF($D$6>0,(F17*D17)*$N$6,(F17)),0) -> 33715.06897 | Q17: =IFERROR(IF($D$6>0,(G17*D17)*$N$6,(G17*D17)),0) -> 37086.57586 | R17: =IFERROR(IF($D$6>0,(H17*D17)*$N$6,(H17*D17)),0) -> 134017.3991 | S17: 204052.7924 | Z17: =IFERROR(F17*$N$6,0) -> 4214.383621 | AK17: =IFERROR(D17*J17*$N$6,0) -> 0
A18: A.296 | B18: roooooooooooooooooo | C18: LH | D18: 6 | F18: 88 | G18: 96.8 | H18: =IFERROR(IF(A18="","",RESSOURCES!$D$133*VLOOKUP(A18,MAT_VAL,5,0)),"-") -> 712.8 | J18: - | K18: =IFERROR((E18+F18+G18+D18+H18+I18)*D18,"") -> 5421.6 | L18: - | M18: 259644.3436 | N18: 287.3443378 | P18: 25286.30173 | Q18: =IFERROR(IF($D$6>0,(G18*D18)*$N$6,(G18*D18)),0) -> 27814.9319 | R18: =IFERROR(IF($D$6>0,(H18*D18)*$N$6,(H18*D18)),0) -> 204819.044 | S18: 255717.3043 | AA18: =IFERROR(F18*$N$6,0) -> 4214.383621 | AK18: =IFERROR(D18*J18*$N$6,0) -> 0
A19: A.306 | B19: roooooooooooooooooo | C19: LH | D19: 6 | F19: 88 | G19: 96.8 | H19: =IFERROR(IF(A19="","",RESSOURCES!$D$133*VLOOKUP(A19,MAT_VAL,5,0)),"-") -> 462 | J19: - | K19: 3916.8 | L19: - | M19: 187578.3837 | N19: 287.3443378 | P19: 25286.30173 | Q19: 27814.9319 | R19: 132753.0841 | S19: 183651.3444 | AB19: =IFERROR(F19*$N$6,0) -> 4214.383621 | AK19: 0
F20: - | G20: - | H20: =IFERROR(IF(A20="","",RESSOURCES!$D$133*VLOOKUP(A20,MAT_VAL,5,0)),"-") ->  | J20: - | L20: - | N20: 0 | P20: 0 | Q20: 0 | R20: 0 | AC20: =IFERROR(F20*$N$6,0) -> 0 | AK20: 0
F21: - | G21: - | H21: =IFERROR(IF(A21="","",RESSOURCES!$D$133*VLOOKUP(A21,MAT_VAL,5,0)),"-") ->  | J21: - | L21: - | N21: 0 | P21: 0 | Q21: 0 | R21: 0 | AD21: =IFERROR(F21*$N$6,0) -> 0 | AK21: 0
F22: - | G22: - | H22: =IFERROR(IF(A22="","",RESSOURCES!$D$133*VLOOKUP(A22,MAT_VAL,5,0)),"-") ->  | J22: - | L22: - | N22: 0 | P22: 0 | Q22: 0 | R22: 0 | AE22: =IFERROR(F22*$N$6,0) -> 0 | AK22: 0
F23: - | G23: - | H23: =IFERROR(IF(A23="","",RESSOURCES!$D$133*VLOOKUP(A23,MAT_VAL,5,0)),"-") ->  | J23: - | L23: - | N23: 0 | P23: 0 | Q23: 0 | R23: 0 | AF23: =IFERROR(F23*$N$6,0) -> 0 | AK23: 0
F24: - | G24: - | H24: =IFERROR(IF(A24="","",RESSOURCES!$D$133*VLOOKUP(A24,MAT_VAL,5,0)),"-") ->  | J24: - | L24: - | N24: 0 | P24: 0 | Q24: 0 | R24: 0 | AG24: =IFERROR(F24*$N$6,0) -> 0 | AK24: 0
F25: - | G25: - | H25: =IFERROR(IF(A25="","",RESSOURCES!$D$133*VLOOKUP(A25,MAT_VAL,5,0)),"-") ->  | J25: - | L25: - | N25: 0 | P25: 0 | Q25: 0 | R25: 0 | AH25: =IFERROR(F25*$N$6,0) -> 0 | AK25: 0
F26: - | G26: - | H26: =IFERROR(IF(A26="","",RESSOURCES!$D$133*VLOOKUP(A26,MAT_VAL,5,0)),"-") ->  | J26: - | L26: - | N26: 0 | P26: 0 | Q26: 0 | R26: 0 | AI26: =IFERROR(F26*$N$6,0) -> 0 | AK26: 0
A27: Ftures & conso
A28: A.240 | B28: aaaaaaaaaaaaaa | C28: T | D28: =D48*K6*$D$41*$E$41 -> 4.725 | I28: =IFERROR(VLOOKUP(A28,RESSCH_1,4,0),"-") -> 33 | K28: =IFERROR((E28*D28+F28+G28*D28+D28*H28+D28*I28),"") -> 155.925 | L28: 0 | M28: 7467.360978 | N28: =IFERROR(IF($D$6>0,D28*$N$6,D28),"") -> 226.283666 | S28: 226.283666 | AJ28: =IFERROR(D28*I28*$N$6,0) -> 7467.360978 | AK28: 0
A29: A.225 | B29: aaaaaaaaaaaaaa | C29: T | D29: =D46*$K$6*$D$41*$E$41 -> 3.15 | I29: 33 | K29: 103.95 | L29: 0 | M29: 4978.240652 | N29: =IFERROR(IF($D$6>0,D29*$N$6,D29),"") -> 150.8557773 | S29: 150.8557773 | AJ29: 4978.240652 | AK29: 0
A30: A.237 | B30: =IFERROR(VLOOKUP(A30,RESTAF_01,2,0),"") -> aaaaaaaaaaaaaa | C30: =IFERROR(VLOOKUP(A30,RESTAF_01,3,0),"") -> T | D30: =D47*$K$6*$D$41*$E$41 -> 3.079125 | I30: =IFERROR(VLOOKUP(A30,RESSCH_1,4,0),"-") -> 33 | K30: =IFERROR((E30*D30+F30+G30*D30+D30*H30+D30*I30),"") -> 101.611125 | L30: =IFERROR(J30*D30,"-") -> 0 | M30: =IFERROR(IF($D$6>0,K30*$N$6,K30),"") -> 4866.230237 | N30: =IFERROR(IF($D$6>0,D30*$N$6,D30),"") -> 147.4615223 | S30: =IFERROR(-SUM(U30:AK30)+M30+N30,"") -> 147.4615223 | AJ30: 4866.230237
A31: A.235 | B31: aaaaaaaaaaaaaa | C31: T | D31: =D49*$K$6*$D$41*$E$41 -> 3.5130375 | I31: 33 | K31: 115.9302375 | L31: 0 | M31: 5551.982887 | N31: =IFERROR(IF($D$6>0,D31*$N$6,D31),"") -> 168.2419057 | S31: 168.2419057 | AJ31: 5551.982887
A32: A.244 | B32: aaaaaaaaaaaaaa | C32: cfa/T | D32: =+SUM(D28:D31)+D37 -> 17.6671625 | I32: 33 | K32: 583.0163625 | L32: 0 | M32: 27921.0751 | N32: 846.0931849 | S32: 846.0931849 | AJ32: 27921.0751
A33: A.241 | B33: aaaaaaaaaaaaaa | C33: FF | D33: 1 | I33: 33 | K33: 33 | L33: 0 | M33: 1580.393858 | N33: 47.89072296 | S33: 47.89072296 | AJ33: 1580.393858
A34: A.242 | B34: aaaaaaaaaaaaaa | C34: 0 | D34: 1 | I34: 33 | K34: 33 | L34: 0 | M34: 1580.393858 | N34: 47.89072296 | S34: 47.89072296 | AJ34: 1580.393858
A35: A.243 | B35: aaaaaaaaaaaaaa | C35: FF | D35: 1 | I35: 33 | K35: 33 | L35: 0 | M35: 1580.393858 | N35: 47.89072296 | S35: 47.89072296 | AJ35: 1580.393858
A36: A.238 | B36: aaaaaaaaaaaaaa | C36: 0 | D36: =D50*$K$6*$D$41*$E$41 -> 3.15 | I36: 33 | K36: 103.95 | L36: 0 | M36: 4978.240652 | N36: 150.8557773 | S36: 150.8557773 | AJ36: 4978.240652
A37: A.263 | B37: TTTGttttttttttttttttts | C37: M3 | D37: =+K6*E53*D53 -> 3.2 | I37: 88 | K37: 281.6 | L37: 0 | M37: 13486.02759 | N37: 153.2503135 | S37: 153.2503135 | AJ37: 13486.02759 | AK37: 0
B38: TOTAL | K38: =SUM(K10:K37) -> 17534.18272 | L38: =SUM(L10:L37) -> 0 | U38: =+SUM(U10:U37) -> 15803.93858 | V38: 15803.93858 | W38: 79019.69289 | X38: 0 | Y38: =+SUM(Y10:Y37) -> 0 | Z38: 4214.383621 | AA38: 4214.383621 | AB38: 4214.383621 | AC38: 0 | AD38: 0 | AE38: 0 | AF38: 0 | AG38: 0 | AH38: 0 | AI38: =+SUM(AI10:AI37) -> 0 | AJ38: 73990.33967 | AK38: 0
K40: =IFERROR((K38+L38)/$K$6,"") -> 87.67091362 | L40: CFA
D41: 0.0375 | E41: 1.05
G42: TOTAL DEBOURSE SEC HT ARRONDI A : | K42: =IFERROR(ROUNDUP(K40,-1),"") -> 90 | L42: CFA
G43: TOTAL VENTE HT ARRONDI A : | K43: =IFERROR(K42*K44,"") -> 0 | L43: CFA
I44: Coef. de vente
C46: Ciment | D46: 0.4 | K46: =IFERROR(K40*$D$6,0) -> 839724.6873
C47: Sable Rivière | D47: 0.391
C48: agrégats 4/6 | D48: 0.6
C49: agrégats 5/15 | D49: 0.4461
C50: VICOFLOW | D50: 0.4
C51: SABLE POSE | D51: 0.04
C53: EP BP | D53: 0.08 | E53: 0.2
K100: =K46 -> 839724.6873

Sheet 402
F1: SOUS DETAIL DE PRIX BUDGET
C3: 400 | D3: ASSAINISSEMENT ET DRAINAGE
C4: 402 | P4: =SUM(N17:N26) -> 21 | Q4: =IFERROR(SUM(Q17:Q26)/VLOOKUP(A17,MAT_VAL,6,0),"") -> 21 | R4: =SUM(R17:R26)/RESSOURCES!$D$133 -> 317.2
B5: DESIGNATION DU PRIX : | C5: FOSSE BETON | E5: Unités : | L5: Unités : | P5: =SUM(P17:P26) -> 440 | Q5: =SUM(Q17:Q26) -> 2032.8 | R5: =SUM(R17:R26) -> 10467.6
B6: QUANTITES PREVUES : | D6: =+'OPTION 2 (fosse terre)'!E52 -> 0 | H6: Quantités de rendement : | K6: 200 | M6: K | N6: =IFERROR(D6/K6,"") -> 0 | O6: Mo | P6: Mat_BSI | Q6: Entretien | R6: Carb
E7: Travaux Propres | J7: ST | M7: Coût
A8: Code | B8: Désignation | C8: Unité | D8: Qté ou durée d'utilisation | E8: Main d'œuvre | F8: Amortissement | G8: Entretien | H8: Carb-Energie | I8: Fournitures | J8: Sous-traitant | K8: TOTAL Travaux propres | L8: TOTAL Travaux ST | U8: =B10 -> prprtttttttttttttttttttttttkuù | V8: =B11 -> prprtttttttttttttttttttttttkuù | W8: =B12 -> prprtttttttttttttttttttttttkuù | X8: =B13 -> prprtttttttttttttttttttttttkuù | Y8: =B14 ->  | Z8: =B15 ->  | AA8: =B17 -> roooooooooooooooooo | AB8: =B18 -> roooooooooooooooooo | AC8: =B19 -> roooooooooooooooooo | AD8: =B20 -> roooooooooooooooooo | AE8: =B21 -> roooooooooooooooooo | AF8: =B22 ->  | AG8: =B23 ->  | AH8: =B24 ->  | AI8: =B25 ->  | AJ8: =B26 ->  | AK8: =A27 -> Ftures & conso | AL8: =+J8 -> Sous-traitant
A9: Personnel
A10: A.114 | B10: =IFERROR(VLOOKUP(A10,RESTAF_01,2,0),"") -> prprtttttttttttttttttttttttkuù | C10: =IFERROR(VLOOKUP(A10,RESTAF_01,3,0),"") -> H | E10: =IFERROR(VLOOKUP(A10,PERS_VAL,4,0),"-") -> 33 | K10: =IFERROR((E10*D10),"") -> 0 | L10: =IFERROR(J10*D10,"-") -> 0 | M10: =IFERROR(IF($D$6>0,K10*$N$6,K10),"") -> 0 | N10: =IFERROR(IF($D$6>0,D10*$N$6,D10),"") -> 0 | O10: =IFERROR(IF($D$6>0,(E10*D10)*$N$6,(E10*D10)),0) -> 0 | S10: =IFERROR(-SUM(U10:AL10)+M10+N10,"") -> 0 | U10: =IFERROR(+K10*$N$6,0) -> 0
A11: A.117 | B11: prprtttttttttttttttttttttttkuù | C11: H | E11: 33 | K11: =IFERROR((E11*D11),"") -> 0 | L11: 0 | M11: 0 | N11: 0 | O11: =IFERROR(IF($D$6>0,(E11*D11)*$N$6,(E11*D11)),0) -> 0 | S11: 0 | V11: =IFERROR(+K11*N6,0) -> 0
A12: A.118 | B12: =IFERROR(VLOOKUP(A12,RESTAF_01,2,0),"") -> prprtttttttttttttttttttttttkuù | C12: =IFERROR(VLOOKUP(A12,RESTAF_01,3,0),"") -> H | E12: 33 | K12: =IFERROR((E12*D12),"") -> 0 | L12: =IFERROR(J12*D12,"-") -> 0 | M12: =IFERROR(IF($D$6>0,K12*$N$6,K12),"") -> 0 | N12: 0 | O12: =IFERROR(IF($D$6>0,(E12*D12)*$N$6,(E12*D12)),0) -> 0 | S12: =IFERROR(-SUM(U12:AL12)+M12+N12,"") -> 0 | W12: =IFERROR(+K12*N6,0) -> 0
A13: A.119 | B13: prprtttttttttttttttttttttttkuù | C13: H | E13: 33 | K13: 0 | L13: 0 | M13: 0 | N13: 0 | O13: 0 | S13: 0 | X13: =IFERROR(+K13*N6,0) -> 0
E14: - | L14: 0 | N14: 0 | O14: 0 | Y14: =IFERROR(+K14*N6,0) -> 0
E15: - | L15: 0 | N15: 0 | O15: 0 | Z15: =IFERROR(+K15*N6,0) -> 0
A16: Matériel
A17: A.320 | B17: roooooooooooooooooo | C17: LH | D17: 2 | F17: =IFERROR(VLOOKUP(A17,MAT_VAL,4,0),"-") -> 88 | G17: =IFERROR(VLOOKUP(A17,MAT_VAL,6,0),"-") -> 96.8 | H17: =IFERROR(IF(A17="","",RESSOURCES!$D$133*VLOOKUP(A17,MAT_VAL,5,0)),"-") -> 349.8 | J17: =IFERROR(VLOOKUP(A17,ST_VAL,4,0),"-") -> - | K17: =IFERROR((E17+F17+G17+D17+H17+I17)*D17,"") -> 1073.2 | L17: - | M17: 1073.2 | N17: =IFERROR(IF($D$6>0,D17*$N$6,D17),"") -> 2 | P17: =IFERROR(IF($D$6>0,(F17*D17)*$N$6,(F17)),0) -> 88 | Q17: =IFERROR(IF($D$6>0,(G17*D17)*$N$6,(G17*D17)),0) -> 193.6 | R17: =IFERROR(IF($D$6>0,(H17*D17)*$N$6,(H17*D17)),0) -> 699.6 | S17: 1075.2 | AA17: =IFERROR(F17*$N$6,0) -> 0 | AL17: =IFERROR(D17*J17*$N$6,0) -> 0
A18: A.296 | B18: roooooooooooooooooo | C18: LH | D18: 1 | F18: 88 | G18: 96.8 | H18: =IFERROR(IF(A18="","",RESSOURCES!$D$133*VLOOKUP(A18,MAT_VAL,5,0)),"-") -> 712.8 | J18: - | K18: =IFERROR((E18+F18+G18+D18+H18+I18)*D18,"") -> 898.6 | L18: - | M18: 898.6 | N18: 1 | P18: 88 | Q18: =IFERROR(IF($D$6>0,(G18*D18)*$N$6,(G18*D18)),0) -> 96.8 | R18: =IFERROR(IF($D$6>0,(H18*D18)*$N$6,(H18*D18)),0) -> 712.8 | S18: 899.6 | AB18: =IFERROR(F18*$N$6,0) -> 0 | AL18: =IFERROR(D18*J18*$N$6,0) -> 0
A19: A.306 | B19: roooooooooooooooooo | C19: LH | D19: 2 | F19: 88 | G19: 96.8 | H19: =IFERROR(IF(A19="","",RESSOURCES!$D$133*VLOOKUP(A19,MAT_VAL,5,0)),"-") -> 462 | J19: - | K19: 1297.6 | L19: - | M19: 1297.6 | N19: 2 | P19: 88 | Q19: 193.6 | R19: 924 | S19: 1299.6 | AC19: =IFERROR(F19*$N$6,0) -> 0 | AL19: 0
A20: A.310 | B20: roooooooooooooooooo | C20: LH | D20: 8 | F20: 88 | G20: 96.8 | H20: =IFERROR(IF(A20="","",RESSOURCES!$D$133*VLOOKUP(A20,MAT_VAL,5,0)),"-") -> 541.2 | J20: - | K20: 5872 | L20: - | M20: 5872 | N20: 8 | P20: =IFERROR(IF($D$6>0,(F20*D20)*$N$6,(F20)),0) -> 88 | Q20: 774.4 | R20: 4329.6 | S20: 5880 | AD20: =IFERROR(F20*$N$6,0) -> 0 | AL20: 0
A21: A.298 | B21: roooooooooooooooooo | C21: LH | D21: 8 | F21: 88 | G21: 96.8 | H21: =IFERROR(IF(A21="","",RESSOURCES!$D$133*VLOOKUP(A21,MAT_VAL,5,0)),"-") -> 475.2 | J21: - | K21: 5344 | L21: - | M21: 5344 | N21: 8 | P21: =IFERROR(IF($D$6>0,(F21*D21)*$N$6,(F21)),0) -> 88 | Q21: 774.4 | R21: 3801.6 | S21: 5352 | AE21: =IFERROR(F21*$N$6,0) -> 0 | AL21: 0
F22: - | G22: - | H22: =IFERROR(IF(A22="","",RESSOURCES!$D$133*VLOOKUP(A22,MAT_VAL,5,0)),"-") ->  | J22: - | L22: - | N22: 0 | P22: - | Q22: 0 | R22: 0 | AF22: =IFERROR(F22*$N$6,0) -> 0 | AL22: 0
F23: - | G23: - | H23: =IFERROR(IF(A23="","",RESSOURCES!$D$133*VLOOKUP(A23,MAT_VAL,5,0)),"-") ->  | J23: - | L23: - | N23: 0 | P23: - | Q23: 0 | R23: 0 | AG23: =IFERROR(F23*$N$6,0) -> 0 | AL23: 0
F24: - | G24: - | H24: =IFERROR(IF(A24="","",RESSOURCES!$D$133*VLOOKUP(A24,MAT_VAL,5,0)),"-") ->  | J24: - | L24: - | N24: 0 | P24: - | Q24: 0 | R24: 0 | AH24: =IFERROR(F24*$N$6,0) -> 0 | AL24: 0
F25: - | G25: - | H25: =IFERROR(IF(A25="","",RESSOURCES!$D$133*VLOOKUP(A25,MAT_VAL,5,0)),"-") ->  | J25: - | L25: - | N25: 0 | P25: - | Q25: 0 | R25: 0 | AI25: =IFERROR(F25*$N$6,0) -> 0 | AL25: 0
F26: - | G26: - | H26: =IFERROR(IF(A26="","",RESSOURCES!$D$133*VLOOKUP(A26,MAT_VAL,5,0)),"-") ->  | J26: - | L26: - | N26: 0 | P26: - | Q26: 0 | R26: 0 | AJ26: =IFERROR(F26*$N$6,0) -> 0 | AK26: =IFERROR(D26*I26*$N$6,0) -> 0 | AL26: 0
A27: Ftures & conso
A28: A.240 | B28: aaaaaaaaaaaaaa | C28: T | I28: =IFERROR(VLOOKUP(A28,RESSCH_1,4,0),"-") -> 33 | K28: =IFERROR((E28*D28+F28+G28*D28+D28*H28+D28*I28),"") -> 0 | L28: 0 | M28: 0 | N28: =IFERROR(IF($D$6>0,D28*$N$6,D28),"") -> 0 | O28: 0 | S28: 0 | AK28: =IFERROR(D28*I28*$N$6,0) -> 0 | AL28: 0
A29: A.225 | B29: =IFERROR(VLOOKUP(A29,RESTAF_01,2,0),"") -> aaaaaaaaaaaaaa | C29: =IFERROR(VLOOKUP(A29,RESTAF_01,3,0),"") -> T | D29: =+C50*B49*K6 -> 19.11 | I29: =IFERROR(VLOOKUP(A29,RESSCH_1,4,0),"-") -> 33 | K29: =IFERROR((E29*D29+F29+G29*D29+D29*H29+D29*I29),"") -> 630.63 | L29: =IFERROR(J29*D29,"-") -> 0 | M29: =IFERROR(IF($D$6>0,K29*$N$6,K29),"") -> 630.63 | N29: =IFERROR(IF($D$6>0,D29*$N$6,D29),"") -> 19.11 | S29: =IFERROR(-SUM(U29:AL29)+M29+N29,"") -> 649.74 | AK29: =IFERROR(D29*I29*$N$6,0) -> 0 | AL29: =IFERROR(D29*J29*$N$6,0) -> 0
A30: A.226 | B30: aaaaaaaaaaaaaa | C30: T | D30: =+D29*D57 -> 1.1466 | I30: 33 | K30: 37.8378 | L30: 0 | M30: 37.8378 | N30: =IFERROR(IF($D$6>0,D30*$N$6,D30),"") -> 1.1466 | S30: 38.9844 | AK30: 0 | AL30: 0
A31: A.237 | B31: aaaaaaaaaaaaaa | C31: T | D31: =+K6*B49*C53 -> 27.3 | I31: 33 | K31: 900.9 | L31: 0 | M31: 900.9 | N31: =IFERROR(IF($D$6>0,D31*$N$6,D31),"") -> 27.3 | S31: 928.2 | AK31: 0 | AL31: 0
A32: A.235 | B32: aaaaaaaaaaaaaa | C32: T | D32: =+C51*C50*K6 -> 35 | I32: 33 | K32: 1155 | L32: 0 | M32: 1155 | N32: 35 | S32: 1190 | AK32: 0 | AL32: 0
A33: A.236 | B33: aaaaaaaaaaaaaa | C33: T | D33: =+C52*K6*B49 -> 32.76 | I33: 33 | K33: 1081.08 | L33: 0 | M33: 1081.08 | N33: 32.76 | S33: 1113.84 | AK33: 0 | AL33: 0
A34: A.238 | B34: aaaaaaaaaaaaaa | C34: 0 | D34: =+B49*K6*C54 -> 21.84 | I34: 33 | K34: 720.72 | L34: 0 | M34: 720.72 | N34: 21.84 | S34: 742.56 | AK34: 0 | AL34: 0
A35: A.244 | B35: aaaaaaaaaaaaaa | C35: cfa/T | D35: =+D31+D32+D33 -> 95.06 | I35: 33 | K35: 3136.98 | L35: 0 | M35: 3136.98 | N35: 95.06 | S35: 3232.04 | AK35: 0 | AL35: 0
I36: - | L36: 0 | N36: 0 | AK36: 0 | AL36: 0
I37: - | L37: 0 | N37: 0 | AK37: 0 | AL37: 0
I38: - | L38: 0 | N38: =IFERROR(IF($D$6>0,D38*$N$6,D38),"") -> 0 | AK38: 0 | AL38: 0
B39: TOTAL | K39: =SUM(K10:K38) -> 22148.5478 | L39: =SUM(L10:L38) -> 0 | U39: =+SUM(U10:U38) -> 0 | V39: 0 | W39: 0 | X39: 0 | Y39: =+SUM(Y10:Y38) -> 0 | Z39: 0 | AA39: 0 | AB39: 0 | AC39: 0 | AD39: 0 | AE39: 0 | AF39: 0 | AG39: 0 | AH39: 0 | AI39: 0 | AJ39: =+SUM(AJ10:AJ38) -> 0 | AK39: 0 | AL39: 0
K41: =IFERROR((K39+L39)/$K$6,"") -> 110.742739 | L41: CFA
G43: TOTAL DEBOURSE SEC HT ARRONDI A : | K43: =IFERROR(ROUNDUP(K41,-1),"") -> 120 | L43: CFA
G44: TOTAL VENTE HT ARRONDI A : | K44: =IFERROR(K43*K45,"") -> 0 | L44: CFA
I45: Coef. de vente
K47: =IFERROR(K41*$D$6,0) -> 0
B48: VOLUME FOSSE
B49: =(1+0.3)*0.2*1.05 -> 0.273
B50: CIMENT | C50: 0.35 | D50: 1.05
B51: Agrégats 5/16 | C51: 0.5 | D51: =+C51*$N$151*$O$151 -> 0 | E51: 1.05 | F51: 2.1
B52: Agrégats 16/25 | C52: 0.6 | D52: =+C52*$N$151 -> 0
B53: Sable 0/5 | C53: 0.5 | D53: =+C53*$N$151*F51 -> 0 | F53: 2
B54: Adjuvant VISCO FLOW 3.75 | C54: 0.4 | D54: 0
D57: 0.06
K100: =K47 -> 0

Sheet 403
F1: SOUS DETAIL DE PRIX BUDGET
C3: 400 | D3: ASSAINISSEMENT ET DRAINAGE
C4: 403 | P4: =SUM(N17:N26) -> 0.5 | Q4: =IFERROR(SUM(Q17:Q26)/VLOOKUP(A17,MAT_VAL,6,0),"") -> 0.5 | R4: =SUM(R17:R26)/RESSOURCES!$D$133 -> 7.2
B5: DESIGNATION DU PRIX : | C5: BETON 350 NON ARME | E5: Unités : | L5: Unités : | P5: =SUM(P17:P26) -> 44 | Q5: =SUM(Q17:Q26) -> 48.4 | R5: =SUM(R17:R26) -> 237.6
B6: QUANTITES PREVUES : | D6: =+'OPTION 2 PHASES (COST)'!E80 -> 3 | E6: M3 | H6: Quantités de rendement : | K6: 6 | M6: K | N6: =IFERROR(D6/K6,"") -> 0.5 | O6: Mo | P6: Mat_BSI | Q6: Entretien | R6: Carb
E7: Travaux Propres | J7: ST | M7: Coût
A8: Code | B8: Désignation | C8: Unité | D8: Qté ou durée d'utilisation | E8: Main d'œuvre | F8: Amortissement | G8: Entretien | H8: Carb-Energie | I8: Fournitures | J8: Sous-traitant | K8: TOTAL Travaux propres | L8: TOTAL Travaux ST | U8: =B10 -> prprtttttttttttttttttttttttkuù | V8: =B11 -> prprtttttttttttttttttttttttkuù | W8: =B12 -> prprtttttttttttttttttttttttkuù | X8: =B13 -> prprtttttttttttttttttttttttkuù | Y8: =B14 ->  | Z8: =B15 ->  | AA8: =B17 -> roooooooooooooooooo | AB8: =B18 ->  | AC8: =B19 ->  | AD8: =B20 ->  | AE8: =B21 ->  | AF8: =B22 ->  | AG8: =B23 ->  | AH8: =B24 ->  | AI8: =B25 ->  | AJ8: =B26 ->  | AK8: =A27 -> Ftures & conso | AL8: =+J8 -> Sous-traitant
A9: Personnel
A10: A.114 | B10: =IFERROR(VLOOKUP(A10,RESTAF_01,2,0),"") -> prprtttttttttttttttttttttttkuù | C10: =IFERROR(VLOOKUP(A10,RESTAF_01,3,0),"") -> H | D10: 1 | E10: =IFERROR(VLOOKUP(A10,PERS_VAL,4,0),"-") -> 33 | K10: =IFERROR((E10*D10),"") -> 33 | L10: =IFERROR(J10*D10,"-") -> 0 | M10: =IFERROR(IF($D$6>0,K10*$N$6,K10),"") -> 16.5 | N10: =IFERROR(IF($D$6>0,D10*$N$6,D10),"") -> 0.5 | O10: =IFERROR(IF($D$6>0,(E10*D10)*$N$6,(E10*D10)),0) -> 16.5 | S10: =IFERROR(-SUM(U10:AL10)+M10+N10,"") -> 0.5 | U10: =IFERROR(+K10*$N$6,0) -> 16.5
A11: A.117 | B11: prprtttttttttttttttttttttttkuù | C11: H | D11: 1 | E11: 33 | K11: =IFERROR((E11*D11),"") -> 33 | L11: 0 | M11: 16.5 | N11: 0.5 | O11: =IFERROR(IF($D$6>0,(E11*D11)*$N$6,(E11*D11)),0) -> 16.5 | S11: 0.5 | V11: =IFERROR(+K11*N6,0) -> 16.5
A12: A.118 | B12: prprtttttttttttttttttttttttkuù | C12: H | D12: 5 | E12: 33 | K12: 165 | L12: 0 | M12: 82.5 | N12: 2.5 | O12: 82.5 | S12: 2.5 | W12: =IFERROR(+K12*N6,0) -> 82.5
A13: A.119 | B13: =IFERROR(VLOOKUP(A13,RESTAF_01,2,0),"") -> prprtttttttttttttttttttttttkuù | C13: =IFERROR(VLOOKUP(A13,RESTAF_01,3,0),"") -> H | D13: 6 | E13: 33 | K13: =IFERROR((E13*D13),"") -> 198 | L13: =IFERROR(J13*D13,"-") -> 0 | M13: =IFERROR(IF($D$6>0,K13*$N$6,K13),"") -> 99 | N13: 3 | O13: =IFERROR(IF($D$6>0,(E13*D13)*$N$6,(E13*D13)),0) -> 99 | S13: =IFERROR(-SUM(U13:AL13)+M13+N13,"") -> 3 | X13: =IFERROR(+K13*N6,0) -> 99
E14: - | L14: 0 | N14: 0 | O14: 0 | Y14: =IFERROR(+K14*N6,0) -> 0
E15: - | L15: 0 | N15: 0 | O15: 0 | Z15: =IFERROR(+K15*N6,0) -> 0
A16: Matériel
A17: A.298 | B17: roooooooooooooooooo | C17: LH | D17: 1 | F17: =IFERROR(VLOOKUP(A17,MAT_VAL,4,0),"-") -> 88 | G17: =IFERROR(VLOOKUP(A17,MAT_VAL,6,0),"-") -> 96.8 | H17: =IFERROR(IF(A17="","",RESSOURCES!$D$133*VLOOKUP(A17,MAT_VAL,5,0)),"-") -> 475.2 | J17: =IFERROR(VLOOKUP(A17,ST_VAL,4,0),"-") -> - | K17: =IFERROR((E17+F17+G17+D17+H17+I17)*D17,"") -> 661 | L17: - | M17: 330.5 | N17: =IFERROR(IF($D$6>0,D17*$N$6,D17),"") -> 0.5 | P17: =IFERROR(IF($D$6>0,(F17*D17)*$N$6,(F17)),0) -> 44 | Q17: =IFERROR(IF($D$6>0,(G17*D17)*$N$6,(G17*D17)),0) -> 48.4 | R17: =IFERROR(IF($D$6>0,(H17*D17)*$N$6,(H17*D17)),0) -> 237.6 | S17: 287 | AA17: =IFERROR(F17*$N$6,0) -> 44 | AL17: =IFERROR(D17*J17*$N$6,0) -> 0
F18: - | G18: - | H18: =IFERROR(IF(A18="","",RESSOURCES!$D$133*VLOOKUP(A18,MAT_VAL,5,0)),"-") ->  | J18: - | K18: =IFERROR((E18+F18+G18+D18+H18+I18)*D18,"") ->  | L18: - | N18: 0 | P18: 0 | Q18: =IFERROR(IF($D$6>0,(G18*D18)*$N$6,(G18*D18)),0) -> 0 | R18: =IFERROR(IF($D$6>0,(H18*D18)*$N$6,(H18*D18)),0) -> 0 | AB18: =IFERROR(F18*$N$6,0) -> 0 | AL18: =IFERROR(D18*J18*$N$6,0) -> 0
F19: - | G19: - | H19: =IFERROR(IF(A19="","",RESSOURCES!$D$133*VLOOKUP(A19,MAT_VAL,5,0)),"-") ->  | J19: - | L19: - | N19: 0 | P19: 0 | Q19: 0 | R19: 0 | AC19: =IFERROR(F19*$N$6,0) -> 0 | AL19: 0
F20: - | G20: - | H20: =IFERROR(IF(A20="","",RESSOURCES!$D$133*VLOOKUP(A20,MAT_VAL,5,0)),"-") ->  | J20: - | L20: - | N20: 0 | P20: 0 | Q20: 0 | R20: 0 | AD20: =IFERROR(F20*$N$6,0) -> 0 | AL20: 0
F21: - | G21: - | H21: =IFERROR(IF(A21="","",RESSOURCES!$D$133*VLOOKUP(A21,MAT_VAL,5,0)),"-") ->  | J21: - | L21: - | N21: 0 | P21: 0 | Q21: 0 | R21: 0 | AE21: =IFERROR(F21*$N$6,0) -> 0 | AL21: 0
F22: - | G22: - | H22: =IFERROR(IF(A22="","",RESSOURCES!$D$133*VLOOKUP(A22,MAT_VAL,5,0)),"-") ->  | J22: - | L22: - | N22: 0 | P22: 0 | Q22: 0 | R22: 0 | AF22: =IFERROR(F22*$N$6,0) -> 0 | AL22: 0
F23: - | G23: - | H23: =IFERROR(IF(A23="","",RESSOURCES!$D$133*VLOOKUP(A23,MAT_VAL,5,0)),"-") ->  | J23: - | L23: - | N23: 0 | P23: 0 | Q23: 0 | R23: 0 | AG23: =IFERROR(F23*$N$6,0) -> 0 | AL23: 0
F24: - | G24: - | H24: =IFERROR(IF(A24="","",RESSOURCES!$D$133*VLOOKUP(A24,MAT_VAL,5,0)),"-") ->  | J24: - | L24: - | N24: 0 | P24: 0 | Q24: 0 | R24: 0 | AH24: =IFERROR(F24*$N$6,0) -> 0 | AL24: 0
F25: - | G25: - | H25: =IFERROR(IF(A25="","",RESSOURCES!$D$133*VLOOKUP(A25,MAT_VAL,5,0)),"-") ->  | J25: - | L25: - | N25: 0 | P25: 0 | Q25: 0 | R25: 0 | AI25: =IFERROR(F25*$N$6,0) -> 0 | AL25: 0
F26: - | G26: - | H26: =IFERROR(IF(A26="","",RESSOURCES!$D$133*VLOOKUP(A26,MAT_VAL,5,0)),"-") ->  | J26: - | L26: - | N26: 0 | P26: 0 | Q26: 0 | R26: 0 | AJ26: =IFERROR(F26*$N$6,0) -> 0 | AL26: 0
A27: Ftures & conso
A28: A.240 | B28: aaaaaaaaaaaaaa | C28: T | I28: =IFERROR(VLOOKUP(A28,RESSCH_1,4,0),"-") -> 33 | K28: =IFERROR((E28*D28+F28+G28*D28+D28*H28+D28*I28),"") -> 0 | L28: 0 | M28: 0 | N28: =IFERROR(IF($D$6>0,D28*$N$6,D28),"") -> 0 | S28: 0 | AK28: =IFERROR(D28*I28*$N$6,0) -> 0 | AL28: 0
A29: A.225 | B29: aaaaaaaaaaaaaa | C29: T | D29: =+C45*$D$45*$K$6 -> 2.205 | I29: 33 | K29: 72.765 | L29: 0 | M29: 36.3825 | N29: =IFERROR(IF($D$6>0,D29*$N$6,D29),"") -> 1.1025 | S29: 1.1025 | AK29: 36.3825 | AL29: 0
A30: A.226 | B30: =IFERROR(VLOOKUP(A30,RESTAF_01,2,0),"") -> aaaaaaaaaaaaaa | C30: =IFERROR(VLOOKUP(A30,RESTAF_01,3,0),"") -> T | I30: =IFERROR(VLOOKUP(A30,RESSCH_1,4,0),"-") -> 33 | K30: =IFERROR((E30*D30+F30+G30*D30+D30*H30+D30*I30),"") -> 0 | L30: =IFERROR(J30*D30,"-") -> 0 | M30: =IFERROR(IF($D$6>0,K30*$N$6,K30),"") -> 0 | N30: =IFERROR(IF($D$6>0,D30*$N$6,D30),"") -> 0 | S30: 0 | AK30: 0
A31: A.237 | B31: aaaaaaaaaaaaaa | C31: T | D31: =+C48*K6*E46*F48 -> 6.3 | I31: 33 | K31: 207.9 | L31: 0 | M31: 103.95 | N31: =IFERROR(IF($D$6>0,D31*$N$6,D31),"") -> 3.15 | S31: 3.15 | AK31: 103.95
A32: A.235 | B32: aaaaaaaaaaaaaa | C32: T | D32: =+C46*E46*F46*K6 -> 6.615 | I32: 33 | K32: 218.295 | L32: 0 | M32: 109.1475 | N32: 3.3075 | S32: 3.3075 | AK32: 109.1475
A33: A.236 | B33: aaaaaaaaaaaaaa | C33: T | D33: =+C47*E46*F46*K6 -> 7.938 | I33: 33 | K33: 261.954 | L33: 0 | M33: 130.977 | N33: 3.969 | S33: 3.969 | AK33: 130.977 | AL33: 0
A34: A.238 | B34: aaaaaaaaaaaaaa | C34: 0 | D34: =+C49*K6 -> 2.4 | I34: 33 | K34: 79.2 | L34: 0 | M34: 39.6 | N34: 1.2 | S34: 1.2 | AK34: 39.6 | AL34: 0
A35: A.244 | B35: aaaaaaaaaaaaaa | C35: cfa/T | D35: =D29+D31+D32+D33 -> 23.058 | I35: 33 | K35: 760.914 | L35: 0 | M35: 380.457 | N35: 11.529 | S35: 11.529 | AK35: 380.457 | AL35: 0
I36: - | N36: 0 | AK36: 0 | AL36: 0
B37: TOTAL | K37: =SUM(K10:K36) -> 2691.028 | L37: =SUM(L10:L36) -> 0 | U37: =+SUM(U10:U36) -> 16.5 | V37: 16.5 | W37: 82.5 | X37: 99 | Y37: =+SUM(Y10:Y36) -> 0 | Z37: 0 | AA37: 44 | AB37: 0 | AC37: 0 | AD37: 0 | AE37: 0 | AF37: 0 | AG37: 0 | AH37: 0 | AI37: 0 | AJ37: =+SUM(AJ10:AJ36) -> 0 | AK37: 800.514 | AL37: 0
K39: =IFERROR((K37+L37)/$K$6,"") -> 448.5046667 | L39: CFA
G41: TOTAL DEBOURSE SEC HT ARRONDI A : | K41: =IFERROR(ROUNDUP(K39,-1),"") -> 450 | L41: CFA
G42: TOTAL VENTE HT ARRONDI A : | K42: =IFERROR(K41*K43,"") -> 0 | L42: CFA
I43: Coef. de vente
B45: CIMENT | C45: 0.35 | D45: 1.05 | K45: =IFERROR(K39*$D$6,0) -> 1345.514
B46: Agrégats 5/16 | C46: 0.5 | D46: =+C46*$N$151*$O$151 -> 0 | E46: 1.05 | F46: 2.1
B47: Agrégats 16/25 | C47: 0.6 | D47: =+C47*$N$151 -> 0
B48: Sable 0/5 | C48: 0.5 | D48: =+C48*$N$151*F46 -> 0 | F48: 2
B49: Adjuvant VISCO FLOW 3.75 | C49: 0.4 | D49: 0
D52: 110
K100: =K45 -> 1345.514

Sheet 404
F1: SOUS DETAIL DE PRIX BUDGET
C3: 400 | D3: ASSAINISSEMENT ET DRAINAGE
C4: 404 | P4: =SUM(N17:N26) -> 1409.34 | Q4: =IFERROR(SUM(Q17:Q26)/VLOOKUP(A17,MAT_VAL,6,0),"") -> 1409.34 | R4: =SUM(R17:R26)/RESSOURCES!$D$133 -> 22267.572
B5: DESIGNATION DU PRIX : | C5: DALOT 100x100 | E5: Unités : | L5: Unités : | P5: =SUM(P17:P26) -> 124021.92 | Q5: =SUM(Q17:Q26) -> 136424.112 | R5: =SUM(R17:R26) -> 734829.876
B6: QUANTITES PREVUES : | D6: =+'OPTION 2 (fosse terre)'!E63 -> 234.89 | H6: Quantités de rendement : | K6: 1 | M6: K | N6: =IFERROR(D6/K6,"") -> 234.89 | O6: Mo | P6: Mat_BSI | Q6: Entretien | R6: Carb
E7: Travaux Propres | J7: ST | M7: Coût
A8: Code | B8: Désignation | C8: Unité | D8: Qté ou durée d'utilisation | E8: Main d'œuvre | F8: Amortissement | G8: Entretien | H8: Carb-Energie | I8: Fournitures | J8: Sous-traitant | K8: TOTAL Travaux propres | L8: TOTAL Travaux ST | U8: =B10 -> prprtttttttttttttttttttttttkuù | V8: =B11 -> prprtttttttttttttttttttttttkuù | W8: =B12 -> prprtttttttttttttttttttttttkuù | X8: =B15 ->  | Y8: =B17 -> roooooooooooooooooo | Z8: =B18 -> roooooooooooooooooo | AA8: =B19 -> roooooooooooooooooo | AB8: =B20 -> roooooooooooooooooo | AC8: =B21 -> roooooooooooooooooo | AD8: =B22 ->  | AE8: =B23 ->  | AF8: =B24 ->  | AG8: =B25 ->  | AH8: =B26 ->  | AI8: =A27 -> Ftures & conso | AJ8: =+J8 -> Sous-traitant
A9: Personnel
A10: A.114 | B10: =IFERROR(VLOOKUP(A10,RESTAF_01,2,0),"") -> prprtttttttttttttttttttttttkuù | C10: =IFERROR(VLOOKUP(A10,RESTAF_01,3,0),"") -> H | D10: 5 | E10: =IFERROR(VLOOKUP(A10,PERS_VAL,4,0),"-") -> 33 | K10: =IFERROR((E10*D10),"") -> 165 | L10: =IFERROR(J10*D10,"-") -> 0 | M10: =IFERROR(IF($D$6>0,K10*$N$6,K10),"") -> 38756.85 | N10: =IFERROR(IF($D$6>0,D10*$N$6,D10),"") -> 1174.45 | O10: =IFERROR(IF($D$6>0,(E10*D10)*$N$6,(E10*D10)),0) -> 38756.85 | S10: =IFERROR(-SUM(U10:AJ10)+M10+N10,"") -> 1174.45 | U10: =IFERROR(+K10*$N$6,0) -> 38756.85
A11: A.117 | B11: prprtttttttttttttttttttttttkuù | C11: H | D11: 5 | E11: 33 | K11: =IFERROR((E11*D11),"") -> 165 | L11: 0 | M11: 38756.85 | N11: 1174.45 | O11: =IFERROR(IF($D$6>0,(E11*D11)*$N$6,(E11*D11)),0) -> 38756.85 | S11: 1174.45 | V11: =IFERROR(+K11*N6,0) -> 38756.85
A12: A.118 | B12: prprtttttttttttttttttttttttkuù | C12: H | D12: 10 | E12: 33 | K12: 330 | L12: 0 | M12: 77513.7 | N12: 2348.9 | O12: 77513.7 | S12: 2348.9 | W12: =IFERROR(+K12*N6,0) -> 77513.7
A13: A.119 | B13: =IFERROR(VLOOKUP(A13,RESTAF_01,2,0),"") -> prprtttttttttttttttttttttttkuù | C13: =IFERROR(VLOOKUP(A13,RESTAF_01,3,0),"") -> H | D13: 15 | E13: 33 | K13: =IFERROR((E13*D13),"") -> 495 | L13: =IFERROR(J13*D13,"-") -> 0 | M13: =IFERROR(IF($D$6>0,K13*$N$6,K13),"") -> 116270.55 | N13: 3523.35 | O13: =IFERROR(IF($D$6>0,(E13*D13)*$N$6,(E13*D13)),0) -> 116270.55 | S13: =IFERROR(-SUM(U13:AJ13)+M13+N13,"") -> 119793.9 | W13: =IFERROR(+K13*N7,0) -> 0
E14: - | L14: 0 | N14: 0 | O14: 0 | W14: 0
E15: - | L15: 0 | N15: 0 | O15: 0 | W15: 0
A16: Matériel
A17: A.320 | B17: roooooooooooooooooo | C17: LH | D17: 2 | F17: =IFERROR(VLOOKUP(A17,MAT_VAL,4,0),"-") -> 88 | G17: =IFERROR(VLOOKUP(A17,MAT_VAL,6,0),"-") -> 96.8 | H17: =IFERROR(IF(A17="","",RESSOURCES!$D$133*VLOOKUP(A17,MAT_VAL,5,0)),"-") -> 349.8 | J17: =IFERROR(VLOOKUP(A17,ST_VAL,4,0),"-") -> - | K17: =IFERROR((E17+F17+G17+D17+H17+I17)*D17,"") -> 1073.2 | L17: - | M17: 252083.948 | N17: =IFERROR(IF($D$6>0,D17*$N$6,D17),"") -> 469.78 | P17: =IFERROR(IF($D$6>0,(F17*D17)*$N$6,(F17)),0) -> 41340.64 | Q17: =IFERROR(IF($D$6>0,(G17*D17)*$N$6,(G17*D17)),0) -> 45474.704 | R17: =IFERROR(IF($D$6>0,(H17*D17)*$N$6,(H17*D17)),0) -> 164329.044 | S17: 231883.408 | Y17: =IFERROR(F17*$N$6,0) -> 20670.32 | AJ17: =IFERROR(D17*J17*$N$6,0) -> 0
A18: A.296 | B18: roooooooooooooooooo | C18: LH | D18: 2 | F18: 88 | G18: 96.8 | H18: =IFERROR(IF(A18="","",RESSOURCES!$D$133*VLOOKUP(A18,MAT_VAL,5,0)),"-") -> 712.8 | J18: - | K18: =IFERROR((E18+F18+G18+D18+H18+I18)*D18,"") -> 1799.2 | L18: - | M18: 422614.088 | N18: 469.78 | P18: 41340.64 | Q18: =IFERROR(IF($D$6>0,(G18*D18)*$N$6,(G18*D18)),0) -> 45474.704 | R18: =IFERROR(IF($D$6>0,(H18*D18)*$N$6,(H18*D18)),0) -> 334859.184 | S18: 402413.548 | Z18: =IFERROR(F18*$N$6,0) -> 20670.32 | AJ18: =IFERROR(D18*J18*$N$6,0) -> 0
A19: A.306 | B19: roooooooooooooooooo | C19: LH | D19: 1 | F19: 88 | G19: 96.8 | H19: =IFERROR(IF(A19="","",RESSOURCES!$D$133*VLOOKUP(A19,MAT_VAL,5,0)),"-") -> 462 | J19: - | K19: 647.8 | L19: - | M19: 152161.742 | N19: 234.89 | P19: 20670.32 | Q19: 22737.352 | R19: 108519.18 | S19: 131726.312 | AA19: =IFERROR(F19*$N$6,0) -> 20670.32 | AJ19: 0
A20: A.310 | B20: roooooooooooooooooo | C20: LH | D20: 1 | F20: 88 | G20: 96.8 | H20: =IFERROR(IF(A20="","",RESSOURCES!$D$133*VLOOKUP(A20,MAT_VAL,5,0)),"-") -> 541.2 | J20: - | K20: 727 | L20: - | M20: 170765.03 | N20: 234.89 | P20: 20670.32 | Q20: 22737.352 | R20: 127122.468 | S20: 150329.6 | AB20: =IFERROR(F20*$N$6,0) -> 20670.32 | AJ20: 0
A21: A.298 | B21: roooooooooooooooooo | C21: LH | D21: 0 | F21: 88 | G21: 96.8 | H21: =IFERROR(IF(A21="","",RESSOURCES!$D$133*VLOOKUP(A21,MAT_VAL,5,0)),"-") -> 475.2 | J21: - | K21: 0 | L21: - | M21: 0 | N21: 0 | P21: 0 | Q21: 0 | R21: 0 | S21: -20670.32 | AC21: =IFERROR(F21*$N$6,0) -> 20670.32 | AJ21: 0
F22: - | G22: - | H22: =IFERROR(IF(A22="","",RESSOURCES!$D$133*VLOOKUP(A22,MAT_VAL,5,0)),"-") ->  | J22: - | L22: - | N22: 0 | P22: 0 | Q22: 0 | R22: 0 | AD22: =IFERROR(F22*$N$6,0) -> 0 | AJ22: 0
F23: - | G23: - | H23: =IFERROR(IF(A23="","",RESSOURCES!$D$133*VLOOKUP(A23,MAT_VAL,5,0)),"-") ->  | J23: - | L23: - | N23: 0 | P23: 0 | Q23: 0 | R23: 0 | AE23: =IFERROR(F23*$N$6,0) -> 0 | AJ23: 0
F24: - | G24: - | H24: =IFERROR(IF(A24="","",RESSOURCES!$D$133*VLOOKUP(A24,MAT_VAL,5,0)),"-") ->  | J24: - | L24: - | N24: 0 | P24: 0 | Q24: 0 | R24: 0 | AF24: =IFERROR(F24*$N$6,0) -> 0 | AJ24: 0
F25: - | G25: - | H25: =IFERROR(IF(A25="","",RESSOURCES!$D$133*VLOOKUP(A25,MAT_VAL,5,0)),"-") ->  | J25: - | L25: - | N25: 0 | P25: 0 | Q25: 0 | R25: 0 | AG25: =IFERROR(F25*$N$6,0) -> 0 | AJ25: 0
F26: - | G26: - | H26: =IFERROR(IF(A26="","",RESSOURCES!$D$133*VLOOKUP(A26,MAT_VAL,5,0)),"-") ->  | J26: - | L26: - | N26: 0 | P26: 0 | Q26: 0 | R26: 0 | AH26: =IFERROR(F26*$N$6,0) -> 0 | AJ26: 0
A27: Ftures & conso
A28: A.262 | B28: TTTGttttttttttttttttts | C28: M3 | D28: =+K6*E42 -> 1.008 | I28: =IFERROR(VLOOKUP(A28,RESSCH_1,4,0),"-") -> 88 | K28: =IFERROR((E28*D28+F28+G28*D28+D28*H28+D28*I28),"") -> 88.704 | L28: 0 | M28: 20835.68256 | N28: =IFERROR(IF($D$6>0,D28*$N$6,D28),"") -> 236.76912 | S28: 236.76912 | AI28: =IFERROR(D28*I28*$N$6,0) -> 20835.68256 | AJ28: 0
A29: A.226 | B29: =IFERROR(VLOOKUP(A29,RESTAF_01,2,0),"") -> aaaaaaaaaaaaaa | C29: =IFERROR(VLOOKUP(A29,RESTAF_01,3,0),"") -> T | D29: =+F42*D28 -> 0.1008 | I29: =IFERROR(VLOOKUP(A29,RESSCH_1,4,0),"-") -> 33 | K29: =IFERROR((E29*D29+F29+G29*D29+D29*H29+D29*I29),"") -> 3.3264 | L29: =IFERROR(J29*D29,"-") -> 0 | M29: =IFERROR(IF($D$6>0,K29*$N$6,K29),"") -> 781.338096 | N29: =IFERROR(IF($D$6>0,D29*$N$6,D29),"") -> 23.676912 | S29: =IFERROR(-SUM(U29:AJ29)+M29+N29,"") -> 23.676912 | AI29: =IFERROR(D29*I29*$N$6,0) -> 781.338096 | AJ29: =IFERROR(D29*J29*$N$6,0) -> 0
A30: A.153 | B30: ssssssssssss | C30: Kg | D30: =+D29*1000 -> 100.8 | I30: 111 | K30: 11188.8 | L30: 0 | M30: 2628137.232 | N30: =IFERROR(IF($D$6>0,D30*$N$6,D30),"") -> 23676.912 | S30: 23676.912 | AI30: 2628137.232 | AJ30: 0
A31: A.223 | B31: aaaaaaaaaaaaaa | C31: T | D31: 2 | I31: 33 | K31: 66 | L31: 0 | M31: 15502.74 | N31: =IFERROR(IF($D$6>0,D31*$N$6,D31),"") -> 469.78 | S31: 469.78 | AI31: 15502.74 | AJ31: 0
A32: A.231 | B32: aaaaaaaaaaaaaa | C32: M² | D32: 3 | I32: 33 | K32: 99 | L32: 0 | M32: 23254.11 | N32: 704.67 | S32: 704.67 | AI32: 23254.11 | AJ32: 0
A33: A.244 | B33: aaaaaaaaaaaaaa | C33: cfa/T | D33: =+D31 -> 2 | I33: 33 | K33: 66 | L33: 0 | M33: 15502.74 | N33: 469.78 | S33: 469.78 | AI33: 15502.74 | AJ33: 0
B34: TOTAL | K34: =SUM(K10:K33) -> 16914.0304 | L34: =SUM(L10:L33) -> 0 | U34: =+SUM(U10:U33) -> 38756.85 | V34: 38756.85 | W34: 77513.7 | X34: 0 | Y34: 20670.32 | Z34: 20670.32 | AA34: 20670.32 | AB34: 20670.32 | AC34: 20670.32 | AD34: 0 | AE34: 0 | AF34: 0 | AG34: 0 | AH34: =+SUM(AH10:AH33) -> 0 | AI34: 2704013.843 | AJ34: 0
K36: =IFERROR((K34+L34)/$K$6,"") -> 16914.0304 | L36: CFA
G38: TOTAL DEBOURSE SEC HT ARRONDI A : | K38: =IFERROR(ROUNDUP(K36,-1),"") -> 16920 | L38: CFA
G39: TOTAL VENTE HT ARRONDI A : | K39: =IFERROR(K38*K40,"") -> 0 | L39: CFA
I40: Coef. de vente
E41: VOLUME DALOT | F41: ACIER KG/M3
D42: 100 | E42: =4*1.2*0.2*1.05 -> 1.008 | F42: 0.1 | K42: =IFERROR(K36*$D$6,0) -> 3972936.601
K100: =K42 -> 3972936.601

Sheet 404B
F1: SOUS DETAIL DE PRIX BUDGET
C3: 400 | D3: ASSAINISSEMENT ET DRAINAGE
C4: 404B | P4: =SUM(N17:N26) -> 513 | Q4: =IFERROR(SUM(Q17:Q26)/VLOOKUP(A17,MAT_VAL,6,0),"") -> 513 | R4: =SUM(R17:R26)/RESSOURCES!$D$133 -> 6422.76
B5: DESIGNATION DU PRIX : | C5: DALOT 150X150 | E5: Unités : | L5: Unités : | P5: =SUM(P17:P26) -> 45144 | Q5: =SUM(Q17:Q26) -> 49658.4 | R5: =SUM(R17:R26) -> 211951.08
B6: QUANTITES PREVUES : | D6: =+'OPTION 2 (fosse terre)'!E65 -> 51.3 | H6: Quantités de rendement : | K6: 1 | M6: K | N6: =IFERROR(D6/K6,"") -> 51.3 | O6: Mo | P6: Mat_BSI | Q6: Entretien | R6: Carb
E7: Travaux Propres | J7: ST | M7: Coût
A8: Code | B8: Désignation | C8: Unité | D8: Qté ou durée d'utilisation | E8: Main d'œuvre | F8: Amortissement | G8: Entretien | H8: Carb-Energie | I8: Fournitures | J8: Sous-traitant | K8: TOTAL Travaux propres | L8: TOTAL Travaux ST | U8: =B10 -> prprtttttttttttttttttttttttkuù | V8: =B11 -> prprtttttttttttttttttttttttkuù | W8: =B12 -> prprtttttttttttttttttttttttkuù | X8: =B13 -> prprtttttttttttttttttttttttkuù | Y8: =B14 ->  | Z8: =B15 ->  | AA8: =B17 -> roooooooooooooooooo | AB8: =B18 -> roooooooooooooooooo | AC8: =B19 -> roooooooooooooooooo | AD8: =B20 -> roooooooooooooooooo | AE8: =B21 -> roooooooooooooooooo | AF8: =B22 ->  | AG8: =B23 ->  | AH8: =B24 ->  | AI8: =B25 ->  | AJ8: =B26 ->  | AK8: =A27 -> Ftures & conso | AL8: =+J8 -> Sous-traitant
A9: Personnel
A10: A.114 | B10: =IFERROR(VLOOKUP(A10,RESTAF_01,2,0),"") -> prprtttttttttttttttttttttttkuù | C10: =IFERROR(VLOOKUP(A10,RESTAF_01,3,0),"") -> H | D10: 3 | E10: =IFERROR(VLOOKUP(A10,PERS_VAL,4,0),"-") -> 33 | K10: =IFERROR((E10*D10),"") -> 99 | L10: =IFERROR(J10*D10,"-") -> 0 | M10: =IFERROR(IF($D$6>0,K10*$N$6,K10),"") -> 5078.7 | N10: =IFERROR(IF($D$6>0,D10*$N$6,D10),"") -> 153.9 | O10: =IFERROR(IF($D$6>0,(E10*D10)*$N$6,(E10*D10)),0) -> 5078.7 | S10: =IFERROR(-SUM(U10:AL10)+M10+N10,"") -> 153.9 | U10: =IFERROR(+K10*$N$6,0) -> 5078.7
A11: A.117 | B11: =IFERROR(VLOOKUP(A11,RESTAF_01,2,0),"") -> prprtttttttttttttttttttttttkuù | C11: =IFERROR(VLOOKUP(A11,RESTAF_01,3,0),"") -> H | D11: 4 | E11: 33 | K11: =IFERROR((E11*D11),"") -> 132 | L11: =IFERROR(J11*D11,"-") -> 0 | M11: =IFERROR(IF($D$6>0,K11*$N$6,K11),"") -> 6771.6 | N11: 205.2 | O11: =IFERROR(IF($D$6>0,(E11*D11)*$N$6,(E11*D11)),0) -> 6771.6 | S11: =IFERROR(-SUM(U11:AL11)+M11+N11,"") -> 205.2 | V11: =IFERROR(+K11*$N$6,0) -> 6771.6
A12: A.118 | B12: prprtttttttttttttttttttttttkuù | C12: H | D12: 12 | E12: 33 | K12: 396 | L12: 0 | M12: 20314.8 | N12: 615.6 | O12: 20314.8 | S12: 615.6 | W12: =IFERROR(+K12*$N$6,0) -> 20314.8
A13: A.119 | B13: prprtttttttttttttttttttttttkuù | C13: H | D13: 30 | E13: 33 | K13: 990 | L13: 0 | M13: 50787 | N13: 1539 | O13: 50787 | S13: 1539 | X13: =IFERROR(+K13*$N$6,0) -> 50787
E14: - | L14: 0 | N14: 0 | O14: 0 | Y14: =IFERROR(+K14*$N$6,0) -> 0
E15: - | L15: 0 | N15: 0 | O15: 0 | Z15: =IFERROR(+K15*$N$6,0) -> 0
A16: Matériel
A17: A.320 | B17: roooooooooooooooooo | C17: LH | D17: 2 | F17: =IFERROR(VLOOKUP(A17,MAT_VAL,4,0),"-") -> 88 | G17: =IFERROR(VLOOKUP(A17,MAT_VAL,6,0),"-") -> 96.8 | H17: =IFERROR(IF(A17="","",RESSOURCES!$D$133*VLOOKUP(A17,MAT_VAL,5,0)),"-") -> 349.8 | J17: =IFERROR(VLOOKUP(A17,ST_VAL,4,0),"-") -> - | K17: =IFERROR((E17+F17+G17+D17+H17+I17)*D17,"") -> 1073.2 | L17: - | M17: 55055.16 | N17: =IFERROR(IF($D$6>0,D17*$N$6,D17),"") -> 102.6 | P17: =IFERROR(IF($D$6>0,(F17*D17)*$N$6,(F17)),0) -> 9028.8 | Q17: =IFERROR(IF($D$6>0,(G17*D17)*$N$6,(G17*D17)),0) -> 9931.68 | R17: =IFERROR(IF($D$6>0,(H17*D17)*$N$6,(H17*D17)),0) -> 35889.48 | S17: 50643.36 | AA17: =IFERROR(F17*$N$6,0) -> 4514.4 | AL17: =IFERROR(D17*J17*$N$6,0) -> 0
A18: A.296 | B18: roooooooooooooooooo | C18: LH | D18: 2 | F18: 88 | G18: 96.8 | H18: =IFERROR(IF(A18="","",RESSOURCES!$D$133*VLOOKUP(A18,MAT_VAL,5,0)),"-") -> 712.8 | J18: - | K18: =IFERROR((E18+F18+G18+D18+H18+I18)*D18,"") -> 1799.2 | L18: - | M18: 92298.96 | N18: 102.6 | P18: 9028.8 | Q18: =IFERROR(IF($D$6>0,(G18*D18)*$N$6,(G18*D18)),0) -> 9931.68 | R18: =IFERROR(IF($D$6>0,(H18*D18)*$N$6,(H18*D18)),0) -> 73133.28 | S18: 87887.16 | AB18: =IFERROR(F18*$N$6,0) -> 4514.4 | AL18: =IFERROR(D18*J18*$N$6,0) -> 0
A19: A.306 | B19: roooooooooooooooooo | C19: LH | D19: 2 | F19: 88 | G19: 96.8 | H19: =IFERROR(IF(A19="","",RESSOURCES!$D$133*VLOOKUP(A19,MAT_VAL,5,0)),"-") -> 462 | J19: - | K19: 1297.6 | L19: - | M19: 66566.88 | N19: 102.6 | P19: 9028.8 | Q19: 9931.68 | R19: 47401.2 | S19: 62155.08 | AC19: =IFERROR(F19*$N$6,0) -> 4514.4 | AL19: 0
A20: A.310 | B20: roooooooooooooooooo | C20: LH | D20: 2 | F20: 88 | G20: 96.8 | H20: =IFERROR(IF(A20="","",RESSOURCES!$D$133*VLOOKUP(A20,MAT_VAL,5,0)),"-") -> 541.2 | J20: - | K20: 1456 | L20: - | M20: 74692.8 | N20: 102.6 | P20: 9028.8 | Q20: 9931.68 | R20: 55527.12 | S20: 70281 | AD20: =IFERROR(F20*$N$6,0) -> 4514.4 | AL20: 0
A21: A.312 | B21: roooooooooooooooooo | C21: LH | D21: 2 | F21: 88 | G21: 96.8 | H21: =IFERROR(IF(A21="","",RESSOURCES!$D$133*VLOOKUP(A21,MAT_VAL,5,0)),"-") -> 0 | J21: - | K21: 373.6 | L21: - | M21: 19165.68 | N21: 102.6 | P21: 9028.8 | Q21: 9931.68 | R21: 0 | S21: 14753.88 | AE21: =IFERROR(F21*$N$6,0) -> 4514.4 | AL21: 0
F22: - | G22: - | H22: =IFERROR(IF(A22="","",RESSOURCES!$D$133*VLOOKUP(A22,MAT_VAL,5,0)),"-") ->  | J22: - | L22: - | N22: 0 | P22: 0 | Q22: 0 | R22: 0 | AF22: =IFERROR(F22*$N$6,0) -> 0 | AL22: 0
F23: - | G23: - | H23: =IFERROR(IF(A23="","",RESSOURCES!$D$133*VLOOKUP(A23,MAT_VAL,5,0)),"-") ->  | J23: - | L23: - | N23: 0 | P23: 0 | Q23: 0 | R23: 0 | AG23: =IFERROR(F23*$N$6,0) -> 0 | AL23: 0
F24: - | G24: - | H24: =IFERROR(IF(A24="","",RESSOURCES!$D$133*VLOOKUP(A24,MAT_VAL,5,0)),"-") ->  | J24: - | L24: - | N24: 0 | P24: 0 | Q24: 0 | R24: 0 | AH24: =IFERROR(F24*$N$6,0) -> 0 | AL24: 0
F25: - | G25: - | H25: =IFERROR(IF(A25="","",RESSOURCES!$D$133*VLOOKUP(A25,MAT_VAL,5,0)),"-") ->  | J25: - | L25: - | N25: 0 | P25: 0 | Q25: 0 | R25: 0 | AI25: =IFERROR(F25*$N$6,0) -> 0 | AL25: 0
F26: - | G26: - | H26: =IFERROR(IF(A26="","",RESSOURCES!$D$133*VLOOKUP(A26,MAT_VAL,5,0)),"-") ->  | J26: - | L26: - | N26: 0 | P26: 0 | Q26: 0 | R26: 0 | AJ26: =IFERROR(F26*$N$6,0) -> 0 | AL26: 0
A27: Ftures & conso
A28: A.262 | B28: =IFERROR(VLOOKUP(A28,RESTAF_01,2,0),"") -> TTTGttttttttttttttttts | C28: =IFERROR(VLOOKUP(A28,RESTAF_01,3,0),"") -> M3 | D28: =+K6*E42 -> 1.428 | I28: =IFERROR(VLOOKUP(A28,RESSCH_1,4,0),"-") -> 88 | K28: =IFERROR((E28*D28+F28+G28*D28+D28*H28+D28*I28),"") -> 125.664 | L28: 0 | M28: 6446.5632 | N28: =IFERROR(IF($D$6>0,D28*$N$6,D28),"") -> 73.2564 | S28: 73.2564 | AK28: =IFERROR(D28*I28*$N$6,0) -> 6446.5632 | AL28: 0
A29: A.226 | B29: aaaaaaaaaaaaaa | C29: T | D29: =+F42*D28 -> 0.15708 | I29: 33 | K29: 5.18364 | L29: 0 | M29: 265.920732 | N29: =IFERROR(IF($D$6>0,D29*$N$6,D29),"") -> 8.058204 | S29: 8.058204 | AK29: 265.920732 | AL29: 0
A30: A.153 | B30: ssssssssssss | C30: Kg | D30: =D29*1000 -> 157.08 | I30: 111 | K30: 17435.88 | L30: 0 | M30: 894460.644 | N30: =IFERROR(IF($D$6>0,D30*$N$6,D30),"") -> 8058.204 | S30: 8058.204 | AK30: 894460.644 | AL30: 0
A31: A.223 | B31: aaaaaaaaaaaaaa | C31: T | D31: 4 | I31: 33 | K31: 132 | L31: 0 | M31: 6771.6 | N31: =IFERROR(IF($D$6>0,D31*$N$6,D31),"") -> 205.2 | S31: 205.2 | AK31: 6771.6 | AL31: 0
A32: A.231 | B32: aaaaaaaaaaaaaa | C32: M² | D32: 3 | I32: 33 | K32: 99 | L32: 0 | M32: 5078.7 | N32: 153.9 | S32: 153.9 | AK32: 5078.7 | AL32: 0
A33: A.244 | B33: aaaaaaaaaaaaaa | C33: cfa/T | D33: =+D31 -> 4 | I33: 33 | K33: 132 | M33: 6771.6 | N33: 205.2 | S33: 205.2 | AK33: 6771.6 | AL33: 0
B34: TOTAL | K34: =SUM(K10:K33) -> 25546.32764 | L34: =SUM(L10:L33) -> 0 | U34: =+SUM(U10:U33) -> 5078.7 | V34: 6771.6 | W34: 20314.8 | X34: 50787 | Y34: =+SUM(Y10:Y33) -> 0 | Z34: 0 | AA34: 4514.4 | AB34: 4514.4 | AC34: 4514.4 | AD34: 4514.4 | AE34: 4514.4 | AF34: 0 | AG34: 0 | AH34: 0 | AI34: 0 | AJ34: =+SUM(AJ10:AJ33) -> 0 | AK34: 919795.0279 | AL34: 0
K36: =IFERROR((K34+L34)/$K$6,"") -> 25546.32764 | L36: CFA
G38: TOTAL DEBOURSE SEC HT ARRONDI A : | K38: =IFERROR(ROUNDUP(K36,-1),"") -> 25550 | L38: CFA
G39: TOTAL VENTE HT ARRONDI A : | K39: =IFERROR(K38*K40,"") -> 0 | L39: CFA
I40: Coef. de vente
E41: VOLUME DALOT | F41: ACIER KG/M3
D42: 150 | E42: =4*1.7*0.2*1.05 -> 1.428 | F42: 0.11 | K42: =IFERROR(K36*$D$6,0) -> 1310526.608
K100: =K42 -> 1310526.608

Sheet 404C
F1: SOUS DETAIL DE PRIX BUDGET
C3: 400 | D3: ASSAINISSEMENT ET DRAINAGE
C4: 404C | P4: =SUM(N17:N26) -> 336 | Q4: =IFERROR(SUM(Q17:Q26)/VLOOKUP(A17,MAT_VAL,6,0),"") -> 336 | R4: =SUM(R17:R26)/RESSOURCES!$D$133 -> 4659.2
B5: DESIGNATION DU PRIX : | C5: DALOT 2X250X250 | E5: Unités : | L5: Unités : | P5: =SUM(P17:P26) -> 29568 | Q5: =SUM(Q17:Q26) -> 32524.8 | R5: =SUM(R17:R26) -> 153753.6
B6: QUANTITES PREVUES : | D6: =+'OPTION 2 (fosse terre)'!E68 -> 16 | H6: Quantités de rendement : | K6: 1 | M6: K | N6: =IFERROR(D6/K6,"") -> 16 | O6: Mo | P6: Mat_BSI | Q6: Entretien | R6: Carb
E7: Travaux Propres | J7: ST | M7: Coût
A8: Code | B8: Désignation | C8: Unité | D8: Qté ou durée d'utilisation | E8: Main d'œuvre | F8: Amortissement | G8: Entretien | H8: Carb-Energie | I8: Fournitures | J8: Sous-traitant | K8: TOTAL Travaux propres | L8: TOTAL Travaux ST | U8: =B10 -> prprtttttttttttttttttttttttkuù | V8: =B11 -> prprtttttttttttttttttttttttkuù | W8: =B12 -> prprtttttttttttttttttttttttkuù | X8: =B13 -> Ouvrier spécialisé | Y8: =B14 ->  | Z8: =B17 -> roooooooooooooooooo | AA8: =B18 -> roooooooooooooooooo | AB8: =B19 -> roooooooooooooooooo | AC8: =B20 -> roooooooooooooooooo | AD8: =B21 -> roooooooooooooooooo | AE8: =B22 ->  | AF8: =B23 ->  | AG8: =B24 ->  | AH8: =B25 ->  | AI8: =B26 ->  | AJ8: =A27 -> Ftures & conso | AK8: =+J8 -> Sous-traitant
A9: Personnel
A10: A.114 | B10: =IFERROR(VLOOKUP(A10,RESTAF_01,2,0),"") -> prprtttttttttttttttttttttttkuù | C10: =IFERROR(VLOOKUP(A10,RESTAF_01,3,0),"") -> H | D10: 10 | E10: =IFERROR(VLOOKUP(A10,PERS_VAL,4,0),"-") -> 33 | K10: =IFERROR((E10*D10),"") -> 330 | L10: =IFERROR(J10*D10,"-") -> 0 | M10: =IFERROR(IF($D$6>0,K10*$N$6,K10),"") -> 5280 | N10: =IFERROR(IF($D$6>0,D10*$N$6,D10),"") -> 160 | O10: =IFERROR(IF($D$6>0,(E10*D10)*$N$6,(E10*D10)),0) -> 5280 | S10: =IFERROR(-SUM(U10:AK10)+M10+N10,"") -> 160 | U10: =IFERROR(+K10*$N$6,0) -> 5280
A11: A.117 | B11: prprtttttttttttttttttttttttkuù | C11: H | D11: 10 | E11: =IFERROR(VLOOKUP(A11,PERS_VAL,4,0),"-") -> 33 | K11: =IFERROR((E11*D11),"") -> 330 | L11: 0 | M11: 5280 | N11: 160 | O11: =IFERROR(IF($D$6>0,(E11*D11)*$N$6,(E11*D11)),0) -> 5280 | S11: 160 | V11: =IFERROR(+K11*N6,0) -> 5280
A12: A.118 | B12: prprtttttttttttttttttttttttkuù | C12: H | D12: 40 | E12: =IFERROR(VLOOKUP(A12,PERS_VAL,4,0),"-") -> 33 | K12: 1320 | L12: 0 | M12: 21120 | N12: 640 | O12: 21120 | S12: 640 | W12: =IFERROR(+K12*N6,0) -> 21120
A13: A.119 | B13: Ouvrier spécialisé | C13: H | D13: 50 | E13: 3788 | K13: 0 | L13: 0 | M13: 0 | N13: 800 | O13: =IFERROR(IF($D$6>0,(E13*D13)*$N$6,(E13*D13)),0) -> 3030400 | S13: =IFERROR(-SUM(U13:AK13)+M13+N13,"") -> 800 | X13: =IFERROR(+K13*N6,0) -> 0
E14: - | L14: 0 | N14: 0 | O14: 0 | Y14: =IFERROR(+K14*O5,) -> 0
E15: =IFERROR(VLOOKUP(A15,PERS_VAL,4,0),"-") -> - | L15: 0 | N15: 0 | O15: 0
A16: Matériel
A17: A.320 | B17: roooooooooooooooooo | C17: LH | D17: 2 | F17: =IFERROR(VLOOKUP(A17,MAT_VAL,4,0),"-") -> 88 | G17: =IFERROR(VLOOKUP(A17,MAT_VAL,6,0),"-") -> 96.8 | H17: =IFERROR(IF(A17="","",RESSOURCES!$D$133*VLOOKUP(A17,MAT_VAL,5,0)),"-") -> 349.8 | J17: =IFERROR(VLOOKUP(A17,ST_VAL,4,0),"-") -> - | K17: =IFERROR((E17+F17+G17+D17+H17+I17)*D17,"") -> 1073.2 | L17: - | M17: 17171.2 | N17: =IFERROR(IF($D$6>0,D17*$N$6,D17),"") -> 32 | P17: =IFERROR(IF($D$6>0,(F17*D17)*$N$6,(F17)),0) -> 2816 | Q17: =IFERROR(IF($D$6>0,(G17*D17)*$N$6,(G17*D17)),0) -> 3097.6 | R17: =IFERROR(IF($D$6>0,(H17*D17)*$N$6,(H17*D17)),0) -> 11193.6 | S17: 15795.2 | Z17: =IFERROR(F17*$N$6,0) -> 1408 | AK17: =IFERROR(D17*J17*$N$6,0) -> 0
A18: A.296 | B18: roooooooooooooooooo | C18: LH | D18: 6 | F18: 88 | G18: 96.8 | H18: =IFERROR(IF(A18="","",RESSOURCES!$D$133*VLOOKUP(A18,MAT_VAL,5,0)),"-") -> 712.8 | J18: - | K18: =IFERROR((E18+F18+G18+D18+H18+I18)*D18,"") -> 5421.6 | L18: - | M18: 86745.6 | N18: 96 | P18: 8448 | Q18: =IFERROR(IF($D$6>0,(G18*D18)*$N$6,(G18*D18)),0) -> 9292.8 | R18: =IFERROR(IF($D$6>0,(H18*D18)*$N$6,(H18*D18)),0) -> 68428.8 | S18: 85433.6 | AA18: =IFERROR(F18*$N$6,0) -> 1408 | AK18: =IFERROR(D18*J18*$N$6,0) -> 0
A19: A.306 | B19: roooooooooooooooooo | C19: LH | D19: 3 | F19: 88 | G19: 96.8 | H19: =IFERROR(IF(A19="","",RESSOURCES!$D$133*VLOOKUP(A19,MAT_VAL,5,0)),"-") -> 462 | J19: - | K19: 1949.4 | L19: - | M19: 31190.4 | N19: 48 | P19: 4224 | Q19: 4646.4 | R19: 22176 | S19: 29830.4 | AB19: =IFERROR(F19*$N$6,0) -> 1408 | AK19: 0
A20: A.310 | B20: roooooooooooooooooo | C20: LH | D20: 6 | F20: 88 | G20: 96.8 | H20: =IFERROR(IF(A20="","",RESSOURCES!$D$133*VLOOKUP(A20,MAT_VAL,5,0)),"-") -> 541.2 | J20: - | K20: 4392 | L20: - | M20: 70272 | N20: 96 | P20: 8448 | Q20: 9292.8 | R20: 51955.2 | S20: 68960 | AC20: =IFERROR(F20*$N$6,0) -> 1408 | AK20: 0
A21: A.312 | B21: roooooooooooooooooo | C21: LH | D21: 4 | F21: 88 | G21: 96.8 | H21: =IFERROR(IF(A21="","",RESSOURCES!$D$133*VLOOKUP(A21,MAT_VAL,5,0)),"-") -> 0 | J21: - | K21: 755.2 | L21: - | M21: 12083.2 | N21: 64 | P21: 5632 | Q21: 6195.2 | R21: 0 | S21: 10739.2 | AD21: =IFERROR(F21*$N$6,0) -> 1408 | AK21: 0
F22: - | G22: - | H22: =IFERROR(IF(A22="","",RESSOURCES!$D$133*VLOOKUP(A22,MAT_VAL,5,0)),"-") ->  | J22: - | L22: - | N22: 0 | P22: 0 | Q22: 0 | R22: 0 | AE22: =IFERROR(F22*$N$6,0) -> 0 | AK22: 0
F23: - | G23: - | H23: =IFERROR(IF(A23="","",RESSOURCES!$D$133*VLOOKUP(A23,MAT_VAL,5,0)),"-") ->  | J23: - | L23: - | N23: 0 | P23: 0 | Q23: 0 | R23: 0 | AF23: =IFERROR(F23*$N$6,0) -> 0 | AK23: 0
F24: - | G24: - | H24: =IFERROR(IF(A24="","",RESSOURCES!$D$133*VLOOKUP(A24,MAT_VAL,5,0)),"-") ->  | J24: - | L24: - | N24: 0 | P24: 0 | Q24: 0 | R24: 0 | AG24: =IFERROR(F24*$N$6,0) -> 0 | AK24: 0
F25: - | G25: - | H25: =IFERROR(IF(A25="","",RESSOURCES!$D$133*VLOOKUP(A25,MAT_VAL,5,0)),"-") ->  | J25: - | L25: - | N25: 0 | P25: 0 | Q25: 0 | R25: 0 | AH25: =IFERROR(F25*$N$6,0) -> 0 | AK25: 0
F26: - | G26: - | H26: =IFERROR(IF(A26="","",RESSOURCES!$D$133*VLOOKUP(A26,MAT_VAL,5,0)),"-") ->  | J26: - | L26: - | N26: 0 | P26: 0 | Q26: 0 | R26: 0 | AI26: =IFERROR(F26*$N$6,0) -> 0 | AK26: 0
A27: Ftures & conso
A28: A.262 | B28: TTTGttttttttttttttttts | C28: M3 | D28: =+K6*E42 -> 4.3659 | I28: =IFERROR(VLOOKUP(A28,RESSCH_1,4,0),"-") -> 88 | K28: =IFERROR((E28*D28+F28+G28*D28+D28*H28+D28*I28),"") -> 384.1992 | L28: 0 | M28: 6147.1872 | N28: =IFERROR(IF($D$6>0,D28*$N$6,D28),"") -> 69.8544 | S28: 69.8544 | AJ28: =IFERROR(D28*I28*$N$6,0) -> 6147.1872 | AK28: 0
A29: A.226 | B29: aaaaaaaaaaaaaa | C29: T | D29: =+F42*D28 -> 0.523908 | I29: 33 | K29: 17.288964 | L29: 0 | M29: 276.623424 | N29: =IFERROR(IF($D$6>0,D29*$N$6,D29),"") -> 8.382528 | S29: 8.382528 | AJ29: 276.623424 | AK29: 0
A30: A.153 | B30: ssssssssssss | C30: Kg | D30: =D29*1000 -> 523.908 | I30: 111 | K30: 58153.788 | L30: 0 | M30: 930460.608 | N30: =IFERROR(IF($D$6>0,D30*$N$6,D30),"") -> 8382.528 | S30: 8382.528 | AJ30: 930460.608 | AK30: 0
A31: A.223 | B31: aaaaaaaaaaaaaa | C31: T | D31: =+E44 -> 20 | I31: 33 | K31: 660 | L31: 0 | M31: 10560 | N31: =IFERROR(IF($D$6>0,D31*$N$6,D31),"") -> 320 | S31: 320 | AJ31: 10560 | AK31: 0
A32: A.231 | B32: aaaaaaaaaaaaaa | C32: M² | D32: 30 | I32: 33 | K32: 990 | L32: 0 | M32: 15840 | N32: 480 | S32: 480 | AJ32: 15840 | AK32: 0
A33: A.244 | B33: aaaaaaaaaaaaaa | C33: cfa/T | D33: =+D31 -> 20 | I33: 33 | K33: 660 | M33: 10560 | N33: 320 | S33: 320 | AJ33: 10560 | AK33: 0
B34: TOTAL | K34: =SUM(K10:K33) -> 76436.67616 | L34: =SUM(L10:L33) -> 0 | U34: =+SUM(U10:U33) -> 5280 | V34: 5280 | W34: 21120 | X34: 0 | Y34: =+SUM(Y10:Y33) -> 0 | Z34: 1408 | AA34: 1408 | AB34: 1408 | AC34: 1408 | AD34: 1408 | AE34: 0 | AF34: 0 | AG34: 0 | AH34: 0 | AI34: =+SUM(AI10:AI33) -> 0 | AJ34: 973844.4186 | AK34: 0
K36: =IFERROR((K34+L34)/$K$6,"") -> 76436.67616 | L36: CFA
G38: TOTAL DEBOURSE SEC HT ARRONDI A : | K38: =IFERROR(ROUNDUP(K36,-1),"") -> 76440 | L38: CFA
G39: TOTAL VENTE HT ARRONDI A : | K39: =IFERROR(K38*K40,"") -> 0 | L39: CFA
I40: Coef. de vente
E41: VOLUME DALOT | F41: ACIER KG/M3
D42: 2X250X250 | E42: =2.7*7*1.05*0.22 -> 4.3659 | F42: 0.12 | K42: =IFERROR(K36*$D$6,0) -> 1222986.819
E44: =5*2*2 -> 20
K100: =K42 -> 1222986.819

Sheet 404D
F1: SOUS DETAIL DE PRIX BUDGET
C3: 400 | D3: ASSAINISSEMENT ET DRAINAGE
C4: 404D | P4: =SUM(N17:N26) -> 974.4 | Q4: =IFERROR(SUM(Q17:Q26)/VLOOKUP(A17,MAT_VAL,6,0),"") -> 974.4 | R4: =SUM(R17:R26)/RESSOURCES!$D$133 -> 13728.96
B5: DESIGNATION DU PRIX : | C5: DALOT 4X4X250 | E5: Unités : | L5: Unités : | P5: =SUM(P17:P26) -> 85747.2 | Q5: =SUM(Q17:Q26) -> 94321.92 | R5: =SUM(R17:R26) -> 453055.68
B6: QUANTITES PREVUES : | D6: =+'OPTION 2 (fosse terre)'!E69 -> 16.8 | H6: Quantités de rendement : | K6: 1 | M6: K | N6: =IFERROR(D6/K6,"") -> 16.8 | O6: Mo | P6: Mat_BSI | Q6: Entretien | R6: Carb
E7: Travaux Propres | J7: ST | M7: Coût
A8: Code | B8: Désignation | C8: Unité | D8: Qté ou durée d'utilisation | E8: Main d'œuvre | F8: Amortissement | G8: Entretien | H8: Carb-Energie | I8: Fournitures | J8: Sous-traitant | K8: TOTAL Travaux propres | L8: TOTAL Travaux ST | U8: =B10 -> prprtttttttttttttttttttttttkuù | V8: =B11 -> prprtttttttttttttttttttttttkuù | W8: =B12 -> prprtttttttttttttttttttttttkuù | X8: =B13 -> prprtttttttttttttttttttttttkuù | Y8: =B14 ->  | Z8: =B15 ->  | AA8: =B17 -> roooooooooooooooooo | AB8: =B18 -> roooooooooooooooooo | AC8: =B19 -> roooooooooooooooooo | AD8: =B20 -> roooooooooooooooooo | AE8: =B21 -> roooooooooooooooooo | AF8: =B22 ->  | AG8: =B23 ->  | AH8: =B24 ->  | AI8: =B25 ->  | AJ8: =B26 ->  | AK8: =A27 -> Ftures & conso | AL8: =+J8 -> Sous-traitant
A9: Personnel
A10: A.114 | B10: =IFERROR(VLOOKUP(A10,RESTAF_01,2,0),"") -> prprtttttttttttttttttttttttkuù | C10: =IFERROR(VLOOKUP(A10,RESTAF_01,3,0),"") -> H | D10: 10 | E10: =IFERROR(VLOOKUP(A10,PERS_VAL,4,0),"-") -> 33 | K10: =IFERROR((E10*D10),"") -> 330 | L10: =IFERROR(J10*D10,"-") -> 0 | M10: =IFERROR(IF($D$6>0,K10*$N$6,K10),"") -> 5544 | N10: =IFERROR(IF($D$6>0,D10*$N$6,D10),"") -> 168 | O10: =IFERROR(IF($D$6>0,(E10*D10)*$N$6,(E10*D10)),0) -> 5544 | S10: =IFERROR(-SUM(U10:AL10)+M10+N10,"") -> 168 | U10: =IFERROR(+K10*$N$6,0) -> 5544
A11: A.117 | B11: prprtttttttttttttttttttttttkuù | C11: H | D11: 10 | E11: =IFERROR(VLOOKUP(A11,PERS_VAL,4,0),"-") -> 33 | K11: =IFERROR((E11*D11),"") -> 330 | L11: 0 | M11: 5544 | N11: 168 | O11: =IFERROR(IF($D$6>0,(E11*D11)*$N$6,(E11*D11)),0) -> 5544 | S11: 168 | V11: =IFERROR(+K11*$N$6,0) -> 5544
A12: A.118 | B12: =IFERROR(VLOOKUP(A12,RESTAF_01,2,0),"") -> prprtttttttttttttttttttttttkuù | C12: =IFERROR(VLOOKUP(A12,RESTAF_01,3,0),"") -> H | D12: 50 | E12: =IFERROR(VLOOKUP(A12,PERS_VAL,4,0),"-") -> 33 | K12: =IFERROR((E12*D12),"") -> 1650 | L12: =IFERROR(J12*D12,"-") -> 0 | M12: =IFERROR(IF($D$6>0,K12*$N$6,K12),"") -> 27720 | N12: 840 | O12: =IFERROR(IF($D$6>0,(E12*D12)*$N$6,(E12*D12)),0) -> 27720 | S12: =IFERROR(-SUM(U12:AL12)+M12+N12,"") -> 840 | W12: =IFERROR(+K12*$N$6,0) -> 27720
A13: A.119 | B13: prprtttttttttttttttttttttttkuù | C13: H | D13: 80 | E13: =IFERROR(VLOOKUP(A13,PERS_VAL,4,0),"-") -> 33 | K13: 2640 | L13: 0 | M13: 44352 | N13: 1344 | O13: 44352 | S13: 1344 | X13: =IFERROR(+K13*$N$6,0) -> 44352
E14: - | L14: 0 | N14: 0 | O14: =IFERROR(IF($D$6>0,(E14*D14)*$N$6,(E14*D14)),0) -> 0 | S14: =IFERROR(-SUM(U14:AL14)+M14+N14,"") ->  | Y14: =IFERROR(+K14*$N$6,0) -> 0
E15: - | L15: 0 | N15: 0 | O15: 0 | Z15: =IFERROR(+K15*$N$6,0) -> 0
A16: Matériel
A17: A.320 | B17: roooooooooooooooooo | C17: LH | D17: 2 | F17: =IFERROR(VLOOKUP(A17,MAT_VAL,4,0),"-") -> 88 | G17: =IFERROR(VLOOKUP(A17,MAT_VAL,6,0),"-") -> 96.8 | H17: =IFERROR(IF(A17="","",RESSOURCES!$D$133*VLOOKUP(A17,MAT_VAL,5,0)),"-") -> 349.8 | J17: =IFERROR(VLOOKUP(A17,ST_VAL,4,0),"-") -> - | K17: =IFERROR((E17+F17+G17+D17+H17+I17)*D17,"") -> 1073.2 | L17: - | M17: 18029.76 | N17: =IFERROR(IF($D$6>0,D17*$N$6,D17),"") -> 33.6 | P17: =IFERROR(IF($D$6>0,(F17*D17)*$N$6,(F17)),0) -> 2956.8 | Q17: =IFERROR(IF($D$6>0,(G17*D17)*$N$6,(G17*D17)),0) -> 3252.48 | R17: =IFERROR(IF($D$6>0,(H17*D17)*$N$6,(H17*D17)),0) -> 11753.28 | S17: 16584.96 | AA17: =IFERROR(F17*$N$6,0) -> 1478.4 | AL17: =IFERROR(D17*J17*$N$6,0) -> 0
A18: A.296 | B18: roooooooooooooooooo | C18: LH | D18: 18 | F18: 88 | G18: 96.8 | H18: =IFERROR(IF(A18="","",RESSOURCES!$D$133*VLOOKUP(A18,MAT_VAL,5,0)),"-") -> 712.8 | J18: - | K18: =IFERROR((E18+F18+G18+D18+H18+I18)*D18,"") -> 16480.8 | L18: - | M18: 276877.44 | N18: 302.4 | P18: 26611.2 | Q18: =IFERROR(IF($D$6>0,(G18*D18)*$N$6,(G18*D18)),0) -> 29272.32 | R18: =IFERROR(IF($D$6>0,(H18*D18)*$N$6,(H18*D18)),0) -> 215550.72 | S18: 275701.44 | AB18: =IFERROR(F18*$N$6,0) -> 1478.4 | AL18: =IFERROR(D18*J18*$N$6,0) -> 0
A19: A.306 | B19: roooooooooooooooooo | C19: LH | D19: 8 | F19: 88 | G19: 96.8 | H19: =IFERROR(IF(A19="","",RESSOURCES!$D$133*VLOOKUP(A19,MAT_VAL,5,0)),"-") -> 462 | J19: - | K19: 5238.4 | L19: - | M19: 88005.12 | N19: 134.4 | P19: 11827.2 | Q19: 13009.92 | R19: 62092.8 | S19: 86661.12 | AC19: =IFERROR(F19*$N$6,0) -> 1478.4 | AL19: 0
A20: A.310 | B20: roooooooooooooooooo | C20: LH | D20: 18 | F20: 88 | G20: 96.8 | H20: =IFERROR(IF(A20="","",RESSOURCES!$D$133*VLOOKUP(A20,MAT_VAL,5,0)),"-") -> 541.2 | J20: - | K20: 13392 | L20: - | M20: 224985.6 | N20: 302.4 | P20: 26611.2 | Q20: 29272.32 | R20: 163658.88 | S20: 223809.6 | AD20: =IFERROR(F20*$N$6,0) -> 1478.4 | AL20: 0
A21: A.312 | B21: roooooooooooooooooo | C21: LH | D21: 12 | F21: 88 | G21: 96.8 | H21: =IFERROR(IF(A21="","",RESSOURCES!$D$133*VLOOKUP(A21,MAT_VAL,5,0)),"-") -> 0 | J21: - | K21: 2361.6 | L21: - | M21: 39674.88 | N21: 201.6 | P21: 17740.8 | Q21: 19514.88 | R21: 0 | S21: 38398.08 | AE21: =IFERROR(F21*$N$6,0) -> 1478.4 | AL21: 0
F22: - | G22: - | H22: =IFERROR(IF(A22="","",RESSOURCES!$D$133*VLOOKUP(A22,MAT_VAL,5,0)),"-") ->  | J22: - | L22: - | N22: 0 | P22: 0 | Q22: 0 | R22: 0 | AF22: =IFERROR(F22*$N$6,0) -> 0 | AL22: 0
F23: - | G23: - | H23: =IFERROR(IF(A23="","",RESSOURCES!$D$133*VLOOKUP(A23,MAT_VAL,5,0)),"-") ->  | J23: - | L23: - | N23: 0 | P23: 0 | Q23: 0 | R23: 0 | AG23: =IFERROR(F23*$N$6,0) -> 0 | AL23: 0
F24: - | G24: - | H24: =IFERROR(IF(A24="","",RESSOURCES!$D$133*VLOOKUP(A24,MAT_VAL,5,0)),"-") ->  | J24: - | L24: - | N24: 0 | P24: 0 | Q24: 0 | R24: 0 | AH24: =IFERROR(F24*$N$6,0) -> 0 | AL24: 0
F25: - | G25: - | H25: =IFERROR(IF(A25="","",RESSOURCES!$D$133*VLOOKUP(A25,MAT_VAL,5,0)),"-") ->  | J25: - | L25: - | N25: 0 | P25: 0 | Q25: 0 | R25: 0 | AI25: =IFERROR(F25*$N$6,0) -> 0 | AL25: 0
